Workbook

Sheet 【準備】登録
A2: 対抗戦名称 | D2: 第 | E2: 9 | F2: 回 | G2: 神奈滋 | I2: 対抗戦
A4: 開催日 | D4: 2021-03-21 | AI4: 選手ID | AJ4: チーム | AK4: 選手名 | AL4: 持点
AI5: 11 | AJ5: =$B$13 -> NRC | AK5: =D13 -> 岩本 剛 | AL5: =F13 -> 180
A6: 会場 | D6: キングスポット | J6: （ | K6: 奈良 | M6: ） | R6: 3 | S6: クラブ | U6: 6 | V6: 名対抗 | AI6: 12 | AJ6: =$B$13 -> NRC | AK6: =G13 -> 吉向 翔平 | AL6: =I13 -> 180
AI7: 13 | AJ7: NRC | AK7: =J13 -> 金澤 茂昌 | AL7: =L13 -> 180
A8: 出場選手 | AI8: 14 | AJ8: NRC | AK8: =M13 -> 植田 慎也 | AL8: =O13 -> 180
A9: 前回 | B9: チーム | D9: 1 | G9: 2 | J9: 3 | M9: 4 | P9: 5 | S9: 6 | V9: 7 | Y9: 8 | AI9: 15 | AJ9: NRC | AK9: =P13 -> 長谷川 進 | AL9: =R13 -> 180
A10: 順位 | D10: 選手名 | F10: 点数 | G10: 選手名 | I10: 点数 | J10: 選手名 | L10: 点数 | M10: 選手名 | O10: 点数 | P10: 選手名 | R10: 点数 | S10: 選手名 | U10: 点数 | V10: 選手名 | X10: 点数 | Y10: 選手名 | AA10: 点数 | AI10: 16 | AJ10: NRC | AK10: =S13 -> 宮野 早織 | AL10: =U13 -> 140
A11: 3 | B11: SBC | D11: 林 秀忠 | F11: 180 | G11: 秋田 倫央 | I11: 180 | J11: 大橋 正寛 | L11: 180 | M11: 大橋 義治 | O11: 180 | P11: 山中 康寛 | R11: 180 | S11: 大橋 洋子 | U11: 140 | AI11: 17 | AJ11: NRC | AK11: =V13 -> 0 | AL11: =X13 -> 0
A12: 2 | B12: HRC | D12: 高木 俊行 | F12: 180 | G12: 金井 健太郎 | I12: 180 | J12: 平井 洸志 | L12: 180 | M12: 中尾 亮太 | O12: 180 | P12: 宮本 一 | R12: 180 | S12: 河地 恵里 | U12: 140 | AI12: 18 | AJ12: NRC | AK12: =Y13 -> 0 | AL12: =AA13 -> 0
A13: 1 | B13: NRC | D13: 岩本 剛 | F13: 180 | G13: 吉向 翔平 | I13: 180 | J13: 金澤 茂昌 | L13: 180 | M13: 植田 慎也 | O13: 180 | P13: 長谷川 進 | R13: 180 | S13: 宮野 早織 | U13: 140 | AI13: 21 | AJ13: =$B$12 -> HRC | AK13: =D12 -> 高木 俊行 | AL13: =F12 -> 180
AI14: 22 | AJ14: =$B$12 -> HRC | AK14: =G12 -> 金井 健太郎 | AL14: =I12 -> 180
A15: 点数 | D15: 男性 | F15: ： | G15: M | I15: 180 | J15: 点 | AI15: 23 | AJ15: HRC | AK15: =J12 -> 平井 洸志 | AL15: =L12 -> 180
D16: 女性 | F16: ： | G16: W | I16: 140 | J16: 点 | AI16: 24 | AJ16: HRC | AK16: =M12 -> 中尾 亮太 | AL16: =O12 -> 180
AI17: 25 | AJ17: HRC | AK17: =P12 -> 宮本 一 | AL17: =R12 -> 180
AI18: 26 | AJ18: HRC | AK18: =S12 -> 河地 恵里 | AL18: =U12 -> 140
AI19: 27 | AJ19: HRC | AK19: =V12 -> 0 | AL19: =X12 -> 0
AI20: 28 | AJ20: HRC | AK20: =Y12 -> 0 | AL20: =AA12 -> 0
D21: NRC | K21: HRC | R21: SBC | AI21: 31 | AJ21: =$B$11 -> SBC | AK21: =D11 -> 林 秀忠 | AL21: =F11 -> 180
C22: 1 | AI22: 32 | AJ22: =$B$11 -> SBC | AK22: =G11 -> 秋田 倫央 | AL22: =I11 -> 180
C23: 2 | AI23: 33 | AJ23: SBC | AK23: =J11 -> 大橋 正寛 | AL23: =L11 -> 180
C24: 3 | AI24: 34 | AJ24: SBC | AK24: =M11 -> 大橋 義治 | AL24: =O11 -> 180
C25: 4 | AI25: 35 | AJ25: SBC | AK25: =P11 -> 山中 康寛 | AL25: =R11 -> 180
C26: 5 | AI26: 36 | AJ26: SBC | AK26: =S11 -> 大橋 洋子 | AL26: =U11 -> 140
C27: 6 | AI27: 37 | AJ27: SBC | AK27: =V11 -> 0 | AL27: =X11 -> 0
C28: 7 | AI28: 38 | AJ28: SBC | AK28: =Y11 -> 0 | AL28: =AA11 -> 0
C29: 8
C31: 補1
C32: 補2
C33: 補3
C35: 運営
AH43: クラブID | AI43: クラブ名
AH44: 1 | AI44: =B13 -> NRC
AH45: 2 | AI45: =B12 -> HRC | BA45: 2 | BC45: 3
AH46: 3 | AI46: =B11 -> SBC | BA46: 1 | BC46: 3
BA47: 1 | BC47: 2
AG49: =U6 -> 6 | AH49: M | AI49: =AG49&AH49 -> 6M | AX49: 5 | AY49: M | BD49: 6 | BE49: M | BJ49: 7 | BK49: M | BP49: 8 | BQ49: M
AE50: 節 | AF50: G-No | AG50: T | AH50: n | AI50: C | AJ50: p | AK50: N | AL50: N | AM50: p | AN50: C | AO50: T | AP50: n | AW50: 節
AE51: =VLOOKUP($AI$49&AF51,$AR$51:$AW$1166,6,FALSE) -> 1 | AF51: 1 | AG51: =VLOOKUP($AI$49&AF51,$AR$51:$AW$1166,2,FALSE) -> 2 | AH51: =VLOOKUP($AI$49&AF51,$AR$51:$AW$1166,3,FALSE) -> 1 | AI51: =VLOOKUP(AG51,$AH$44:$AI$46,2,FALSE) -> HRC | AJ51: =VLOOKUP(VALUE(AG51&AH51),$AI$5:$AL$28,4,FALSE) -> 180 | AK51: =VLOOKUP(VALUE(AG51&AH51),$AI$5:$AL$28,3,FALSE) -> 高木 俊行 | AL51: =VLOOKUP(VALUE(AO51&AP51),$AI$5:$AL$28,3,FALSE) -> 林 秀忠 | AM51: =VLOOKUP(VALUE(AO51&AP51),$AI$5:$AL$28,4,FALSE) -> 180 | AN51: =VLOOKUP(AO51,$AH$44:$AI$46,2,FALSE) -> SBC | AO51: =VLOOKUP($AI$49&AF51,$AR$51:$AW$1166,4,FALSE) -> 3 | AP51: =VLOOKUP($AI$49&AF51,$AR$51:$AW$1166,5,FALSE) -> 1 | AR51: 5M1 | AS51: 2 | AT51: 1 | AU51: 3 | AV51: 1 | AW51: 1 | AX51: 1 | AY51: =$AX$49&$AY$49&AX51 -> 5M1 | AZ51: 2 | BA51: 1 | BB51: 3 | BC51: 1 | BD51: 1 | BE51: =$BD$49&$BE$49&BD51 -> 6M1 | BF51: 2 | BG51: 1 | BH51: 3 | BI51: 1 | BJ51: 1 | BK51: =$BJ$49&$BK$49&BJ51 -> 7M1 | BL51: 2 | BM51: 1 | BN51: 3 | BO51: 1 | BP51: 1 | BQ51: =$BP$49&$BQ$49&BP51 -> 8M1 | BR51: 2 | BS51: 1 | BT51: 3 | BU51: 1
AE52: =VLOOKUP($AI$49&AF52,$AR$51:$AW$1166,6,FALSE) -> 1 | AF52: 2 | AG52: =VLOOKUP($AI$49&AF52,$AR$51:$AW$1166,2,FALSE) -> 2 | AH52: =VLOOKUP($AI$49&AF52,$AR$51:$AW$1166,3,FALSE) -> 2 | AI52: =VLOOKUP(AG52,$AH$44:$AI$46,2,FALSE) -> HRC | AJ52: 180 | AK52: 金井 健太郎 | AL52: 秋田 倫央 | AM52: 180 | AN52: =VLOOKUP(AO52,$AH$44:$AI$46,2,FALSE) -> SBC | AO52: =VLOOKUP($AI$49&AF52,$AR$51:$AW$1166,4,FALSE) -> 3 | AP52: =VLOOKUP($AI$49&AF52,$AR$51:$AW$1166,5,FALSE) -> 2 | AR52: 5M2 | AS52: 2 | AT52: 2 | AU52: 3 | AV52: 2 | AW52: 1 | AX52: 2 | AY52: =$AX$49&$AY$49&AX52 -> 5M2 | AZ52: 2 | BA52: 2 | BB52: 3 | BC52: 2 | BD52: 2 | BE52: =$BD$49&$BE$49&BD52 -> 6M2 | BF52: 2 | BG52: 2 | BH52: 3 | BI52: 2 | BJ52: 2 | BK52: =$BJ$49&$BK$49&BJ52 -> 7M2 | BL52: 2 | BM52: 2 | BN52: 3 | BO52: 2 | BP52: 2 | BQ52: =$BP$49&$BQ$49&BP52 -> 8M2 | BR52: 2 | BS52: 2 | BT52: 3 | BU52: 2
AE53: 1 | AF53: 3 | AG53: 2 | AH53: 3 | AI53: HRC | AJ53: 180 | AK53: 平井 洸志 | AL53: 大橋 正寛 | AM53: 180 | AN53: SBC | AO53: 3 | AP53: 3 | AR53: 5M3 | AS53: 2 | AT53: 3 | AU53: 3 | AV53: 3 | AW53: 1 | AX53: 3 | AY53: 5M3 | AZ53: 2 | BA53: 3 | BB53: 3 | BC53: 3 | BD53: 3 | BE53: 6M3 | BF53: 2 | BG53: 3 | BH53: 3 | BI53: 3 | BJ53: 3 | BK53: 7M3 | BL53: 2 | BM53: 3 | BN53: 3 | BO53: 3 | BP53: 3 | BQ53: 8M3 | BR53: 2 | BS53: 3 | BT53: 3 | BU53: 3
AE54: 1 | AF54: 4 | AG54: 2 | AH54: 4 | AI54: HRC | AJ54: 180 | AK54: 中尾 亮太 | AL54: 大橋 義治 | AM54: 180 | AN54: SBC | AO54: 3 | AP54: 4 | AR54: 5M4 | AS54: 2 | AT54: 4 | AU54: 3 | AV54: 4 | AW54: 1 | AX54: 4 | AY54: 5M4 | AZ54: 2 | BA54: 4 | BB54: 3 | BC54: 4 | BD54: 4 | BE54: 6M4 | BF54: 2 | BG54: 4 | BH54: 3 | BI54: 4 | BJ54: 4 | BK54: 7M4 | BL54: 2 | BM54: 4 | BN54: 3 | BO54: 4 | BP54: 4 | BQ54: 8M4 | BR54: 2 | BS54: 4 | BT54: 3 | BU54: 4
AE55: 1 | AF55: 5 | AG55: 2 | AH55: 5 | AI55: HRC | AJ55: 180 | AK55: 宮本 一 | AL55: 山中 康寛 | AM55: 180 | AN55: SBC | AO55: 3 | AP55: 5 | AR55: 5M5 | AS55: 2 | AT55: 5 | AU55: 3 | AV55: 5 | AW55: 1 | AX55: 5 | AY55: 5M5 | AZ55: 2 | BA55: 5 | BB55: 3 | BC55: 5 | BD55: 5 | BE55: 6M5 | BF55: 2 | BG55: 5 | BH55: 3 | BI55: 5 | BJ55: 5 | BK55: 7M5 | BL55: 2 | BM55: 5 | BN55: 3 | BO55: 5 | BP55: 5 | BQ55: 8M5 | BR55: 2 | BS55: 5 | BT55: 3 | BU55: 5
AE56: 1 | AF56: 6 | AG56: 2 | AH56: 6 | AI56: HRC | AJ56: 140 | AK56: 河地 恵里 | AL56: 大橋 洋子 | AM56: 140 | AN56: SBC | AO56: 3 | AP56: 6 | AR56: 5M6 | AS56: 1 | AT56: 1 | AU56: 3 | AV56: 1 | AW56: 1 | AX56: 6 | AY56: 5M6 | AZ56: 1 | BA56: 1 | BB56: 3 | BC56: 1 | BD56: 6 | BE56: 6M6 | BF56: 2 | BG56: 6 | BH56: 3 | BI56: 6 | BJ56: 6 | BK56: 7M6 | BL56: 2 | BM56: 6 | BN56: 3 | BO56: 6 | BP56: 6 | BQ56: 8M6 | BR56: 2 | BS56: 6 | BT56: 3 | BU56: 6
AE57: 1 | AF57: 7 | AG57: 1 | AH57: 1 | AI57: NRC | AJ57: 180 | AK57: 岩本 剛 | AL57: 林 秀忠 | AM57: 180 | AN57: SBC | AO57: 3 | AP57: 1 | AR57: 5M7 | AS57: 1 | AT57: 2 | AU57: 3 | AV57: 2 | AW57: 1 | AX57: 7 | AY57: 5M7 | AZ57: 1 | BA57: 2 | BB57: 3 | BC57: 2 | BD57: 7 | BE57: 6M7 | BF57: 1 | BG57: 1 | BH57: 3 | BI57: 1 | BJ57: 7 | BK57: 7M7 | BL57: 2 | BM57: 7 | BN57: 3 | BO57: 7 | BP57: 7 | BQ57: 8M7 | BR57: 2 | BS57: 7 | BT57: 3 | BU57: 7
AE58: 1 | AF58: 8 | AG58: 1 | AH58: 2 | AI58: NRC | AJ58: 180 | AK58: 吉向 翔平 | AL58: 秋田 倫央 | AM58: 180 | AN58: SBC | AO58: 3 | AP58: 2 | AR58: 5M8 | AS58: 1 | AT58: 3 | AU58: 3 | AV58: 3 | AW58: 1 | AX58: 8 | AY58: 5M8 | AZ58: 1 | BA58: 3 | BB58: 3 | BC58: 3 | BD58: 8 | BE58: 6M8 | BF58: 1 | BG58: 2 | BH58: 3 | BI58: 2 | BJ58: 8 | BK58: 7M8 | BL58: 1 | BM58: 1 | BN58: 3 | BO58: 1 | BP58: 8 | BQ58: 8M8 | BR58: 2 | BS58: 8 | BT58: 3 | BU58: 8
AE59: 1 | AF59: 9 | AG59: 1 | AH59: 3 | AI59: NRC | AJ59: 180 | AK59: 金澤 茂昌 | AL59: 大橋 正寛 | AM59: 180 | AN59: SBC | AO59: 3 | AP59: 3 | AR59: 5M9 | AS59: 1 | AT59: 4 | AU59: 3 | AV59: 4 | AW59: 1 | AX59: 9 | AY59: 5M9 | AZ59: 1 | BA59: 4 | BB59: 3 | BC59: 4 | BD59: 9 | BE59: 6M9 | BF59: 1 | BG59: 3 | BH59: 3 | BI59: 3 | BJ59: 9 | BK59: 7M9 | BL59: 1 | BM59: 2 | BN59: 3 | BO59: 2 | BP59: 9 | BQ59: 8M9 | BR59: 1 | BS59: 1 | BT59: 3 | BU59: 1
AE60: 1 | AF60: 10 | AG60: 1 | AH60: 4 | AI60: NRC | AJ60: 180 | AK60: 植田 慎也 | AL60: 大橋 義治 | AM60: 180 | AN60: SBC | AO60: 3 | AP60: 4 | AR60: 5M10 | AS60: 1 | AT60: 5 | AU60: 3 | AV60: 5 | AW60: 1 | AX60: 10 | AY60: 5M10 | AZ60: 1 | BA60: 5 | BB60: 3 | BC60: 5 | BD60: 10 | BE60: 6M10 | BF60: 1 | BG60: 4 | BH60: 3 | BI60: 4 | BJ60: 10 | BK60: 7M10 | BL60: 1 | BM60: 3 | BN60: 3 | BO60: 3 | BP60: 10 | BQ60: 8M10 | BR60: 1 | BS60: 2 | BT60: 3 | BU60: 2
AE61: 1 | AF61: 11 | AG61: 1 | AH61: 5 | AI61: NRC | AJ61: 180 | AK61: 長谷川 進 | AL61: 山中 康寛 | AM61: 180 | AN61: SBC | AO61: 3 | AP61: 5 | AR61: 5M11 | AS61: 1 | AT61: 1 | AU61: 2 | AV61: 1 | AW61: 1 | AX61: 11 | AY61: 5M11 | AZ61: 1 | BA61: 1 | BB61: 2 | BC61: 1 | BD61: 11 | BE61: 6M11 | BF61: 1 | BG61: 5 | BH61: 3 | BI61: 5 | BJ61: 11 | BK61: 7M11 | BL61: 1 | BM61: 4 | BN61: 3 | BO61: 4 | BP61: 11 | BQ61: 8M11 | BR61: 1 | BS61: 3 | BT61: 3 | BU61: 3
AE62: 1 | AF62: 12 | AG62: 1 | AH62: 6 | AI62: NRC | AJ62: 140 | AK62: 宮野 早織 | AL62: 大橋 洋子 | AM62: 140 | AN62: SBC | AO62: 3 | AP62: 6 | AR62: 5M12 | AS62: 1 | AT62: 2 | AU62: 2 | AV62: 2 | AW62: 1 | AX62: 12 | AY62: 5M12 | AZ62: 1 | BA62: 2 | BB62: 2 | BC62: 2 | BD62: 12 | BE62: 6M12 | BF62: 1 | BG62: 6 | BH62: 3 | BI62: 6 | BJ62: 12 | BK62: 7M12 | BL62: 1 | BM62: 5 | BN62: 3 | BO62: 5 | BP62: 12 | BQ62: 8M12 | BR62: 1 | BS62: 4 | BT62: 3 | BU62: 4
AE63: 1 | AF63: 13 | AG63: 1 | AH63: 1 | AI63: NRC | AJ63: 180 | AK63: 岩本 剛 | AL63: 高木 俊行 | AM63: 180 | AN63: HRC | AO63: 2 | AP63: 1 | AR63: 5M13 | AS63: 1 | AT63: 3 | AU63: 2 | AV63: 3 | AW63: 1 | AX63: 13 | AY63: 5M13 | AZ63: 1 | BA63: 3 | BB63: 2 | BC63: 3 | BD63: 13 | BE63: 6M13 | BF63: 1 | BG63: 1 | BH63: 2 | BI63: 1 | BJ63: 13 | BK63: 7M13 | BL63: 1 | BM63: 6 | BN63: 3 | BO63: 6 | BP63: 13 | BQ63: 8M13 | BR63: 1 | BS63: 5 | BT63: 3 | BU63: 5
AE64: 1 | AF64: 14 | AG64: 1 | AH64: 2 | AI64: NRC | AJ64: 180 | AK64: 吉向 翔平 | AL64: 金井 健太郎 | AM64: 180 | AN64: HRC | AO64: 2 | AP64: 2 | AR64: 5M14 | AS64: 1 | AT64: 4 | AU64: 2 | AV64: 4 | AW64: 1 | AX64: 14 | AY64: 5M14 | AZ64: 1 | BA64: 4 | BB64: 2 | BC64: 4 | BD64: 14 | BE64: 6M14 | BF64: 1 | BG64: 2 | BH64: 2 | BI64: 2 | BJ64: 14 | BK64: 7M14 | BL64: 1 | BM64: 7 | BN64: 3 | BO64: 7 | BP64: 14 | BQ64: 8M14 | BR64: 1 | BS64: 6 | BT64: 3 | BU64: 6
AE65: 1 | AF65: 15 | AG65: 1 | AH65: 3 | AI65: NRC | AJ65: 180 | AK65: 金澤 茂昌 | AL65: 平井 洸志 | AM65: 180 | AN65: HRC | AO65: 2 | AP65: 3 | AR65: 5M15 | AS65: 1 | AT65: 5 | AU65: 2 | AV65: 5 | AW65: 1 | AX65: 15 | AY65: 5M15 | AZ65: 1 | BA65: 5 | BB65: 2 | BC65: 5 | BD65: 15 | BE65: 6M15 | BF65: 1 | BG65: 3 | BH65: 2 | BI65: 3 | BJ65: 15 | BK65: 7M15 | BL65: 1 | BM65: 1 | BN65: 2 | BO65: 1 | BP65: 15 | BQ65: 8M15 | BR65: 1 | BS65: 7 | BT65: 3 | BU65: 7
AE66: 1 | AF66: 16 | AG66: 1 | AH66: 4 | AI66: NRC | AJ66: 180 | AK66: 植田 慎也 | AL66: 中尾 亮太 | AM66: 180 | AN66: HRC | AO66: 2 | AP66: 4 | AR66: 5M16 | AS66: 2 | AT66: 2 | AU66: 3 | AV66: 3 | AW66: 2 | AX66: 16 | AY66: 5M16 | AZ66: 2 | BA66: 2 | BB66: 3 | BC66: 3 | BD66: 16 | BE66: 6M16 | BF66: 1 | BG66: 4 | BH66: 2 | BI66: 4 | BJ66: 16 | BK66: 7M16 | BL66: 1 | BM66: 2 | BN66: 2 | BO66: 2 | BP66: 16 | BQ66: 8M16 | BR66: 1 | BS66: 8 | BT66: 3 | BU66: 8
AE67: 1 | AF67: 17 | AG67: 1 | AH67: 5 | AI67: NRC | AJ67: 180 | AK67: 長谷川 進 | AL67: 宮本 一 | AM67: 180 | AN67: HRC | AO67: 2 | AP67: 5 | AR67: 5M17 | AS67: 2 | AT67: 3 | AU67: 3 | AV67: 4 | AW67: 2 | AX67: 17 | AY67: 5M17 | AZ67: 2 | BA67: 3 | BB67: 3 | BC67: 4 | BD67: 17 | BE67: 6M17 | BF67: 1 | BG67: 5 | BH67: 2 | BI67: 5 | BJ67: 17 | BK67: 7M17 | BL67: 1 | BM67: 3 | BN67: 2 | BO67: 3 | BP67: 17 | BQ67: 8M17 | BR67: 1 | BS67: 1 | BT67: 2 | BU67: 1
AE68: 1 | AF68: 18 | AG68: 1 | AH68: 6 | AI68: NRC | AJ68: 140 | AK68: 宮野 早織 | AL68: 河地 恵里 | AM68: 140 | AN68: HRC | AO68: 2 | AP68: 6 | AR68: 5M18 | AS68: 2 | AT68: 4 | AU68: 3 | AV68: 5 | AW68: 2 | AX68: 18 | AY68: 5M18 | AZ68: 2 | BA68: 4 | BB68: 3 | BC68: 5 | BD68: 18 | BE68: 6M18 | BF68: 1 | BG68: 6 | BH68: 2 | BI68: 6 | BJ68: 18 | BK68: 7M18 | BL68: 1 | BM68: 4 | BN68: 2 | BO68: 4 | BP68: 18 | BQ68: 8M18 | BR68: 1 | BS68: 2 | BT68: 2 | BU68: 2
AE69: 2 | AF69: 19 | AG69: 2 | AH69: 2 | AI69: HRC | AJ69: 180 | AK69: 金井 健太郎 | AL69: 大橋 正寛 | AM69: 180 | AN69: SBC | AO69: 3 | AP69: 3 | AR69: 5M19 | AS69: 2 | AT69: 5 | AU69: 3 | AV69: 1 | AW69: 2 | AX69: 19 | AY69: 5M19 | AZ69: 2 | BA69: 5 | BB69: 3 | BC69: 1 | BD69: 19 | BE69: 6M19 | BF69: 2 | BG69: 2 | BH69: 3 | BI69: 3 | BJ69: 19 | BK69: 7M19 | BL69: 1 | BM69: 5 | BN69: 2 | BO69: 5 | BP69: 19 | BQ69: 8M19 | BR69: 1 | BS69: 3 | BT69: 2 | BU69: 3
AE70: 2 | AF70: 20 | AG70: 2 | AH70: =VLOOKUP($AI$49&AF70,$AR$51:$AW$1166,3,FALSE) -> 3 | AI70: =VLOOKUP(AG70,$AH$44:$AI$46,2,FALSE) -> HRC | AJ70: 180 | AK70: 平井 洸志 | AL70: 大橋 義治 | AM70: 180 | AN70: SBC | AO70: =VLOOKUP($AI$49&AF70,$AR$51:$AW$1166,4,FALSE) -> 3 | AP70: =VLOOKUP($AI$49&AF70,$AR$51:$AW$1166,5,FALSE) -> 4 | AR70: 5M20 | AS70: 2 | AT70: 1 | AU70: 3 | AV70: 2 | AW70: 2 | AX70: 20 | AY70: 5M20 | AZ70: 2 | BA70: 1 | BB70: 3 | BC70: 2 | BD70: 20 | BE70: 6M20 | BF70: 2 | BG70: 3 | BH70: 3 | BI70: 4 | BJ70: 20 | BK70: 7M20 | BL70: 1 | BM70: 6 | BN70: 2 | BO70: 6 | BP70: 20 | BQ70: 8M20 | BR70: 1 | BS70: 4 | BT70: 2 | BU70: 4
AE71: 2 | AF71: 21 | AG71: 2 | AH71: 4 | AI71: HRC | AJ71: 180 | AK71: 中尾 亮太 | AL71: 山中 康寛 | AM71: 180 | AN71: SBC | AO71: 3 | AP71: 5 | AR71: 5M21 | AS71: 1 | AT71: 1 | AU71: 3 | AV71: 3 | AW71: 2 | AX71: 21 | AY71: 5M21 | AZ71: 1 | BA71: 1 | BB71: 3 | BC71: 3 | BD71: 21 | BE71: 6M21 | BF71: 2 | BG71: 4 | BH71: 3 | BI71: 5 | BJ71: 21 | BK71: 7M21 | BL71: 1 | BM71: 7 | BN71: 2 | BO71: 7 | BP71: 21 | BQ71: 8M21 | BR71: 1 | BS71: 5 | BT71: 2 | BU71: 5
AE72: 2 | AF72: 22 | AG72: 2 | AH72: 5 | AI72: HRC | AJ72: 180 | AK72: 宮本 一 | AL72: 大橋 洋子 | AM72: 140 | AN72: SBC | AO72: 3 | AP72: 6 | AR72: 5M22 | AS72: 1 | AT72: 2 | AU72: 3 | AV72: 4 | AW72: 2 | AX72: 22 | AY72: 5M22 | AZ72: 1 | BA72: 2 | BB72: 3 | BC72: 4 | BD72: 22 | BE72: 6M22 | BF72: 2 | BG72: 5 | BH72: 3 | BI72: 6 | BJ72: 22 | BK72: 7M22 | BL72: 2 | BM72: 2 | BN72: 3 | BO72: 3 | BP72: 22 | BQ72: 8M22 | BR72: 1 | BS72: 6 | BT72: 2 | BU72: 6
AE73: 2 | AF73: 23 | AG73: 2 | AH73: 6 | AI73: HRC | AJ73: 140 | AK73: 河地 恵里 | AL73: 林 秀忠 | AM73: 180 | AN73: SBC | AO73: 3 | AP73: 1 | AR73: 5M23 | AS73: 1 | AT73: 3 | AU73: 3 | AV73: 5 | AW73: 2 | AX73: 23 | AY73: 5M23 | AZ73: 1 | BA73: 3 | BB73: 3 | BC73: 5 | BD73: 23 | BE73: 6M23 | BF73: 2 | BG73: 6 | BH73: 3 | BI73: 1 | BJ73: 23 | BK73: 7M23 | BL73: 2 | BM73: 3 | BN73: 3 | BO73: 4 | BP73: 23 | BQ73: 8M23 | BR73: 1 | BS73: 7 | BT73: 2 | BU73: 7
AE74: 2 | AF74: 24 | AG74: 2 | AH74: 1 | AI74: HRC | AJ74: 180 | AK74: 高木 俊行 | AL74: 秋田 倫央 | AM74: 180 | AN74: SBC | AO74: 3 | AP74: 2 | AR74: 5M24 | AS74: 1 | AT74: 4 | AU74: 3 | AV74: 1 | AW74: 2 | AX74: 24 | AY74: 5M24 | AZ74: 1 | BA74: 4 | BB74: 3 | BC74: 1 | BD74: 24 | BE74: 6M24 | BF74: 2 | BG74: 1 | BH74: 3 | BI74: 2 | BJ74: 24 | BK74: 7M24 | BL74: 2 | BM74: 4 | BN74: 3 | BO74: 5 | BP74: 24 | BQ74: 8M24 | BR74: 1 | BS74: 8 | BT74: 2 | BU74: 8
AE75: 2 | AF75: 25 | AG75: 1 | AH75: 1 | AI75: NRC | AJ75: 180 | AK75: 岩本 剛 | AL75: 大橋 正寛 | AM75: 180 | AN75: SBC | AO75: 3 | AP75: 3 | AR75: 5M25 | AS75: 1 | AT75: 5 | AU75: 3 | AV75: 2 | AW75: 2 | AX75: 25 | AY75: 5M25 | AZ75: 1 | BA75: 5 | BB75: 3 | BC75: 2 | BD75: 25 | BE75: 6M25 | BF75: 1 | BG75: 1 | BH75: 3 | BI75: 3 | BJ75: 25 | BK75: 7M25 | BL75: 2 | BM75: 5 | BN75: 3 | BO75: 6 | BP75: 25 | BQ75: 8M25 | BR75: 2 | BS75: 2 | BT75: 3 | BU75: 3
AE76: 2 | AF76: 26 | AG76: 1 | AH76: 2 | AI76: NRC | AJ76: 180 | AK76: 吉向 翔平 | AL76: 大橋 義治 | AM76: 180 | AN76: SBC | AO76: 3 | AP76: 4 | AR76: 5M26 | AS76: 1 | AT76: 1 | AU76: 2 | AV76: 2 | AW76: 2 | AX76: 26 | AY76: 5M26 | AZ76: 1 | BA76: 1 | BB76: 2 | BC76: 2 | BD76: 26 | BE76: 6M26 | BF76: 1 | BG76: 2 | BH76: 3 | BI76: 4 | BJ76: 26 | BK76: 7M26 | BL76: 2 | BM76: 6 | BN76: 3 | BO76: 7 | BP76: 26 | BQ76: 8M26 | BR76: 2 | BS76: 3 | BT76: 3 | BU76: 4
AE77: 2 | AF77: 27 | AG77: 1 | AH77: 3 | AI77: NRC | AJ77: 180 | AK77: 金澤 茂昌 | AL77: 山中 康寛 | AM77: 180 | AN77: SBC | AO77: 3 | AP77: 5 | AR77: 5M27 | AS77: 1 | AT77: 2 | AU77: 2 | AV77: 3 | AW77: 2 | AX77: 27 | AY77: 5M27 | AZ77: 1 | BA77: 2 | BB77: 2 | BC77: 3 | BD77: 27 | BE77: 6M27 | BF77: 1 | BG77: 3 | BH77: 3 | BI77: 5 | BJ77: 27 | BK77: 7M27 | BL77: 2 | BM77: 7 | BN77: 3 | BO77: 1 | BP77: 27 | BQ77: 8M27 | BR77: 2 | BS77: 4 | BT77: 3 | BU77: 5
AE78: 2 | AF78: 28 | AG78: 1 | AH78: 4 | AI78: NRC | AJ78: 180 | AK78: 植田 慎也 | AL78: 大橋 洋子 | AM78: 140 | AN78: SBC | AO78: 3 | AP78: 6 | AR78: 5M28 | AS78: 1 | AT78: 3 | AU78: 2 | AV78: 4 | AW78: 2 | AX78: 28 | AY78: 5M28 | AZ78: 1 | BA78: 3 | BB78: 2 | BC78: 4 | BD78: 28 | BE78: 6M28 | BF78: 1 | BG78: 4 | BH78: 3 | BI78: 6 | BJ78: 28 | BK78: 7M28 | BL78: 2 | BM78: 1 | BN78: 3 | BO78: 2 | BP78: 28 | BQ78: 8M28 | BR78: 2 | BS78: 5 | BT78: 3 | BU78: 6
AE79: 2 | AF79: 29 | AG79: 1 | AH79: 5 | AI79: NRC | AJ79: 180 | AK79: 長谷川 進 | AL79: 林 秀忠 | AM79: 180 | AN79: SBC | AO79: 3 | AP79: 1 | AR79: 5M29 | AS79: 1 | AT79: 4 | AU79: 2 | AV79: 5 | AW79: 2 | AX79: 29 | AY79: 5M29 | AZ79: 1 | BA79: 4 | BB79: 2 | BC79: 5 | BD79: 29 | BE79: 6M29 | BF79: 1 | BG79: 5 | BH79: 3 | BI79: 1 | BJ79: 29 | BK79: 7M29 | BL79: 1 | BM79: 1 | BN79: 3 | BO79: 3 | BP79: 29 | BQ79: 8M29 | BR79: 2 | BS79: 6 | BT79: 3 | BU79: 7
AE80: 2 | AF80: 30 | AG80: 1 | AH80: 6 | AI80: NRC | AJ80: 140 | AK80: 宮野 早織 | AL80: 秋田 倫央 | AM80: 180 | AN80: SBC | AO80: 3 | AP80: 2 | AR80: 5M30 | AS80: 1 | AT80: 5 | AU80: 2 | AV80: 1 | AW80: 2 | AX80: 30 | AY80: 5M30 | AZ80: 1 | BA80: 5 | BB80: 2 | BC80: 1 | BD80: 30 | BE80: 6M30 | BF80: 1 | BG80: 6 | BH80: 3 | BI80: 2 | BJ80: 30 | BK80: 7M30 | BL80: 1 | BM80: 2 | BN80: 3 | BO80: 4 | BP80: 30 | BQ80: 8M30 | BR80: 2 | BS80: 7 | BT80: 3 | BU80: 8
AE81: 2 | AF81: 31 | AG81: 1 | AH81: 1 | AI81: NRC | AJ81: 180 | AK81: 岩本 剛 | AL81: 金井 健太郎 | AM81: 180 | AN81: HRC | AO81: 2 | AP81: 2 | AR81: 5M31 | AS81: 2 | AT81: 3 | AU81: 3 | AV81: 5 | AW81: 3 | AX81: 31 | AY81: 5M31 | AZ81: 2 | BA81: 3 | BB81: 3 | BC81: 5 | BD81: 31 | BE81: 6M31 | BF81: 1 | BG81: 1 | BH81: 2 | BI81: 2 | BJ81: 31 | BK81: 7M31 | BL81: 1 | BM81: 3 | BN81: 3 | BO81: 5 | BP81: 31 | BQ81: 8M31 | BR81: 2 | BS81: 8 | BT81: 3 | BU81: 1
AE82: 2 | AF82: 32 | AG82: 1 | AH82: 2 | AI82: NRC | AJ82: 180 | AK82: 吉向 翔平 | AL82: 平井 洸志 | AM82: 180 | AN82: HRC | AO82: 2 | AP82: 3 | AR82: 5M32 | AS82: 2 | AT82: 4 | AU82: 3 | AV82: 1 | AW82: 3 | AX82: 32 | AY82: 5M32 | AZ82: 2 | BA82: 4 | BB82: 3 | BC82: 1 | BD82: 32 | BE82: 6M32 | BF82: 1 | BG82: 2 | BH82: 2 | BI82: 3 | BJ82: 32 | BK82: 7M32 | BL82: 1 | BM82: 4 | BN82: 3 | BO82: 6 | BP82: 32 | BQ82: 8M32 | BR82: 2 | BS82: 1 | BT82: 3 | BU82: 2
AE83: 2 | AF83: 33 | AG83: 1 | AH83: 3 | AI83: NRC | AJ83: =VLOOKUP(VALUE(AG83&AH83),$AI$5:$AL$28,4,FALSE) -> 180 | AK83: =VLOOKUP(VALUE(AG83&AH83),$AI$5:$AL$28,3,FALSE) -> 金澤 茂昌 | AL83: =VLOOKUP(VALUE(AO83&AP83),$AI$5:$AL$28,3,FALSE) -> 中尾 亮太 | AM83: =VLOOKUP(VALUE(AO83&AP83),$AI$5:$AL$28,4,FALSE) -> 180 | AN83: HRC | AO83: 2 | AP83: 4 | AR83: 5M33 | AS83: 2 | AT83: 5 | AU83: 3 | AV83: 2 | AW83: 3 | AX83: 33 | AY83: 5M33 | AZ83: 2 | BA83: 5 | BB83: 3 | BC83: 2 | BD83: 33 | BE83: 6M33 | BF83: 1 | BG83: 3 | BH83: 2 | BI83: 4 | BJ83: 33 | BK83: 7M33 | BL83: 1 | BM83: 5 | BN83: 3 | BO83: 7 | BP83: 33 | BQ83: 8M33 | BR83: 1 | BS83: 1 | BT83: 3 | BU83: 3
AE84: 2 | AF84: 34 | AG84: 1 | AH84: 4 | AI84: NRC | AJ84: 180 | AK84: 植田 慎也 | AL84: 宮本 一 | AM84: 180 | AN84: HRC | AO84: 2 | AP84: 5 | AR84: 5M34 | AS84: 2 | AT84: 1 | AU84: 3 | AV84: 3 | AW84: 3 | AX84: 34 | AY84: 5M34 | AZ84: 2 | BA84: 1 | BB84: 3 | BC84: 3 | BD84: 34 | BE84: 6M34 | BF84: 1 | BG84: 4 | BH84: 2 | BI84: 5 | BJ84: 34 | BK84: 7M34 | BL84: 1 | BM84: 6 | BN84: 3 | BO84: 1 | BP84: 34 | BQ84: 8M34 | BR84: 1 | BS84: 2 | BT84: 3 | BU84: 4
AE85: 2 | AF85: 35 | AG85: 1 | AH85: 5 | AI85: NRC | AJ85: 180 | AK85: 長谷川 進 | AL85: 河地 恵里 | AM85: 140 | AN85: HRC | AO85: 2 | AP85: 6 | AR85: 5M35 | AS85: 2 | AT85: 2 | AU85: 3 | AV85: 4 | AW85: 3 | AX85: 35 | AY85: 5M35 | AZ85: 2 | BA85: 2 | BB85: 3 | BC85: 4 | BD85: 35 | BE85: 6M35 | BF85: 1 | BG85: 5 | BH85: 2 | BI85: 6 | BJ85: 35 | BK85: 7M35 | BL85: 1 | BM85: 7 | BN85: 3 | BO85: 2 | BP85: 35 | BQ85: 8M35 | BR85: 1 | BS85: 3 | BT85: 3 | BU85: 5
AE86: 2 | AF86: 36 | AG86: 1 | AH86: 6 | AI86: NRC | AJ86: 140 | AK86: 宮野 早織 | AL86: 高木 俊行 | AM86: 180 | AN86: HRC | AO86: 2 | AP86: 1 | AR86: 5M36 | AS86: 1 | AT86: 1 | AU86: 3 | AV86: 5 | AW86: 3 | AX86: 36 | AY86: 5M36 | AZ86: 1 | BA86: 1 | BB86: 3 | BC86: 5 | BD86: 36 | BE86: 6M36 | BF86: 1 | BG86: 6 | BH86: 2 | BI86: 1 | BJ86: 36 | BK86: 7M36 | BL86: 1 | BM86: 1 | BN86: 2 | BO86: 2 | BP86: 36 | BQ86: 8M36 | BR86: 1 | BS86: 4 | BT86: 3 | BU86: 6
AE87: 3 | AF87: 37 | AG87: 2 | AH87: =VLOOKUP($AI$49&AF87,$AR$51:$AW$1166,3,FALSE) -> 3 | AI87: =VLOOKUP(AG87,$AH$44:$AI$46,2,FALSE) -> HRC | AJ87: 180 | AK87: 平井 洸志 | AL87: 山中 康寛 | AM87: 180 | AN87: SBC | AO87: =VLOOKUP($AI$49&AF87,$AR$51:$AW$1166,4,FALSE) -> 3 | AP87: =VLOOKUP($AI$49&AF87,$AR$51:$AW$1166,5,FALSE) -> 5 | AR87: 5M37 | AS87: 1 | AT87: 2 | AU87: 3 | AV87: 1 | AW87: 3 | AX87: 37 | AY87: 5M37 | AZ87: 1 | BA87: 2 | BB87: 3 | BC87: 1 | BD87: 37 | BE87: 6M37 | BF87: 2 | BG87: 3 | BH87: 3 | BI87: 5 | BJ87: 37 | BK87: 7M37 | BL87: 1 | BM87: 2 | BN87: 2 | BO87: 3 | BP87: 37 | BQ87: 8M37 | BR87: 1 | BS87: 5 | BT87: 3 | BU87: 7
AE88: 3 | AF88: 38 | AG88: 2 | AH88: 4 | AI88: HRC | AJ88: 180 | AK88: 中尾 亮太 | AL88: 大橋 洋子 | AM88: 140 | AN88: SBC | AO88: 3 | AP88: 6 | AR88: 5M38 | AS88: 1 | AT88: 3 | AU88: 3 | AV88: 2 | AW88: 3 | AX88: 38 | AY88: 5M38 | AZ88: 1 | BA88: 3 | BB88: 3 | BC88: 2 | BD88: 38 | BE88: 6M38 | BF88: 2 | BG88: 4 | BH88: 3 | BI88: 6 | BJ88: 38 | BK88: 7M38 | BL88: 1 | BM88: 3 | BN88: 2 | BO88: 4 | BP88: 38 | BQ88: 8M38 | BR88: 1 | BS88: 6 | BT88: 3 | BU88: 8
AE89: 3 | AF89: 39 | AG89: 2 | AH89: 5 | AI89: HRC | AJ89: 180 | AK89: 宮本 一 | AL89: 林 秀忠 | AM89: 180 | AN89: SBC | AO89: 3 | AP89: 1 | AR89: 5M39 | AS89: 1 | AT89: 4 | AU89: 3 | AV89: 3 | AW89: 3 | AX89: 39 | AY89: 5M39 | AZ89: 1 | BA89: 4 | BB89: 3 | BC89: 3 | BD89: 39 | BE89: 6M39 | BF89: 2 | BG89: 5 | BH89: 3 | BI89: 1 | BJ89: 39 | BK89: 7M39 | BL89: 1 | BM89: 4 | BN89: 2 | BO89: 5 | BP89: 39 | BQ89: 8M39 | BR89: 1 | BS89: 7 | BT89: 3 | BU89: 1
AE90: 3 | AF90: 40 | AG90: 2 | AH90: 6 | AI90: HRC | AJ90: 140 | AK90: 河地 恵里 | AL90: 秋田 倫央 | AM90: 180 | AN90: SBC | AO90: 3 | AP90: 2 | AR90: 5M40 | AS90: 1 | AT90: 5 | AU90: 3 | AV90: 4 | AW90: 3 | AX90: 40 | AY90: 5M40 | AZ90: 1 | BA90: 5 | BB90: 3 | BC90: 4 | BD90: 40 | BE90: 6M40 | BF90: 2 | BG90: 6 | BH90: 3 | BI90: 2 | BJ90: 40 | BK90: 7M40 | BL90: 1 | BM90: 5 | BN90: 2 | BO90: 6 | BP90: 40 | BQ90: 8M40 | BR90: 1 | BS90: 8 | BT90: 3 | BU90: 2
AE91: 3 | AF91: 41 | AG91: 2 | AH91: 1 | AI91: HRC | AJ91: 180 | AK91: 高木 俊行 | AL91: 大橋 正寛 | AM91: 180 | AN91: SBC | AO91: 3 | AP91: 3 | AR91: 5M41 | AS91: 1 | AT91: 1 | AU91: 2 | AV91: 3 | AW91: 3 | AX91: 41 | AY91: 5M41 | AZ91: 1 | BA91: 1 | BB91: 2 | BC91: 3 | BD91: 41 | BE91: 6M41 | BF91: 2 | BG91: 1 | BH91: 3 | BI91: 3 | BJ91: 41 | BK91: 7M41 | BL91: 1 | BM91: 6 | BN91: 2 | BO91: 7 | BP91: 41 | BQ91: 8M41 | BR91: 1 | BS91: 1 | BT91: 2 | BU91: 2
AE92: 3 | AF92: 42 | AG92: 2 | AH92: 2 | AI92: HRC | AJ92: 180 | AK92: 金井 健太郎 | AL92: 大橋 義治 | AM92: 180 | AN92: SBC | AO92: 3 | AP92: 4 | AR92: 5M42 | AS92: 1 | AT92: 2 | AU92: 2 | AV92: 4 | AW92: 3 | AX92: 42 | AY92: 5M42 | AZ92: 1 | BA92: 2 | BB92: 2 | BC92: 4 | BD92: 42 | BE92: 6M42 | BF92: 2 | BG92: 2 | BH92: 3 | BI92: 4 | BJ92: 42 | BK92: 7M42 | BL92: 1 | BM92: 7 | BN92: 2 | BO92: 1 | BP92: 42 | BQ92: 8M42 | BR92: 1 | BS92: 2 | BT92: 2 | BU92: 3
AE93: 3 | AF93: 43 | AG93: 1 | AH93: 1 | AI93: NRC | AJ93: 180 | AK93: 岩本 剛 | AL93: 山中 康寛 | AM93: 180 | AN93: SBC | AO93: 3 | AP93: 5 | AR93: 5M43 | AS93: 1 | AT93: 3 | AU93: 2 | AV93: 5 | AW93: 3 | AX93: 43 | AY93: 5M43 | AZ93: 1 | BA93: 3 | BB93: 2 | BC93: 5 | BD93: 43 | BE93: 6M43 | BF93: 1 | BG93: 1 | BH93: 3 | BI93: 5 | BJ93: 43 | BK93: 7M43 | BL93: 2 | BM93: 3 | BN93: 3 | BO93: 5 | BP93: 43 | BQ93: 8M43 | BR93: 1 | BS93: 3 | BT93: 2 | BU93: 4
AE94: 3 | AF94: 44 | AG94: 1 | AH94: 2 | AI94: NRC | AJ94: 180 | AK94: 吉向 翔平 | AL94: 大橋 洋子 | AM94: 140 | AN94: SBC | AO94: 3 | AP94: 6 | AR94: 5M44 | AS94: 1 | AT94: 4 | AU94: 2 | AV94: 1 | AW94: 3 | AX94: 44 | AY94: 5M44 | AZ94: 1 | BA94: 4 | BB94: 2 | BC94: 1 | BD94: 44 | BE94: 6M44 | BF94: 1 | BG94: 2 | BH94: 3 | BI94: 6 | BJ94: 44 | BK94: 7M44 | BL94: 2 | BM94: 4 | BN94: 3 | BO94: 6 | BP94: 44 | BQ94: 8M44 | BR94: 1 | BS94: 4 | BT94: 2 | BU94: 5
AE95: 3 | AF95: 45 | AG95: 1 | AH95: 3 | AI95: NRC | AJ95: 180 | AK95: 金澤 茂昌 | AL95: 林 秀忠 | AM95: 180 | AN95: SBC | AO95: 3 | AP95: 1 | AR95: 5M45 | AS95: 1 | AT95: 5 | AU95: 2 | AV95: 2 | AW95: 3 | AX95: 45 | AY95: 5M45 | AZ95: 1 | BA95: 5 | BB95: 2 | BC95: 2 | BD95: 45 | BE95: 6M45 | BF95: 1 | BG95: 3 | BH95: 3 | BI95: 1 | BJ95: 45 | BK95: 7M45 | BL95: 2 | BM95: 5 | BN95: 3 | BO95: 7 | BP95: 45 | BQ95: 8M45 | BR95: 1 | BS95: 5 | BT95: 2 | BU95: 6
AE96: 3 | AF96: 46 | AG96: 1 | AH96: 4 | AI96: NRC | AJ96: 180 | AK96: 植田 慎也 | AL96: 秋田 倫央 | AM96: 180 | AN96: SBC | AO96: 3 | AP96: 2 | AR96: 6M1 | AS96: 2 | AT96: 1 | AU96: 3 | AV96: 1 | AW96: 1 | BD96: 46 | BE96: 6M46 | BF96: 1 | BG96: 4 | BH96: 3 | BI96: 2 | BJ96: 46 | BK96: 7M46 | BL96: 2 | BM96: 6 | BN96: 3 | BO96: 1 | BP96: 46 | BQ96: 8M46 | BR96: 1 | BS96: 6 | BT96: 2 | BU96: 7
AE97: 3 | AF97: 47 | AG97: 1 | AH97: 5 | AI97: NRC | AJ97: 180 | AK97: 長谷川 進 | AL97: 大橋 正寛 | AM97: 180 | AN97: SBC | AO97: 3 | AP97: 3 | AR97: 6M2 | AS97: 2 | AT97: 2 | AU97: 3 | AV97: 2 | AW97: 1 | BD97: 47 | BE97: 6M47 | BF97: 1 | BG97: 5 | BH97: 3 | BI97: 3 | BJ97: 47 | BK97: 7M47 | BL97: 2 | BM97: 7 | BN97: 3 | BO97: 2 | BP97: 47 | BQ97: 8M47 | BR97: 1 | BS97: 7 | BT97: 2 | BU97: 8
AE98: 3 | AF98: 48 | AG98: 1 | AH98: 6 | AI98: NRC | AJ98: 140 | AK98: 宮野 早織 | AL98: 大橋 義治 | AM98: 180 | AN98: SBC | AO98: 3 | AP98: 4 | AR98: 6M3 | AS98: 2 | AT98: 3 | AU98: 3 | AV98: 3 | AW98: 1 | BD98: 48 | BE98: 6M48 | BF98: 1 | BG98: 6 | BH98: 3 | BI98: 4 | BJ98: 48 | BK98: 7M48 | BL98: 2 | BM98: 1 | BN98: 3 | BO98: 3 | BP98: 48 | BQ98: 8M48 | BR98: 1 | BS98: 8 | BT98: 2 | BU98: 1
AE99: 3 | AF99: 49 | AG99: 1 | AH99: 1 | AI99: NRC | AJ99: 180 | AK99: 岩本 剛 | AL99: 平井 洸志 | AM99: 180 | AN99: HRC | AO99: 2 | AP99: 3 | AR99: 6M4 | AS99: 2 | AT99: 4 | AU99: 3 | AV99: 4 | AW99: 1 | BD99: 49 | BE99: 6M49 | BF99: 1 | BG99: 1 | BH99: 2 | BI99: 3 | BJ99: 49 | BK99: 7M49 | BL99: 2 | BM99: 2 | BN99: 3 | BO99: 4 | BP99: 49 | BQ99: 8M49 | BR99: 2 | BS99: 3 | BT99: 3 | BU99: 5
AE100: 3 | AF100: 50 | AG100: 1 | AH100: 2 | AI100: NRC | AJ100: 180 | AK100: 吉向 翔平 | AL100: 中尾 亮太 | AM100: 180 | AN100: HRC | AO100: 2 | AP100: 4 | AR100: 6M5 | AS100: 2 | AT100: 5 | AU100: 3 | AV100: 5 | AW100: 1 | BD100: 50 | BE100: 6M50 | BF100: 1 | BG100: 2 | BH100: 2 | BI100: 4 | BJ100: 50 | BK100: 7M50 | BL100: 1 | BM100: 1 | BN100: 3 | BO100: 5 | BP100: 50 | BQ100: 8M50 | BR100: 2 | BS100: 4 | BT100: 3 | BU100: 6
AE101: 3 | AF101: 51 | AG101: 1 | AH101: 3 | AI101: NRC | AJ101: 180 | AK101: 金澤 茂昌 | AL101: 宮本 一 | AM101: 180 | AN101: HRC | AO101: 2 | AP101: 5 | AR101: 6M6 | AS101: 2 | AT101: 6 | AU101: 3 | AV101: 6 | AW101: 1 | BD101: 51 | BE101: 6M51 | BF101: 1 | BG101: 3 | BH101: 2 | BI101: 5 | BJ101: 51 | BK101: 7M51 | BL101: 1 | BM101: 2 | BN101: 3 | BO101: 6 | BP101: 51 | BQ101: 8M51 | BR101: 2 | BS101: 5 | BT101: 3 | BU101: 7
AE102: 3 | AF102: 52 | AG102: 1 | AH102: 4 | AI102: NRC | AJ102: 180 | AK102: 植田 慎也 | AL102: 河地 恵里 | AM102: 140 | AN102: HRC | AO102: 2 | AP102: 6 | AR102: 6M7 | AS102: 1 | AT102: 1 | AU102: 3 | AV102: 1 | AW102: 1 | BD102: 52 | BE102: 6M52 | BF102: 1 | BG102: 4 | BH102: 2 | BI102: 6 | BJ102: 52 | BK102: 7M52 | BL102: 1 | BM102: 3 | BN102: 3 | BO102: 7 | BP102: 52 | BQ102: 8M52 | BR102: 2 | BS102: 6 | BT102: 3 | BU102: 8
AE103: 3 | AF103: 53 | AG103: 1 | AH103: 5 | AI103: NRC | AJ103: 180 | AK103: 長谷川 進 | AL103: 高木 俊行 | AM103: 180 | AN103: HRC | AO103: 2 | AP103: 1 | AR103: 6M8 | AS103: 1 | AT103: 2 | AU103: 3 | AV103: 2 | AW103: 1 | BD103: 53 | BE103: 6M53 | BF103: 1 | BG103: 5 | BH103: 2 | BI103: 1 | BJ103: 53 | BK103: 7M53 | BL103: 1 | BM103: 4 | BN103: 3 | BO103: 1 | BP103: 53 | BQ103: 8M53 | BR103: 2 | BS103: 7 | BT103: 3 | BU103: 1
AE104: 3 | AF104: 54 | AG104: 1 | AH104: 6 | AI104: NRC | AJ104: 140 | AK104: 宮野 早織 | AL104: 金井 健太郎 | AM104: 180 | AN104: HRC | AO104: 2 | AP104: 2 | AR104: 6M9 | AS104: 1 | AT104: 3 | AU104: 3 | AV104: 3 | AW104: 1 | BD104: 54 | BE104: 6M54 | BF104: 1 | BG104: 6 | BH104: 2 | BI104: 2 | BJ104: 54 | BK104: 7M54 | BL104: 1 | BM104: 5 | BN104: 3 | BO104: 2 | BP104: 54 | BQ104: 8M54 | BR104: 2 | BS104: 8 | BT104: 3 | BU104: 2
AF105: 55 | AR105: 6M10 | AS105: 1 | AT105: 4 | AU105: 3 | AV105: 4 | AW105: 1 | BJ105: 55 | BK105: 7M55 | BL105: 1 | BM105: 6 | BN105: 3 | BO105: 3 | BP105: 55 | BQ105: 8M55 | BR105: 2 | BS105: 1 | BT105: 3 | BU105: 3
AF106: 56 | AR106: 6M11 | AS106: 1 | AT106: 5 | AU106: 3 | AV106: 5 | AW106: 1 | BJ106: 56 | BK106: 7M56 | BL106: 1 | BM106: 7 | BN106: 3 | BO106: 4 | BP106: 56 | BQ106: 8M56 | BR106: 2 | BS106: 2 | BT106: 3 | BU106: 4
AF107: 57 | AR107: 6M12 | AS107: 1 | AT107: 6 | AU107: 3 | AV107: 6 | AW107: 1 | BJ107: 57 | BK107: 7M57 | BL107: 1 | BM107: 1 | BN107: 2 | BO107: 3 | BP107: 57 | BQ107: 8M57 | BR107: 1 | BS107: 1 | BT107: 3 | BU107: 5
AF108: 58 | AR108: 6M13 | AS108: 1 | AT108: 1 | AU108: 2 | AV108: 1 | AW108: 1 | BJ108: 58 | BK108: 7M58 | BL108: 1 | BM108: 2 | BN108: 2 | BO108: 4 | BP108: 58 | BQ108: 8M58 | BR108: 1 | BS108: 2 | BT108: 3 | BU108: 6
AF109: 59 | AR109: 6M14 | AS109: 1 | AT109: 2 | AU109: 2 | AV109: 2 | AW109: 1 | BJ109: 59 | BK109: 7M59 | BL109: 1 | BM109: 3 | BN109: 2 | BO109: 5 | BP109: 59 | BQ109: 8M59 | BR109: 1 | BS109: 3 | BT109: 3 | BU109: 7
AF110: 60 | AR110: 6M15 | AS110: 1 | AT110: 3 | AU110: 2 | AV110: 3 | AW110: 1 | BJ110: 60 | BK110: 7M60 | BL110: 1 | BM110: 4 | BN110: 2 | BO110: 6 | BP110: 60 | BQ110: 8M60 | BR110: 1 | BS110: 4 | BT110: 3 | BU110: 8
AF111: 61 | AR111: 6M16 | AS111: 1 | AT111: 4 | AU111: 2 | AV111: 4 | AW111: 1 | BJ111: 61 | BK111: 7M61 | BL111: 1 | BM111: 5 | BN111: 2 | BO111: 7 | BP111: 61 | BQ111: 8M61 | BR111: 1 | BS111: 5 | BT111: 3 | BU111: 1
AF112: 62 | AR112: 6M17 | AS112: 1 | AT112: 5 | AU112: 2 | AV112: 5 | AW112: 1 | BJ112: 62 | BK112: 7M62 | BL112: 1 | BM112: 6 | BN112: 2 | BO112: 1 | BP112: 62 | BQ112: 8M62 | BR112: 1 | BS112: 6 | BT112: 3 | BU112: 2
AF113: 63 | AR113: 6M18 | AS113: 1 | AT113: 6 | AU113: 2 | AV113: 6 | AW113: 1 | BJ113: 63 | BK113: 7M63 | BL113: 1 | BM113: 7 | BN113: 2 | BO113: 2 | BP113: 63 | BQ113: 8M63 | BR113: 1 | BS113: 7 | BT113: 3 | BU113: 3
AF114: 64 | AR114: 6M19 | AS114: 2 | AT114: 2 | AU114: 3 | AV114: 3 | AW114: 2 | BP114: 64 | BQ114: 8M64 | BR114: 1 | BS114: 8 | BT114: 3 | BU114: 4
AF115: 65 | AJ115: =VLOOKUP(VALUE(AG115&AH115),$AI$5:$AL$28,4,FALSE) ->  | AK115: =VLOOKUP(VALUE(AG115&AH115),$AI$5:$AL$28,3,FALSE) ->  | AL115: =VLOOKUP(VALUE(AO115&AP115),$AI$5:$AL$28,3,FALSE) ->  | AM115: =VLOOKUP(VALUE(AO115&AP115),$AI$5:$AL$28,4,FALSE) ->  | AR115: 6M20 | AS115: 2 | AT115: 3 | AU115: 3 | AV115: 4 | AW115: 2 | BP115: 65 | BQ115: 8M65 | BR115: 1 | BS115: 1 | BT115: 2 | BU115: 3
AE116: =VLOOKUP($AI$49&AF116,$AR$51:$AW$1166,6,FALSE) ->  | AF116: 66 | AG116: =VLOOKUP($AI$49&AF116,$AR$51:$AW$1166,2,FALSE) ->  | AN116: =VLOOKUP(AO116,$AH$44:$AI$46,2,FALSE) ->  | AR116: 6M21 | AS116: 2 | AT116: 4 | AU116: 3 | AV116: 5 | AW116: 2 | BP116: 66 | BQ116: =$BP$49&$BQ$49&BP116 -> 8M66 | BR116: 1 | BS116: 2 | BT116: 2 | BU116: 4
AF117: 67 | AR117: 6M22 | AS117: 2 | AT117: 5 | AU117: 3 | AV117: 6 | AW117: 2 | BP117: 67 | BQ117: 8M67 | BR117: 1 | BS117: 3 | BT117: 2 | BU117: 5
AF118: 68 | AR118: 6M23 | AS118: 2 | AT118: 6 | AU118: 3 | AV118: 1 | AW118: 2 | BP118: 68 | BQ118: 8M68 | BR118: 1 | BS118: 4 | BT118: 2 | BU118: 6
AF119: 69 | AR119: 6M24 | AS119: 2 | AT119: 1 | AU119: 3 | AV119: 2 | AW119: 2 | BP119: 69 | BQ119: 8M69 | BR119: 1 | BS119: 5 | BT119: 2 | BU119: 7
AF120: 70 | AR120: 6M25 | AS120: 1 | AT120: 1 | AU120: 3 | AV120: 3 | AW120: 2 | BP120: 70 | BQ120: 8M70 | BR120: 1 | BS120: 6 | BT120: 2 | BU120: 8
AF121: 71 | AR121: 6M26 | AS121: 1 | AT121: 2 | AU121: 3 | AV121: 4 | AW121: 2 | BP121: 71 | BQ121: 8M71 | BR121: 1 | BS121: 7 | BT121: 2 | BU121: 1
AF122: 72 | AR122: 6M27 | AS122: 1 | AT122: 3 | AU122: 3 | AV122: 5 | AW122: 2 | BP122: 72 | BQ122: 8M72 | BR122: 1 | BS122: 8 | BT122: 2 | BU122: 2
AR123: 6M28 | AS123: 1 | AT123: 4 | AU123: 3 | AV123: 6 | AW123: 2
AR124: 6M29 | AS124: 1 | AT124: 5 | AU124: 3 | AV124: 1 | AW124: 2
AR125: 6M30 | AS125: 1 | AT125: 6 | AU125: 3 | AV125: 2 | AW125: 2
AR126: 6M31 | AS126: 1 | AT126: 1 | AU126: 2 | AV126: 2 | AW126: 2
AR127: 6M32 | AS127: 1 | AT127: 2 | AU127: 2 | AV127: 3 | AW127: 2
AR128: 6M33 | AS128: 1 | AT128: 3 | AU128: 2 | AV128: 4 | AW128: 2
AR129: 6M34 | AS129: 1 | AT129: 4 | AU129: 2 | AV129: 5 | AW129: 2
AR130: 6M35 | AS130: 1 | AT130: 5 | AU130: 2 | AV130: 6 | AW130: 2
AR131: 6M36 | AS131: 1 | AT131: 6 | AU131: 2 | AV131: 1 | AW131: 2
AR132: 6M37 | AS132: 2 | AT132: 3 | AU132: 3 | AV132: 5 | AW132: 3
AR133: 6M38 | AS133: 2 | AT133: 4 | AU133: 3 | AV133: 6 | AW133: 3
AR134: 6M39 | AS134: 2 | AT134: 5 | AU134: 3 | AV134: 1 | AW134: 3
AR135: 6M40 | AS135: 2 | AT135: 6 | AU135: 3 | AV135: 2 | AW135: 3
AR136: 6M41 | AS136: 2 | AT136: 1 | AU136: 3 | AV136: 3 | AW136: 3
AR137: 6M42 | AS137: 2 | AT137: 2 | AU137: 3 | AV137: 4 | AW137: 3
AR138: 6M43 | AS138: 1 | AT138: 1 | AU138: 3 | AV138: 5 | AW138: 3
AR139: 6M44 | AS139: 1 | AT139: 2 | AU139: 3 | AV139: 6 | AW139: 3
AR140: 6M45 | AS140: 1 | AT140: 3 | AU140: 3 | AV140: 1 | AW140: 3
AR141: 6M46 | AS141: 1 | AT141: 4 | AU141: 3 | AV141: 2 | AW141: 3
AR142: 6M47 | AS142: 1 | AT142: 5 | AU142: 3 | AV142: 3 | AW142: 3
AR143: 6M48 | AS143: 1 | AT143: 6 | AU143: 3 | AV143: 4 | AW143: 3
AR144: 6M49 | AS144: 1 | AT144: 1 | AU144: 2 | AV144: 3 | AW144: 3
AR145: 6M50 | AS145: 1 | AT145: 2 | AU145: 2 | AV145: 4 | AW145: 3
AR146: 6M51 | AS146: 1 | AT146: 3 | AU146: 2 | AV146: 5 | AW146: 3
AR147: 6M52 | AS147: 1 | AT147: 4 | AU147: 2 | AV147: 6 | AW147: 3
AR148: 6M53 | AS148: 1 | AT148: 5 | AU148: 2 | AV148: 1 | AW148: 3
AR149: 6M54 | AS149: 1 | AT149: 6 | AU149: 2 | AV149: 2 | AW149: 3
AR150: 7M1 | AS150: 2 | AT150: 1 | AU150: 3 | AV150: 1 | AW150: 1
AR151: 7M2 | AS151: 2 | AT151: 2 | AU151: 3 | AV151: 2 | AW151: 1
AR152: 7M3 | AS152: 2 | AT152: 3 | AU152: 3 | AV152: 3 | AW152: 1
AR153: 7M4 | AS153: 2 | AT153: 4 | AU153: 3 | AV153: 4 | AW153: 1
AR154: 7M5 | AS154: 2 | AT154: 5 | AU154: 3 | AV154: 5 | AW154: 1
AR155: 7M6 | AS155: 2 | AT155: 6 | AU155: 3 | AV155: 6 | AW155: 1
AR156: 7M7 | AS156: 2 | AT156: 7 | AU156: 3 | AV156: 7 | AW156: 1
AR157: 7M8 | AS157: 1 | AT157: 1 | AU157: 3 | AV157: 1 | AW157: 1
AR158: 7M9 | AS158: 1 | AT158: 2 | AU158: 3 | AV158: 2 | AW158: 1
AR159: 7M10 | AS159: 1 | AT159: 3 | AU159: 3 | AV159: 3 | AW159: 1
AR160: 7M11 | AS160: 1 | AT160: 4 | AU160: 3 | AV160: 4 | AW160: 1
AR161: 7M12 | AS161: 1 | AT161: 5 | AU161: 3 | AV161: 5 | AW161: 1
AR162: 7M13 | AS162: 1 | AT162: 6 | AU162: 3 | AV162: 6 | AW162: 1
AR163: 7M14 | AS163: 1 | AT163: 7 | AU163: 3 | AV163: 7 | AW163: 1
AR164: 7M15 | AS164: 1 | AT164: 1 | AU164: 2 | AV164: 1 | AW164: 1
AR165: 7M16 | AS165: 1 | AT165: 2 | AU165: 2 | AV165: 2 | AW165: 1
AR166: 7M17 | AS166: 1 | AT166: 3 | AU166: 2 | AV166: 3 | AW166: 1
AR167: 7M18 | AS167: 1 | AT167: 4 | AU167: 2 | AV167: 4 | AW167: 1
AR168: 7M19 | AS168: 1 | AT168: 5 | AU168: 2 | AV168: 5 | AW168: 1
AR169: 7M20 | AS169: 1 | AT169: 6 | AU169: 2 | AV169: 6 | AW169: 1
AR170: 7M21 | AS170: 1 | AT170: 7 | AU170: 2 | AV170: 7 | AW170: 1
AR171: 7M22 | AS171: 2 | AT171: 2 | AU171: 3 | AV171: 3 | AW171: 2
AR172: 7M23 | AS172: 2 | AT172: 3 | AU172: 3 | AV172: 4 | AW172: 2
AR173: 7M24 | AS173: 2 | AT173: 4 | AU173: 3 | AV173: 5 | AW173: 2
AR174: 7M25 | AS174: 2 | AT174: 5 | AU174: 3 | AV174: 6 | AW174: 2
AR175: 7M26 | AS175: 2 | AT175: 6 | AU175: 3 | AV175: 7 | AW175: 2
AR176: 7M27 | AS176: 2 | AT176: 7 | AU176: 3 | AV176: 1 | AW176: 2
AR177: 7M28 | AS177: 2 | AT177: 1 | AU177: 3 | AV177: 2 | AW177: 2
AR178: 7M29 | AS178: 1 | AT178: 1 | AU178: 3 | AV178: 3 | AW178: 2
AR179: 7M30 | AS179: 1 | AT179: 2 | AU179: 3 | AV179: 4 | AW179: 2
AR180: 7M31 | AS180: 1 | AT180: 3 | AU180: 3 | AV180: 5 | AW180: 2
AR181: 7M32 | AS181: 1 | AT181: 4 | AU181: 3 | AV181: 6 | AW181: 2
AR182: 7M33 | AS182: 1 | AT182: 5 | AU182: 3 | AV182: 7 | AW182: 2
AR183: 7M34 | AS183: 1 | AT183: 6 | AU183: 3 | AV183: 1 | AW183: 2
AR184: 7M35 | AS184: 1 | AT184: 7 | AU184: 3 | AV184: 2 | AW184: 2
AR185: 7M36 | AS185: 1 | AT185: 1 | AU185: 2 | AV185: 2 | AW185: 2
AR186: 7M37 | AS186: 1 | AT186: 2 | AU186: 2 | AV186: 3 | AW186: 2
AR187: 7M38 | AS187: 1 | AT187: 3 | AU187: 2 | AV187: 4 | AW187: 2
AR188: 7M39 | AS188: 1 | AT188: 4 | AU188: 2 | AV188: 5 | AW188: 2
AR189: 7M40 | AS189: 1 | AT189: 5 | AU189: 2 | AV189: 6 | AW189: 2
AR190: 7M41 | AS190: 1 | AT190: 6 | AU190: 2 | AV190: 7 | AW190: 2
AR191: 7M42 | AS191: 1 | AT191: 7 | AU191: 2 | AV191: 1 | AW191: 2
AR192: 7M43 | AS192: 2 | AT192: 3 | AU192: 3 | AV192: 5 | AW192: 3
AR193: 7M44 | AS193: 2 | AT193: 4 | AU193: 3 | AV193: 6 | AW193: 3
AR194: 7M45 | AS194: 2 | AT194: 5 | AU194: 3 | AV194: 7 | AW194: 3
AR195: 7M46 | AS195: 2 | AT195: 6 | AU195: 3 | AV195: 1 | AW195: 3
AR196: 7M47 | AS196: 2 | AT196: 7 | AU196: 3 | AV196: 2 | AW196: 3
AR197: 7M48 | AS197: 2 | AT197: 1 | AU197: 3 | AV197: 3 | AW197: 3
AR198: 7M49 | AS198: 2 | AT198: 2 | AU198: 3 | AV198: 4 | AW198: 3
AR199: 7M50 | AS199: 1 | AT199: 1 | AU199: 3 | AV199: 5 | AW199: 3
AR200: 7M51 | AS200: 1 | AT200: 2 | AU200: 3 | AV200: 6 | AW200: 3
AR201: 7M52 | AS201: 1 | AT201: 3 | AU201: 3 | AV201: 7 | AW201: 3
AR202: 7M53 | AS202: 1 | AT202: 4 | AU202: 3 | AV202: 1 | AW202: 3
AR203: 7M54 | AS203: 1 | AT203: 5 | AU203: 3 | AV203: 2 | AW203: 3
AR204: 7M55 | AS204: 1 | AT204: 6 | AU204: 3 | AV204: 3 | AW204: 3
AR205: 7M56 | AS205: 1 | AT205: 7 | AU205: 3 | AV205: 4 | AW205: 3
AR206: 7M57 | AS206: 1 | AT206: 1 | AU206: 2 | AV206: 3 | AW206: 3
AR207: 7M58 | AS207: 1 | AT207: 2 | AU207: 2 | AV207: 4 | AW207: 3
AR208: 7M59 | AS208: 1 | AT208: 3 | AU208: 2 | AV208: 5 | AW208: 3
AR209: 7M60 | AS209: 1 | AT209: 4 | AU209: 2 | AV209: 6 | AW209: 3
AR210: 7M61 | AS210: 1 | AT210: 5 | AU210: 2 | AV210: 7 | AW210: 3
AR211: 7M62 | AS211: 1 | AT211: 6 | AU211: 2 | AV211: 1 | AW211: 3
AR212: 7M63 | AS212: 1 | AT212: 7 | AU212: 2 | AV212: 2 | AW212: 3
... 72 more rows

Sheet 【準備】対戦カード
K1: =【結果】個人成績表!$A$1 -> 第9回 神奈滋対抗戦 (奈良；キングスポット)
B3: 印刷範囲の設定 | K3: G-No | O3: T-No
N5: 所属
N6: 氏名
N7: 得点
N8: HR
O10: レフリー
B11: =【結果】個人成績表!$A$1 -> 第9回 神奈滋対抗戦 (奈良；キングスポット) | K11: =【結果】個人成績表!$A$1 -> 第9回 神奈滋対抗戦 (奈良；キングスポット) | T11: =【結果】個人成績表!$A$1 -> 第9回 神奈滋対抗戦 (奈良；キングスポット) | AC11: =【結果】個人成績表!$A$1 -> 第9回 神奈滋対抗戦 (奈良；キングスポット) | AL11: =【結果】個人成績表!$A$1 -> 第9回 神奈滋対抗戦 (奈良；キングスポット) | AU11: =【結果】個人成績表!$A$1 -> 第9回 神奈滋対抗戦 (奈良；キングスポット) | BD11: =【結果】個人成績表!$A$1 -> 第9回 神奈滋対抗戦 (奈良；キングスポット) | BM11: =【結果】個人成績表!$A$1 -> 第9回 神奈滋対抗戦 (奈良；キングスポット)
B13: G-No | C13: =【進行】結果入力表!B7 -> 1 | F13: T-No | K13: G-No | L13: =【進行】結果入力表!B8 -> 2 | O13: T-No | T13: G-No | U13: =【進行】結果入力表!B9 -> 3 | X13: T-No | AC13: G-No | AD13: =【進行】結果入力表!B10 -> 4 | AG13: T-No | AL13: G-No | AM13: =【進行】結果入力表!B11 -> 5 | AP13: T-No | AU13: G-No | AV13: =【進行】結果入力表!B12 -> 6 | AY13: T-No | BD13: G-No | BE13: =【進行】結果入力表!B13 -> 7 | BH13: T-No | BM13: G-No | BN13: =【進行】結果入力表!B14 -> 8 | BQ13: T-No
B15: =VLOOKUP(C13,【進行】結果入力表!$B$7:$J$78,2,FALSE) -> HRC | E15: 所属 | F15: =VLOOKUP(C13,【進行】結果入力表!$B$7:$J$78,9,FALSE) -> SBC | K15: =VLOOKUP(L13,【進行】結果入力表!$B$7:$J$78,2,FALSE) -> HRC | N15: 所属 | O15: =VLOOKUP(L13,【進行】結果入力表!$B$7:$J$78,9,FALSE) -> SBC | T15: =VLOOKUP(U13,【進行】結果入力表!$B$7:$J$78,2,FALSE) -> HRC | W15: 所属 | X15: =VLOOKUP(U13,【進行】結果入力表!$B$7:$J$78,9,FALSE) -> SBC | AC15: =VLOOKUP(AD13,【進行】結果入力表!$B$7:$J$78,2,FALSE) -> HRC | AF15: 所属 | AG15: =VLOOKUP(AD13,【進行】結果入力表!$B$7:$J$78,9,FALSE) -> SBC | AL15: =VLOOKUP(AM13,【進行】結果入力表!$B$7:$J$78,2,FALSE) -> HRC | AO15: 所属 | AP15: =VLOOKUP(AM13,【進行】結果入力表!$B$7:$J$78,9,FALSE) -> SBC | AU15: =VLOOKUP(AV13,【進行】結果入力表!$B$7:$J$78,2,FALSE) -> HRC | AX15: 所属 | AY15: =VLOOKUP(AV13,【進行】結果入力表!$B$7:$J$78,9,FALSE) -> SBC | BD15: =VLOOKUP(BE13,【進行】結果入力表!$B$7:$J$78,2,FALSE) -> NRC | BG15: 所属 | BH15: =VLOOKUP(BE13,【進行】結果入力表!$B$7:$J$78,9,FALSE) -> SBC | BM15: =VLOOKUP(BN13,【進行】結果入力表!$B$7:$J$78,2,FALSE) -> NRC | BP15: 所属 | BQ15: =VLOOKUP(BN13,【進行】結果入力表!$B$7:$J$78,9,FALSE) -> SBC
B16: =VLOOKUP(C13,【進行】結果入力表!$B$7:$J$78,3,FALSE) -> 高木 俊行 | E16: 氏名 | F16: =VLOOKUP(C13,【進行】結果入力表!$B$7:$J$78,8,FALSE) -> 林 秀忠 | K16: =VLOOKUP(L13,【進行】結果入力表!$B$7:$J$78,3,FALSE) -> 金井 健太郎 | N16: 氏名 | O16: =VLOOKUP(L13,【進行】結果入力表!$B$7:$J$78,8,FALSE) -> 秋田 倫央 | T16: =VLOOKUP(U13,【進行】結果入力表!$B$7:$J$78,3,FALSE) -> 平井 洸志 | W16: 氏名 | X16: =VLOOKUP(U13,【進行】結果入力表!$B$7:$J$78,8,FALSE) -> 大橋 正寛 | AC16: =VLOOKUP(AD13,【進行】結果入力表!$B$7:$J$78,3,FALSE) -> 中尾 亮太 | AF16: 氏名 | AG16: =VLOOKUP(AD13,【進行】結果入力表!$B$7:$J$78,8,FALSE) -> 大橋 義治 | AL16: =VLOOKUP(AM13,【進行】結果入力表!$B$7:$J$78,3,FALSE) -> 宮本 一 | AO16: 氏名 | AP16: =VLOOKUP(AM13,【進行】結果入力表!$B$7:$J$78,8,FALSE) -> 山中 康寛 | AU16: =VLOOKUP(AV13,【進行】結果入力表!$B$7:$J$78,3,FALSE) -> 河地 恵里 | AX16: 氏名 | AY16: =VLOOKUP(AV13,【進行】結果入力表!$B$7:$J$78,8,FALSE) -> 大橋 洋子 | BD16: =VLOOKUP(BE13,【進行】結果入力表!$B$7:$J$78,3,FALSE) -> 岩本 剛 | BG16: 氏名 | BH16: =VLOOKUP(BE13,【進行】結果入力表!$B$7:$J$78,8,FALSE) -> 林 秀忠 | BM16: =VLOOKUP(BN13,【進行】結果入力表!$B$7:$J$78,3,FALSE) -> 吉向 翔平 | BP16: 氏名 | BQ16: =VLOOKUP(BN13,【進行】結果入力表!$B$7:$J$78,8,FALSE) -> 秋田 倫央
E17: 得点 | N17: 得点 | W17: 得点 | AF17: 得点 | AO17: 得点 | AX17: 得点 | BG17: 得点 | BP17: 得点
E18: HR | N18: HR | W18: HR | AF18: HR | AO18: HR | AX18: HR | BG18: HR | BP18: HR
E20: レフリー： | F20: =VLOOKUP(C13,【進行】結果入力表!$B$7:$M$78,11,FALSE) -> NRC | G20: =VLOOKUP(C13,【進行】結果入力表!$B$7:$M$78,12,FALSE) -> 岩本 剛 | N20: レフリー： | O20: =VLOOKUP(L13,【進行】結果入力表!$B$7:$M$78,11,FALSE) -> NRC | P20: =VLOOKUP(L13,【進行】結果入力表!$B$7:$M$78,12,FALSE) -> 吉向 翔平 | W20: レフリー： | X20: =VLOOKUP(U13,【進行】結果入力表!$B$7:$M$78,11,FALSE) -> NRC | Y20: =VLOOKUP(U13,【進行】結果入力表!$B$7:$M$78,12,FALSE) -> 金澤 茂昌 | AF20: レフリー： | AG20: =VLOOKUP(AD13,【進行】結果入力表!$B$7:$M$78,11,FALSE) -> NRC | AH20: =VLOOKUP(AD13,【進行】結果入力表!$B$7:$M$78,12,FALSE) -> 植田 慎也 | AO20: レフリー： | AP20: =VLOOKUP(AM13,【進行】結果入力表!$B$7:$M$78,11,FALSE) -> NRC | AQ20: =VLOOKUP(AM13,【進行】結果入力表!$B$7:$M$78,12,FALSE) -> 長谷川 進 | AX20: レフリー： | AY20: =VLOOKUP(AV13,【進行】結果入力表!$B$7:$M$78,11,FALSE) -> NRC | AZ20: =VLOOKUP(AV13,【進行】結果入力表!$B$7:$M$78,12,FALSE) -> 宮野 早織 | BG20: レフリー： | BH20: =VLOOKUP(BE13,【進行】結果入力表!$B$7:$M$78,11,FALSE) -> HRC | BI20: =VLOOKUP(BE13,【進行】結果入力表!$B$7:$M$78,12,FALSE) -> 高木 俊行 | BP20: レフリー： | BQ20: =VLOOKUP(BN13,【進行】結果入力表!$B$7:$M$78,11,FALSE) -> HRC | BR20: =VLOOKUP(BN13,【進行】結果入力表!$B$7:$M$78,12,FALSE) -> 金井 健太郎
B21: =【結果】個人成績表!$A$1 -> 第9回 神奈滋対抗戦 (奈良；キングスポット) | K21: =【結果】個人成績表!$A$1 -> 第9回 神奈滋対抗戦 (奈良；キングスポット) | T21: =【結果】個人成績表!$A$1 -> 第9回 神奈滋対抗戦 (奈良；キングスポット) | AC21: =【結果】個人成績表!$A$1 -> 第9回 神奈滋対抗戦 (奈良；キングスポット) | AL21: =【結果】個人成績表!$A$1 -> 第9回 神奈滋対抗戦 (奈良；キングスポット) | AU21: =【結果】個人成績表!$A$1 -> 第9回 神奈滋対抗戦 (奈良；キングスポット) | BD21: =【結果】個人成績表!$A$1 -> 第9回 神奈滋対抗戦 (奈良；キングスポット) | BM21: =【結果】個人成績表!$A$1 -> 第9回 神奈滋対抗戦 (奈良；キングスポット)
B23: G-No | C23: =【進行】結果入力表!B15 -> 9 | F23: T-No | K23: G-No | L23: =【進行】結果入力表!B16 -> 10 | O23: T-No | T23: G-No | U23: =【進行】結果入力表!B17 -> 11 | X23: T-No | AC23: G-No | AD23: =【進行】結果入力表!B18 -> 12 | AG23: T-No | AL23: G-No | AM23: =【進行】結果入力表!B19 -> 13 | AP23: T-No | AU23: G-No | AV23: =【進行】結果入力表!B20 -> 14 | AY23: T-No | BD23: G-No | BE23: =【進行】結果入力表!B21 -> 15 | BH23: T-No | BM23: G-No | BN23: =【進行】結果入力表!B22 -> 16 | BQ23: T-No
B25: =VLOOKUP(C23,【進行】結果入力表!$B$7:$J$78,2,FALSE) -> NRC | E25: 所属 | F25: =VLOOKUP(C23,【進行】結果入力表!$B$7:$J$78,9,FALSE) -> SBC | K25: =VLOOKUP(L23,【進行】結果入力表!$B$7:$J$78,2,FALSE) -> NRC | N25: 所属 | O25: =VLOOKUP(L23,【進行】結果入力表!$B$7:$J$78,9,FALSE) -> SBC | T25: =VLOOKUP(U23,【進行】結果入力表!$B$7:$J$78,2,FALSE) -> NRC | W25: 所属 | X25: =VLOOKUP(U23,【進行】結果入力表!$B$7:$J$78,9,FALSE) -> SBC | AC25: =VLOOKUP(AD23,【進行】結果入力表!$B$7:$J$78,2,FALSE) -> NRC | AF25: 所属 | AG25: =VLOOKUP(AD23,【進行】結果入力表!$B$7:$J$78,9,FALSE) -> SBC | AL25: =VLOOKUP(AM23,【進行】結果入力表!$B$7:$J$78,2,FALSE) -> NRC | AO25: 所属 | AP25: =VLOOKUP(AM23,【進行】結果入力表!$B$7:$J$78,9,FALSE) -> HRC | AU25: =VLOOKUP(AV23,【進行】結果入力表!$B$7:$J$78,2,FALSE) -> NRC | AX25: 所属 | AY25: =VLOOKUP(AV23,【進行】結果入力表!$B$7:$J$78,9,FALSE) -> HRC | BD25: =VLOOKUP(BE23,【進行】結果入力表!$B$7:$J$78,2,FALSE) -> NRC | BG25: 所属 | BH25: =VLOOKUP(BE23,【進行】結果入力表!$B$7:$J$78,9,FALSE) -> HRC | BM25: =VLOOKUP(BN23,【進行】結果入力表!$B$7:$J$78,2,FALSE) -> NRC | BP25: 所属 | BQ25: =VLOOKUP(BN23,【進行】結果入力表!$B$7:$J$78,9,FALSE) -> HRC
B26: =VLOOKUP(C23,【進行】結果入力表!$B$7:$J$78,3,FALSE) -> 金澤 茂昌 | E26: 氏名 | F26: =VLOOKUP(C23,【進行】結果入力表!$B$7:$J$78,8,FALSE) -> 大橋 正寛 | K26: =VLOOKUP(L23,【進行】結果入力表!$B$7:$J$78,3,FALSE) -> 植田 慎也 | N26: 氏名 | O26: =VLOOKUP(L23,【進行】結果入力表!$B$7:$J$78,8,FALSE) -> 大橋 義治 | T26: =VLOOKUP(U23,【進行】結果入力表!$B$7:$J$78,3,FALSE) -> 長谷川 進 | W26: 氏名 | X26: =VLOOKUP(U23,【進行】結果入力表!$B$7:$J$78,8,FALSE) -> 山中 康寛 | AC26: =VLOOKUP(AD23,【進行】結果入力表!$B$7:$J$78,3,FALSE) -> 宮野 早織 | AF26: 氏名 | AG26: =VLOOKUP(AD23,【進行】結果入力表!$B$7:$J$78,8,FALSE) -> 大橋 洋子 | AL26: =VLOOKUP(AM23,【進行】結果入力表!$B$7:$J$78,3,FALSE) -> 岩本 剛 | AO26: 氏名 | AP26: =VLOOKUP(AM23,【進行】結果入力表!$B$7:$J$78,8,FALSE) -> 高木 俊行 | AU26: =VLOOKUP(AV23,【進行】結果入力表!$B$7:$J$78,3,FALSE) -> 吉向 翔平 | AX26: 氏名 | AY26: =VLOOKUP(AV23,【進行】結果入力表!$B$7:$J$78,8,FALSE) -> 金井 健太郎 | BD26: =VLOOKUP(BE23,【進行】結果入力表!$B$7:$J$78,3,FALSE) -> 金澤 茂昌 | BG26: 氏名 | BH26: =VLOOKUP(BE23,【進行】結果入力表!$B$7:$J$78,8,FALSE) -> 平井 洸志 | BM26: =VLOOKUP(BN23,【進行】結果入力表!$B$7:$J$78,3,FALSE) -> 植田 慎也 | BP26: 氏名 | BQ26: =VLOOKUP(BN23,【進行】結果入力表!$B$7:$J$78,8,FALSE) -> 中尾 亮太
E27: 得点 | N27: 得点 | W27: 得点 | AF27: 得点 | AO27: 得点 | AX27: 得点 | BG27: 得点 | BP27: 得点
E28: HR | N28: HR | W28: HR | AF28: HR | AO28: HR | AX28: HR | BG28: HR | BP28: HR
E30: レフリー： | F30: =VLOOKUP(C23,【進行】結果入力表!$B$7:$M$78,11,FALSE) -> HRC | G30: =VLOOKUP(C23,【進行】結果入力表!$B$7:$M$78,12,FALSE) -> 平井 洸志 | N30: レフリー： | O30: =VLOOKUP(L23,【進行】結果入力表!$B$7:$M$78,11,FALSE) -> HRC | P30: =VLOOKUP(L23,【進行】結果入力表!$B$7:$M$78,12,FALSE) -> 中尾 亮太 | W30: レフリー： | X30: =VLOOKUP(U23,【進行】結果入力表!$B$7:$M$78,11,FALSE) -> HRC | Y30: =VLOOKUP(U23,【進行】結果入力表!$B$7:$M$78,12,FALSE) -> 宮本 一 | AF30: レフリー： | AG30: =VLOOKUP(AD23,【進行】結果入力表!$B$7:$M$78,11,FALSE) -> HRC | AH30: =VLOOKUP(AD23,【進行】結果入力表!$B$7:$M$78,12,FALSE) -> 河地 恵里 | AO30: レフリー： | AP30: =VLOOKUP(AM23,【進行】結果入力表!$B$7:$M$78,11,FALSE) -> SBC | AQ30: =VLOOKUP(AM23,【進行】結果入力表!$B$7:$M$78,12,FALSE) -> 林 秀忠 | AX30: レフリー： | AY30: =VLOOKUP(AV23,【進行】結果入力表!$B$7:$M$78,11,FALSE) -> SBC | AZ30: =VLOOKUP(AV23,【進行】結果入力表!$B$7:$M$78,12,FALSE) -> 秋田 倫央 | BG30: レフリー： | BH30: =VLOOKUP(BE23,【進行】結果入力表!$B$7:$M$78,11,FALSE) -> SBC | BI30: =VLOOKUP(BE23,【進行】結果入力表!$B$7:$M$78,12,FALSE) -> 大橋 正寛 | BP30: レフリー： | BQ30: =VLOOKUP(BN23,【進行】結果入力表!$B$7:$M$78,11,FALSE) -> SBC | BR30: =VLOOKUP(BN23,【進行】結果入力表!$B$7:$M$78,12,FALSE) -> 大橋 義治
B31: =【結果】個人成績表!$A$1 -> 第9回 神奈滋対抗戦 (奈良；キングスポット) | K31: =【結果】個人成績表!$A$1 -> 第9回 神奈滋対抗戦 (奈良；キングスポット) | T31: =【結果】個人成績表!$A$1 -> 第9回 神奈滋対抗戦 (奈良；キングスポット) | AC31: =【結果】個人成績表!$A$1 -> 第9回 神奈滋対抗戦 (奈良；キングスポット) | AL31: =【結果】個人成績表!$A$1 -> 第9回 神奈滋対抗戦 (奈良；キングスポット) | AU31: =【結果】個人成績表!$A$1 -> 第9回 神奈滋対抗戦 (奈良；キングスポット) | BD31: =【結果】個人成績表!$A$1 -> 第9回 神奈滋対抗戦 (奈良；キングスポット) | BM31: =【結果】個人成績表!$A$1 -> 第9回 神奈滋対抗戦 (奈良；キングスポット)
B33: G-No | C33: =【進行】結果入力表!B23 -> 17 | F33: T-No | K33: G-No | L33: =【進行】結果入力表!B24 -> 18 | O33: T-No | T33: G-No | U33: =【進行】結果入力表!B25 -> 19 | X33: T-No | AC33: G-No | AD33: =【進行】結果入力表!B26 -> 20 | AG33: T-No | AL33: G-No | AM33: =【進行】結果入力表!B27 -> 21 | AP33: T-No | AU33: G-No | AV33: =【進行】結果入力表!B28 -> 22 | AY33: T-No | BD33: G-No | BE33: =【進行】結果入力表!B29 -> 23 | BH33: T-No | BM33: G-No | BN33: =【進行】結果入力表!B30 -> 24 | BQ33: T-No
B35: =VLOOKUP(C33,【進行】結果入力表!$B$7:$J$78,2,FALSE) -> NRC | E35: 所属 | F35: =VLOOKUP(C33,【進行】結果入力表!$B$7:$J$78,9,FALSE) -> HRC | K35: =VLOOKUP(L33,【進行】結果入力表!$B$7:$J$78,2,FALSE) -> NRC | N35: 所属 | O35: =VLOOKUP(L33,【進行】結果入力表!$B$7:$J$78,9,FALSE) -> HRC | T35: =VLOOKUP(U33,【進行】結果入力表!$B$7:$J$78,2,FALSE) -> HRC | W35: 所属 | X35: =VLOOKUP(U33,【進行】結果入力表!$B$7:$J$78,9,FALSE) -> SBC | AC35: =VLOOKUP(AD33,【進行】結果入力表!$B$7:$J$78,2,FALSE) -> HRC | AF35: 所属 | AG35: =VLOOKUP(AD33,【進行】結果入力表!$B$7:$J$78,9,FALSE) -> SBC | AL35: =VLOOKUP(AM33,【進行】結果入力表!$B$7:$J$78,2,FALSE) -> HRC | AO35: 所属 | AP35: =VLOOKUP(AM33,【進行】結果入力表!$B$7:$J$78,9,FALSE) -> SBC | AU35: =VLOOKUP(AV33,【進行】結果入力表!$B$7:$J$78,2,FALSE) -> HRC | AX35: 所属 | AY35: =VLOOKUP(AV33,【進行】結果入力表!$B$7:$J$78,9,FALSE) -> SBC | BD35: =VLOOKUP(BE33,【進行】結果入力表!$B$7:$J$78,2,FALSE) -> HRC | BG35: 所属 | BH35: =VLOOKUP(BE33,【進行】結果入力表!$B$7:$J$78,9,FALSE) -> SBC | BM35: =VLOOKUP(BN33,【進行】結果入力表!$B$7:$J$78,2,FALSE) -> HRC | BP35: 所属 | BQ35: =VLOOKUP(BN33,【進行】結果入力表!$B$7:$J$78,9,FALSE) -> SBC
B36: =VLOOKUP(C33,【進行】結果入力表!$B$7:$J$78,3,FALSE) -> 長谷川 進 | E36: 氏名 | F36: =VLOOKUP(C33,【進行】結果入力表!$B$7:$J$78,8,FALSE) -> 宮本 一 | K36: =VLOOKUP(L33,【進行】結果入力表!$B$7:$J$78,3,FALSE) -> 宮野 早織 | N36: 氏名 | O36: =VLOOKUP(L33,【進行】結果入力表!$B$7:$J$78,8,FALSE) -> 河地 恵里 | T36: =VLOOKUP(U33,【進行】結果入力表!$B$7:$J$78,3,FALSE) -> 金井 健太郎 | W36: 氏名 | X36: =VLOOKUP(U33,【進行】結果入力表!$B$7:$J$78,8,FALSE) -> 大橋 正寛 | AC36: =VLOOKUP(AD33,【進行】結果入力表!$B$7:$J$78,3,FALSE) -> 平井 洸志 | AF36: 氏名 | AG36: =VLOOKUP(AD33,【進行】結果入力表!$B$7:$J$78,8,FALSE) -> 大橋 義治 | AL36: =VLOOKUP(AM33,【進行】結果入力表!$B$7:$J$78,3,FALSE) -> 中尾 亮太 | AO36: 氏名 | AP36: =VLOOKUP(AM33,【進行】結果入力表!$B$7:$J$78,8,FALSE) -> 山中 康寛 | AU36: =VLOOKUP(AV33,【進行】結果入力表!$B$7:$J$78,3,FALSE) -> 宮本 一 | AX36: 氏名 | AY36: =VLOOKUP(AV33,【進行】結果入力表!$B$7:$J$78,8,FALSE) -> 大橋 洋子 | BD36: =VLOOKUP(BE33,【進行】結果入力表!$B$7:$J$78,3,FALSE) -> 河地 恵里 | BG36: 氏名 | BH36: =VLOOKUP(BE33,【進行】結果入力表!$B$7:$J$78,8,FALSE) -> 林 秀忠 | BM36: =VLOOKUP(BN33,【進行】結果入力表!$B$7:$J$78,3,FALSE) -> 高木 俊行 | BP36: 氏名 | BQ36: =VLOOKUP(BN33,【進行】結果入力表!$B$7:$J$78,8,FALSE) -> 秋田 倫央
E37: 得点 | N37: 得点 | W37: 得点 | AF37: 得点 | AO37: 得点 | AX37: 得点 | BG37: 得点 | BP37: 得点
E38: HR | N38: HR | W38: HR | AF38: HR | AO38: HR | AX38: HR | BG38: HR | BP38: HR
E40: レフリー： | F40: =VLOOKUP(C33,【進行】結果入力表!$B$7:$M$78,11,FALSE) -> SBC | G40: =VLOOKUP(C33,【進行】結果入力表!$B$7:$M$78,12,FALSE) -> 山中 康寛 | N40: レフリー： | O40: =VLOOKUP(L33,【進行】結果入力表!$B$7:$M$78,11,FALSE) -> SBC | P40: =VLOOKUP(L33,【進行】結果入力表!$B$7:$M$78,12,FALSE) -> 大橋 洋子 | W40: レフリー： | X40: =VLOOKUP(U33,【進行】結果入力表!$B$7:$M$78,11,FALSE) -> 0 | Y40: =VLOOKUP(U33,【進行】結果入力表!$B$7:$M$78,12,FALSE) -> 0 | AF40: レフリー： | AG40: =VLOOKUP(AD33,【進行】結果入力表!$B$7:$M$78,11,FALSE) -> 0 | AH40: =VLOOKUP(AD33,【進行】結果入力表!$B$7:$M$78,12,FALSE) -> 0 | AO40: レフリー： | AP40: =VLOOKUP(AM33,【進行】結果入力表!$B$7:$M$78,11,FALSE) -> 0 | AQ40: =VLOOKUP(AM33,【進行】結果入力表!$B$7:$M$78,12,FALSE) -> 0 | AX40: レフリー： | AY40: =VLOOKUP(AV33,【進行】結果入力表!$B$7:$M$78,11,FALSE) -> 0 | AZ40: =VLOOKUP(AV33,【進行】結果入力表!$B$7:$M$78,12,FALSE) -> 0 | BG40: レフリー： | BH40: =VLOOKUP(BE33,【進行】結果入力表!$B$7:$M$78,11,FALSE) -> 0 | BI40: =VLOOKUP(BE33,【進行】結果入力表!$B$7:$M$78,12,FALSE) -> 0 | BP40: レフリー： | BQ40: =VLOOKUP(BN33,【進行】結果入力表!$B$7:$M$78,11,FALSE) -> 0 | BR40: =VLOOKUP(BN33,【進行】結果入力表!$B$7:$M$78,12,FALSE) -> 0
B41: =【結果】個人成績表!$A$1 -> 第9回 神奈滋対抗戦 (奈良；キングスポット) | K41: =【結果】個人成績表!$A$1 -> 第9回 神奈滋対抗戦 (奈良；キングスポット) | T41: =【結果】個人成績表!$A$1 -> 第9回 神奈滋対抗戦 (奈良；キングスポット) | AC41: =【結果】個人成績表!$A$1 -> 第9回 神奈滋対抗戦 (奈良；キングスポット) | AL41: =【結果】個人成績表!$A$1 -> 第9回 神奈滋対抗戦 (奈良；キングスポット) | AU41: =【結果】個人成績表!$A$1 -> 第9回 神奈滋対抗戦 (奈良；キングスポット) | BD41: =【結果】個人成績表!$A$1 -> 第9回 神奈滋対抗戦 (奈良；キングスポット) | BM41: =【結果】個人成績表!$A$1 -> 第9回 神奈滋対抗戦 (奈良；キングスポット)
B43: G-No | C43: =【進行】結果入力表!B31 -> 25 | F43: T-No | K43: G-No | L43: =【進行】結果入力表!B32 -> 26 | O43: T-No | T43: G-No | U43: =【進行】結果入力表!B33 -> 27 | X43: T-No | AC43: G-No | AD43: =【進行】結果入力表!B34 -> 28 | AG43: T-No | AL43: G-No | AM43: =【進行】結果入力表!B35 -> 29 | AP43: T-No | AU43: G-No | AV43: =【進行】結果入力表!B36 -> 30 | AY43: T-No | BD43: G-No | BE43: =【進行】結果入力表!B37 -> 31 | BH43: T-No | BM43: G-No | BN43: =【進行】結果入力表!B38 -> 32 | BQ43: T-No
B45: =VLOOKUP(C43,【進行】結果入力表!$B$7:$J$78,2,FALSE) -> NRC | E45: 所属 | F45: =VLOOKUP(C43,【進行】結果入力表!$B$7:$J$78,9,FALSE) -> SBC | K45: =VLOOKUP(L43,【進行】結果入力表!$B$7:$J$78,2,FALSE) -> NRC | N45: 所属 | O45: =VLOOKUP(L43,【進行】結果入力表!$B$7:$J$78,9,FALSE) -> SBC | T45: =VLOOKUP(U43,【進行】結果入力表!$B$7:$J$78,2,FALSE) -> NRC | W45: 所属 | X45: =VLOOKUP(U43,【進行】結果入力表!$B$7:$J$78,9,FALSE) -> SBC | AC45: =VLOOKUP(AD43,【進行】結果入力表!$B$7:$J$78,2,FALSE) -> NRC | AF45: 所属 | AG45: =VLOOKUP(AD43,【進行】結果入力表!$B$7:$J$78,9,FALSE) -> SBC | AL45: =VLOOKUP(AM43,【進行】結果入力表!$B$7:$J$78,2,FALSE) -> NRC | AO45: 所属 | AP45: =VLOOKUP(AM43,【進行】結果入力表!$B$7:$J$78,9,FALSE) -> SBC | AU45: =VLOOKUP(AV43,【進行】結果入力表!$B$7:$J$78,2,FALSE) -> NRC | AX45: 所属 | AY45: =VLOOKUP(AV43,【進行】結果入力表!$B$7:$J$78,9,FALSE) -> SBC | BD45: =VLOOKUP(BE43,【進行】結果入力表!$B$7:$J$78,2,FALSE) -> NRC | BG45: 所属 | BH45: =VLOOKUP(BE43,【進行】結果入力表!$B$7:$J$78,9,FALSE) -> HRC | BM45: =VLOOKUP(BN43,【進行】結果入力表!$B$7:$J$78,2,FALSE) -> NRC | BP45: 所属 | BQ45: =VLOOKUP(BN43,【進行】結果入力表!$B$7:$J$78,9,FALSE) -> HRC
B46: =VLOOKUP(C43,【進行】結果入力表!$B$7:$J$78,3,FALSE) -> 岩本 剛 | E46: 氏名 | F46: =VLOOKUP(C43,【進行】結果入力表!$B$7:$J$78,8,FALSE) -> 大橋 正寛 | K46: =VLOOKUP(L43,【進行】結果入力表!$B$7:$J$78,3,FALSE) -> 吉向 翔平 | N46: 氏名 | O46: =VLOOKUP(L43,【進行】結果入力表!$B$7:$J$78,8,FALSE) -> 大橋 義治 | T46: =VLOOKUP(U43,【進行】結果入力表!$B$7:$J$78,3,FALSE) -> 金澤 茂昌 | W46: 氏名 | X46: =VLOOKUP(U43,【進行】結果入力表!$B$7:$J$78,8,FALSE) -> 山中 康寛 | AC46: =VLOOKUP(AD43,【進行】結果入力表!$B$7:$J$78,3,FALSE) -> 植田 慎也 | AF46: 氏名 | AG46: =VLOOKUP(AD43,【進行】結果入力表!$B$7:$J$78,8,FALSE) -> 大橋 洋子 | AL46: =VLOOKUP(AM43,【進行】結果入力表!$B$7:$J$78,3,FALSE) -> 長谷川 進 | AO46: 氏名 | AP46: =VLOOKUP(AM43,【進行】結果入力表!$B$7:$J$78,8,FALSE) -> 林 秀忠 | AU46: =VLOOKUP(AV43,【進行】結果入力表!$B$7:$J$78,3,FALSE) -> 宮野 早織 | AX46: 氏名 | AY46: =VLOOKUP(AV43,【進行】結果入力表!$B$7:$J$78,8,FALSE) -> 秋田 倫央 | BD46: =VLOOKUP(BE43,【進行】結果入力表!$B$7:$J$78,3,FALSE) -> 岩本 剛 | BG46: 氏名 | BH46: =VLOOKUP(BE43,【進行】結果入力表!$B$7:$J$78,8,FALSE) -> 金井 健太郎 | BM46: =VLOOKUP(BN43,【進行】結果入力表!$B$7:$J$78,3,FALSE) -> 吉向 翔平 | BP46: 氏名 | BQ46: =VLOOKUP(BN43,【進行】結果入力表!$B$7:$J$78,8,FALSE) -> 平井 洸志
E47: 得点 | N47: 得点 | W47: 得点 | AF47: 得点 | AO47: 得点 | AX47: 得点 | BG47: 得点 | BP47: 得点
E48: HR | N48: HR | W48: HR | AF48: HR | AO48: HR | AX48: HR | BG48: HR | BP48: HR
E50: レフリー： | F50: =VLOOKUP(C43,【進行】結果入力表!$B$7:$M$78,11,FALSE) -> 0 | G50: =VLOOKUP(C43,【進行】結果入力表!$B$7:$M$78,12,FALSE) -> 0 | N50: レフリー： | O50: =VLOOKUP(L43,【進行】結果入力表!$B$7:$M$78,11,FALSE) -> 0 | P50: =VLOOKUP(L43,【進行】結果入力表!$B$7:$M$78,12,FALSE) -> 0 | W50: レフリー： | X50: =VLOOKUP(U43,【進行】結果入力表!$B$7:$M$78,11,FALSE) -> 0 | Y50: =VLOOKUP(U43,【進行】結果入力表!$B$7:$M$78,12,FALSE) -> 0 | AF50: レフリー： | AG50: =VLOOKUP(AD43,【進行】結果入力表!$B$7:$M$78,11,FALSE) -> 0 | AH50: =VLOOKUP(AD43,【進行】結果入力表!$B$7:$M$78,12,FALSE) -> 0 | AO50: レフリー： | AP50: =VLOOKUP(AM43,【進行】結果入力表!$B$7:$M$78,11,FALSE) -> 0 | AQ50: =VLOOKUP(AM43,【進行】結果入力表!$B$7:$M$78,12,FALSE) -> 0 | AX50: レフリー： | AY50: =VLOOKUP(AV43,【進行】結果入力表!$B$7:$M$78,11,FALSE) -> 0 | AZ50: =VLOOKUP(AV43,【進行】結果入力表!$B$7:$M$78,12,FALSE) -> 0 | BG50: レフリー： | BH50: =VLOOKUP(BE43,【進行】結果入力表!$B$7:$M$78,11,FALSE) -> 0 | BI50: =VLOOKUP(BE43,【進行】結果入力表!$B$7:$M$78,12,FALSE) -> 0 | BP50: レフリー： | BQ50: =VLOOKUP(BN43,【進行】結果入力表!$B$7:$M$78,11,FALSE) -> 0 | BR50: =VLOOKUP(BN43,【進行】結果入力表!$B$7:$M$78,12,FALSE) -> 0
B51: =【結果】個人成績表!$A$1 -> 第9回 神奈滋対抗戦 (奈良；キングスポット) | K51: =【結果】個人成績表!$A$1 -> 第9回 神奈滋対抗戦 (奈良；キングスポット) | T51: =【結果】個人成績表!$A$1 -> 第9回 神奈滋対抗戦 (奈良；キングスポット) | AC51: =【結果】個人成績表!$A$1 -> 第9回 神奈滋対抗戦 (奈良；キングスポット) | AL51: =【結果】個人成績表!$A$1 -> 第9回 神奈滋対抗戦 (奈良；キングスポット) | AU51: =【結果】個人成績表!$A$1 -> 第9回 神奈滋対抗戦 (奈良；キングスポット) | BD51: =【結果】個人成績表!$A$1 -> 第9回 神奈滋対抗戦 (奈良；キングスポット) | BM51: =【結果】個人成績表!$A$1 -> 第9回 神奈滋対抗戦 (奈良；キングスポット)
B53: G-No | C53: =【進行】結果入力表!B39 -> 33 | F53: T-No | K53: G-No | L53: =【進行】結果入力表!B40 -> 34 | O53: T-No | T53: G-No | U53: =【進行】結果入力表!B41 -> 35 | X53: T-No | AC53: G-No | AD53: =【進行】結果入力表!B42 -> 36 | AG53: T-No | AL53: G-No | AM53: =【進行】結果入力表!B43 -> 37 | AP53: T-No | AU53: G-No | AV53: =【進行】結果入力表!B44 -> 38 | AY53: T-No | BD53: G-No | BE53: =【進行】結果入力表!B45 -> 39 | BH53: T-No | BM53: G-No | BN53: =【進行】結果入力表!B46 -> 40 | BQ53: T-No
B55: =VLOOKUP(C53,【進行】結果入力表!$B$7:$J$78,2,FALSE) -> NRC | E55: 所属 | F55: =VLOOKUP(C53,【進行】結果入力表!$B$7:$J$78,9,FALSE) -> HRC | K55: =VLOOKUP(L53,【進行】結果入力表!$B$7:$J$78,2,FALSE) -> NRC | N55: 所属 | O55: =VLOOKUP(L53,【進行】結果入力表!$B$7:$J$78,9,FALSE) -> HRC | T55: =VLOOKUP(U53,【進行】結果入力表!$B$7:$J$78,2,FALSE) -> NRC | W55: 所属 | X55: =VLOOKUP(U53,【進行】結果入力表!$B$7:$J$78,9,FALSE) -> HRC | AC55: =VLOOKUP(AD53,【進行】結果入力表!$B$7:$J$78,2,FALSE) -> NRC | AF55: 所属 | AG55: =VLOOKUP(AD53,【進行】結果入力表!$B$7:$J$78,9,FALSE) -> HRC | AL55: =VLOOKUP(AM53,【進行】結果入力表!$B$7:$J$78,2,FALSE) -> HRC | AO55: 所属 | AP55: =VLOOKUP(AM53,【進行】結果入力表!$B$7:$J$78,9,FALSE) -> SBC | AU55: =VLOOKUP(AV53,【進行】結果入力表!$B$7:$J$78,2,FALSE) -> HRC | AX55: 所属 | AY55: =VLOOKUP(AV53,【進行】結果入力表!$B$7:$J$78,9,FALSE) -> SBC | BD55: =VLOOKUP(BE53,【進行】結果入力表!$B$7:$J$78,2,FALSE) -> HRC | BG55: 所属 | BH55: =VLOOKUP(BE53,【進行】結果入力表!$B$7:$J$78,9,FALSE) -> SBC | BM55: =VLOOKUP(BN53,【進行】結果入力表!$B$7:$J$78,2,FALSE) -> HRC | BP55: 所属 | BQ55: =VLOOKUP(BN53,【進行】結果入力表!$B$7:$J$78,9,FALSE) -> SBC
B56: =VLOOKUP(C53,【進行】結果入力表!$B$7:$J$78,3,FALSE) -> 金澤 茂昌 | E56: 氏名 | F56: =VLOOKUP(C53,【進行】結果入力表!$B$7:$J$78,8,FALSE) -> 中尾 亮太 | K56: =VLOOKUP(L53,【進行】結果入力表!$B$7:$J$78,3,FALSE) -> 植田 慎也 | N56: 氏名 | O56: =VLOOKUP(L53,【進行】結果入力表!$B$7:$J$78,8,FALSE) -> 宮本 一 | T56: =VLOOKUP(U53,【進行】結果入力表!$B$7:$J$78,3,FALSE) -> 長谷川 進 | W56: 氏名 | X56: =VLOOKUP(U53,【進行】結果入力表!$B$7:$J$78,8,FALSE) -> 河地 恵里 | AC56: =VLOOKUP(AD53,【進行】結果入力表!$B$7:$J$78,3,FALSE) -> 宮野 早織 | AF56: 氏名 | AG56: =VLOOKUP(AD53,【進行】結果入力表!$B$7:$J$78,8,FALSE) -> 高木 俊行 | AL56: =VLOOKUP(AM53,【進行】結果入力表!$B$7:$J$78,3,FALSE) -> 平井 洸志 | AO56: 氏名 | AP56: =VLOOKUP(AM53,【進行】結果入力表!$B$7:$J$78,8,FALSE) -> 山中 康寛 | AU56: =VLOOKUP(AV53,【進行】結果入力表!$B$7:$J$78,3,FALSE) -> 中尾 亮太 | AX56: 氏名 | AY56: =VLOOKUP(AV53,【進行】結果入力表!$B$7:$J$78,8,FALSE) -> 大橋 洋子 | BD56: =VLOOKUP(BE53,【進行】結果入力表!$B$7:$J$78,3,FALSE) -> 宮本 一 | BG56: 氏名 | BH56: =VLOOKUP(BE53,【進行】結果入力表!$B$7:$J$78,8,FALSE) -> 林 秀忠 | BM56: =VLOOKUP(BN53,【進行】結果入力表!$B$7:$J$78,3,FALSE) -> 河地 恵里 | BP56: 氏名 | BQ56: =VLOOKUP(BN53,【進行】結果入力表!$B$7:$J$78,8,FALSE) -> 秋田 倫央
E57: 得点 | N57: 得点 | W57: 得点 | AF57: 得点 | AO57: 得点 | AX57: 得点 | BG57: 得点 | BP57: 得点
E58: HR | N58: HR | W58: HR | AF58: HR | AO58: HR | AX58: HR | BG58: HR | BP58: HR
E60: レフリー： | F60: =VLOOKUP(C53,【進行】結果入力表!$B$7:$M$78,11,FALSE) -> 0 | G60: =VLOOKUP(C53,【進行】結果入力表!$B$7:$M$78,12,FALSE) -> 0 | N60: レフリー： | O60: =VLOOKUP(L53,【進行】結果入力表!$B$7:$M$78,11,FALSE) -> 0 | P60: =VLOOKUP(L53,【進行】結果入力表!$B$7:$M$78,12,FALSE) -> 0 | W60: レフリー： | X60: =VLOOKUP(U53,【進行】結果入力表!$B$7:$M$78,11,FALSE) -> 0 | Y60: =VLOOKUP(U53,【進行】結果入力表!$B$7:$M$78,12,FALSE) -> 0 | AF60: レフリー： | AG60: =VLOOKUP(AD53,【進行】結果入力表!$B$7:$M$78,11,FALSE) -> 0 | AH60: =VLOOKUP(AD53,【進行】結果入力表!$B$7:$M$78,12,FALSE) -> 0 | AO60: レフリー： | AP60: =VLOOKUP(AM53,【進行】結果入力表!$B$7:$M$78,11,FALSE) -> 0 | AQ60: =VLOOKUP(AM53,【進行】結果入力表!$B$7:$M$78,12,FALSE) -> 0 | AX60: レフリー： | AY60: =VLOOKUP(AV53,【進行】結果入力表!$B$7:$M$78,11,FALSE) -> 0 | AZ60: =VLOOKUP(AV53,【進行】結果入力表!$B$7:$M$78,12,FALSE) -> 0 | BG60: レフリー： | BH60: =VLOOKUP(BE53,【進行】結果入力表!$B$7:$M$78,11,FALSE) -> 0 | BI60: =VLOOKUP(BE53,【進行】結果入力表!$B$7:$M$78,12,FALSE) -> 0 | BP60: レフリー： | BQ60: =VLOOKUP(BN53,【進行】結果入力表!$B$7:$M$78,11,FALSE) -> 0 | BR60: =VLOOKUP(BN53,【進行】結果入力表!$B$7:$M$78,12,FALSE) -> 0
B61: =【結果】個人成績表!$A$1 -> 第9回 神奈滋対抗戦 (奈良；キングスポット) | K61: =【結果】個人成績表!$A$1 -> 第9回 神奈滋対抗戦 (奈良；キングスポット) | T61: =【結果】個人成績表!$A$1 -> 第9回 神奈滋対抗戦 (奈良；キングスポット) | AC61: =【結果】個人成績表!$A$1 -> 第9回 神奈滋対抗戦 (奈良；キングスポット) | AL61: =【結果】個人成績表!$A$1 -> 第9回 神奈滋対抗戦 (奈良；キングスポット) | AU61: =【結果】個人成績表!$A$1 -> 第9回 神奈滋対抗戦 (奈良；キングスポット) | BD61: =【結果】個人成績表!$A$1 -> 第9回 神奈滋対抗戦 (奈良；キングスポット) | BM61: =【結果】個人成績表!$A$1 -> 第9回 神奈滋対抗戦 (奈良；キングスポット)
B63: G-No | C63: =【進行】結果入力表!B47 -> 41 | F63: T-No | K63: G-No | L63: =【進行】結果入力表!B48 -> 42 | O63: T-No | T63: G-No | U63: =【進行】結果入力表!B49 -> 43 | X63: T-No | AC63: G-No | AD63: =【進行】結果入力表!B50 -> 44 | AG63: T-No | AL63: G-No | AM63: =【進行】結果入力表!B51 -> 45 | AP63: T-No | AU63: G-No | AV63: =【進行】結果入力表!B52 -> 46 | AY63: T-No | BD63: G-No | BE63: =【進行】結果入力表!B53 -> 47 | BH63: T-No | BM63: G-No | BN63: =【進行】結果入力表!B54 -> 48 | BQ63: T-No
B65: =VLOOKUP(C63,【進行】結果入力表!$B$7:$J$78,2,FALSE) -> HRC | E65: 所属 | F65: =VLOOKUP(C63,【進行】結果入力表!$B$7:$J$78,9,FALSE) -> SBC | K65: =VLOOKUP(L63,【進行】結果入力表!$B$7:$J$78,2,FALSE) -> HRC | N65: 所属 | O65: =VLOOKUP(L63,【進行】結果入力表!$B$7:$J$78,9,FALSE) -> SBC | T65: =VLOOKUP(U63,【進行】結果入力表!$B$7:$J$78,2,FALSE) -> NRC | W65: 所属 | X65: =VLOOKUP(U63,【進行】結果入力表!$B$7:$J$78,9,FALSE) -> SBC | AC65: =VLOOKUP(AD63,【進行】結果入力表!$B$7:$J$78,2,FALSE) -> NRC | AF65: 所属 | AG65: =VLOOKUP(AD63,【進行】結果入力表!$B$7:$J$78,9,FALSE) -> SBC | AL65: =VLOOKUP(AM63,【進行】結果入力表!$B$7:$J$78,2,FALSE) -> NRC | AO65: 所属 | AP65: =VLOOKUP(AM63,【進行】結果入力表!$B$7:$J$78,9,FALSE) -> SBC | AU65: =VLOOKUP(AV63,【進行】結果入力表!$B$7:$J$78,2,FALSE) -> NRC | AX65: 所属 | AY65: =VLOOKUP(AV63,【進行】結果入力表!$B$7:$J$78,9,FALSE) -> SBC | BD65: =VLOOKUP(BE63,【進行】結果入力表!$B$7:$J$78,2,FALSE) -> NRC | BG65: 所属 | BH65: =VLOOKUP(BE63,【進行】結果入力表!$B$7:$J$78,9,FALSE) -> SBC | BM65: =VLOOKUP(BN63,【進行】結果入力表!$B$7:$J$78,2,FALSE) -> NRC | BP65: 所属 | BQ65: =VLOOKUP(BN63,【進行】結果入力表!$B$7:$J$78,9,FALSE) -> SBC
B66: =VLOOKUP(C63,【進行】結果入力表!$B$7:$J$78,3,FALSE) -> 高木 俊行 | E66: 氏名 | F66: =VLOOKUP(C63,【進行】結果入力表!$B$7:$J$78,8,FALSE) -> 大橋 正寛 | K66: =VLOOKUP(L63,【進行】結果入力表!$B$7:$J$78,3,FALSE) -> 金井 健太郎 | N66: 氏名 | O66: =VLOOKUP(L63,【進行】結果入力表!$B$7:$J$78,8,FALSE) -> 大橋 義治 | T66: =VLOOKUP(U63,【進行】結果入力表!$B$7:$J$78,3,FALSE) -> 岩本 剛 | W66: 氏名 | X66: =VLOOKUP(U63,【進行】結果入力表!$B$7:$J$78,8,FALSE) -> 山中 康寛 | AC66: =VLOOKUP(AD63,【進行】結果入力表!$B$7:$J$78,3,FALSE) -> 吉向 翔平 | AF66: 氏名 | AG66: =VLOOKUP(AD63,【進行】結果入力表!$B$7:$J$78,8,FALSE) -> 大橋 洋子 | AL66: =VLOOKUP(AM63,【進行】結果入力表!$B$7:$J$78,3,FALSE) -> 金澤 茂昌 | AO66: 氏名 | AP66: =VLOOKUP(AM63,【進行】結果入力表!$B$7:$J$78,8,FALSE) -> 林 秀忠 | AU66: =VLOOKUP(AV63,【進行】結果入力表!$B$7:$J$78,3,FALSE) -> 植田 慎也 | AX66: 氏名 | AY66: =VLOOKUP(AV63,【進行】結果入力表!$B$7:$J$78,8,FALSE) -> 秋田 倫央 | BD66: =VLOOKUP(BE63,【進行】結果入力表!$B$7:$J$78,3,FALSE) -> 長谷川 進 | BG66: 氏名 | BH66: =VLOOKUP(BE63,【進行】結果入力表!$B$7:$J$78,8,FALSE) -> 大橋 正寛 | BM66: =VLOOKUP(BN63,【進行】結果入力表!$B$7:$J$78,3,FALSE) -> 宮野 早織 | BP66: 氏名 | BQ66: =VLOOKUP(BN63,【進行】結果入力表!$B$7:$J$78,8,FALSE) -> 大橋 義治
E67: 得点 | N67: 得点 | W67: 得点 | AF67: 得点 | AO67: 得点 | AX67: 得点 | BG67: 得点 | BP67: 得点
E68: HR | N68: HR | W68: HR | AF68: HR | AO68: HR | AX68: HR | BG68: HR | BP68: HR
E70: レフリー： | F70: =VLOOKUP(C63,【進行】結果入力表!$B$7:$M$78,11,FALSE) -> 0 | G70: =VLOOKUP(C63,【進行】結果入力表!$B$7:$M$78,12,FALSE) -> 0 | N70: レフリー： | O70: =VLOOKUP(L63,【進行】結果入力表!$B$7:$M$78,11,FALSE) -> 0 | P70: =VLOOKUP(L63,【進行】結果入力表!$B$7:$M$78,12,FALSE) -> 0 | W70: レフリー： | X70: =VLOOKUP(U63,【進行】結果入力表!$B$7:$M$78,11,FALSE) -> 0 | Y70: =VLOOKUP(U63,【進行】結果入力表!$B$7:$M$78,12,FALSE) -> 0 | AF70: レフリー： | AG70: =VLOOKUP(AD63,【進行】結果入力表!$B$7:$M$78,11,FALSE) -> 0 | AH70: =VLOOKUP(AD63,【進行】結果入力表!$B$7:$M$78,12,FALSE) -> 0 | AO70: レフリー： | AP70: =VLOOKUP(AM63,【進行】結果入力表!$B$7:$M$78,11,FALSE) -> 0 | AQ70: =VLOOKUP(AM63,【進行】結果入力表!$B$7:$M$78,12,FALSE) -> 0 | AX70: レフリー： | AY70: =VLOOKUP(AV63,【進行】結果入力表!$B$7:$M$78,11,FALSE) -> 0 | AZ70: =VLOOKUP(AV63,【進行】結果入力表!$B$7:$M$78,12,FALSE) -> 0 | BG70: レフリー： | BH70: =VLOOKUP(BE63,【進行】結果入力表!$B$7:$M$78,11,FALSE) -> 0 | BI70: =VLOOKUP(BE63,【進行】結果入力表!$B$7:$M$78,12,FALSE) -> 0 | BP70: レフリー： | BQ70: =VLOOKUP(BN63,【進行】結果入力表!$B$7:$M$78,11,FALSE) -> 0 | BR70: =VLOOKUP(BN63,【進行】結果入力表!$B$7:$M$78,12,FALSE) -> 0
B71: =【結果】個人成績表!$A$1 -> 第9回 神奈滋対抗戦 (奈良；キングスポット) | K71: =【結果】個人成績表!$A$1 -> 第9回 神奈滋対抗戦 (奈良；キングスポット) | T71: =【結果】個人成績表!$A$1 -> 第9回 神奈滋対抗戦 (奈良；キングスポット) | AC71: =【結果】個人成績表!$A$1 -> 第9回 神奈滋対抗戦 (奈良；キングスポット) | AL71: =【結果】個人成績表!$A$1 -> 第9回 神奈滋対抗戦 (奈良；キングスポット) | AU71: =【結果】個人成績表!$A$1 -> 第9回 神奈滋対抗戦 (奈良；キングスポット) | BD71: =【結果】個人成績表!$A$1 -> 第9回 神奈滋対抗戦 (奈良；キングスポット) | BM71: =【結果】個人成績表!$A$1 -> 第9回 神奈滋対抗戦 (奈良；キングスポット)
B73: G-No | C73: =【進行】結果入力表!B55 -> 49 | F73: T-No | K73: G-No | L73: =【進行】結果入力表!B56 -> 50 | O73: T-No | T73: G-No | U73: =【進行】結果入力表!B57 -> 51 | X73: T-No | AC73: G-No | AD73: =【進行】結果入力表!B58 -> 52 | AG73: T-No | AL73: G-No | AM73: =【進行】結果入力表!B59 -> 53 | AP73: T-No | AU73: G-No | AV73: =【進行】結果入力表!B60 -> 54 | AY73: T-No | BD73: G-No | BE73: =【進行】結果入力表!B61 -> 55 | BH73: T-No | BM73: G-No | BN73: =【進行】結果入力表!B62 -> 56 | BQ73: T-No
B75: =VLOOKUP(C73,【進行】結果入力表!$B$7:$J$78,2,FALSE) -> NRC | E75: 所属 | F75: =VLOOKUP(C73,【進行】結果入力表!$B$7:$J$78,9,FALSE) -> HRC | K75: =VLOOKUP(L73,【進行】結果入力表!$B$7:$J$78,2,FALSE) -> NRC | N75: 所属 | O75: =VLOOKUP(L73,【進行】結果入力表!$B$7:$J$78,9,FALSE) -> HRC | T75: =VLOOKUP(U73,【進行】結果入力表!$B$7:$J$78,2,FALSE) -> NRC | W75: 所属 | X75: =VLOOKUP(U73,【進行】結果入力表!$B$7:$J$78,9,FALSE) -> HRC | AC75: =VLOOKUP(AD73,【進行】結果入力表!$B$7:$J$78,2,FALSE) -> NRC | AF75: 所属 | AG75: =VLOOKUP(AD73,【進行】結果入力表!$B$7:$J$78,9,FALSE) -> HRC | AL75: =VLOOKUP(AM73,【進行】結果入力表!$B$7:$J$78,2,FALSE) -> NRC | AO75: 所属 | AP75: =VLOOKUP(AM73,【進行】結果入力表!$B$7:$J$78,9,FALSE) -> HRC | AU75: =VLOOKUP(AV73,【進行】結果入力表!$B$7:$J$78,2,FALSE) -> NRC | AX75: 所属 | AY75: =VLOOKUP(AV73,【進行】結果入力表!$B$7:$J$78,9,FALSE) -> HRC | BD75: =VLOOKUP(BE73,【進行】結果入力表!$B$7:$J$78,2,FALSE) ->  | BG75: 所属 | BH75: =VLOOKUP(BE73,【進行】結果入力表!$B$7:$J$78,9,FALSE) ->  | BM75: =VLOOKUP(BN73,【進行】結果入力表!$B$7:$J$78,2,FALSE) ->  | BP75: 所属 | BQ75: =VLOOKUP(BN73,【進行】結果入力表!$B$7:$J$78,9,FALSE) -> 
B76: =VLOOKUP(C73,【進行】結果入力表!$B$7:$J$78,3,FALSE) -> 岩本 剛 | E76: 氏名 | F76: =VLOOKUP(C73,【進行】結果入力表!$B$7:$J$78,8,FALSE) -> 平井 洸志 | K76: =VLOOKUP(L73,【進行】結果入力表!$B$7:$J$78,3,FALSE) -> 吉向 翔平 | N76: 氏名 | O76: =VLOOKUP(L73,【進行】結果入力表!$B$7:$J$78,8,FALSE) -> 中尾 亮太 | T76: =VLOOKUP(U73,【進行】結果入力表!$B$7:$J$78,3,FALSE) -> 金澤 茂昌 | W76: 氏名 | X76: =VLOOKUP(U73,【進行】結果入力表!$B$7:$J$78,8,FALSE) -> 宮本 一 | AC76: =VLOOKUP(AD73,【進行】結果入力表!$B$7:$J$78,3,FALSE) -> 植田 慎也 | AF76: 氏名 | AG76: =VLOOKUP(AD73,【進行】結果入力表!$B$7:$J$78,8,FALSE) -> 河地 恵里 | AL76: =VLOOKUP(AM73,【進行】結果入力表!$B$7:$J$78,3,FALSE) -> 長谷川 進 | AO76: 氏名 | AP76: =VLOOKUP(AM73,【進行】結果入力表!$B$7:$J$78,8,FALSE) -> 高木 俊行 | AU76: =VLOOKUP(AV73,【進行】結果入力表!$B$7:$J$78,3,FALSE) -> 宮野 早織 | AX76: 氏名 | AY76: =VLOOKUP(AV73,【進行】結果入力表!$B$7:$J$78,8,FALSE) -> 金井 健太郎 | BD76: =VLOOKUP(BE73,【進行】結果入力表!$B$7:$J$78,3,FALSE) ->  | BG76: 氏名 | BH76: =VLOOKUP(BE73,【進行】結果入力表!$B$7:$J$78,8,FALSE) ->  | BM76: =VLOOKUP(BN73,【進行】結果入力表!$B$7:$J$78,3,FALSE) ->  | BP76: 氏名 | BQ76: =VLOOKUP(BN73,【進行】結果入力表!$B$7:$J$78,8,FALSE) -> 
E77: 得点 | N77: 得点 | W77: 得点 | AF77: 得点 | AO77: 得点 | AX77: 得点 | BG77: 得点 | BP77: 得点
E78: HR | N78: HR | W78: HR | AF78: HR | AO78: HR | AX78: HR | BG78: HR | BP78: HR
E80: レフリー： | F80: =VLOOKUP(C73,【進行】結果入力表!$B$7:$M$78,11,FALSE) -> 0 | G80: =VLOOKUP(C73,【進行】結果入力表!$B$7:$M$78,12,FALSE) -> 0 | N80: レフリー： | O80: =VLOOKUP(L73,【進行】結果入力表!$B$7:$M$78,11,FALSE) -> 0 | P80: =VLOOKUP(L73,【進行】結果入力表!$B$7:$M$78,12,FALSE) -> 0 | W80: レフリー： | X80: =VLOOKUP(U73,【進行】結果入力表!$B$7:$M$78,11,FALSE) -> 0 | Y80: =VLOOKUP(U73,【進行】結果入力表!$B$7:$M$78,12,FALSE) -> 0 | AF80: レフリー： | AG80: =VLOOKUP(AD73,【進行】結果入力表!$B$7:$M$78,11,FALSE) -> 0 | AH80: =VLOOKUP(AD73,【進行】結果入力表!$B$7:$M$78,12,FALSE) -> 0 | AO80: レフリー： | AP80: =VLOOKUP(AM73,【進行】結果入力表!$B$7:$M$78,11,FALSE) -> 0 | AQ80: =VLOOKUP(AM73,【進行】結果入力表!$B$7:$M$78,12,FALSE) -> 0 | AX80: レフリー： | AY80: =VLOOKUP(AV73,【進行】結果入力表!$B$7:$M$78,11,FALSE) -> 0 | AZ80: =VLOOKUP(AV73,【進行】結果入力表!$B$7:$M$78,12,FALSE) -> 0 | BG80: レフリー： | BH80: =VLOOKUP(BE73,【進行】結果入力表!$B$7:$M$78,11,FALSE) -> 0 | BI80: =VLOOKUP(BE73,【進行】結果入力表!$B$7:$M$78,12,FALSE) -> 0 | BP80: レフリー： | BQ80: =VLOOKUP(BN73,【進行】結果入力表!$B$7:$M$78,11,FALSE) -> 0 | BR80: =VLOOKUP(BN73,【進行】結果入力表!$B$7:$M$78,12,FALSE) -> 0
B81: =【結果】個人成績表!$A$1 -> 第9回 神奈滋対抗戦 (奈良；キングスポット) | K81: =【結果】個人成績表!$A$1 -> 第9回 神奈滋対抗戦 (奈良；キングスポット) | T81: =【結果】個人成績表!$A$1 -> 第9回 神奈滋対抗戦 (奈良；キングスポット) | AC81: =【結果】個人成績表!$A$1 -> 第9回 神奈滋対抗戦 (奈良；キングスポット) | AL81: =【結果】個人成績表!$A$1 -> 第9回 神奈滋対抗戦 (奈良；キングスポット) | AU81: =【結果】個人成績表!$A$1 -> 第9回 神奈滋対抗戦 (奈良；キングスポット) | BD81: =【結果】個人成績表!$A$1 -> 第9回 神奈滋対抗戦 (奈良；キングスポット) | BM81: =【結果】個人成績表!$A$1 -> 第9回 神奈滋対抗戦 (奈良；キングスポット)
B83: G-No | C83: =【進行】結果入力表!B63 -> 57 | F83: T-No | K83: G-No | L83: =【進行】結果入力表!B64 -> 58 | O83: T-No | T83: G-No | U83: =【進行】結果入力表!B65 -> 59 | X83: T-No | AC83: G-No | AD83: =【進行】結果入力表!B66 -> 60 | AG83: T-No | AL83: G-No | AM83: =【進行】結果入力表!B67 -> 61 | AP83: T-No | AU83: G-No | AV83: =【進行】結果入力表!B68 -> 62 | AY83: T-No | BD83: G-No | BE83: =【進行】結果入力表!B69 -> 63 | BH83: T-No | BM83: G-No | BN83: =【進行】結果入力表!B70 -> 64 | BQ83: T-No
B85: =VLOOKUP(C83,【進行】結果入力表!$B$7:$J$78,2,FALSE) ->  | E85: 所属 | F85: =VLOOKUP(C83,【進行】結果入力表!$B$7:$J$78,9,FALSE) ->  | K85: =VLOOKUP(L83,【進行】結果入力表!$B$7:$J$78,2,FALSE) ->  | N85: 所属 | O85: =VLOOKUP(L83,【進行】結果入力表!$B$7:$J$78,9,FALSE) ->  | T85: =VLOOKUP(U83,【進行】結果入力表!$B$7:$J$78,2,FALSE) ->  | W85: 所属 | X85: =VLOOKUP(U83,【進行】結果入力表!$B$7:$J$78,9,FALSE) ->  | AC85: =VLOOKUP(AD83,【進行】結果入力表!$B$7:$J$78,2,FALSE) ->  | AF85: 所属 | AG85: =VLOOKUP(AD83,【進行】結果入力表!$B$7:$J$78,9,FALSE) ->  | AL85: =VLOOKUP(AM83,【進行】結果入力表!$B$7:$J$78,2,FALSE) ->  | AO85: 所属 | AP85: =VLOOKUP(AM83,【進行】結果入力表!$B$7:$J$78,9,FALSE) ->  | AU85: =VLOOKUP(AV83,【進行】結果入力表!$B$7:$J$78,2,FALSE) ->  | AX85: 所属 | AY85: =VLOOKUP(AV83,【進行】結果入力表!$B$7:$J$78,9,FALSE) ->  | BD85: =VLOOKUP(BE83,【進行】結果入力表!$B$7:$J$78,2,FALSE) ->  | BG85: 所属 | BH85: =VLOOKUP(BE83,【進行】結果入力表!$B$7:$J$78,9,FALSE) ->  | BM85: =VLOOKUP(BN83,【進行】結果入力表!$B$7:$J$78,2,FALSE) ->  | BP85: 所属 | BQ85: =VLOOKUP(BN83,【進行】結果入力表!$B$7:$J$78,9,FALSE) -> 
B86: =VLOOKUP(C83,【進行】結果入力表!$B$7:$J$78,3,FALSE) ->  | E86: 氏名 | F86: =VLOOKUP(C83,【進行】結果入力表!$B$7:$J$78,8,FALSE) ->  | K86: =VLOOKUP(L83,【進行】結果入力表!$B$7:$J$78,3,FALSE) ->  | N86: 氏名 | O86: =VLOOKUP(L83,【進行】結果入力表!$B$7:$J$78,8,FALSE) ->  | T86: =VLOOKUP(U83,【進行】結果入力表!$B$7:$J$78,3,FALSE) ->  | W86: 氏名 | X86: =VLOOKUP(U83,【進行】結果入力表!$B$7:$J$78,8,FALSE) ->  | AC86: =VLOOKUP(AD83,【進行】結果入力表!$B$7:$J$78,3,FALSE) ->  | AF86: 氏名 | AG86: =VLOOKUP(AD83,【進行】結果入力表!$B$7:$J$78,8,FALSE) ->  | AL86: =VLOOKUP(AM83,【進行】結果入力表!$B$7:$J$78,3,FALSE) ->  | AO86: 氏名 | AP86: =VLOOKUP(AM83,【進行】結果入力表!$B$7:$J$78,8,FALSE) ->  | AU86: =VLOOKUP(AV83,【進行】結果入力表!$B$7:$J$78,3,FALSE) ->  | AX86: 氏名 | AY86: =VLOOKUP(AV83,【進行】結果入力表!$B$7:$J$78,8,FALSE) ->  | BD86: =VLOOKUP(BE83,【進行】結果入力表!$B$7:$J$78,3,FALSE) ->  | BG86: 氏名 | BH86: =VLOOKUP(BE83,【進行】結果入力表!$B$7:$J$78,8,FALSE) ->  | BM86: =VLOOKUP(BN83,【進行】結果入力表!$B$7:$J$78,3,FALSE) ->  | BP86: 氏名 | BQ86: =VLOOKUP(BN83,【進行】結果入力表!$B$7:$J$78,8,FALSE) -> 
E87: 得点 | N87: 得点 | W87: 得点 | AF87: 得点 | AO87: 得点 | AX87: 得点 | BG87: 得点 | BP87: 得点
E88: HR | N88: HR | W88: HR | AF88: HR | AO88: HR | AX88: HR | BG88: HR | BP88: HR
E90: レフリー： | F90: =VLOOKUP(C83,【進行】結果入力表!$B$7:$M$78,11,FALSE) -> 0 | G90: =VLOOKUP(C83,【進行】結果入力表!$B$7:$M$78,12,FALSE) -> 0 | N90: レフリー： | O90: =VLOOKUP(L83,【進行】結果入力表!$B$7:$M$78,11,FALSE) -> 0 | P90: =VLOOKUP(L83,【進行】結果入力表!$B$7:$M$78,12,FALSE) -> 0 | W90: レフリー： | X90: =VLOOKUP(U83,【進行】結果入力表!$B$7:$M$78,11,FALSE) -> 0 | Y90: =VLOOKUP(U83,【進行】結果入力表!$B$7:$M$78,12,FALSE) -> 0 | AF90: レフリー： | AG90: =VLOOKUP(AD83,【進行】結果入力表!$B$7:$M$78,11,FALSE) -> 0 | AH90: =VLOOKUP(AD83,【進行】結果入力表!$B$7:$M$78,12,FALSE) -> 0 | AO90: レフリー： | AP90: =VLOOKUP(AM83,【進行】結果入力表!$B$7:$M$78,11,FALSE) -> 0 | AQ90: =VLOOKUP(AM83,【進行】結果入力表!$B$7:$M$78,12,FALSE) -> 0 | AX90: レフリー： | AY90: =VLOOKUP(AV83,【進行】結果入力表!$B$7:$M$78,11,FALSE) -> 0 | AZ90: =VLOOKUP(AV83,【進行】結果入力表!$B$7:$M$78,12,FALSE) -> 0 | BG90: レフリー： | BH90: =VLOOKUP(BE83,【進行】結果入力表!$B$7:$M$78,11,FALSE) ->  | BI90: =VLOOKUP(BE83,【進行】結果入力表!$B$7:$M$78,12,FALSE) ->  | BP90: レフリー： | BQ90: =VLOOKUP(BN83,【進行】結果入力表!$B$7:$M$78,11,FALSE) ->  | BR90: =VLOOKUP(BN83,【進行】結果入力表!$B$7:$M$78,12,FALSE) -> 
B91: =【結果】個人成績表!$A$1 -> 第9回 神奈滋対抗戦 (奈良；キングスポット) | K91: =【結果】個人成績表!$A$1 -> 第9回 神奈滋対抗戦 (奈良；キングスポット) | T91: =【結果】個人成績表!$A$1 -> 第9回 神奈滋対抗戦 (奈良；キングスポット) | AC91: =【結果】個人成績表!$A$1 -> 第9回 神奈滋対抗戦 (奈良；キングスポット) | AL91: =【結果】個人成績表!$A$1 -> 第9回 神奈滋対抗戦 (奈良；キングスポット) | AU91: =【結果】個人成績表!$A$1 -> 第9回 神奈滋対抗戦 (奈良；キングスポット) | BD91: =【結果】個人成績表!$A$1 -> 第9回 神奈滋対抗戦 (奈良；キングスポット) | BM91: =【結果】個人成績表!$A$1 -> 第9回 神奈滋対抗戦 (奈良；キングスポット)
B93: G-No | C93: =【進行】結果入力表!B71 -> 65 | F93: T-No | K93: G-No | L93: =【進行】結果入力表!B72 -> 66 | O93: T-No | T93: G-No | U93: =【進行】結果入力表!B73 -> 67 | X93: T-No | AC93: G-No | AD93: =【進行】結果入力表!B74 -> 68 | AG93: T-No | AL93: G-No | AM93: =【進行】結果入力表!B75 -> 69 | AP93: T-No | AU93: G-No | AV93: =【進行】結果入力表!B76 -> 70 | AY93: T-No | BD93: G-No | BE93: =【進行】結果入力表!B77 -> 71 | BH93: T-No | BM93: G-No | BN93: =【進行】結果入力表!B78 -> 72 | BQ93: T-No
B95: =VLOOKUP(C93,【進行】結果入力表!$B$7:$J$78,2,FALSE) ->  | E95: 所属 | F95: =VLOOKUP(C93,【進行】結果入力表!$B$7:$J$78,9,FALSE) ->  | K95: =VLOOKUP(L93,【進行】結果入力表!$B$7:$J$78,2,FALSE) ->  | N95: 所属 | O95: =VLOOKUP(L93,【進行】結果入力表!$B$7:$J$78,9,FALSE) ->  | T95: =VLOOKUP(U93,【進行】結果入力表!$B$7:$J$78,2,FALSE) ->  | W95: 所属 | X95: =VLOOKUP(U93,【進行】結果入力表!$B$7:$J$78,9,FALSE) ->  | AC95: =VLOOKUP(AD93,【進行】結果入力表!$B$7:$J$78,2,FALSE) ->  | AF95: 所属 | AG95: =VLOOKUP(AD93,【進行】結果入力表!$B$7:$J$78,9,FALSE) ->  | AL95: =VLOOKUP(AM93,【進行】結果入力表!$B$7:$J$78,2,FALSE) ->  | AO95: 所属 | AP95: =VLOOKUP(AM93,【進行】結果入力表!$B$7:$J$78,9,FALSE) ->  | AU95: =VLOOKUP(AV93,【進行】結果入力表!$B$7:$J$78,2,FALSE) ->  | AX95: 所属 | AY95: =VLOOKUP(AV93,【進行】結果入力表!$B$7:$J$78,9,FALSE) ->  | BD95: =VLOOKUP(BE93,【進行】結果入力表!$B$7:$J$78,2,FALSE) ->  | BG95: 所属 | BH95: =VLOOKUP(BE93,【進行】結果入力表!$B$7:$J$78,9,FALSE) ->  | BM95: =VLOOKUP(BN93,【進行】結果入力表!$B$7:$J$78,2,FALSE) ->  | BP95: 所属 | BQ95: =VLOOKUP(BN93,【進行】結果入力表!$B$7:$J$78,9,FALSE) -> 
B96: =VLOOKUP(C93,【進行】結果入力表!$B$7:$J$78,3,FALSE) ->  | E96: 氏名 | F96: =VLOOKUP(C93,【進行】結果入力表!$B$7:$J$78,8,FALSE) ->  | K96: =VLOOKUP(L93,【進行】結果入力表!$B$7:$J$78,3,FALSE) ->  | N96: 氏名 | O96: =VLOOKUP(L93,【進行】結果入力表!$B$7:$J$78,8,FALSE) ->  | T96: =VLOOKUP(U93,【進行】結果入力表!$B$7:$J$78,3,FALSE) ->  | W96: 氏名 | X96: =VLOOKUP(U93,【進行】結果入力表!$B$7:$J$78,8,FALSE) ->  | AC96: =VLOOKUP(AD93,【進行】結果入力表!$B$7:$J$78,3,FALSE) ->  | AF96: 氏名 | AG96: =VLOOKUP(AD93,【進行】結果入力表!$B$7:$J$78,8,FALSE) ->  | AL96: =VLOOKUP(AM93,【進行】結果入力表!$B$7:$J$78,3,FALSE) ->  | AO96: 氏名 | AP96: =VLOOKUP(AM93,【進行】結果入力表!$B$7:$J$78,8,FALSE) ->  | AU96: =VLOOKUP(AV93,【進行】結果入力表!$B$7:$J$78,3,FALSE) ->  | AX96: 氏名 | AY96: =VLOOKUP(AV93,【進行】結果入力表!$B$7:$J$78,8,FALSE) ->  | BD96: =VLOOKUP(BE93,【進行】結果入力表!$B$7:$J$78,3,FALSE) ->  | BG96: 氏名 | BH96: =VLOOKUP(BE93,【進行】結果入力表!$B$7:$J$78,8,FALSE) ->  | BM96: =VLOOKUP(BN93,【進行】結果入力表!$B$7:$J$78,3,FALSE) ->  | BP96: 氏名 | BQ96: =VLOOKUP(BN93,【進行】結果入力表!$B$7:$J$78,8,FALSE) -> 
E97: 得点 | N97: 得点 | W97: 得点 | AF97: 得点 | AO97: 得点 | AX97: 得点 | BG97: 得点 | BP97: 得点
E98: HR | N98: HR | W98: HR | AF98: HR | AO98: HR | AX98: HR | BG98: HR | BP98: HR
E100: レフリー： | F100: =VLOOKUP(C93,【進行】結果入力表!$B$7:$M$78,11,FALSE) ->  | G100: =VLOOKUP(C93,【進行】結果入力表!$B$7:$M$78,12,FALSE) ->  | N100: レフリー： | O100: =VLOOKUP(L93,【進行】結果入力表!$B$7:$M$78,11,FALSE) ->  | P100: =VLOOKUP(L93,【進行】結果入力表!$B$7:$M$78,12,FALSE) ->  | W100: レフリー： | X100: =VLOOKUP(U93,【進行】結果入力表!$B$7:$M$78,11,FALSE) ->  | Y100: =VLOOKUP(U93,【進行】結果入力表!$B$7:$M$78,12,FALSE) ->  | AF100: レフリー： | AG100: =VLOOKUP(AD93,【進行】結果入力表!$B$7:$M$78,11,FALSE) ->  | AH100: =VLOOKUP(AD93,【進行】結果入力表!$B$7:$M$78,12,FALSE) ->  | AO100: レフリー： | AP100: =VLOOKUP(AM93,【進行】結果入力表!$B$7:$M$78,11,FALSE) ->  | AQ100: =VLOOKUP(AM93,【進行】結果入力表!$B$7:$M$78,12,FALSE) ->  | AX100: レフリー： | AY100: =VLOOKUP(AV93,【進行】結果入力表!$B$7:$M$78,11,FALSE) ->  | AZ100: =VLOOKUP(AV93,【進行】結果入力表!$B$7:$M$78,12,FALSE) ->  | BG100: レフリー： | BH100: =VLOOKUP(BE93,【進行】結果入力表!$B$7:$M$78,11,FALSE) ->  | BI100: =VLOOKUP(BE93,【進行】結果入力表!$B$7:$M$78,12,FALSE) ->  | BP100: レフリー： | BQ100: =VLOOKUP(BN93,【進行】結果入力表!$B$7:$M$78,11,FALSE) ->  | BR100: =VLOOKUP(BN93,【進行】結果入力表!$B$7:$M$78,12,FALSE) -> 
F105: io

Sheet 【結果】個人成績表
A1: =【準備】登録!D2&【準備】登録!E2&【準備】登録!F2&" "&【準備】登録!G2&【準備】登録!I2&" "&"("&【準備】登録!K6&"；"&【準備】登録!D6&")" -> 第9回 神奈滋対抗戦 (奈良；キングスポット)
BM2: =【準備】登録!D4 -> 2021-03-21
I4: 1 | L4: st Section | AA4: 1 | AC4: 2 | AF4: nd Section | AW4: 3 | AZ4: rd Section | BL4: 順 | BM4: HR記録 | BT4: HR | BW4: HR_Point | BX4: Rank | BY4: 氏名 | BZ4: クラブ | CA4: MAX | CC4: 途中経過
A5: =IF(【準備】登録!B11="","",【準備】登録!B11) -> SBC | B5: 選手名 | E5: 持点 | F5: =A15 -> HRC | H5: W | I5: L | J5: TP | L5: TP | N5: =A25 -> NRC | P5: W | Q5: L | R5: W | S5: L | T5: TP | V5: TP | X5: =F5 -> HRC | Z5: W | AA5: L | AB5: W | AC5: L | AD5: TP | AF5: TP | AH5: =N5 -> NRC | AJ5: W | AK5: L | AL5: W | AM5: L | AN5: TP | AP5: TP | AR5: =F5 -> HRC | AT5: W | AU5: L | AV5: W | AW5: L | AX5: TP | AZ5: TP | BB5: =N5 -> NRC | BD5: W | BE5: L | BF5: W | BG5: L | BH5: TP | BJ5: TP | BL5: R | BM5: 1G | BN5: 2G | BO5: 3G | BP5: 4G | BQ5: 5G | BR5: 6G | BT5: A | BU5: B | BV5: P | CC5: W | CD5: L | CE5: TP | CF5: R_P | CI5: MVP、VP | CM5: LP
B6: =IF(【準備】登録!AK21=0,"",【準備】登録!AK21) -> 林 秀忠 | E6: =【準備】登録!F11 -> 180 | F6: =IF(ISERROR(VLOOKUP($B6&$I$4&F$5,【進行】結果入力表!$Q$7:$V$150,2,FALSE)),"",VLOOKUP($B6&$I$4&F$5,【進行】結果入力表!$Q$7:$V$150,2,FALSE)) -> W | H6: =IF(F6="","",IF(F6="w",1,0)) -> 1 | I6: =IF(F6="","",IF(F6="w",0,1)) -> 0 | J6: =IF(F6="","",IF(F6="w",E6,F6)) -> 180 | L6: =IF($F6="","",J6/$E6*180) -> 180 | N6: =IF(ISERROR(VLOOKUP($B6&$I$4&N$5,【進行】結果入力表!$Q$7:$V$150,2,FALSE)),"",VLOOKUP($B6&$I$4&N$5,【進行】結果入力表!$Q$7:$V$150,2,FALSE)) -> W | P6: =IF(N6="","",IF(N6="w",1,0)) -> 1 | Q6: =IF(N6="","",IF(N6="w",0,1)) -> 0 | R6: =IF(N6="","",SUM(H6,P6)) -> 2 | S6: =IF(N6="","",SUM(I6,Q6)) -> 0 | T6: =IF(N6="","",IF(N6="w",E6+J6,N6+J6)) -> 360 | V6: =IF($N6="","",T6/$E6*180) -> 360 | X6: =IF(ISERROR(VLOOKUP($B6&$AC$4&X$5,【進行】結果入力表!$Q$7:$V$150,2,FALSE)),"",VLOOKUP($B6&$AC$4&X$5,【進行】結果入力表!$Q$7:$V$150,2,FALSE)) -> 154 | Z6: =IF(X6="","",IF(X6="w",1,0)) -> 0 | AA6: =IF(X6="","",IF(X6="w",0,1)) -> 1 | AB6: =IF(X6="","",SUM(R6,Z6)) -> 2 | AC6: =IF(X6="","",SUM(S6,AA6)) -> 1 | AD6: =IF(X6="","",IF(X6="w",T6+E6,X6+T6)) -> 514 | AF6: =IF($X6="","",AD6/$E6*180) -> 514 | AH6: =IF(ISERROR(VLOOKUP($B6&$AC$4&AH$5,【進行】結果入力表!$Q$7:$V$150,2,FALSE)),"",VLOOKUP($B6&$AC$4&AH$5,【進行】結果入力表!$Q$7:$V$150,2,FALSE)) -> W | AJ6: =IF(AH6="","",IF(AH6="w",1,0)) -> 1 | AK6: =IF(AH6="","",IF(AH6="w",0,1)) -> 0 | AL6: =IF(AH6="","",SUM(AB6,AJ6)) -> 3 | AM6: =IF(AH6="","",SUM(AC6,AK6)) -> 1 | AN6: =IF(AH6="","",IF(AH6="w",AD6+E6,AH6+AD6)) -> 694 | AP6: =IF($AH6="","",AN6/$E6*180) -> 694 | AR6: =IF(ISERROR(VLOOKUP($B6&$AW$4&AR$5,【進行】結果入力表!$Q$7:$V$150,2,FALSE)),"",VLOOKUP($B6&$AW$4&AR$5,【進行】結果入力表!$Q$7:$V$150,2,FALSE)) -> W | AT6: =IF(AR6="","",IF(AR6="w",1,0)) -> 1 | AU6: =IF(AR6="","",IF(AR6="w",0,1)) -> 0 | AV6: =IF(AR6="","",IF(AR6="w",AL6+1,AL6)) -> 4 | AW6: =IF(AR6="","",IF(AR6="w",AM6,AM6+1)) -> 1 | AX6: =IF(AR6="","",IF(AR6="w",AN6+E6,AR6+AN6)) -> 874 | AZ6: =IF($AR6="","",AX6/$E6*180) -> 874 | BB6: =IF(ISERROR(VLOOKUP($B6&$AW$4&BB$5,【進行】結果入力表!$Q$7:$V$150,2,FALSE)),"",VLOOKUP($B6&$AW$4&BB$5,【進行】結果入力表!$Q$7:$V$150,2,FALSE)) -> W | BD6: =IF(BB6="","",IF(BB6="w",1,0)) -> 1 | BE6: =IF(BB6="","",IF(BB6="w",0,1)) -> 0 | BF6: =IF(BB6="","",IF(BB6="w",AV6+1,AV6)) -> 5 | BG6: =IF(BB6="","",IF(BB6="w",AW6,AW6+1)) -> 1 | BH6: =IF(BB6="","",IF(BB6="w",AX6+E6,BB6+AX6)) -> 1054 | BJ6: =IF($BB6="","",BH6/$E6*180) -> 1054 | BL6: =IF(SUM(H6:I6)=0,"",IF(B$13="",RANK($CF$6:$CF$13,$CF$6:$CF$13,0),RANK($CF$6:$CF$13,$CF$6:$CF$13,0))) -> 1 | BM6: =IF(ISERROR(VLOOKUP($B6&$I$4&F$5,【進行】結果入力表!$Q$7:$V$150,3,FALSE)),"",VLOOKUP($B6&$I$4&F$5,【進行】結果入力表!$Q$7:$V$150,3,FALSE)) ->  | BN6: =IF(ISERROR(VLOOKUP($B6&$I$4&N$5,【進行】結果入力表!$Q$7:$V$150,3,FALSE)),"",VLOOKUP($B6&$I$4&N$5,【進行】結果入力表!$Q$7:$V$150,3,FALSE)) ->  | BO6: =IF(ISERROR(VLOOKUP($B6&$AC$4&X$5,【進行】結果入力表!$Q$7:$V$150,3,FALSE)),"",VLOOKUP($B6&$AC$4&X$5,【進行】結果入力表!$Q$7:$V$150,3,FALSE)) ->  | BP6: =IF(ISERROR(VLOOKUP($B6&$AC$4&AH$5,【進行】結果入力表!$Q$7:$V$150,3,FALSE)),"",VLOOKUP($B6&$AC$4&AH$5,【進行】結果入力表!$Q$7:$V$150,3,FALSE)) ->  | BQ6: =IF(ISERROR(VLOOKUP($B6&$AW$4&AR$5,【進行】結果入力表!$Q$7:$V$150,3,FALSE)),"",VLOOKUP($B6&$AW$4&AR$5,【進行】結果入力表!$Q$7:$V$150,3,FALSE)) -> 105 | BR6: =IF(ISERROR(VLOOKUP($B6&$AW$4&BB$5,【進行】結果入力表!$Q$7:$V$150,3,FALSE)),"",VLOOKUP($B6&$AW$4&BB$5,【進行】結果入力表!$Q$7:$V$150,3,FALSE)) ->  | BT6: =COUNTIF($BM6:$BR6,BT$5) -> 0 | BU6: 0 | BV6: =MAX($BM6:$BR6) -> 105 | BW6: =BT6*10000+BU6*1000+BV6 -> 105 | BX6: =RANK(BW6,$BW$6:$BW$33) -> 4 | BY6: =B6 -> 林 秀忠 | BZ6: =$A$5 -> SBC | CA6: =IF(BT6>0,"A"&E6,IF(BU6>0,"B"&E6,BV6)) -> 105 | CC6: =COUNTIF(F6:BC6,"w") -> 5 | CD6: =COUNT(F6,N6,AH6,X6,AR6,BB6) -> 1 | CE6: =CC6*180+SUM(F6,N6,AH6,X6,AR6,BB6)*180/E6 -> 1054 | CF6: =CC6*100000+CE6 -> 501054 | CH6: =RANK(CK6,CK6:CK8,1) -> 2 | CI6: =A5 -> SBC | CJ6: =VLOOKUP(1,BL6:CF13,14,FALSE) -> 林 秀忠 | CK6: =VLOOKUP(1,BL6:CF13,13,FALSE) -> 4 | CM6: =【結果】リーグ成績表!I6 -> 130 | CN6: =【結果】リーグ成績表!I7 -> 43 | CO6: =【結果】リーグ成績表!AE16 -> 154 | CP6: =【結果】リーグ成績表!AE17 -> W | CQ6: =【結果】リーグ成績表!BA26 -> 47 | CR6: =【結果】リーグ成績表!BA27 -> 113 | CS6: =SUM(CM6:CR6) -> 487
B7: =IF(【準備】登録!AK22=0,"",【準備】登録!AK22) -> 秋田 倫央 | E7: =【準備】登録!I11 -> 180 | F7: =IF(ISERROR(VLOOKUP($B7&$I$4&F$5,【進行】結果入力表!$Q$7:$V$150,2,FALSE)),"",VLOOKUP($B7&$I$4&F$5,【進行】結果入力表!$Q$7:$V$150,2,FALSE)) -> 60 | H7: 0 | I7: 1 | J7: =IF(F7="","",IF(F7="w",E7,F7)) -> 60 | L7: 60 | N7: =IF(ISERROR(VLOOKUP($B7&$I$4&N$5,【進行】結果入力表!$Q$7:$V$150,2,FALSE)),"",VLOOKUP($B7&$I$4&N$5,【進行】結果入力表!$Q$7:$V$150,2,FALSE)) -> 46 | P7: 0 | Q7: 1 | R7: 0 | S7: 2 | T7: =IF(N7="","",IF(N7="w",E7+J7,N7+J7)) -> 106 | V7: =IF($N7="","",T7/$E7*180) -> 106 | X7: =IF(ISERROR(VLOOKUP($B7&$AC$4&X$5,【進行】結果入力表!$Q$7:$V$150,2,FALSE)),"",VLOOKUP($B7&$AC$4&X$5,【進行】結果入力表!$Q$7:$V$150,2,FALSE)) -> W | Z7: 1 | AA7: 0 | AB7: 1 | AC7: 2 | AD7: 286 | AF7: 286 | AH7: =IF(ISERROR(VLOOKUP($B7&$AC$4&AH$5,【進行】結果入力表!$Q$7:$V$150,2,FALSE)),"",VLOOKUP($B7&$AC$4&AH$5,【進行】結果入力表!$Q$7:$V$150,2,FALSE)) -> W | AJ7: 1 | AK7: 0 | AL7: 2 | AM7: 2 | AN7: 466 | AP7: 466 | AR7: =IF(ISERROR(VLOOKUP($B7&$AW$4&AR$5,【進行】結果入力表!$Q$7:$V$150,2,FALSE)),"",VLOOKUP($B7&$AW$4&AR$5,【進行】結果入力表!$Q$7:$V$150,2,FALSE)) -> W | AT7: 1 | AU7: 0 | AV7: 3 | AW7: 2 | AX7: 646 | AZ7: 646 | BB7: =IF(ISERROR(VLOOKUP($B7&$AW$4&BB$5,【進行】結果入力表!$Q$7:$V$150,2,FALSE)),"",VLOOKUP($B7&$AW$4&BB$5,【進行】結果入力表!$Q$7:$V$150,2,FALSE)) -> 168 | BD7: 0 | BE7: 1 | BF7: 3 | BG7: 3 | BH7: 814 | BJ7: 814 | BL7: =IF(SUM(H7:I7,R7:S7)=0,"",IF(B$13="",RANK($CF$6:$CF$12,$CF$6:$CF$12,0),RANK($CF$6:$CF$13,$CF$6:$CF$13,0))) -> 4 | BM7: =IF(ISERROR(VLOOKUP($B7&$I$4&F$5,【進行】結果入力表!$Q$7:$V$150,3,FALSE)),"",VLOOKUP($B7&$I$4&F$5,【進行】結果入力表!$Q$7:$V$150,3,FALSE)) ->  | BN7: =IF(ISERROR(VLOOKUP($B7&$I$4&N$5,【進行】結果入力表!$Q$7:$V$150,3,FALSE)),"",VLOOKUP($B7&$I$4&N$5,【進行】結果入力表!$Q$7:$V$150,3,FALSE)) ->  | BO7: =IF(ISERROR(VLOOKUP($B7&$AC$4&X$5,【進行】結果入力表!$Q$7:$V$150,3,FALSE)),"",VLOOKUP($B7&$AC$4&X$5,【進行】結果入力表!$Q$7:$V$150,3,FALSE)) ->  | BP7: =IF(ISERROR(VLOOKUP($B7&$AC$4&AH$5,【進行】結果入力表!$Q$7:$V$150,3,FALSE)),"",VLOOKUP($B7&$AC$4&AH$5,【進行】結果入力表!$Q$7:$V$150,3,FALSE)) ->  | BQ7: =IF(ISERROR(VLOOKUP($B7&$AW$4&AR$5,【進行】結果入力表!$Q$7:$V$150,3,FALSE)),"",VLOOKUP($B7&$AW$4&AR$5,【進行】結果入力表!$Q$7:$V$150,3,FALSE)) ->  | BR7: =IF(ISERROR(VLOOKUP($B7&$AW$4&BB$5,【進行】結果入力表!$Q$7:$V$150,3,FALSE)),"",VLOOKUP($B7&$AW$4&BB$5,【進行】結果入力表!$Q$7:$V$150,3,FALSE)) ->  | BT7: 0 | BU7: 0 | BV7: 0 | BW7: 0 | BX7: 7 | BY7: 秋田 倫央 | BZ7: SBC | CA7: 0 | CC7: =COUNTIF(F7:BC7,"w") -> 3 | CD7: =COUNT(F7,N7,AH7,X7,AR7,BB7) -> 3 | CE7: =CC7*180+SUM(F7,N7,AH7,X7,AR7,BB7)*180/E7 -> 814 | CF7: =CC7*100000+CE7 -> 300814 | CH7: =RANK(CK7,CK6:CK8,1) -> 1 | CI7: =A15 -> HRC | CJ7: =VLOOKUP(1,BL16:CF23,14,FALSE) -> 金井 健太郎 | CK7: =VLOOKUP(1,BL16:CF23,13,FALSE) -> 2 | CS7: =SUM(CM7:CR7) -> 0
B8: =IF(【準備】登録!AK23=0,"",【準備】登録!AK23) -> 大橋 正寛 | E8: =【準備】登録!L11 -> 180 | F8: =IF(ISERROR(VLOOKUP($B8&$I$4&F$5,【進行】結果入力表!$Q$7:$V$150,2,FALSE)),"",VLOOKUP($B8&$I$4&F$5,【進行】結果入力表!$Q$7:$V$150,2,FALSE)) -> W | H8: 1 | I8: 0 | J8: 180 | L8: 180 | N8: =IF(ISERROR(VLOOKUP($B8&$I$4&N$5,【進行】結果入力表!$Q$7:$V$150,2,FALSE)),"",VLOOKUP($B8&$I$4&N$5,【進行】結果入力表!$Q$7:$V$150,2,FALSE)) -> 127 | P8: 0 | Q8: 1 | R8: 1 | S8: 1 | T8: 307 | V8: 307 | X8: =IF(ISERROR(VLOOKUP($B8&$AC$4&X$5,【進行】結果入力表!$Q$7:$V$150,2,FALSE)),"",VLOOKUP($B8&$AC$4&X$5,【進行】結果入力表!$Q$7:$V$150,2,FALSE)) -> W | Z8: 1 | AA8: 0 | AB8: 2 | AC8: 1 | AD8: 487 | AF8: 487 | AH8: =IF(ISERROR(VLOOKUP($B8&$AC$4&AH$5,【進行】結果入力表!$Q$7:$V$150,2,FALSE)),"",VLOOKUP($B8&$AC$4&AH$5,【進行】結果入力表!$Q$7:$V$150,2,FALSE)) -> W | AJ8: 1 | AK8: 0 | AL8: 3 | AM8: 1 | AN8: 667 | AP8: 667 | AR8: =IF(ISERROR(VLOOKUP($B8&$AW$4&AR$5,【進行】結果入力表!$Q$7:$V$150,2,FALSE)),"",VLOOKUP($B8&$AW$4&AR$5,【進行】結果入力表!$Q$7:$V$150,2,FALSE)) -> W | AT8: 1 | AU8: 0 | AV8: 4 | AW8: 1 | AX8: 847 | AZ8: 847 | BB8: =IF(ISERROR(VLOOKUP($B8&$AW$4&BB$5,【進行】結果入力表!$Q$7:$V$150,2,FALSE)),"",VLOOKUP($B8&$AW$4&BB$5,【進行】結果入力表!$Q$7:$V$150,2,FALSE)) -> W | BD8: 1 | BE8: 0 | BF8: 5 | BG8: 1 | BH8: 1027 | BJ8: 1027 | BL8: 2 | BM8: =IF(ISERROR(VLOOKUP($B8&$I$4&F$5,【進行】結果入力表!$Q$7:$V$150,3,FALSE)),"",VLOOKUP($B8&$I$4&F$5,【進行】結果入力表!$Q$7:$V$150,3,FALSE)) ->  | BN8: =IF(ISERROR(VLOOKUP($B8&$I$4&N$5,【進行】結果入力表!$Q$7:$V$150,3,FALSE)),"",VLOOKUP($B8&$I$4&N$5,【進行】結果入力表!$Q$7:$V$150,3,FALSE)) ->  | BO8: =IF(ISERROR(VLOOKUP($B8&$AC$4&X$5,【進行】結果入力表!$Q$7:$V$150,3,FALSE)),"",VLOOKUP($B8&$AC$4&X$5,【進行】結果入力表!$Q$7:$V$150,3,FALSE)) ->  | BP8: =IF(ISERROR(VLOOKUP($B8&$AC$4&AH$5,【進行】結果入力表!$Q$7:$V$150,3,FALSE)),"",VLOOKUP($B8&$AC$4&AH$5,【進行】結果入力表!$Q$7:$V$150,3,FALSE)) ->  | BQ8: =IF(ISERROR(VLOOKUP($B8&$AW$4&AR$5,【進行】結果入力表!$Q$7:$V$150,3,FALSE)),"",VLOOKUP($B8&$AW$4&AR$5,【進行】結果入力表!$Q$7:$V$150,3,FALSE)) ->  | BR8: =IF(ISERROR(VLOOKUP($B8&$AW$4&BB$5,【進行】結果入力表!$Q$7:$V$150,3,FALSE)),"",VLOOKUP($B8&$AW$4&BB$5,【進行】結果入力表!$Q$7:$V$150,3,FALSE)) ->  | BT8: 0 | BU8: 0 | BV8: 0 | BW8: 0 | BX8: 7 | BY8: 大橋 正寛 | BZ8: SBC | CA8: 0 | CC8: =COUNTIF(F8:BC8,"w") -> 5 | CD8: =COUNT(F8,N8,AH8,X8,AR8,BB8) -> 1 | CE8: =CC8*180+SUM(F8,N8,AH8,X8,AR8,BB8)*180/E8 -> 1027 | CF8: =CC8*100000+CE8 -> 501027 | CH8: =RANK(CK8,CK6:CK8,1) -> 3 | CI8: =A25 -> NRC | CJ8: =VLOOKUP(1,BL26:CF33,14,FALSE) -> 金澤 茂昌 | CK8: =VLOOKUP(1,BL26:CF33,13,FALSE) -> 7 | CS8: 0
B9: =IF(【準備】登録!AK24=0,"",【準備】登録!AK24) -> 大橋 義治 | E9: =【準備】登録!O11 -> 180 | F9: =IF(ISERROR(VLOOKUP($B9&$I$4&F$5,【進行】結果入力表!$Q$7:$V$150,2,FALSE)),"",VLOOKUP($B9&$I$4&F$5,【進行】結果入力表!$Q$7:$V$150,2,FALSE)) -> W | H9: 1 | I9: 0 | J9: 180 | L9: 180 | N9: =IF(ISERROR(VLOOKUP($B9&$I$4&N$5,【進行】結果入力表!$Q$7:$V$150,2,FALSE)),"",VLOOKUP($B9&$I$4&N$5,【進行】結果入力表!$Q$7:$V$150,2,FALSE)) -> W | P9: 1 | Q9: 0 | R9: 2 | S9: 0 | T9: 360 | V9: 360 | X9: =IF(ISERROR(VLOOKUP($B9&$AC$4&X$5,【進行】結果入力表!$Q$7:$V$150,2,FALSE)),"",VLOOKUP($B9&$AC$4&X$5,【進行】結果入力表!$Q$7:$V$150,2,FALSE)) -> W | Z9: 1 | AA9: 0 | AB9: 3 | AC9: 0 | AD9: 540 | AF9: 540 | AH9: =IF(ISERROR(VLOOKUP($B9&$AC$4&AH$5,【進行】結果入力表!$Q$7:$V$150,2,FALSE)),"",VLOOKUP($B9&$AC$4&AH$5,【進行】結果入力表!$Q$7:$V$150,2,FALSE)) -> W | AJ9: 1 | AK9: 0 | AL9: 4 | AM9: 0 | AN9: 720 | AP9: 720 | AR9: =IF(ISERROR(VLOOKUP($B9&$AW$4&AR$5,【進行】結果入力表!$Q$7:$V$150,2,FALSE)),"",VLOOKUP($B9&$AW$4&AR$5,【進行】結果入力表!$Q$7:$V$150,2,FALSE)) -> 91 | AT9: 0 | AU9: 1 | AV9: 4 | AW9: 1 | AX9: 811 | AZ9: 811 | BB9: =IF(ISERROR(VLOOKUP($B9&$AW$4&BB$5,【進行】結果入力表!$Q$7:$V$150,2,FALSE)),"",VLOOKUP($B9&$AW$4&BB$5,【進行】結果入力表!$Q$7:$V$150,2,FALSE)) -> W | BD9: 1 | BE9: 0 | BF9: 5 | BG9: 1 | BH9: 991 | BJ9: 991 | BL9: 3 | BM9: =IF(ISERROR(VLOOKUP($B9&$I$4&F$5,【進行】結果入力表!$Q$7:$V$150,3,FALSE)),"",VLOOKUP($B9&$I$4&F$5,【進行】結果入力表!$Q$7:$V$150,3,FALSE)) ->  | BN9: =IF(ISERROR(VLOOKUP($B9&$I$4&N$5,【進行】結果入力表!$Q$7:$V$150,3,FALSE)),"",VLOOKUP($B9&$I$4&N$5,【進行】結果入力表!$Q$7:$V$150,3,FALSE)) ->  | BO9: =IF(ISERROR(VLOOKUP($B9&$AC$4&X$5,【進行】結果入力表!$Q$7:$V$150,3,FALSE)),"",VLOOKUP($B9&$AC$4&X$5,【進行】結果入力表!$Q$7:$V$150,3,FALSE)) ->  | BP9: =IF(ISERROR(VLOOKUP($B9&$AC$4&AH$5,【進行】結果入力表!$Q$7:$V$150,3,FALSE)),"",VLOOKUP($B9&$AC$4&AH$5,【進行】結果入力表!$Q$7:$V$150,3,FALSE)) ->  | BQ9: =IF(ISERROR(VLOOKUP($B9&$AW$4&AR$5,【進行】結果入力表!$Q$7:$V$150,3,FALSE)),"",VLOOKUP($B9&$AW$4&AR$5,【進行】結果入力表!$Q$7:$V$150,3,FALSE)) ->  | BR9: =IF(ISERROR(VLOOKUP($B9&$AW$4&BB$5,【進行】結果入力表!$Q$7:$V$150,3,FALSE)),"",VLOOKUP($B9&$AW$4&BB$5,【進行】結果入力表!$Q$7:$V$150,3,FALSE)) ->  | BT9: 0 | BU9: 0 | BV9: 0 | BW9: 0 | BX9: 7 | BY9: 大橋 義治 | BZ9: SBC | CA9: 0 | CC9: =COUNTIF(F9:BC9,"w") -> 5 | CD9: =COUNT(F9,N9,AH9,X9,AR9,BB9) -> 1 | CE9: =CC9*180+SUM(F9,N9,AH9,X9,AR9,BB9)*180/E9 -> 991 | CF9: =CC9*100000+CE9 -> 500991 | CS9: 0
B10: =IF(【準備】登録!AK25=0,"",【準備】登録!AK25) -> 山中 康寛 | E10: =【準備】登録!R11 -> 180 | F10: =IF(ISERROR(VLOOKUP($B10&$I$4&F$5,【進行】結果入力表!$Q$7:$V$150,2,FALSE)),"",VLOOKUP($B10&$I$4&F$5,【進行】結果入力表!$Q$7:$V$150,2,FALSE)) -> 92 | H10: 0 | I10: 1 | J10: 92 | L10: 92 | N10: =IF(ISERROR(VLOOKUP($B10&$I$4&N$5,【進行】結果入力表!$Q$7:$V$150,2,FALSE)),"",VLOOKUP($B10&$I$4&N$5,【進行】結果入力表!$Q$7:$V$150,2,FALSE)) -> W | P10: 1 | Q10: 0 | R10: 1 | S10: 1 | T10: 272 | V10: 272 | X10: =IF(ISERROR(VLOOKUP($B10&$AC$4&X$5,【進行】結果入力表!$Q$7:$V$150,2,FALSE)),"",VLOOKUP($B10&$AC$4&X$5,【進行】結果入力表!$Q$7:$V$150,2,FALSE)) -> W | Z10: 1 | AA10: 0 | AB10: 2 | AC10: 1 | AD10: 452 | AF10: 452 | AH10: =IF(ISERROR(VLOOKUP($B10&$AC$4&AH$5,【進行】結果入力表!$Q$7:$V$150,2,FALSE)),"",VLOOKUP($B10&$AC$4&AH$5,【進行】結果入力表!$Q$7:$V$150,2,FALSE)) -> 164 | AJ10: 0 | AK10: 1 | AL10: 2 | AM10: 2 | AN10: 616 | AP10: 616 | AR10: =IF(ISERROR(VLOOKUP($B10&$AW$4&AR$5,【進行】結果入力表!$Q$7:$V$150,2,FALSE)),"",VLOOKUP($B10&$AW$4&AR$5,【進行】結果入力表!$Q$7:$V$150,2,FALSE)) -> 37 | AT10: 0 | AU10: 1 | AV10: 2 | AW10: 3 | AX10: 653 | AZ10: 653 | BB10: =IF(ISERROR(VLOOKUP($B10&$AW$4&BB$5,【進行】結果入力表!$Q$7:$V$150,2,FALSE)),"",VLOOKUP($B10&$AW$4&BB$5,【進行】結果入力表!$Q$7:$V$150,2,FALSE)) -> 83 | BD10: 0 | BE10: 1 | BF10: 2 | BG10: 4 | BH10: 736 | BJ10: 736 | BL10: 6 | BM10: =IF(ISERROR(VLOOKUP($B10&$I$4&F$5,【進行】結果入力表!$Q$7:$V$150,3,FALSE)),"",VLOOKUP($B10&$I$4&F$5,【進行】結果入力表!$Q$7:$V$150,3,FALSE)) ->  | BN10: =IF(ISERROR(VLOOKUP($B10&$I$4&N$5,【進行】結果入力表!$Q$7:$V$150,3,FALSE)),"",VLOOKUP($B10&$I$4&N$5,【進行】結果入力表!$Q$7:$V$150,3,FALSE)) ->  | BO10: =IF(ISERROR(VLOOKUP($B10&$AC$4&X$5,【進行】結果入力表!$Q$7:$V$150,3,FALSE)),"",VLOOKUP($B10&$AC$4&X$5,【進行】結果入力表!$Q$7:$V$150,3,FALSE)) ->  | BP10: =IF(ISERROR(VLOOKUP($B10&$AC$4&AH$5,【進行】結果入力表!$Q$7:$V$150,3,FALSE)),"",VLOOKUP($B10&$AC$4&AH$5,【進行】結果入力表!$Q$7:$V$150,3,FALSE)) ->  | BQ10: =IF(ISERROR(VLOOKUP($B10&$AW$4&AR$5,【進行】結果入力表!$Q$7:$V$150,3,FALSE)),"",VLOOKUP($B10&$AW$4&AR$5,【進行】結果入力表!$Q$7:$V$150,3,FALSE)) ->  | BR10: =IF(ISERROR(VLOOKUP($B10&$AW$4&BB$5,【進行】結果入力表!$Q$7:$V$150,3,FALSE)),"",VLOOKUP($B10&$AW$4&BB$5,【進行】結果入力表!$Q$7:$V$150,3,FALSE)) ->  | BT10: 0 | BU10: 0 | BV10: 0 | BW10: 0 | BX10: 7 | BY10: 山中 康寛 | BZ10: SBC | CA10: 0 | CC10: =COUNTIF(F10:BC10,"w") -> 2 | CD10: =COUNT(F10,N10,AH10,X10,AR10,BB10) -> 4 | CE10: =CC10*180+SUM(F10,N10,AH10,X10,AR10,BB10)*180/E10 -> 736 | CF10: =CC10*100000+CE10 -> 200736 | CM10: =【結果】リーグ成績表!I26 -> W | CN10: =【結果】リーグ成績表!I27 -> 153 | CO10: =【結果】リーグ成績表!AE36 ->  | CP10: =【結果】リーグ成績表!AE37 ->  | CQ10: =【結果】リーグ成績表!BA11 -> 88 | CR10: =【結果】リーグ成績表!BA12 -> W | CS10: 241
B11: =IF(【準備】登録!AK26=0,"",【準備】登録!AK26) -> 大橋 洋子 | E11: =IF(【準備】登録!U11="","",【準備】登録!U11) -> 140 | F11: =IF(ISERROR(VLOOKUP($B11&$I$4&F$5,【進行】結果入力表!$Q$7:$V$150,2,FALSE)),"",VLOOKUP($B11&$I$4&F$5,【進行】結果入力表!$Q$7:$V$150,2,FALSE)) -> W | H11: 1 | I11: 0 | J11: 140 | L11: 180 | N11: =IF(ISERROR(VLOOKUP($B11&$I$4&N$5,【進行】結果入力表!$Q$7:$V$150,2,FALSE)),"",VLOOKUP($B11&$I$4&N$5,【進行】結果入力表!$Q$7:$V$150,2,FALSE)) -> 116 | P11: 0 | Q11: 1 | R11: 1 | S11: 1 | T11: 256 | V11: 329.1428571 | X11: =IF(ISERROR(VLOOKUP($B11&$AC$4&X$5,【進行】結果入力表!$Q$7:$V$150,2,FALSE)),"",VLOOKUP($B11&$AC$4&X$5,【進行】結果入力表!$Q$7:$V$150,2,FALSE)) -> 59 | Z11: 0 | AA11: 1 | AB11: 1 | AC11: 2 | AD11: 315 | AF11: 405 | AH11: =IF(ISERROR(VLOOKUP($B11&$AC$4&AH$5,【進行】結果入力表!$Q$7:$V$150,2,FALSE)),"",VLOOKUP($B11&$AC$4&AH$5,【進行】結果入力表!$Q$7:$V$150,2,FALSE)) -> 35 | AJ11: 0 | AK11: 1 | AL11: 1 | AM11: 3 | AN11: 350 | AP11: 450 | AR11: =IF(ISERROR(VLOOKUP($B11&$AW$4&AR$5,【進行】結果入力表!$Q$7:$V$150,2,FALSE)),"",VLOOKUP($B11&$AW$4&AR$5,【進行】結果入力表!$Q$7:$V$150,2,FALSE)) -> W | AT11: 1 | AU11: 0 | AV11: 2 | AW11: 3 | AX11: 490 | AZ11: 630 | BB11: =IF(ISERROR(VLOOKUP($B11&$AW$4&BB$5,【進行】結果入力表!$Q$7:$V$150,2,FALSE)),"",VLOOKUP($B11&$AW$4&BB$5,【進行】結果入力表!$Q$7:$V$150,2,FALSE)) -> 111 | BD11: 0 | BE11: 1 | BF11: 2 | BG11: 4 | BH11: 601 | BJ11: 772.7142857 | BL11: 5 | BM11: =IF(ISERROR(VLOOKUP($B11&$I$4&F$5,【進行】結果入力表!$Q$7:$V$150,3,FALSE)),"",VLOOKUP($B11&$I$4&F$5,【進行】結果入力表!$Q$7:$V$150,3,FALSE)) ->  | BN11: =IF(ISERROR(VLOOKUP($B11&$I$4&N$5,【進行】結果入力表!$Q$7:$V$150,3,FALSE)),"",VLOOKUP($B11&$I$4&N$5,【進行】結果入力表!$Q$7:$V$150,3,FALSE)) ->  | BO11: =IF(ISERROR(VLOOKUP($B11&$AC$4&X$5,【進行】結果入力表!$Q$7:$V$150,3,FALSE)),"",VLOOKUP($B11&$AC$4&X$5,【進行】結果入力表!$Q$7:$V$150,3,FALSE)) ->  | BP11: =IF(ISERROR(VLOOKUP($B11&$AC$4&AH$5,【進行】結果入力表!$Q$7:$V$150,3,FALSE)),"",VLOOKUP($B11&$AC$4&AH$5,【進行】結果入力表!$Q$7:$V$150,3,FALSE)) ->  | BQ11: =IF(ISERROR(VLOOKUP($B11&$AW$4&AR$5,【進行】結果入力表!$Q$7:$V$150,3,FALSE)),"",VLOOKUP($B11&$AW$4&AR$5,【進行】結果入力表!$Q$7:$V$150,3,FALSE)) ->  | BR11: =IF(ISERROR(VLOOKUP($B11&$AW$4&BB$5,【進行】結果入力表!$Q$7:$V$150,3,FALSE)),"",VLOOKUP($B11&$AW$4&BB$5,【進行】結果入力表!$Q$7:$V$150,3,FALSE)) ->  | BT11: 0 | BU11: 0 | BV11: 0 | BW11: 0 | BX11: 7 | BY11: 大橋 洋子 | BZ11: SBC | CA11: 0 | CC11: =IF(B11="","",COUNTIF(F11:BC11,"w")) -> 2 | CD11: =IF(B11="","",COUNT(F11,N11,AH11,X11,AR11,BB11)) -> 4 | CE11: =IF(CC11="","",CC11*180+SUM(F11,N11,AH11,X11,AR11,BB11)*180/E11) -> 772.7142857 | CF11: =IF(B11="","",CC11*100000+CE11) -> 200772.7143 | CS11: =SUM(CM11:CR11) -> 0
B12: =IF(【準備】登録!AK27=0,"",【準備】登録!AK27) ->  | E12: =IF(【準備】登録!X11="","",【準備】登録!X11) ->  | F12: =IF(ISERROR(VLOOKUP($B12&$I$4&F$5,【進行】結果入力表!$Q$7:$V$150,2,FALSE)),"",VLOOKUP($B12&$I$4&F$5,【進行】結果入力表!$Q$7:$V$150,2,FALSE)) ->  | N12: =IF(ISERROR(VLOOKUP($B12&$I$4&N$5,【進行】結果入力表!$Q$7:$V$150,2,FALSE)),"",VLOOKUP($B12&$I$4&N$5,【進行】結果入力表!$Q$7:$V$150,2,FALSE)) ->  | X12: =IF(ISERROR(VLOOKUP($B12&$AC$4&X$5,【進行】結果入力表!$Q$7:$V$150,2,FALSE)),"",VLOOKUP($B12&$AC$4&X$5,【進行】結果入力表!$Q$7:$V$150,2,FALSE)) ->  | AH12: =IF(ISERROR(VLOOKUP($B12&$AC$4&AH$5,【進行】結果入力表!$Q$7:$V$150,2,FALSE)),"",VLOOKUP($B12&$AC$4&AH$5,【進行】結果入力表!$Q$7:$V$150,2,FALSE)) ->  | AR12: =IF(ISERROR(VLOOKUP($B12&$AW$4&AR$5,【進行】結果入力表!$Q$7:$V$150,2,FALSE)),"",VLOOKUP($B12&$AW$4&AR$5,【進行】結果入力表!$Q$7:$V$150,2,FALSE)) ->  | BB12: =IF(ISERROR(VLOOKUP($B12&$AW$4&BB$5,【進行】結果入力表!$Q$7:$V$150,2,FALSE)),"",VLOOKUP($B12&$AW$4&BB$5,【進行】結果入力表!$Q$7:$V$150,2,FALSE)) ->  | BM12: =IF(ISERROR(VLOOKUP($B12&$I$4&F$5,【進行】結果入力表!$Q$7:$V$150,3,FALSE)),"",VLOOKUP($B12&$I$4&F$5,【進行】結果入力表!$Q$7:$V$150,3,FALSE)) ->  | BN12: =IF(ISERROR(VLOOKUP($B12&$I$4&N$5,【進行】結果入力表!$Q$7:$V$150,3,FALSE)),"",VLOOKUP($B12&$I$4&N$5,【進行】結果入力表!$Q$7:$V$150,3,FALSE)) ->  | BO12: =IF(ISERROR(VLOOKUP($B12&$AC$4&X$5,【進行】結果入力表!$Q$7:$V$150,3,FALSE)),"",VLOOKUP($B12&$AC$4&X$5,【進行】結果入力表!$Q$7:$V$150,3,FALSE)) ->  | BP12: =IF(ISERROR(VLOOKUP($B12&$AC$4&AH$5,【進行】結果入力表!$Q$7:$V$150,3,FALSE)),"",VLOOKUP($B12&$AC$4&AH$5,【進行】結果入力表!$Q$7:$V$150,3,FALSE)) ->  | BQ12: =IF(ISERROR(VLOOKUP($B12&$AW$4&AR$5,【進行】結果入力表!$Q$7:$V$150,3,FALSE)),"",VLOOKUP($B12&$AW$4&AR$5,【進行】結果入力表!$Q$7:$V$150,3,FALSE)) ->  | BR12: =IF(ISERROR(VLOOKUP($B12&$AW$4&BB$5,【進行】結果入力表!$Q$7:$V$150,3,FALSE)),"",VLOOKUP($B12&$AW$4&BB$5,【進行】結果入力表!$Q$7:$V$150,3,FALSE)) ->  | BT12: 0 | BU12: 0 | BV12: 0 | BW12: 0 | BX12: 7 | BZ12: SBC | CA12: 0 | CC12: =IF(B12="","",COUNTIF(F12:BC12,"w")) ->  | CD12: =IF(B12="","",COUNT(F12,N12,AH12,X12,AR12,BB12)) ->  | CE12: =IF(CC12="","",CC12*180+SUM(F12,N12,AH12,X12,AR12,BB12)*180/E12) ->  | CF12: =IF(B12="","",CC12*100000+CE12) ->  | CS12: 0
B13: =IF(【準備】登録!AK28=0,"",【準備】登録!AK28) ->  | E13: =IF(【準備】登録!$Y$11="","",【準備】登録!AA11) ->  | F13: =IF(ISERROR(VLOOKUP($B13&$I$4&F$5,【進行】結果入力表!$Q$7:$V$150,2,FALSE)),"",VLOOKUP($B13&$I$4&F$5,【進行】結果入力表!$Q$7:$V$150,2,FALSE)) ->  | N13: =IF(ISERROR(VLOOKUP($B13&$I$4&N$5,【進行】結果入力表!$Q$7:$V$150,2,FALSE)),"",VLOOKUP($B13&$I$4&N$5,【進行】結果入力表!$Q$7:$V$150,2,FALSE)) ->  | X13: =IF(ISERROR(VLOOKUP($B13&$AC$4&X$5,【進行】結果入力表!$Q$7:$V$150,2,FALSE)),"",VLOOKUP($B13&$AC$4&X$5,【進行】結果入力表!$Q$7:$V$150,2,FALSE)) ->  | AH13: =IF(ISERROR(VLOOKUP($B13&$AC$4&AH$5,【進行】結果入力表!$Q$7:$V$150,2,FALSE)),"",VLOOKUP($B13&$AC$4&AH$5,【進行】結果入力表!$Q$7:$V$150,2,FALSE)) ->  | AR13: =IF(ISERROR(VLOOKUP($B13&$AW$4&AR$5,【進行】結果入力表!$Q$7:$V$150,2,FALSE)),"",VLOOKUP($B13&$AW$4&AR$5,【進行】結果入力表!$Q$7:$V$150,2,FALSE)) ->  | BB13: =IF(ISERROR(VLOOKUP($B13&$AW$4&BB$5,【進行】結果入力表!$Q$7:$V$150,2,FALSE)),"",VLOOKUP($B13&$AW$4&BB$5,【進行】結果入力表!$Q$7:$V$150,2,FALSE)) ->  | BM13: =IF(ISERROR(VLOOKUP($B13&$I$4&F$5,【進行】結果入力表!$Q$7:$V$150,3,FALSE)),"",VLOOKUP($B13&$I$4&F$5,【進行】結果入力表!$Q$7:$V$150,3,FALSE)) ->  | BN13: =IF(ISERROR(VLOOKUP($B13&$I$4&N$5,【進行】結果入力表!$Q$7:$V$150,3,FALSE)),"",VLOOKUP($B13&$I$4&N$5,【進行】結果入力表!$Q$7:$V$150,3,FALSE)) ->  | BO13: =IF(ISERROR(VLOOKUP($B13&$AC$4&X$5,【進行】結果入力表!$Q$7:$V$150,3,FALSE)),"",VLOOKUP($B13&$AC$4&X$5,【進行】結果入力表!$Q$7:$V$150,3,FALSE)) ->  | BP13: =IF(ISERROR(VLOOKUP($B13&$AC$4&AH$5,【進行】結果入力表!$Q$7:$V$150,3,FALSE)),"",VLOOKUP($B13&$AC$4&AH$5,【進行】結果入力表!$Q$7:$V$150,3,FALSE)) ->  | BQ13: =IF(ISERROR(VLOOKUP($B13&$AW$4&AR$5,【進行】結果入力表!$Q$7:$V$150,3,FALSE)),"",VLOOKUP($B13&$AW$4&AR$5,【進行】結果入力表!$Q$7:$V$150,3,FALSE)) ->  | BR13: =IF(ISERROR(VLOOKUP($B13&$AW$4&BB$5,【進行】結果入力表!$Q$7:$V$150,3,FALSE)),"",VLOOKUP($B13&$AW$4&BB$5,【進行】結果入力表!$Q$7:$V$150,3,FALSE)) ->  | BT13: 0 | BU13: 0 | BV13: 0 | BW13: 0 | BX13: 7 | BZ13: SBC | CA13: 0 | CC13: =IF(B13="","",COUNTIF(F13:BC13,"w")) ->  | CD13: =IF(B13="","",COUNT(F13,N13,AH13,X13,AR13,BB13)) ->  | CE13: =IF(CC13="","",CC13*180+SUM(F13,N13,AH13,X13,AR13,BB13)*180/E13) ->  | CF13: =IF(B13="","",CC13*100000+CE13) ->  | CS13: =SUM(CM13:CR13) -> 0
B14: Total | H14: =IF(COUNTBLANK(H6:H13)=8,"",SUM(H6:H13)) -> 4 | I14: =IF(COUNTBLANK(I6:I13)=8,"",SUM(I6:I13)) -> 2 | J14: =IF($B6="","",SUM(J6:J13)) -> 832 | K14: =IF($B6="","",SUM(K6:K13)) -> 0 | L14: =IF(COUNTBLANK(L6:L13)=8,"",SUM(L6:L13)) -> 872 | M14: =IF($B6="","",SUM(M6:M13)) -> 0 | P14: =SUM(P6:P13) -> 3 | Q14: =SUM(Q6:Q13) -> 3 | R14: =IF(COUNTBLANK(R6:R13)=8,"",SUM(H14,P14)) -> 7 | S14: =IF(COUNTBLANK(S6:S13)=8,"",SUM(I14,Q14)) -> 5 | T14: =IF($B6="","",SUM(T6:T13)) -> 1661 | U14: =IF($B6="","",SUM(U6:U13)) -> 0 | V14: =IF(COUNTBLANK(V6:V13)=8,"",SUM(V6:V13)) -> 1734.142857 | W14: =IF($B6="","",SUM(W6:W13)) -> 0 | Z14: =SUM(Z6:Z13) -> 4 | AA14: =SUM(AA6:AA13) -> 2 | AB14: =IF(COUNTBLANK(AB6:AB13)=8,"",SUM(R14,Z14)) -> 11 | AC14: =IF(COUNTBLANK(AC6:AC13)=8,"",SUM(S14,AA14)) -> 7 | AD14: =IF($B6="","",SUM(AD6:AD13)) -> 2594 | AE14: =IF($B6="","",SUM(AE6:AE13)) -> 0 | AF14: =IF(COUNTBLANK(AF6:AF13)=8,"",SUM(AF6:AF13)) -> 2684 | AG14: =IF($B6="","",SUM(AG6:AG13)) -> 0 | AJ14: =SUM(AJ6:AJ13) -> 4 | AK14: =SUM(AK6:AK13) -> 2 | AL14: =IF(COUNTBLANK(AL6:AL13)=8,"",SUM(AB14,AJ14)) -> 15 | AM14: =IF(COUNTBLANK(AM6:AM13)=8,"",SUM(AC14,AK14)) -> 9 | AN14: =IF($B6="","",SUM(AN6:AN13)) -> 3513 | AO14: =IF($B6="","",SUM(AO6:AO13)) -> 0 | AP14: =IF(COUNTBLANK(AP6:AP13)=8,"",SUM(AP6:AP13)) -> 3613 | AQ14: =IF($B6="","",SUM(AQ6:AQ13)) -> 0 | AT14: =SUM(AT6:AT13) -> 4 | AU14: =SUM(AU6:AU13) -> 2 | AV14: =IF(COUNTBLANK(AV6:AV13)=8,"",SUM(AL14,AT14)) -> 19 | AW14: =IF(COUNTBLANK(AW6:AW13)=8,"",SUM(AM14,AU14)) -> 11 | AX14: =IF($B6="","",SUM(AX6:AX13)) -> 4321 | AY14: =IF($B6="","",SUM(AY6:AY13)) -> 0 | AZ14: =IF(COUNTBLANK(AZ6:AZ13)=8,"",SUM(AZ6:AZ13)) -> 4461 | BA14: =IF($B6="","",SUM(BA6:BA13)) -> 0 | BD14: =SUM(BD6:BD13) -> 3 | BE14: =SUM(BE6:BE13) -> 3 | BF14: =IF(COUNTBLANK(BF6:BF13)=8,"",SUM(AV14,BD14)) -> 22 | BG14: =IF(COUNTBLANK(BG6:BG13)=8,"",SUM(AW14,BE14)) -> 14 | BH14: =IF(COUNTIF(BH6:BI13,"")=16,"",SUM(BH6:BH13)) -> 5223 | BI14: =IF($B6="","",SUM(BI6:BI13)) -> 0 | BJ14: =IF(COUNTBLANK(BJ6:BJ13)=8,"",SUM(BJ6:BJ13)) -> 5394.714286 | BK14: =IF($B6="","",SUM(BK6:BK13)) -> 0 | CC14: =SUM(CC6:CC13) -> 22 | CD14: =SUM(CD6:CD13) -> 14 | CE14: =SUM(CE6:CE13) -> 5394.714286 | CF14: =SUM(CF6:CF13) -> 2205394.714
A15: =IF(【準備】登録!B12="","",【準備】登録!B12) -> HRC | B15: =B5 -> 選手名 | E15: =E5 -> 持点 | F15: =A5 -> SBC | H15: W | I15: L | J15: TP | L15: TP | N15: =A25 -> NRC | P15: W | Q15: L | R15: W | S15: L | T15: TP | V15: TP | X15: =A5 -> SBC | Z15: W | AA15: L | AB15: W | AC15: L | AD15: TP | AF15: TP | AH15: =A25 -> NRC | AJ15: W | AK15: L | AL15: W | AM15: L | AN15: TP | AP15: TP | AR15: =A5 -> SBC | AT15: W | AU15: L | AV15: W | AW15: L | AX15: TP | AZ15: TP | BB15: =A25 -> NRC | BD15: W | BE15: L | BF15: W | BG15: L | BH15: TP | BJ15: TP | BL15: R | BM15: =BM$5 -> 1G | BN15: 2G | BO15: 3G | BP15: 4G | BQ15: 5G | BR15: 6G | CC15: =CC$5 -> W | CD15: =CD$5 -> L | CE15: =CE$5 -> TP | CF15: =CF$5 -> R_P
B16: =IF(【準備】登録!AK13=0,"",【準備】登録!AK13) -> 高木 俊行 | E16: =【準備】登録!F12 -> 180 | F16: =IF(ISERROR(VLOOKUP($B16&$I$4&F$15,【進行】結果入力表!$Q$7:$V$150,2,FALSE)),"",VLOOKUP($B16&$I$4&F$15,【進行】結果入力表!$Q$7:$V$150,2,FALSE)) -> 130 | H16: =IF(F16="","",IF(F16="w",1,0)) -> 0 | I16: =IF(F16="","",IF(F16="w",0,1)) -> 1 | J16: =IF(F16="","",IF(F16="w",E16,F16)) -> 130 | L16: =IF($F16="","",J16/$E16*180) -> 130 | N16: =IF(ISERROR(VLOOKUP($B16&$I$4&N$15,【進行】結果入力表!$Q$7:$V$150,2,FALSE)),"",VLOOKUP($B16&$I$4&N$15,【進行】結果入力表!$Q$7:$V$150,2,FALSE)) -> W | P16: =IF(N16="","",IF(N16="w",1,0)) -> 1 | Q16: =IF(N16="","",IF(N16="w",0,1)) -> 0 | R16: =IF(N16="","",SUM(H16,P16)) -> 1 | S16: =IF(N16="","",SUM(I16,Q16)) -> 1 | T16: =IF(N16="","",IF(N16="w",E16+J16,N16+J16)) -> 310 | V16: =IF($N16="","",T16/$E16*180) -> 310 | X16: =IF(ISERROR(VLOOKUP($B16&$AC$4&X$15,【進行】結果入力表!$Q$7:$V$150,2,FALSE)),"",VLOOKUP($B16&$AC$4&X$15,【進行】結果入力表!$Q$7:$V$150,2,FALSE)) -> 128 | Z16: =IF(X16="","",IF(X16="w",1,0)) -> 0 | AA16: =IF(X16="","",IF(X16="w",0,1)) -> 1 | AB16: =IF(X16="","",SUM(R16,Z16)) -> 1 | AC16: =IF(X16="","",SUM(S16,AA16)) -> 2 | AD16: =IF(X16="","",IF(X16="w",T16+E16,X16+T16)) -> 438 | AF16: =IF($X16="","",AD16/$E16*180) -> 438 | AH16: =IF(ISERROR(VLOOKUP($B16&$AC$4&AH$15,【進行】結果入力表!$Q$7:$V$150,2,FALSE)),"",VLOOKUP($B16&$AC$4&AH$15,【進行】結果入力表!$Q$7:$V$150,2,FALSE)) -> W | AJ16: =IF(AH16="","",IF(AH16="w",1,0)) -> 1 | AK16: =IF(AH16="","",IF(AH16="w",0,1)) -> 0 | AL16: =IF(AH16="","",SUM(AB16,AJ16)) -> 2 | AM16: =IF(AH16="","",SUM(AC16,AK16)) -> 2 | AN16: =IF(AH16="","",IF(AH16="w",AD16+E16,AH16+AD16)) -> 618 | AP16: =IF($AH16="","",AN16/$E16*180) -> 618 | AR16: =IF(ISERROR(VLOOKUP($B16&$AW$4&AR$15,【進行】結果入力表!$Q$7:$V$150,2,FALSE)),"",VLOOKUP($B16&$AW$4&AR$15,【進行】結果入力表!$Q$7:$V$150,2,FALSE)) -> 47 | AT16: =IF(AR16="","",IF(AR16="w",1,0)) -> 0 | AU16: =IF(AR16="","",IF(AR16="w",0,1)) -> 1 | AV16: =IF(AR16="","",IF(AR16="w",AL16+1,AL16)) -> 2 | AW16: =IF(AR16="","",IF(AR16="w",AM16,AM16+1)) -> 3 | AX16: =IF(AR16="","",IF(AR16="w",AN16+E16,AR16+AN16)) -> 665 | AZ16: =IF($AR16="","",AX16/$E16*180) -> 665 | BB16: =IF(ISERROR(VLOOKUP($B16&$AW$4&BB$15,【進行】結果入力表!$Q$7:$V$150,2,FALSE)),"",VLOOKUP($B16&$AW$4&BB$15,【進行】結果入力表!$Q$7:$V$150,2,FALSE)) -> W | BD16: =IF(BB16="","",IF(BB16="w",1,0)) -> 1 | BE16: =IF(BB16="","",IF(BB16="w",0,1)) -> 0 | BF16: =IF(BB16="","",IF(BB16="w",AV16+1,AV16)) -> 3 | BG16: =IF(BB16="","",IF(BB16="w",AW16,AW16+1)) -> 3 | BH16: =IF(BB16="","",IF(BB16="w",AX16+E16,BB16+AX16)) -> 845 | BJ16: =IF($BB16="","",BH16/$E16*180) -> 845 | BL16: =IF(SUM(H16:I16,R16:S16)=0,"",IF(B$13="",RANK($CF$16:$CF$22,$CF$16:$CF$22,0),RANK($CF$16:$CF$23,$CF$16:$CF$23,0))) -> 5 | BM16: =IF(ISERROR(VLOOKUP($B16&$I$4&F$15,【進行】結果入力表!$Q$7:$V$150,3,FALSE)),"",VLOOKUP($B16&$I$4&F$15,【進行】結果入力表!$Q$7:$V$150,3,FALSE)) -> 109 | BN16: =IF(ISERROR(VLOOKUP($B16&$I$4&N$15,【進行】結果入力表!$Q$7:$V$150,3,FALSE)),"",VLOOKUP($B16&$I$4&N$15,【進行】結果入力表!$Q$7:$V$150,3,FALSE)) ->  | BO16: =IF(ISERROR(VLOOKUP($B16&$AC$4&X$15,【進行】結果入力表!$Q$7:$V$150,3,FALSE)),"",VLOOKUP($B16&$AC$4&X$15,【進行】結果入力表!$Q$7:$V$150,3,FALSE)) ->  | BP16: =IF(ISERROR(VLOOKUP($B16&$AC$4&AH$15,【進行】結果入力表!$Q$7:$V$150,3,FALSE)),"",VLOOKUP($B16&$AC$4&AH$15,【進行】結果入力表!$Q$7:$V$150,3,FALSE)) ->  | BQ16: =IF(ISERROR(VLOOKUP($B16&$AW$4&AR$15,【進行】結果入力表!$Q$7:$V$150,3,FALSE)),"",VLOOKUP($B16&$AW$4&AR$15,【進行】結果入力表!$Q$7:$V$150,3,FALSE)) ->  | BR16: =IF(ISERROR(VLOOKUP($B16&$AW$4&BB$15,【進行】結果入力表!$Q$7:$V$150,3,FALSE)),"",VLOOKUP($B16&$AW$4&BB$15,【進行】結果入力表!$Q$7:$V$150,3,FALSE)) ->  | BT16: =COUNTIF($BM16:$BR16,BT$5) -> 0 | BU16: 0 | BV16: =MAX($BM16:$BR16) -> 109 | BW16: =BT16*10000+BU16*1000+BV16 -> 109 | BX16: =RANK(BW16,$BW$6:$BW$33) -> 3 | BY16: =B16 -> 高木 俊行 | BZ16: =$A$15 -> HRC | CA16: =IF(BT16>0,"A"&E16,IF(BU16>0,"B"&E16,BV16)) -> 109 | CC16: =COUNTIF(F16:BC16,"w") -> 3 | CD16: =COUNT(F16,N16,AH16,X16,AR16,BB16) -> 3 | CE16: =CC16*180+SUM(F16,N16,AH16,X16,AR16,BB16)*180/E16 -> 845 | CF16: =CC16*100000+CE16 -> 300845 | CS16: =SUM(CM16:CR16) -> 0
B17: =IF(【準備】登録!AK14=0,"",【準備】登録!AK14) -> 金井 健太郎 | E17: =【準備】登録!I12 -> 180 | F17: =IF(ISERROR(VLOOKUP($B17&$I$4&F$15,【進行】結果入力表!$Q$7:$V$150,2,FALSE)),"",VLOOKUP($B17&$I$4&F$15,【進行】結果入力表!$Q$7:$V$150,2,FALSE)) -> W | H17: 1 | I17: 0 | J17: 180 | L17: 180 | N17: =IF(ISERROR(VLOOKUP($B17&$I$4&N$15,【進行】結果入力表!$Q$7:$V$150,2,FALSE)),"",VLOOKUP($B17&$I$4&N$15,【進行】結果入力表!$Q$7:$V$150,2,FALSE)) -> W | P17: 1 | Q17: 0 | R17: 2 | S17: 0 | T17: 360 | V17: 360 | X17: =IF(ISERROR(VLOOKUP($B17&$AC$4&X$15,【進行】結果入力表!$Q$7:$V$150,2,FALSE)),"",VLOOKUP($B17&$AC$4&X$15,【進行】結果入力表!$Q$7:$V$150,2,FALSE)) -> 167 | Z17: 0 | AA17: 1 | AB17: 2 | AC17: 1 | AD17: 527 | AF17: 527 | AH17: =IF(ISERROR(VLOOKUP($B17&$AC$4&AH$15,【進行】結果入力表!$Q$7:$V$150,2,FALSE)),"",VLOOKUP($B17&$AC$4&AH$15,【進行】結果入力表!$Q$7:$V$150,2,FALSE)) -> W | AJ17: 1 | AK17: 0 | AL17: 3 | AM17: 1 | AN17: 707 | AP17: 707 | AR17: =IF(ISERROR(VLOOKUP($B17&$AW$4&AR$15,【進行】結果入力表!$Q$7:$V$150,2,FALSE)),"",VLOOKUP($B17&$AW$4&AR$15,【進行】結果入力表!$Q$7:$V$150,2,FALSE)) -> W | AT17: 1 | AU17: 0 | AV17: 4 | AW17: 1 | AX17: 887 | AZ17: 887 | BB17: =IF(ISERROR(VLOOKUP($B17&$AW$4&BB$15,【進行】結果入力表!$Q$7:$V$150,2,FALSE)),"",VLOOKUP($B17&$AW$4&BB$15,【進行】結果入力表!$Q$7:$V$150,2,FALSE)) -> W | BD17: 1 | BE17: 0 | BF17: 5 | BG17: 1 | BH17: 1067 | BJ17: 1067 | BL17: 1 | BM17: =IF(ISERROR(VLOOKUP($B17&$I$4&F$15,【進行】結果入力表!$Q$7:$V$150,3,FALSE)),"",VLOOKUP($B17&$I$4&F$15,【進行】結果入力表!$Q$7:$V$150,3,FALSE)) ->  | BN17: =IF(ISERROR(VLOOKUP($B17&$I$4&N$15,【進行】結果入力表!$Q$7:$V$150,3,FALSE)),"",VLOOKUP($B17&$I$4&N$15,【進行】結果入力表!$Q$7:$V$150,3,FALSE)) ->  | BO17: =IF(ISERROR(VLOOKUP($B17&$AC$4&X$15,【進行】結果入力表!$Q$7:$V$150,3,FALSE)),"",VLOOKUP($B17&$AC$4&X$15,【進行】結果入力表!$Q$7:$V$150,3,FALSE)) ->  | BP17: =IF(ISERROR(VLOOKUP($B17&$AC$4&AH$15,【進行】結果入力表!$Q$7:$V$150,3,FALSE)),"",VLOOKUP($B17&$AC$4&AH$15,【進行】結果入力表!$Q$7:$V$150,3,FALSE)) ->  | BQ17: =IF(ISERROR(VLOOKUP($B17&$AW$4&AR$15,【進行】結果入力表!$Q$7:$V$150,3,FALSE)),"",VLOOKUP($B17&$AW$4&AR$15,【進行】結果入力表!$Q$7:$V$150,3,FALSE)) ->  | BR17: =IF(ISERROR(VLOOKUP($B17&$AW$4&BB$15,【進行】結果入力表!$Q$7:$V$150,3,FALSE)),"",VLOOKUP($B17&$AW$4&BB$15,【進行】結果入力表!$Q$7:$V$150,3,FALSE)) -> 115 | BT17: 0 | BU17: 0 | BV17: 115 | BW17: 115 | BX17: 2 | BY17: 金井 健太郎 | BZ17: HRC | CA17: 115 | CC17: =COUNTIF(F17:BC17,"w") -> 5 | CD17: =COUNT(F17,N17,AH17,X17,AR17,BB17) -> 1 | CE17: =CC17*180+SUM(F17,N17,AH17,X17,AR17,BB17)*180/E17 -> 1067 | CF17: =CC17*100000+CE17 -> 501067 | CS17: =SUM(CM17:CR17) -> 0
B18: =IF(【準備】登録!AK15=0,"",【準備】登録!AK15) -> 平井 洸志 | E18: =【準備】登録!L12 -> 180 | F18: =IF(ISERROR(VLOOKUP($B18&$I$4&F$15,【進行】結果入力表!$Q$7:$V$150,2,FALSE)),"",VLOOKUP($B18&$I$4&F$15,【進行】結果入力表!$Q$7:$V$150,2,FALSE)) -> 161 | H18: 0 | I18: 1 | J18: 161 | L18: 161 | N18: =IF(ISERROR(VLOOKUP($B18&$I$4&N$15,【進行】結果入力表!$Q$7:$V$150,2,FALSE)),"",VLOOKUP($B18&$I$4&N$15,【進行】結果入力表!$Q$7:$V$150,2,FALSE)) -> 93 | P18: 0 | Q18: 1 | R18: 0 | S18: 2 | T18: 254 | V18: 254 | X18: =IF(ISERROR(VLOOKUP($B18&$AC$4&X$15,【進行】結果入力表!$Q$7:$V$150,2,FALSE)),"",VLOOKUP($B18&$AC$4&X$15,【進行】結果入力表!$Q$7:$V$150,2,FALSE)) -> 160 | Z18: 0 | AA18: 1 | AB18: 0 | AC18: 3 | AD18: 414 | AF18: 414 | AH18: =IF(ISERROR(VLOOKUP($B18&$AC$4&AH$15,【進行】結果入力表!$Q$7:$V$150,2,FALSE)),"",VLOOKUP($B18&$AC$4&AH$15,【進行】結果入力表!$Q$7:$V$150,2,FALSE)) -> 76 | AJ18: 0 | AK18: 1 | AL18: 0 | AM18: 4 | AN18: 490 | AP18: 490 | AR18: =IF(ISERROR(VLOOKUP($B18&$AW$4&AR$15,【進行】結果入力表!$Q$7:$V$150,2,FALSE)),"",VLOOKUP($B18&$AW$4&AR$15,【進行】結果入力表!$Q$7:$V$150,2,FALSE)) -> W | AT18: 1 | AU18: 0 | AV18: 1 | AW18: 4 | AX18: 670 | AZ18: 670 | BB18: =IF(ISERROR(VLOOKUP($B18&$AW$4&BB$15,【進行】結果入力表!$Q$7:$V$150,2,FALSE)),"",VLOOKUP($B18&$AW$4&BB$15,【進行】結果入力表!$Q$7:$V$150,2,FALSE)) -> 49 | BD18: 0 | BE18: 1 | BF18: 1 | BG18: 5 | BH18: 719 | BJ18: 719 | BL18: 6 | BM18: =IF(ISERROR(VLOOKUP($B18&$I$4&F$15,【進行】結果入力表!$Q$7:$V$150,3,FALSE)),"",VLOOKUP($B18&$I$4&F$15,【進行】結果入力表!$Q$7:$V$150,3,FALSE)) ->  | BN18: =IF(ISERROR(VLOOKUP($B18&$I$4&N$15,【進行】結果入力表!$Q$7:$V$150,3,FALSE)),"",VLOOKUP($B18&$I$4&N$15,【進行】結果入力表!$Q$7:$V$150,3,FALSE)) ->  | BO18: =IF(ISERROR(VLOOKUP($B18&$AC$4&X$15,【進行】結果入力表!$Q$7:$V$150,3,FALSE)),"",VLOOKUP($B18&$AC$4&X$15,【進行】結果入力表!$Q$7:$V$150,3,FALSE)) ->  | BP18: =IF(ISERROR(VLOOKUP($B18&$AC$4&AH$15,【進行】結果入力表!$Q$7:$V$150,3,FALSE)),"",VLOOKUP($B18&$AC$4&AH$15,【進行】結果入力表!$Q$7:$V$150,3,FALSE)) ->  | BQ18: =IF(ISERROR(VLOOKUP($B18&$AW$4&AR$15,【進行】結果入力表!$Q$7:$V$150,3,FALSE)),"",VLOOKUP($B18&$AW$4&AR$15,【進行】結果入力表!$Q$7:$V$150,3,FALSE)) ->  | BR18: =IF(ISERROR(VLOOKUP($B18&$AW$4&BB$15,【進行】結果入力表!$Q$7:$V$150,3,FALSE)),"",VLOOKUP($B18&$AW$4&BB$15,【進行】結果入力表!$Q$7:$V$150,3,FALSE)) ->  | BT18: 0 | BU18: 0 | BV18: 0 | BW18: 0 | BX18: 7 | BY18: 平井 洸志 | BZ18: HRC | CA18: 0 | CC18: =COUNTIF(F18:BC18,"w") -> 1 | CD18: =COUNT(F18,N18,AH18,X18,AR18,BB18) -> 5 | CE18: =CC18*180+SUM(F18,N18,AH18,X18,AR18,BB18)*180/E18 -> 719 | CF18: =CC18*100000+CE18 -> 100719 | CS18: 0
B19: =IF(【準備】登録!AK16=0,"",【準備】登録!AK16) -> 中尾 亮太 | E19: =【準備】登録!O12 -> 180 | F19: =IF(ISERROR(VLOOKUP($B19&$I$4&F$15,【進行】結果入力表!$Q$7:$V$150,2,FALSE)),"",VLOOKUP($B19&$I$4&F$15,【進行】結果入力表!$Q$7:$V$150,2,FALSE)) -> 167 | H19: 0 | I19: 1 | J19: 167 | L19: 167 | N19: =IF(ISERROR(VLOOKUP($B19&$I$4&N$15,【進行】結果入力表!$Q$7:$V$150,2,FALSE)),"",VLOOKUP($B19&$I$4&N$15,【進行】結果入力表!$Q$7:$V$150,2,FALSE)) -> W | P19: 1 | Q19: 0 | R19: 1 | S19: 1 | T19: 347 | V19: 347 | X19: =IF(ISERROR(VLOOKUP($B19&$AC$4&X$15,【進行】結果入力表!$Q$7:$V$150,2,FALSE)),"",VLOOKUP($B19&$AC$4&X$15,【進行】結果入力表!$Q$7:$V$150,2,FALSE)) -> 154 | Z19: 0 | AA19: 1 | AB19: 1 | AC19: 2 | AD19: 501 | AF19: 501 | AH19: =IF(ISERROR(VLOOKUP($B19&$AC$4&AH$15,【進行】結果入力表!$Q$7:$V$150,2,FALSE)),"",VLOOKUP($B19&$AC$4&AH$15,【進行】結果入力表!$Q$7:$V$150,2,FALSE)) -> W | AJ19: 1 | AK19: 0 | AL19: 2 | AM19: 2 | AN19: 681 | AP19: 681 | AR19: =IF(ISERROR(VLOOKUP($B19&$AW$4&AR$15,【進行】結果入力表!$Q$7:$V$150,2,FALSE)),"",VLOOKUP($B19&$AW$4&AR$15,【進行】結果入力表!$Q$7:$V$150,2,FALSE)) -> 88 | AT19: 0 | AU19: 1 | AV19: 2 | AW19: 3 | AX19: 769 | AZ19: 769 | BB19: =IF(ISERROR(VLOOKUP($B19&$AW$4&BB$15,【進行】結果入力表!$Q$7:$V$150,2,FALSE)),"",VLOOKUP($B19&$AW$4&BB$15,【進行】結果入力表!$Q$7:$V$150,2,FALSE)) -> W | BD19: 1 | BE19: 0 | BF19: 3 | BG19: 3 | BH19: 949 | BJ19: 949 | BL19: 4 | BM19: =IF(ISERROR(VLOOKUP($B19&$I$4&F$15,【進行】結果入力表!$Q$7:$V$150,3,FALSE)),"",VLOOKUP($B19&$I$4&F$15,【進行】結果入力表!$Q$7:$V$150,3,FALSE)) -> 127 | BN19: =IF(ISERROR(VLOOKUP($B19&$I$4&N$15,【進行】結果入力表!$Q$7:$V$150,3,FALSE)),"",VLOOKUP($B19&$I$4&N$15,【進行】結果入力表!$Q$7:$V$150,3,FALSE)) ->  | BO19: =IF(ISERROR(VLOOKUP($B19&$AC$4&X$15,【進行】結果入力表!$Q$7:$V$150,3,FALSE)),"",VLOOKUP($B19&$AC$4&X$15,【進行】結果入力表!$Q$7:$V$150,3,FALSE)) ->  | BP19: =IF(ISERROR(VLOOKUP($B19&$AC$4&AH$15,【進行】結果入力表!$Q$7:$V$150,3,FALSE)),"",VLOOKUP($B19&$AC$4&AH$15,【進行】結果入力表!$Q$7:$V$150,3,FALSE)) ->  | BQ19: =IF(ISERROR(VLOOKUP($B19&$AW$4&AR$15,【進行】結果入力表!$Q$7:$V$150,3,FALSE)),"",VLOOKUP($B19&$AW$4&AR$15,【進行】結果入力表!$Q$7:$V$150,3,FALSE)) ->  | BR19: =IF(ISERROR(VLOOKUP($B19&$AW$4&BB$15,【進行】結果入力表!$Q$7:$V$150,3,FALSE)),"",VLOOKUP($B19&$AW$4&BB$15,【進行】結果入力表!$Q$7:$V$150,3,FALSE)) ->  | BT19: 0 | BU19: 0 | BV19: 127 | BW19: 127 | BX19: 1 | BY19: 中尾 亮太 | BZ19: HRC | CA19: 127 | CC19: =COUNTIF(F19:BC19,"w") -> 3 | CD19: =COUNT(F19,N19,AH19,X19,AR19,BB19) -> 3 | CE19: =CC19*180+SUM(F19,N19,AH19,X19,AR19,BB19)*180/E19 -> 949 | CF19: =CC19*100000+CE19 -> 300949 | CS19: 0
B20: =IF(【準備】登録!AK17=0,"",【準備】登録!AK17) -> 宮本 一 | E20: =【準備】登録!R12 -> 180 | F20: =IF(ISERROR(VLOOKUP($B20&$I$4&F$15,【進行】結果入力表!$Q$7:$V$150,2,FALSE)),"",VLOOKUP($B20&$I$4&F$15,【進行】結果入力表!$Q$7:$V$150,2,FALSE)) -> W | H20: 1 | I20: 0 | J20: 180 | L20: 180 | N20: =IF(ISERROR(VLOOKUP($B20&$I$4&N$15,【進行】結果入力表!$Q$7:$V$150,2,FALSE)),"",VLOOKUP($B20&$I$4&N$15,【進行】結果入力表!$Q$7:$V$150,2,FALSE)) -> W | P20: 1 | Q20: 0 | R20: 2 | S20: 0 | T20: 360 | V20: 360 | X20: =IF(ISERROR(VLOOKUP($B20&$AC$4&X$15,【進行】結果入力表!$Q$7:$V$150,2,FALSE)),"",VLOOKUP($B20&$AC$4&X$15,【進行】結果入力表!$Q$7:$V$150,2,FALSE)) -> W | Z20: 1 | AA20: 0 | AB20: 3 | AC20: 0 | AD20: 540 | AF20: 540 | AH20: =IF(ISERROR(VLOOKUP($B20&$AC$4&AH$15,【進行】結果入力表!$Q$7:$V$150,2,FALSE)),"",VLOOKUP($B20&$AC$4&AH$15,【進行】結果入力表!$Q$7:$V$150,2,FALSE)) -> W | AJ20: 1 | AK20: 0 | AL20: 4 | AM20: 0 | AN20: 720 | AP20: 720 | AR20: =IF(ISERROR(VLOOKUP($B20&$AW$4&AR$15,【進行】結果入力表!$Q$7:$V$150,2,FALSE)),"",VLOOKUP($B20&$AW$4&AR$15,【進行】結果入力表!$Q$7:$V$150,2,FALSE)) -> 130 | AT20: 0 | AU20: 1 | AV20: 4 | AW20: 1 | AX20: 850 | AZ20: 850 | BB20: =IF(ISERROR(VLOOKUP($B20&$AW$4&BB$15,【進行】結果入力表!$Q$7:$V$150,2,FALSE)),"",VLOOKUP($B20&$AW$4&BB$15,【進行】結果入力表!$Q$7:$V$150,2,FALSE)) -> W | BD20: 1 | BE20: 0 | BF20: 5 | BG20: 1 | BH20: 1030 | BJ20: 1030 | BL20: 2 | BM20: =IF(ISERROR(VLOOKUP($B20&$I$4&F$15,【進行】結果入力表!$Q$7:$V$150,3,FALSE)),"",VLOOKUP($B20&$I$4&F$15,【進行】結果入力表!$Q$7:$V$150,3,FALSE)) ->  | BN20: =IF(ISERROR(VLOOKUP($B20&$I$4&N$15,【進行】結果入力表!$Q$7:$V$150,3,FALSE)),"",VLOOKUP($B20&$I$4&N$15,【進行】結果入力表!$Q$7:$V$150,3,FALSE)) ->  | BO20: =IF(ISERROR(VLOOKUP($B20&$AC$4&X$15,【進行】結果入力表!$Q$7:$V$150,3,FALSE)),"",VLOOKUP($B20&$AC$4&X$15,【進行】結果入力表!$Q$7:$V$150,3,FALSE)) ->  | BP20: =IF(ISERROR(VLOOKUP($B20&$AC$4&AH$15,【進行】結果入力表!$Q$7:$V$150,3,FALSE)),"",VLOOKUP($B20&$AC$4&AH$15,【進行】結果入力表!$Q$7:$V$150,3,FALSE)) ->  | BQ20: =IF(ISERROR(VLOOKUP($B20&$AW$4&AR$15,【進行】結果入力表!$Q$7:$V$150,3,FALSE)),"",VLOOKUP($B20&$AW$4&AR$15,【進行】結果入力表!$Q$7:$V$150,3,FALSE)) ->  | BR20: =IF(ISERROR(VLOOKUP($B20&$AW$4&BB$15,【進行】結果入力表!$Q$7:$V$150,3,FALSE)),"",VLOOKUP($B20&$AW$4&BB$15,【進行】結果入力表!$Q$7:$V$150,3,FALSE)) ->  | BT20: 0 | BU20: 0 | BV20: 0 | BW20: 0 | BX20: 7 | BY20: 宮本 一 | BZ20: HRC | CA20: 0 | CC20: =COUNTIF(F20:BC20,"w") -> 5 | CD20: =COUNT(F20,N20,AH20,X20,AR20,BB20) -> 1 | CE20: =CC20*180+SUM(F20,N20,AH20,X20,AR20,BB20)*180/E20 -> 1030 | CF20: =CC20*100000+CE20 -> 501030 | CS20: 0
B21: =IF(【準備】登録!AK18=0,"",【準備】登録!AK18) -> 河地 恵里 | E21: =IF(【準備】登録!U12="","",【準備】登録!U12) -> 140 | F21: =IF(ISERROR(VLOOKUP($B21&$I$4&F$15,【進行】結果入力表!$Q$7:$V$150,2,FALSE)),"",VLOOKUP($B21&$I$4&F$15,【進行】結果入力表!$Q$7:$V$150,2,FALSE)) -> 113 | H21: 0 | I21: 1 | J21: 113 | L21: 145.2857143 | N21: =IF(ISERROR(VLOOKUP($B21&$I$4&N$15,【進行】結果入力表!$Q$7:$V$150,2,FALSE)),"",VLOOKUP($B21&$I$4&N$15,【進行】結果入力表!$Q$7:$V$150,2,FALSE)) -> W | P21: 1 | Q21: 0 | R21: 1 | S21: 1 | T21: 253 | V21: 325.2857143 | X21: =IF(ISERROR(VLOOKUP($B21&$AC$4&X$15,【進行】結果入力表!$Q$7:$V$150,2,FALSE)),"",VLOOKUP($B21&$AC$4&X$15,【進行】結果入力表!$Q$7:$V$150,2,FALSE)) -> W | Z21: 1 | AA21: 0 | AB21: 2 | AC21: 1 | AD21: 393 | AF21: 505.2857143 | AH21: =IF(ISERROR(VLOOKUP($B21&$AC$4&AH$15,【進行】結果入力表!$Q$7:$V$150,2,FALSE)),"",VLOOKUP($B21&$AC$4&AH$15,【進行】結果入力表!$Q$7:$V$150,2,FALSE)) -> W | AJ21: 1 | AK21: 0 | AL21: 3 | AM21: 1 | AN21: 533 | AP21: 685.2857143 | AR21: =IF(ISERROR(VLOOKUP($B21&$AW$4&AR$15,【進行】結果入力表!$Q$7:$V$150,2,FALSE)),"",VLOOKUP($B21&$AW$4&AR$15,【進行】結果入力表!$Q$7:$V$150,2,FALSE)) -> 79 | AT21: 0 | AU21: 1 | AV21: 3 | AW21: 2 | AX21: 612 | AZ21: 786.8571429 | BB21: =IF(ISERROR(VLOOKUP($B21&$AW$4&BB$15,【進行】結果入力表!$Q$7:$V$150,2,FALSE)),"",VLOOKUP($B21&$AW$4&BB$15,【進行】結果入力表!$Q$7:$V$150,2,FALSE)) -> W | BD21: 1 | BE21: 0 | BF21: 4 | BG21: 2 | BH21: 752 | BJ21: 966.8571429 | BL21: 3 | BM21: =IF(ISERROR(VLOOKUP($B21&$I$4&F$15,【進行】結果入力表!$Q$7:$V$150,3,FALSE)),"",VLOOKUP($B21&$I$4&F$15,【進行】結果入力表!$Q$7:$V$150,3,FALSE)) ->  | BN21: =IF(ISERROR(VLOOKUP($B21&$I$4&N$15,【進行】結果入力表!$Q$7:$V$150,3,FALSE)),"",VLOOKUP($B21&$I$4&N$15,【進行】結果入力表!$Q$7:$V$150,3,FALSE)) ->  | BO21: =IF(ISERROR(VLOOKUP($B21&$AC$4&X$15,【進行】結果入力表!$Q$7:$V$150,3,FALSE)),"",VLOOKUP($B21&$AC$4&X$15,【進行】結果入力表!$Q$7:$V$150,3,FALSE)) ->  | BP21: =IF(ISERROR(VLOOKUP($B21&$AC$4&AH$15,【進行】結果入力表!$Q$7:$V$150,3,FALSE)),"",VLOOKUP($B21&$AC$4&AH$15,【進行】結果入力表!$Q$7:$V$150,3,FALSE)) ->  | BQ21: =IF(ISERROR(VLOOKUP($B21&$AW$4&AR$15,【進行】結果入力表!$Q$7:$V$150,3,FALSE)),"",VLOOKUP($B21&$AW$4&AR$15,【進行】結果入力表!$Q$7:$V$150,3,FALSE)) ->  | BR21: =IF(ISERROR(VLOOKUP($B21&$AW$4&BB$15,【進行】結果入力表!$Q$7:$V$150,3,FALSE)),"",VLOOKUP($B21&$AW$4&BB$15,【進行】結果入力表!$Q$7:$V$150,3,FALSE)) ->  | BT21: 0 | BU21: 0 | BV21: 0 | BW21: 0 | BX21: 7 | BY21: 河地 恵里 | BZ21: HRC | CA21: 0 | CC21: =IF(B21="","",COUNTIF(F21:BC21,"w")) -> 4 | CD21: =IF(B21="","",COUNT(F21,N21,AH21,X21,AR21,BB21)) -> 2 | CE21: =IF(CC21="","",CC21*180+SUM(F21,N21,AH21,X21,AR21,BB21)*180/E21) -> 966.8571429 | CF21: =IF(B21="","",CC21*100000+CE21) -> 400966.8571 | CS21: =SUM(CM21:CR21) -> 0
B22: =IF(【準備】登録!AK19=0,"",【準備】登録!AK19) ->  | E22: =IF(【準備】登録!X12="","",【準備】登録!X12) ->  | F22: =IF(ISERROR(VLOOKUP($B22&$I$4&F$15,【進行】結果入力表!$Q$7:$V$150,2,FALSE)),"",VLOOKUP($B22&$I$4&F$15,【進行】結果入力表!$Q$7:$V$150,2,FALSE)) ->  | N22: =IF(ISERROR(VLOOKUP($B22&$I$4&N$15,【進行】結果入力表!$Q$7:$V$150,2,FALSE)),"",VLOOKUP($B22&$I$4&N$15,【進行】結果入力表!$Q$7:$V$150,2,FALSE)) ->  | X22: =IF(ISERROR(VLOOKUP($B22&$I$4&X$15,【進行】結果入力表!$Q$7:$V$150,2,FALSE)),"",VLOOKUP($B22&$I$4&X$15,【進行】結果入力表!$Q$7:$V$150,2,FALSE)) ->  | AH22: =IF(ISERROR(VLOOKUP($B22&$I$4&AH$15,【進行】結果入力表!$Q$7:$V$150,2,FALSE)),"",VLOOKUP($B22&$I$4&AH$15,【進行】結果入力表!$Q$7:$V$150,2,FALSE)) ->  | AR22: =IF(ISERROR(VLOOKUP($B22&$AW$4&AR$15,【進行】結果入力表!$Q$7:$V$150,2,FALSE)),"",VLOOKUP($B22&$AW$4&AR$15,【進行】結果入力表!$Q$7:$V$150,2,FALSE)) ->  | BB22: =IF(ISERROR(VLOOKUP($B22&$AW$4&BB$15,【進行】結果入力表!$Q$7:$V$150,2,FALSE)),"",VLOOKUP($B22&$AW$4&BB$15,【進行】結果入力表!$Q$7:$V$150,2,FALSE)) ->  | BM22: =IF(ISERROR(VLOOKUP($B22&$I$4&F$15,【進行】結果入力表!$Q$7:$V$150,3,FALSE)),"",VLOOKUP($B22&$I$4&F$15,【進行】結果入力表!$Q$7:$V$150,3,FALSE)) ->  | BN22: =IF(ISERROR(VLOOKUP($B22&$I$4&N$15,【進行】結果入力表!$Q$7:$V$150,3,FALSE)),"",VLOOKUP($B22&$I$4&N$15,【進行】結果入力表!$Q$7:$V$150,3,FALSE)) ->  | BO22: =IF(ISERROR(VLOOKUP($B22&$AC$4&X$15,【進行】結果入力表!$Q$7:$V$150,3,FALSE)),"",VLOOKUP($B22&$AC$4&X$15,【進行】結果入力表!$Q$7:$V$150,3,FALSE)) ->  | BP22: =IF(ISERROR(VLOOKUP($B22&$AC$4&AH$15,【進行】結果入力表!$Q$7:$V$150,3,FALSE)),"",VLOOKUP($B22&$AC$4&AH$15,【進行】結果入力表!$Q$7:$V$150,3,FALSE)) ->  | BQ22: =IF(ISERROR(VLOOKUP($B22&$AW$4&AR$15,【進行】結果入力表!$Q$7:$V$150,3,FALSE)),"",VLOOKUP($B22&$AW$4&AR$15,【進行】結果入力表!$Q$7:$V$150,3,FALSE)) ->  | BR22: =IF(ISERROR(VLOOKUP($B22&$AW$4&BB$15,【進行】結果入力表!$Q$7:$V$150,3,FALSE)),"",VLOOKUP($B22&$AW$4&BB$15,【進行】結果入力表!$Q$7:$V$150,3,FALSE)) ->  | BT22: 0 | BU22: 0 | BV22: 0 | BW22: 0 | BX22: 7 | BZ22: HRC | CA22: 0 | CC22: =IF(B22="","",COUNTIF(F22:BC22,"w")) ->  | CD22: =IF(B22="","",COUNT(F22,N22,AH22,X22,AR22,BB22)) ->  | CE22: =IF(CC22="","",CC22*180+SUM(F22,N22,AH22,X22,AR22,BB22)*180/E22) ->  | CF22: =IF(B22="","",CC22*100000+CE22) ->  | CS22: 0
B23: =IF(【準備】登録!AK20=0,"",【準備】登録!AK20) ->  | E23: =IF(【準備】登録!$Y$12="","",【準備】登録!AA12) ->  | F23: =IF(ISERROR(VLOOKUP($B23&$I$4&F$15,【進行】結果入力表!$Q$7:$V$150,2,FALSE)),"",VLOOKUP($B23&$I$4&F$15,【進行】結果入力表!$Q$7:$V$150,2,FALSE)) ->  | N23: =IF(ISERROR(VLOOKUP($B23&$I$4&N$15,【進行】結果入力表!$Q$7:$V$150,2,FALSE)),"",VLOOKUP($B23&$I$4&N$15,【進行】結果入力表!$Q$7:$V$150,2,FALSE)) ->  | X23: =IF(ISERROR(VLOOKUP($B23&$I$4&X$15,【進行】結果入力表!$Q$7:$V$150,2,FALSE)),"",VLOOKUP($B23&$I$4&X$15,【進行】結果入力表!$Q$7:$V$150,2,FALSE)) ->  | AH23: =IF(ISERROR(VLOOKUP($B23&$I$4&AH$15,【進行】結果入力表!$Q$7:$V$150,2,FALSE)),"",VLOOKUP($B23&$I$4&AH$15,【進行】結果入力表!$Q$7:$V$150,2,FALSE)) ->  | AR23: =IF(ISERROR(VLOOKUP($B23&$AW$4&AR$15,【進行】結果入力表!$Q$7:$V$150,2,FALSE)),"",VLOOKUP($B23&$AW$4&AR$15,【進行】結果入力表!$Q$7:$V$150,2,FALSE)) ->  | BB23: =IF(ISERROR(VLOOKUP($B23&$AW$4&BB$15,【進行】結果入力表!$Q$7:$V$150,2,FALSE)),"",VLOOKUP($B23&$AW$4&BB$15,【進行】結果入力表!$Q$7:$V$150,2,FALSE)) ->  | BM23: =IF(ISERROR(VLOOKUP($B23&$I$4&F$15,【進行】結果入力表!$Q$7:$V$150,3,FALSE)),"",VLOOKUP($B23&$I$4&F$15,【進行】結果入力表!$Q$7:$V$150,3,FALSE)) ->  | BN23: =IF(ISERROR(VLOOKUP($B23&$I$4&N$15,【進行】結果入力表!$Q$7:$V$150,3,FALSE)),"",VLOOKUP($B23&$I$4&N$15,【進行】結果入力表!$Q$7:$V$150,3,FALSE)) ->  | BO23: =IF(ISERROR(VLOOKUP($B23&$AC$4&X$15,【進行】結果入力表!$Q$7:$V$150,3,FALSE)),"",VLOOKUP($B23&$AC$4&X$15,【進行】結果入力表!$Q$7:$V$150,3,FALSE)) ->  | BP23: =IF(ISERROR(VLOOKUP($B23&$AC$4&AH$15,【進行】結果入力表!$Q$7:$V$150,3,FALSE)),"",VLOOKUP($B23&$AC$4&AH$15,【進行】結果入力表!$Q$7:$V$150,3,FALSE)) ->  | BQ23: =IF(ISERROR(VLOOKUP($B23&$AW$4&AR$15,【進行】結果入力表!$Q$7:$V$150,3,FALSE)),"",VLOOKUP($B23&$AW$4&AR$15,【進行】結果入力表!$Q$7:$V$150,3,FALSE)) ->  | BR23: =IF(ISERROR(VLOOKUP($B23&$AW$4&BB$15,【進行】結果入力表!$Q$7:$V$150,3,FALSE)),"",VLOOKUP($B23&$AW$4&BB$15,【進行】結果入力表!$Q$7:$V$150,3,FALSE)) ->  | BT23: 0 | BU23: 0 | BV23: 0 | BW23: 0 | BX23: 7 | BZ23: HRC | CA23: 0 | CC23: =IF(B23="","",COUNTIF(F23:BC23,"w")) ->  | CD23: =IF(B23="","",COUNT(F23,N23,AH23,X23,AR23,BB23)) ->  | CE23: =IF(CC23="","",CC23*180+SUM(F23,N23,AH23,X23,AR23,BB23)*180/E23) ->  | CF23: =IF(B23="","",CC23*100000+CE23) ->  | CS23: =SUM(CM23:CR23) -> 0
B24: Total | H24: =IF(COUNTBLANK(H16:H23)=8,"",SUM(H16:H23)) -> 2 | I24: =IF(COUNTBLANK(I16:I23)=8,"",SUM(I16:I23)) -> 4 | J24: =IF($B16="","",SUM(J16:J23)) -> 931 | K24: =IF($B16="","",SUM(K16:K23)) -> 0 | L24: =IF(COUNTBLANK(L16:L23)=8,"",SUM(L16:L23)) -> 963.2857143 | M24: =IF($B16="","",SUM(M16:M23)) -> 0 | P24: =SUM(P16:P23) -> 5 | Q24: =SUM(Q16:Q23) -> 1 | R24: =IF(COUNTBLANK(R16:R23)=8,"",SUM(H24,P24)) -> 7 | S24: =IF(COUNTBLANK(S16:S23)=8,"",SUM(I24,Q24)) -> 5 | T24: =IF($B16="","",SUM(T16:T23)) -> 1884 | U24: =IF($B16="","",SUM(U16:U23)) -> 0 | V24: =IF(COUNTBLANK(V16:V23)=8,"",SUM(V16:V23)) -> 1956.285714 | W24: =IF($B16="","",SUM(W16:W23)) -> 0 | Z24: =SUM(Z16:Z23) -> 2 | AA24: =SUM(AA16:AA23) -> 4 | AB24: =IF(COUNTBLANK(AB16:AB23)=8,"",SUM(R24,Z24)) -> 9 | AC24: =IF(COUNTBLANK(AC16:AC23)=8,"",SUM(S24,AA24)) -> 9 | AD24: =IF($B16="","",SUM(AD16:AD23)) -> 2813 | AE24: =IF($B16="","",SUM(AE16:AE23)) -> 0 | AF24: =IF(COUNTBLANK(AF16:AF23)=8,"",SUM(AF16:AF23)) -> 2925.285714 | AG24: =IF($B16="","",SUM(AG16:AG23)) -> 0 | AJ24: =SUM(AJ16:AJ23) -> 5 | AK24: =SUM(AK16:AK23) -> 1 | AL24: =IF(COUNTBLANK(AL16:AL23)=8,"",SUM(AB24,AJ24)) -> 14 | AM24: =IF(COUNTBLANK(AM16:AM23)=8,"",SUM(AC24,AK24)) -> 10 | AN24: =IF($B16="","",SUM(AN16:AN23)) -> 3749 | AO24: =IF($B16="","",SUM(AO16:AO23)) -> 0 | AP24: =IF(COUNTBLANK(AP16:AP23)=8,"",SUM(AP16:AP23)) -> 3901.285714 | AQ24: =IF($B16="","",SUM(AQ16:AQ23)) -> 0 | AT24: =SUM(AT16:AT23) -> 2 | AU24: =SUM(AU16:AU23) -> 4 | AV24: =IF(COUNTBLANK(AV16:AV23)=8,"",SUM(AL24,AT24)) -> 16 | AW24: =IF(COUNTBLANK(AW16:AW23)=8,"",SUM(AM24,AU24)) -> 14 | AX24: =IF($B16="","",SUM(AX16:AX23)) -> 4453 | AY24: =IF($B16="","",SUM(AY16:AY23)) -> 0 | AZ24: =IF(COUNTBLANK(AZ16:AZ23)=8,"",SUM(AZ16:AZ23)) -> 4627.857143 | BA24: =IF($B16="","",SUM(BA16:BA23)) -> 0 | BD24: =SUM(BD16:BD23) -> 5 | BE24: =SUM(BE16:BE23) -> 1 | BF24: =IF(COUNTBLANK(BF16:BF23)=8,"",SUM(AV24,BD24)) -> 21 | BG24: =IF(COUNTBLANK(BG16:BG23)=8,"",SUM(AW24,BE24)) -> 15 | BH24: =IF(COUNTIF(BH16:BI23,"")=16,"",SUM(BH16:BH23)) -> 5362 | BI24: =IF($B16="","",SUM(BI16:BI23)) -> 0 | BJ24: =IF(COUNTBLANK(BJ16:BJ23)=8,"",SUM(BJ16:BJ23)) -> 5576.857143 | BK24: =IF($B16="","",SUM(BK16:BK23)) -> 0 | BZ24: HRC | CC24: =SUM(CC16:CC23) -> 21 | CD24: =SUM(CD16:CD23) -> 15 | CE24: =SUM(CE16:CE23) -> 5576.857143 | CF24: =SUM(CF16:CF23) -> 2105576.857
A25: =IF(【準備】登録!B13="","",【準備】登録!B13) -> NRC | B25: =B5 -> 選手名 | E25: =E5 -> 持点 | F25: =A5 -> SBC | H25: W | I25: L | J25: TP | L25: TP | N25: =A15 -> HRC | P25: W | Q25: L | R25: W | S25: L | T25: TP | V25: TP | X25: =A5 -> SBC | Z25: W | AA25: L | AB25: W | AC25: L | AD25: TP | AF25: TP | AH25: =A15 -> HRC | AJ25: W | AK25: L | AL25: W | AM25: L | AN25: TP | AP25: TP | AR25: =A5 -> SBC | AT25: W | AU25: L | AV25: W | AW25: L | AX25: TP | AZ25: TP | BB25: =A15 -> HRC | BD25: W | BE25: L | BF25: W | BG25: L | BH25: TP | BJ25: TP | BL25: R | BM25: =BM$5 -> 1G | BN25: 2G | BO25: 3G | BP25: 4G | BQ25: 5G | BR25: 6G | CC25: =CC$5 -> W | CD25: =CD$5 -> L | CE25: =CE$5 -> TP | CF25: =CF$5 -> R_P
B26: =IF(【準備】登録!AK5=0,"",【準備】登録!AK5) -> 岩本 剛 | E26: =【準備】登録!F13 -> 180 | F26: =IF(ISERROR(VLOOKUP($B26&$I$4&F$25,【進行】結果入力表!$Q$7:$V$150,2,FALSE)),"",VLOOKUP($B26&$I$4&F$25,【進行】結果入力表!$Q$7:$V$150,2,FALSE)) -> 43 | H26: =IF(F26="","",IF(F26="w",1,0)) -> 0 | I26: =IF(F26="","",IF(F26="w",0,1)) -> 1 | J26: =IF(F26="","",IF(F26="w",E26,F26)) -> 43 | L26: =IF($F26="","",J26/$E26*180) -> 43 | N26: =IF(ISERROR(VLOOKUP($B26&$I$4&N$25,【進行】結果入力表!$Q$7:$V$150,2,FALSE)),"",VLOOKUP($B26&$I$4&N$25,【進行】結果入力表!$Q$7:$V$150,2,FALSE)) -> 152 | P26: =IF(N26="","",IF(N26="w",1,0)) -> 0 | Q26: =IF(N26="","",IF(N26="w",0,1)) -> 1 | R26: =IF(N26="","",SUM(H26,P26)) -> 0 | S26: =IF(N26="","",SUM(I26,Q26)) -> 2 | T26: =IF(N26="","",IF(N26="w",E26+J26,N26+J26)) -> 195 | V26: =IF($N26="","",T26/$E26*180) -> 195 | X26: =IF(ISERROR(VLOOKUP($B26&$AC$4&X$25,【進行】結果入力表!$Q$7:$V$150,2,FALSE)),"",VLOOKUP($B26&$AC$4&X$25,【進行】結果入力表!$Q$7:$V$150,2,FALSE)) -> 45 | Z26: =IF(X26="","",IF(X26="w",1,0)) -> 0 | AA26: =IF(X26="","",IF(X26="w",0,1)) -> 1 | AB26: =IF(X26="","",SUM(R26,Z26)) -> 0 | AC26: =IF(X26="","",SUM(S26,AA26)) -> 3 | AD26: =IF(X26="","",IF(X26="w",T26+E26,X26+T26)) -> 240 | AF26: =IF($X26="","",AD26/$E26*180) -> 240 | AH26: =IF(ISERROR(VLOOKUP($B26&$AC$4&AH$25,【進行】結果入力表!$Q$7:$V$150,2,FALSE)),"",VLOOKUP($B26&$AC$4&AH$25,【進行】結果入力表!$Q$7:$V$150,2,FALSE)) -> 16 | AJ26: =IF(AH26="","",IF(AH26="w",1,0)) -> 0 | AK26: =IF(AH26="","",IF(AH26="w",0,1)) -> 1 | AL26: =IF(AH26="","",SUM(AB26,AJ26)) -> 0 | AM26: =IF(AH26="","",SUM(AC26,AK26)) -> 4 | AN26: =IF(AH26="","",IF(AH26="w",AD26+E26,AH26+AD26)) -> 256 | AP26: =IF($AH26="","",AN26/$E26*180) -> 256 | AR26: =IF(ISERROR(VLOOKUP($B26&$AW$4&AR$25,【進行】結果入力表!$Q$7:$V$150,2,FALSE)),"",VLOOKUP($B26&$AW$4&AR$25,【進行】結果入力表!$Q$7:$V$150,2,FALSE)) -> W | AT26: =IF(AR26="","",IF(AR26="w",1,0)) -> 1 | AU26: =IF(AR26="","",IF(AR26="w",0,1)) -> 0 | AV26: =IF(AR26="","",IF(AR26="w",AL26+1,AL26)) -> 1 | AW26: =IF(AR26="","",IF(AR26="w",AM26,AM26+1)) -> 4 | AX26: =IF(AR26="","",IF(AR26="w",AN26+E26,AR26+AN26)) -> 436 | AZ26: =IF($AR26="","",AX26/$E26*180) -> 436 | BB26: =IF(ISERROR(VLOOKUP($B26&$AW$4&BB$25,【進行】結果入力表!$Q$7:$V$150,2,FALSE)),"",VLOOKUP($B26&$AW$4&BB$25,【進行】結果入力表!$Q$7:$V$150,2,FALSE)) -> W | BD26: =IF(BB26="","",IF(BB26="w",1,0)) -> 1 | BE26: =IF(BB26="","",IF(BB26="w",0,1)) -> 0 | BF26: =IF(BB26="","",IF(BB26="w",AV26+1,AV26)) -> 2 | BG26: =IF(BB26="","",IF(BB26="w",AW26,AW26+1)) -> 4 | BH26: =IF(BB26="","",IF(BB26="w",AX26+E26,BB26+AX26)) -> 616 | BJ26: =IF($BB26="","",BH26/$E26*180) -> 616 | BL26: =IF(SUM(H26:I26,R26:S26)=0,"",IF(B$13="",RANK($CF$26:$CF$32,$CF$26:$CF$32,0),RANK($CF$26:$CF$33,$CF$26:$CF$33,0))) -> 4 | BM26: =IF(ISERROR(VLOOKUP($B26&$I$4&F$25,【進行】結果入力表!$Q$7:$V$150,3,FALSE)),"",VLOOKUP($B26&$I$4&F$25,【進行】結果入力表!$Q$7:$V$150,3,FALSE)) ->  | BN26: =IF(ISERROR(VLOOKUP($B26&$I$4&N$25,【進行】結果入力表!$Q$7:$V$150,3,FALSE)),"",VLOOKUP($B26&$I$4&N$25,【進行】結果入力表!$Q$7:$V$150,3,FALSE)) -> 100 | BO26: =IF(ISERROR(VLOOKUP($B26&$AC$4&X$25,【進行】結果入力表!$Q$7:$V$150,3,FALSE)),"",VLOOKUP($B26&$AC$4&X$25,【進行】結果入力表!$Q$7:$V$150,3,FALSE)) ->  | BP26: =IF(ISERROR(VLOOKUP($B26&$AC$4&AH$25,【進行】結果入力表!$Q$7:$V$150,3,FALSE)),"",VLOOKUP($B26&$AC$4&AH$25,【進行】結果入力表!$Q$7:$V$150,3,FALSE)) ->  | BQ26: =IF(ISERROR(VLOOKUP($B26&$AW$4&AR$25,【進行】結果入力表!$Q$7:$V$150,3,FALSE)),"",VLOOKUP($B26&$AW$4&AR$25,【進行】結果入力表!$Q$7:$V$150,3,FALSE)) ->  | BR26: =IF(ISERROR(VLOOKUP($B26&$AW$4&BB$25,【進行】結果入力表!$Q$7:$V$150,3,FALSE)),"",VLOOKUP($B26&$AW$4&BB$25,【進行】結果入力表!$Q$7:$V$150,3,FALSE)) ->  | BT26: =COUNTIF($BM26:$BR26,BT$5) -> 0 | BU26: 0 | BV26: =MAX($BM26:$BR26) -> 100 | BW26: =BT26*10000+BU26*1000+BV26 -> 100 | BX26: =RANK(BW26,$BW$6:$BW$33) -> 6 | BY26: =B26 -> 岩本 剛 | BZ26: =$A$25 -> NRC | CA26: =IF(BT26>0,"A"&E26,IF(BU26>0,"B"&E26,BV26)) -> 100 | CC26: =COUNTIF(F26:BC26,"w") -> 2 | CD26: =COUNT(F26,N26,AH26,X26,AR26,BB26) -> 4 | CE26: =CC26*180+SUM(F26,N26,AH26,X26,AR26,BB26)*180/E26 -> 616 | CF26: =CC26*100000+CE26 -> 200616 | CS26: =SUM(CM26:CR26) -> 0
B27: =IF(【準備】登録!AK6=0,"",【準備】登録!AK6) -> 吉向 翔平 | E27: =【準備】登録!I13 -> 180 | F27: =IF(ISERROR(VLOOKUP($B27&$I$4&F$25,【進行】結果入力表!$Q$7:$V$150,2,FALSE)),"",VLOOKUP($B27&$I$4&F$25,【進行】結果入力表!$Q$7:$V$150,2,FALSE)) -> W | H27: 1 | I27: 0 | J27: 180 | L27: 180 | N27: =IF(ISERROR(VLOOKUP($B27&$I$4&N$25,【進行】結果入力表!$Q$7:$V$150,2,FALSE)),"",VLOOKUP($B27&$I$4&N$25,【進行】結果入力表!$Q$7:$V$150,2,FALSE)) -> 96 | P27: 0 | Q27: 1 | R27: 1 | S27: 1 | T27: 276 | V27: 276 | X27: =IF(ISERROR(VLOOKUP($B27&$AC$4&X$25,【進行】結果入力表!$Q$7:$V$150,2,FALSE)),"",VLOOKUP($B27&$AC$4&X$25,【進行】結果入力表!$Q$7:$V$150,2,FALSE)) -> 130 | Z27: 0 | AA27: 1 | AB27: 1 | AC27: 2 | AD27: 406 | AF27: 406 | AH27: =IF(ISERROR(VLOOKUP($B27&$AC$4&AH$25,【進行】結果入力表!$Q$7:$V$150,2,FALSE)),"",VLOOKUP($B27&$AC$4&AH$25,【進行】結果入力表!$Q$7:$V$150,2,FALSE)) -> W | AJ27: 1 | AK27: 0 | AL27: 2 | AM27: 2 | AN27: 586 | AP27: 586 | AR27: =IF(ISERROR(VLOOKUP($B27&$AW$4&AR$25,【進行】結果入力表!$Q$7:$V$150,2,FALSE)),"",VLOOKUP($B27&$AW$4&AR$25,【進行】結果入力表!$Q$7:$V$150,2,FALSE)) -> W | AT27: 1 | AU27: 0 | AV27: 3 | AW27: 2 | AX27: 766 | AZ27: 766 | BB27: =IF(ISERROR(VLOOKUP($B27&$AW$4&BB$25,【進行】結果入力表!$Q$7:$V$150,2,FALSE)),"",VLOOKUP($B27&$AW$4&BB$25,【進行】結果入力表!$Q$7:$V$150,2,FALSE)) -> 88 | BD27: 0 | BE27: 1 | BF27: 3 | BG27: 3 | BH27: 854 | BJ27: 854 | BL27: 2 | BM27: =IF(ISERROR(VLOOKUP($B27&$I$4&F$25,【進行】結果入力表!$Q$7:$V$150,3,FALSE)),"",VLOOKUP($B27&$I$4&F$25,【進行】結果入力表!$Q$7:$V$150,3,FALSE)) ->  | BN27: =IF(ISERROR(VLOOKUP($B27&$I$4&N$25,【進行】結果入力表!$Q$7:$V$150,3,FALSE)),"",VLOOKUP($B27&$I$4&N$25,【進行】結果入力表!$Q$7:$V$150,3,FALSE)) ->  | BO27: =IF(ISERROR(VLOOKUP($B27&$AC$4&X$25,【進行】結果入力表!$Q$7:$V$150,3,FALSE)),"",VLOOKUP($B27&$AC$4&X$25,【進行】結果入力表!$Q$7:$V$150,3,FALSE)) ->  | BP27: =IF(ISERROR(VLOOKUP($B27&$AC$4&AH$25,【進行】結果入力表!$Q$7:$V$150,3,FALSE)),"",VLOOKUP($B27&$AC$4&AH$25,【進行】結果入力表!$Q$7:$V$150,3,FALSE)) ->  | BQ27: =IF(ISERROR(VLOOKUP($B27&$AW$4&AR$25,【進行】結果入力表!$Q$7:$V$150,3,FALSE)),"",VLOOKUP($B27&$AW$4&AR$25,【進行】結果入力表!$Q$7:$V$150,3,FALSE)) ->  | BR27: =IF(ISERROR(VLOOKUP($B27&$AW$4&BB$25,【進行】結果入力表!$Q$7:$V$150,3,FALSE)),"",VLOOKUP($B27&$AW$4&BB$25,【進行】結果入力表!$Q$7:$V$150,3,FALSE)) ->  | BT27: 0 | BU27: 0 | BV27: 0 | BW27: 0 | BX27: 7 | BY27: 吉向 翔平 | BZ27: NRC | CA27: 0 | CC27: =COUNTIF(F27:BC27,"w") -> 3 | CD27: =COUNT(F27,N27,AH27,X27,AR27,BB27) -> 3 | CE27: =CC27*180+SUM(F27,N27,AH27,X27,AR27,BB27)*180/E27 -> 854 | CF27: =CC27*100000+CE27 -> 300854 | CS27: =SUM(CM27:CR27) -> 0
B28: =IF(【準備】登録!AK7=0,"",【準備】登録!AK7) -> 金澤 茂昌 | E28: =【準備】登録!L13 -> 180 | F28: =IF(ISERROR(VLOOKUP($B28&$I$4&F$25,【進行】結果入力表!$Q$7:$V$150,2,FALSE)),"",VLOOKUP($B28&$I$4&F$25,【進行】結果入力表!$Q$7:$V$150,2,FALSE)) -> W | H28: 1 | I28: 0 | J28: 180 | L28: 180 | N28: =IF(ISERROR(VLOOKUP($B28&$I$4&N$25,【進行】結果入力表!$Q$7:$V$150,2,FALSE)),"",VLOOKUP($B28&$I$4&N$25,【進行】結果入力表!$Q$7:$V$150,2,FALSE)) -> W | P28: 1 | Q28: 0 | R28: 2 | S28: 0 | T28: 360 | V28: 360 | X28: =IF(ISERROR(VLOOKUP($B28&$AC$4&X$25,【進行】結果入力表!$Q$7:$V$150,2,FALSE)),"",VLOOKUP($B28&$AC$4&X$25,【進行】結果入力表!$Q$7:$V$150,2,FALSE)) -> W | Z28: 1 | AA28: 0 | AB28: 3 | AC28: 0 | AD28: 540 | AF28: 540 | AH28: =IF(ISERROR(VLOOKUP($B28&$AC$4&AH$25,【進行】結果入力表!$Q$7:$V$150,2,FALSE)),"",VLOOKUP($B28&$AC$4&AH$25,【進行】結果入力表!$Q$7:$V$150,2,FALSE)) -> 102 | AJ28: 0 | AK28: 1 | AL28: 3 | AM28: 1 | AN28: 642 | AP28: 642 | AR28: =IF(ISERROR(VLOOKUP($B28&$AW$4&AR$25,【進行】結果入力表!$Q$7:$V$150,2,FALSE)),"",VLOOKUP($B28&$AW$4&AR$25,【進行】結果入力表!$Q$7:$V$150,2,FALSE)) -> 70 | AT28: 0 | AU28: 1 | AV28: 3 | AW28: 2 | AX28: 712 | AZ28: 712 | BB28: =IF(ISERROR(VLOOKUP($B28&$AW$4&BB$25,【進行】結果入力表!$Q$7:$V$150,2,FALSE)),"",VLOOKUP($B28&$AW$4&BB$25,【進行】結果入力表!$Q$7:$V$150,2,FALSE)) -> 147 | BD28: 0 | BE28: 1 | BF28: 3 | BG28: 3 | BH28: 859 | BJ28: 859 | BL28: 1 | BM28: =IF(ISERROR(VLOOKUP($B28&$I$4&F$25,【進行】結果入力表!$Q$7:$V$150,3,FALSE)),"",VLOOKUP($B28&$I$4&F$25,【進行】結果入力表!$Q$7:$V$150,3,FALSE)) ->  | BN28: =IF(ISERROR(VLOOKUP($B28&$I$4&N$25,【進行】結果入力表!$Q$7:$V$150,3,FALSE)),"",VLOOKUP($B28&$I$4&N$25,【進行】結果入力表!$Q$7:$V$150,3,FALSE)) ->  | BO28: =IF(ISERROR(VLOOKUP($B28&$AC$4&X$25,【進行】結果入力表!$Q$7:$V$150,3,FALSE)),"",VLOOKUP($B28&$AC$4&X$25,【進行】結果入力表!$Q$7:$V$150,3,FALSE)) ->  | BP28: =IF(ISERROR(VLOOKUP($B28&$AC$4&AH$25,【進行】結果入力表!$Q$7:$V$150,3,FALSE)),"",VLOOKUP($B28&$AC$4&AH$25,【進行】結果入力表!$Q$7:$V$150,3,FALSE)) ->  | BQ28: =IF(ISERROR(VLOOKUP($B28&$AW$4&AR$25,【進行】結果入力表!$Q$7:$V$150,3,FALSE)),"",VLOOKUP($B28&$AW$4&AR$25,【進行】結果入力表!$Q$7:$V$150,3,FALSE)) ->  | BR28: =IF(ISERROR(VLOOKUP($B28&$AW$4&BB$25,【進行】結果入力表!$Q$7:$V$150,3,FALSE)),"",VLOOKUP($B28&$AW$4&BB$25,【進行】結果入力表!$Q$7:$V$150,3,FALSE)) ->  | BT28: 0 | BU28: 0 | BV28: 0 | BW28: 0 | BX28: 7 | BY28: 金澤 茂昌 | BZ28: NRC | CA28: 0 | CC28: =COUNTIF(F28:BC28,"w") -> 3 | CD28: =COUNT(F28,N28,AH28,X28,AR28,BB28) -> 3 | CE28: =CC28*180+SUM(F28,N28,AH28,X28,AR28,BB28)*180/E28 -> 859 | CF28: =CC28*100000+CE28 -> 300859 | CS28: 0
B29: =IF(【準備】登録!AK8=0,"",【準備】登録!AK8) -> 植田 慎也 | E29: =【準備】登録!O13 -> 180 | F29: =IF(ISERROR(VLOOKUP($B29&$I$4&F$25,【進行】結果入力表!$Q$7:$V$150,2,FALSE)),"",VLOOKUP($B29&$I$4&F$25,【進行】結果入力表!$Q$7:$V$150,2,FALSE)) -> 39 | H29: 0 | I29: 1 | J29: 39 | L29: 39 | N29: =IF(ISERROR(VLOOKUP($B29&$I$4&N$25,【進行】結果入力表!$Q$7:$V$150,2,FALSE)),"",VLOOKUP($B29&$I$4&N$25,【進行】結果入力表!$Q$7:$V$150,2,FALSE)) -> 136 | P29: 0 | Q29: 1 | R29: 0 | S29: 2 | T29: 175 | V29: 175 | X29: =IF(ISERROR(VLOOKUP($B29&$AC$4&X$25,【進行】結果入力表!$Q$7:$V$150,2,FALSE)),"",VLOOKUP($B29&$AC$4&X$25,【進行】結果入力表!$Q$7:$V$150,2,FALSE)) -> W | Z29: 1 | AA29: 0 | AB29: 1 | AC29: 2 | AD29: 355 | AF29: 355 | AH29: =IF(ISERROR(VLOOKUP($B29&$AC$4&AH$25,【進行】結果入力表!$Q$7:$V$150,2,FALSE)),"",VLOOKUP($B29&$AC$4&AH$25,【進行】結果入力表!$Q$7:$V$150,2,FALSE)) -> 56 | AJ29: 0 | AK29: 1 | AL29: 1 | AM29: 3 | AN29: 411 | AP29: 411 | AR29: =IF(ISERROR(VLOOKUP($B29&$AW$4&AR$25,【進行】結果入力表!$Q$7:$V$150,2,FALSE)),"",VLOOKUP($B29&$AW$4&AR$25,【進行】結果入力表!$Q$7:$V$150,2,FALSE)) -> W | AT29: 1 | AU29: 0 | AV29: 2 | AW29: 3 | AX29: 591 | AZ29: 591 | BB29: =IF(ISERROR(VLOOKUP($B29&$AW$4&BB$25,【進行】結果入力表!$Q$7:$V$150,2,FALSE)),"",VLOOKUP($B29&$AW$4&BB$25,【進行】結果入力表!$Q$7:$V$150,2,FALSE)) -> 83 | BD29: 0 | BE29: 1 | BF29: 2 | BG29: 4 | BH29: 674 | BJ29: 674 | BL29: 3 | BM29: =IF(ISERROR(VLOOKUP($B29&$I$4&F$25,【進行】結果入力表!$Q$7:$V$150,3,FALSE)),"",VLOOKUP($B29&$I$4&F$25,【進行】結果入力表!$Q$7:$V$150,3,FALSE)) ->  | BN29: =IF(ISERROR(VLOOKUP($B29&$I$4&N$25,【進行】結果入力表!$Q$7:$V$150,3,FALSE)),"",VLOOKUP($B29&$I$4&N$25,【進行】結果入力表!$Q$7:$V$150,3,FALSE)) ->  | BO29: =IF(ISERROR(VLOOKUP($B29&$AC$4&X$25,【進行】結果入力表!$Q$7:$V$150,3,FALSE)),"",VLOOKUP($B29&$AC$4&X$25,【進行】結果入力表!$Q$7:$V$150,3,FALSE)) ->  | BP29: =IF(ISERROR(VLOOKUP($B29&$AC$4&AH$25,【進行】結果入力表!$Q$7:$V$150,3,FALSE)),"",VLOOKUP($B29&$AC$4&AH$25,【進行】結果入力表!$Q$7:$V$150,3,FALSE)) ->  | BQ29: =IF(ISERROR(VLOOKUP($B29&$AW$4&AR$25,【進行】結果入力表!$Q$7:$V$150,3,FALSE)),"",VLOOKUP($B29&$AW$4&AR$25,【進行】結果入力表!$Q$7:$V$150,3,FALSE)) -> 102 | BR29: =IF(ISERROR(VLOOKUP($B29&$AW$4&BB$25,【進行】結果入力表!$Q$7:$V$150,3,FALSE)),"",VLOOKUP($B29&$AW$4&BB$25,【進行】結果入力表!$Q$7:$V$150,3,FALSE)) ->  | BT29: 0 | BU29: 0 | BV29: 102 | BW29: 102 | BX29: 5 | BY29: 植田 慎也 | BZ29: NRC | CA29: 102 | CC29: =COUNTIF(F29:BC29,"w") -> 2 | CD29: =COUNT(F29,N29,AH29,X29,AR29,BB29) -> 4 | CE29: =CC29*180+SUM(F29,N29,AH29,X29,AR29,BB29)*180/E29 -> 674 | CF29: =CC29*100000+CE29 -> 200674 | CS29: 0
B30: =IF(【準備】登録!AK9=0,"",【準備】登録!AK9) -> 長谷川 進 | E30: =【準備】登録!R13 -> 180 | F30: =IF(ISERROR(VLOOKUP($B30&$I$4&F$25,【進行】結果入力表!$Q$7:$V$150,2,FALSE)),"",VLOOKUP($B30&$I$4&F$25,【進行】結果入力表!$Q$7:$V$150,2,FALSE)) -> 153 | H30: 0 | I30: 1 | J30: 153 | L30: 153 | N30: =IF(ISERROR(VLOOKUP($B30&$I$4&N$25,【進行】結果入力表!$Q$7:$V$150,2,FALSE)),"",VLOOKUP($B30&$I$4&N$25,【進行】結果入力表!$Q$7:$V$150,2,FALSE)) -> 40 | P30: 0 | Q30: 1 | R30: 0 | S30: 2 | T30: 193 | V30: 193 | X30: =IF(ISERROR(VLOOKUP($B30&$AC$4&X$25,【進行】結果入力表!$Q$7:$V$150,2,FALSE)),"",VLOOKUP($B30&$AC$4&X$25,【進行】結果入力表!$Q$7:$V$150,2,FALSE)) -> 45 | Z30: 0 | AA30: 1 | AB30: 0 | AC30: 3 | AD30: 238 | AF30: 238 | AH30: =IF(ISERROR(VLOOKUP($B30&$AC$4&AH$25,【進行】結果入力表!$Q$7:$V$150,2,FALSE)),"",VLOOKUP($B30&$AC$4&AH$25,【進行】結果入力表!$Q$7:$V$150,2,FALSE)) -> 110 | AJ30: 0 | AK30: 1 | AL30: 0 | AM30: 4 | AN30: 348 | AP30: 348 | AR30: =IF(ISERROR(VLOOKUP($B30&$AW$4&AR$25,【進行】結果入力表!$Q$7:$V$150,2,FALSE)),"",VLOOKUP($B30&$AW$4&AR$25,【進行】結果入力表!$Q$7:$V$150,2,FALSE)) -> 113 | AT30: 0 | AU30: 1 | AV30: 0 | AW30: 5 | AX30: 461 | AZ30: 461 | BB30: =IF(ISERROR(VLOOKUP($B30&$AW$4&BB$25,【進行】結果入力表!$Q$7:$V$150,2,FALSE)),"",VLOOKUP($B30&$AW$4&BB$25,【進行】結果入力表!$Q$7:$V$150,2,FALSE)) -> 118 | BD30: 0 | BE30: 1 | BF30: 0 | BG30: 6 | BH30: 579 | BJ30: 579 | BL30: 6 | BM30: =IF(ISERROR(VLOOKUP($B30&$I$4&F$25,【進行】結果入力表!$Q$7:$V$150,3,FALSE)),"",VLOOKUP($B30&$I$4&F$25,【進行】結果入力表!$Q$7:$V$150,3,FALSE)) ->  | BN30: =IF(ISERROR(VLOOKUP($B30&$I$4&N$25,【進行】結果入力表!$Q$7:$V$150,3,FALSE)),"",VLOOKUP($B30&$I$4&N$25,【進行】結果入力表!$Q$7:$V$150,3,FALSE)) ->  | BO30: =IF(ISERROR(VLOOKUP($B30&$AC$4&X$25,【進行】結果入力表!$Q$7:$V$150,3,FALSE)),"",VLOOKUP($B30&$AC$4&X$25,【進行】結果入力表!$Q$7:$V$150,3,FALSE)) ->  | BP30: =IF(ISERROR(VLOOKUP($B30&$AC$4&AH$25,【進行】結果入力表!$Q$7:$V$150,3,FALSE)),"",VLOOKUP($B30&$AC$4&AH$25,【進行】結果入力表!$Q$7:$V$150,3,FALSE)) ->  | BQ30: =IF(ISERROR(VLOOKUP($B30&$AW$4&AR$25,【進行】結果入力表!$Q$7:$V$150,3,FALSE)),"",VLOOKUP($B30&$AW$4&AR$25,【進行】結果入力表!$Q$7:$V$150,3,FALSE)) ->  | BR30: =IF(ISERROR(VLOOKUP($B30&$AW$4&BB$25,【進行】結果入力表!$Q$7:$V$150,3,FALSE)),"",VLOOKUP($B30&$AW$4&BB$25,【進行】結果入力表!$Q$7:$V$150,3,FALSE)) ->  | BT30: 0 | BU30: 0 | BV30: 0 | BW30: 0 | BX30: 7 | BY30: 長谷川 進 | BZ30: NRC | CA30: 0 | CC30: =COUNTIF(F30:BC30,"w") -> 0 | CD30: =COUNT(F30,N30,AH30,X30,AR30,BB30) -> 6 | CE30: =CC30*180+SUM(F30,N30,AH30,X30,AR30,BB30)*180/E30 -> 579 | CF30: =CC30*100000+CE30 -> 579 | CS30: 0
B31: =IF(【準備】登録!AK10=0,"",【準備】登録!AK10) -> 宮野 早織 | E31: =IF(【準備】登録!U13="","",【準備】登録!U13) -> 140 | F31: =IF(ISERROR(VLOOKUP($B31&$I$4&F$25,【進行】結果入力表!$Q$7:$V$150,2,FALSE)),"",VLOOKUP($B31&$I$4&F$25,【進行】結果入力表!$Q$7:$V$150,2,FALSE)) -> W | H31: 1 | I31: 0 | J31: 140 | L31: 180 | N31: =IF(ISERROR(VLOOKUP($B31&$I$4&N$25,【進行】結果入力表!$Q$7:$V$150,2,FALSE)),"",VLOOKUP($B31&$I$4&N$25,【進行】結果入力表!$Q$7:$V$150,2,FALSE)) -> 17 | P31: 0 | Q31: 1 | R31: 1 | S31: 1 | T31: 157 | V31: 201.8571429 | X31: =IF(ISERROR(VLOOKUP($B31&$AC$4&X$25,【進行】結果入力表!$Q$7:$V$150,2,FALSE)),"",VLOOKUP($B31&$AC$4&X$25,【進行】結果入力表!$Q$7:$V$150,2,FALSE)) -> 102 | Z31: 0 | AA31: 1 | AB31: 1 | AC31: 2 | AD31: 259 | AF31: 333 | AH31: =IF(ISERROR(VLOOKUP($B31&$AC$4&AH$25,【進行】結果入力表!$Q$7:$V$150,2,FALSE)),"",VLOOKUP($B31&$AC$4&AH$25,【進行】結果入力表!$Q$7:$V$150,2,FALSE)) -> 56 | AJ31: 0 | AK31: 1 | AL31: 1 | AM31: 3 | AN31: 315 | AP31: 405 | AR31: =IF(ISERROR(VLOOKUP($B31&$AW$4&AR$25,【進行】結果入力表!$Q$7:$V$150,2,FALSE)),"",VLOOKUP($B31&$AW$4&AR$25,【進行】結果入力表!$Q$7:$V$150,2,FALSE)) -> 98 | AT31: 0 | AU31: 1 | AV31: 1 | AW31: 4 | AX31: 413 | AZ31: 531 | BB31: =IF(ISERROR(VLOOKUP($B31&$AW$4&BB$25,【進行】結果入力表!$Q$7:$V$150,2,FALSE)),"",VLOOKUP($B31&$AW$4&BB$25,【進行】結果入力表!$Q$7:$V$150,2,FALSE)) -> 55 | BD31: 0 | BE31: 1 | BF31: 1 | BG31: 5 | BH31: 468 | BJ31: 601.7142857 | BL31: 5 | BM31: =IF(ISERROR(VLOOKUP($B31&$I$4&F$25,【進行】結果入力表!$Q$7:$V$150,3,FALSE)),"",VLOOKUP($B31&$I$4&F$25,【進行】結果入力表!$Q$7:$V$150,3,FALSE)) ->  | BN31: =IF(ISERROR(VLOOKUP($B31&$I$4&N$25,【進行】結果入力表!$Q$7:$V$150,3,FALSE)),"",VLOOKUP($B31&$I$4&N$25,【進行】結果入力表!$Q$7:$V$150,3,FALSE)) ->  | BO31: =IF(ISERROR(VLOOKUP($B31&$AC$4&X$25,【進行】結果入力表!$Q$7:$V$150,3,FALSE)),"",VLOOKUP($B31&$AC$4&X$25,【進行】結果入力表!$Q$7:$V$150,3,FALSE)) ->  | BP31: =IF(ISERROR(VLOOKUP($B31&$AC$4&AH$25,【進行】結果入力表!$Q$7:$V$150,3,FALSE)),"",VLOOKUP($B31&$AC$4&AH$25,【進行】結果入力表!$Q$7:$V$150,3,FALSE)) ->  | BQ31: =IF(ISERROR(VLOOKUP($B31&$AW$4&AR$25,【進行】結果入力表!$Q$7:$V$150,3,FALSE)),"",VLOOKUP($B31&$AW$4&AR$25,【進行】結果入力表!$Q$7:$V$150,3,FALSE)) ->  | BR31: =IF(ISERROR(VLOOKUP($B31&$AW$4&BB$25,【進行】結果入力表!$Q$7:$V$150,3,FALSE)),"",VLOOKUP($B31&$AW$4&BB$25,【進行】結果入力表!$Q$7:$V$150,3,FALSE)) ->  | BT31: 0 | BU31: 0 | BV31: 0 | BW31: 0 | BX31: 7 | BY31: 宮野 早織 | BZ31: NRC | CA31: 0 | CC31: =IF(B31="","",COUNTIF(F31:BC31,"w")) -> 1 | CD31: =IF(B31="","",COUNT(F31,N31,AH31,X31,AR31,BB31)) -> 5 | CE31: =IF(CC31="","",CC31*180+SUM(F31,N31,AH31,X31,AR31,BB31)*180/E31) -> 601.7142857 | CF31: =IF(B31="","",CC31*100000+CE31) -> 100601.7143 | CM31: =【結果】リーグ成績表!M30 -> 116 | CN31: =【結果】リーグ成績表!M31 -> W | CO31: =【結果】リーグ成績表!AI30 -> W | CP31: =【結果】リーグ成績表!AI31 -> W | CQ31: =【結果】リーグ成績表!BE30 -> W | CR31: =【結果】リーグ成績表!BE31 -> W | CS31: =SUM(CM31:CR31) -> 116
B32: =IF(【準備】登録!AK11=0,"",【準備】登録!AK11) ->  | E32: =IF(【準備】登録!X13="","",【準備】登録!X13) ->  | F32: =IF(ISERROR(VLOOKUP($B32&$I$4&F$25,【進行】結果入力表!$Q$7:$V$150,2,FALSE)),"",VLOOKUP($B32&$I$4&F$25,【進行】結果入力表!$Q$7:$V$150,2,FALSE)) ->  | N32: =IF(ISERROR(VLOOKUP($B32&$I$4&N$25,【進行】結果入力表!$Q$7:$V$150,2,FALSE)),"",VLOOKUP($B32&$I$4&N$25,【進行】結果入力表!$Q$7:$V$150,2,FALSE)) ->  | X32: =IF(ISERROR(VLOOKUP($B32&$AC$4&X$25,【進行】結果入力表!$Q$7:$V$150,2,FALSE)),"",VLOOKUP($B32&$AC$4&X$25,【進行】結果入力表!$Q$7:$V$150,2,FALSE)) ->  | AH32: =IF(ISERROR(VLOOKUP($B32&$AC$4&AH$25,【進行】結果入力表!$Q$7:$V$150,2,FALSE)),"",VLOOKUP($B32&$AC$4&AH$25,【進行】結果入力表!$Q$7:$V$150,2,FALSE)) ->  | AR32: =IF(ISERROR(VLOOKUP($B32&$AW$4&AR$25,【進行】結果入力表!$Q$7:$V$150,2,FALSE)),"",VLOOKUP($B32&$AW$4&AR$25,【進行】結果入力表!$Q$7:$V$150,2,FALSE)) ->  | BB32: =IF(ISERROR(VLOOKUP($B32&$AW$4&BB$25,【進行】結果入力表!$Q$7:$V$150,2,FALSE)),"",VLOOKUP($B32&$AW$4&BB$25,【進行】結果入力表!$Q$7:$V$150,2,FALSE)) ->  | BM32: =IF(ISERROR(VLOOKUP($B32&$I$4&F$25,【進行】結果入力表!$Q$7:$V$150,3,FALSE)),"",VLOOKUP($B32&$I$4&F$25,【進行】結果入力表!$Q$7:$V$150,3,FALSE)) ->  | BN32: =IF(ISERROR(VLOOKUP($B32&$I$4&N$25,【進行】結果入力表!$Q$7:$V$150,3,FALSE)),"",VLOOKUP($B32&$I$4&N$25,【進行】結果入力表!$Q$7:$V$150,3,FALSE)) ->  | BO32: =IF(ISERROR(VLOOKUP($B32&$AC$4&X$25,【進行】結果入力表!$Q$7:$V$150,3,FALSE)),"",VLOOKUP($B32&$AC$4&X$25,【進行】結果入力表!$Q$7:$V$150,3,FALSE)) ->  | BP32: =IF(ISERROR(VLOOKUP($B32&$AC$4&AH$25,【進行】結果入力表!$Q$7:$V$150,3,FALSE)),"",VLOOKUP($B32&$AC$4&AH$25,【進行】結果入力表!$Q$7:$V$150,3,FALSE)) ->  | BQ32: =IF(ISERROR(VLOOKUP($B32&$AW$4&AR$25,【進行】結果入力表!$Q$7:$V$150,3,FALSE)),"",VLOOKUP($B32&$AW$4&AR$25,【進行】結果入力表!$Q$7:$V$150,3,FALSE)) ->  | BR32: =IF(ISERROR(VLOOKUP($B32&$AW$4&BB$25,【進行】結果入力表!$Q$7:$V$150,3,FALSE)),"",VLOOKUP($B32&$AW$4&BB$25,【進行】結果入力表!$Q$7:$V$150,3,FALSE)) ->  | BT32: 0 | BU32: 0 | BV32: 0 | BW32: 0 | BX32: 7 | BZ32: NRC | CA32: 0 | CC32: =IF(B32="","",COUNTIF(F32:BC32,"w")) ->  | CD32: =IF(B32="","",COUNT(F32,N32,AH32,X32,AR32,BB32)) ->  | CE32: =IF(CC32="","",CC32*180+SUM(F32,N32,AH32,X32,AR32,BB32)*180/E32) ->  | CF32: =IF(B32="","",CC32*100000+CE32) ->  | CS32: 0
B33: =IF(【準備】登録!AK12=0,"",【準備】登録!AK12) ->  | E33: =IF(【準備】登録!$Y$13="","",【準備】登録!AA13) ->  | F33: =IF(ISERROR(VLOOKUP($B33&$I$4&F$25,【進行】結果入力表!$Q$7:$V$150,2,FALSE)),"",VLOOKUP($B33&$I$4&F$25,【進行】結果入力表!$Q$7:$V$150,2,FALSE)) ->  | N33: =IF(ISERROR(VLOOKUP($B33&$I$4&N$25,【進行】結果入力表!$Q$7:$V$150,2,FALSE)),"",VLOOKUP($B33&$I$4&N$25,【進行】結果入力表!$Q$7:$V$150,2,FALSE)) ->  | X33: =IF(ISERROR(VLOOKUP($B33&$AC$4&X$25,【進行】結果入力表!$Q$7:$V$150,2,FALSE)),"",VLOOKUP($B33&$AC$4&X$25,【進行】結果入力表!$Q$7:$V$150,2,FALSE)) ->  | AH33: =IF(ISERROR(VLOOKUP($B33&$AC$4&AH$25,【進行】結果入力表!$Q$7:$V$150,2,FALSE)),"",VLOOKUP($B33&$AC$4&AH$25,【進行】結果入力表!$Q$7:$V$150,2,FALSE)) ->  | AR33: =IF(ISERROR(VLOOKUP($B33&$AW$4&AR$25,【進行】結果入力表!$Q$7:$V$150,2,FALSE)),"",VLOOKUP($B33&$AW$4&AR$25,【進行】結果入力表!$Q$7:$V$150,2,FALSE)) ->  | BB33: =IF(ISERROR(VLOOKUP($B33&$AW$4&BB$25,【進行】結果入力表!$Q$7:$V$150,2,FALSE)),"",VLOOKUP($B33&$AW$4&BB$25,【進行】結果入力表!$Q$7:$V$150,2,FALSE)) ->  | BM33: =IF(ISERROR(VLOOKUP($B33&$I$4&F$25,【進行】結果入力表!$Q$7:$V$150,3,FALSE)),"",VLOOKUP($B33&$I$4&F$25,【進行】結果入力表!$Q$7:$V$150,3,FALSE)) ->  | BN33: =IF(ISERROR(VLOOKUP($B33&$I$4&N$25,【進行】結果入力表!$Q$7:$V$150,3,FALSE)),"",VLOOKUP($B33&$I$4&N$25,【進行】結果入力表!$Q$7:$V$150,3,FALSE)) ->  | BO33: =IF(ISERROR(VLOOKUP($B33&$AC$4&X$25,【進行】結果入力表!$Q$7:$V$150,3,FALSE)),"",VLOOKUP($B33&$AC$4&X$25,【進行】結果入力表!$Q$7:$V$150,3,FALSE)) ->  | BP33: =IF(ISERROR(VLOOKUP($B33&$AC$4&AH$25,【進行】結果入力表!$Q$7:$V$150,3,FALSE)),"",VLOOKUP($B33&$AC$4&AH$25,【進行】結果入力表!$Q$7:$V$150,3,FALSE)) ->  | BQ33: =IF(ISERROR(VLOOKUP($B33&$AW$4&AR$25,【進行】結果入力表!$Q$7:$V$150,3,FALSE)),"",VLOOKUP($B33&$AW$4&AR$25,【進行】結果入力表!$Q$7:$V$150,3,FALSE)) ->  | BR33: =IF(ISERROR(VLOOKUP($B33&$AW$4&BB$25,【進行】結果入力表!$Q$7:$V$150,3,FALSE)),"",VLOOKUP($B33&$AW$4&BB$25,【進行】結果入力表!$Q$7:$V$150,3,FALSE)) ->  | BT33: 0 | BU33: 0 | BV33: 0 | BW33: 0 | BX33: 7 | BZ33: NRC | CA33: 0 | CC33: =IF(B33="","",COUNTIF(F33:BC33,"w")) ->  | CD33: =IF(B33="","",COUNT(F33,N33,AH33,X33,AR33,BB33)) ->  | CE33: =IF(CC33="","",CC33*180+SUM(F33,N33,AH33,X33,AR33,BB33)*180/E33) ->  | CF33: =IF(B33="","",CC33*100000+CE33) ->  | CS33: =SUM(CM33:CR33) -> 0
B34: Total | H34: =IF(COUNTBLANK(H26:H33)=8,"",SUM(H26:H33)) -> 3 | I34: =IF(COUNTBLANK(I26:I33)=8,"",SUM(I26:I33)) -> 3 | J34: =IF($B26="","",SUM(J26:J33)) -> 735 | K34: =IF($B26="","",SUM(K26:K33)) -> 0 | L34: =IF(COUNTBLANK(L26:L33)=8,"",SUM(L26:L33)) -> 775 | M34: =IF($B26="","",SUM(M26:M33)) -> 0 | P34: =SUM(P26:P33) -> 1 | Q34: =SUM(Q26:Q33) -> 5 | R34: =IF(COUNTBLANK(R26:R33)=8,"",SUM(H34,P34)) -> 4 | S34: =IF(COUNTBLANK(S26:S33)=8,"",SUM(I34,Q34)) -> 8 | T34: =IF($B26="","",SUM(T26:T33)) -> 1356 | U34: =IF($B26="","",SUM(U26:U33)) -> 0 | V34: =IF(COUNTBLANK(V26:V33)=8,"",SUM(V26:V33)) -> 1400.857143 | W34: =IF($B26="","",SUM(W26:W33)) -> 0 | Z34: =SUM(Z26:Z33) -> 2 | AA34: =SUM(AA26:AA33) -> 4 | AB34: =IF(COUNTBLANK(AB26:AB33)=8,"",SUM(R34,Z34)) -> 6 | AC34: =IF(COUNTBLANK(AC26:AC33)=8,"",SUM(S34,AA34)) -> 12 | AD34: =IF($B26="","",SUM(AD26:AD33)) -> 2038 | AE34: =IF($B26="","",SUM(AE26:AE33)) -> 0 | AF34: =IF(COUNTBLANK(AF26:AF33)=8,"",SUM(AF26:AF33)) -> 2112 | AG34: =IF($B26="","",SUM(AG26:AG33)) -> 0 | AJ34: =SUM(AJ26:AJ33) -> 1 | AK34: =SUM(AK26:AK33) -> 5 | AL34: =IF(COUNTBLANK(AL26:AL33)=8,"",SUM(AB34,AJ34)) -> 7 | AM34: =IF(COUNTBLANK(AM26:AM33)=8,"",SUM(AC34,AK34)) -> 17 | AN34: =IF($B26="","",SUM(AN26:AN33)) -> 2558 | AO34: =IF($B26="","",SUM(AO26:AO33)) -> 0 | AP34: =IF(COUNTBLANK(AP26:AP33)=8,"",SUM(AP26:AP33)) -> 2648 | AQ34: =IF($B26="","",SUM(AQ26:AQ33)) -> 0 | AT34: =SUM(AT26:AT33) -> 3 | AU34: =SUM(AU26:AU33) -> 3 | AV34: =IF(COUNTBLANK(AV26:AV33)=8,"",SUM(AL34,AT34)) -> 10 | AW34: =IF(COUNTBLANK(AW26:AW33)=8,"",SUM(AM34,AU34)) -> 20 | AX34: =IF($B26="","",SUM(AX26:AX33)) -> 3379 | AY34: =IF($B26="","",SUM(AY26:AY33)) -> 0 | AZ34: =IF(COUNTBLANK(AZ26:AZ33)=8,"",SUM(AZ26:AZ33)) -> 3497 | BA34: =IF($B26="","",SUM(BA26:BA33)) -> 0 | BD34: =SUM(BD26:BD33) -> 1 | BE34: =SUM(BE26:BE33) -> 5 | BF34: =IF(COUNTBLANK(BF26:BF33)=8,"",SUM(AV34,BD34)) -> 11 | BG34: =IF(COUNTBLANK(BG26:BG33)=8,"",SUM(AW34,BE34)) -> 25 | BH34: =IF(COUNTIF(BH26:BI33,"")=16,"",SUM(BH26:BH33)) -> 4050 | BI34: =IF($B26="","",SUM(BI26:BI33)) -> 0 | BJ34: =IF(COUNTBLANK(BJ26:BJ33)=8,"",SUM(BJ26:BJ33)) -> 4183.714286 | BK34: =IF($B26="","",SUM(BK26:BK33)) -> 0 | CC34: =SUM(CC26:CC33) -> 11 | CD34: =SUM(CD26:CD33) -> 25 | CE34: =SUM(CE26:CE33) -> 4183.714286 | CF34: =SUM(CF26:CF33) -> 1104183.714
B35: ※ | C35: TPの数字は、ハンデによる換算後の得点を示す。

Sheet 【進行】結果入力表
A6: 節 | B6: G-No | C6: 所属A | D6: 選手名A | E6: HR | F6: 得点 | G6: 得点 | H6: HR | I6: 選手名B | J6: 所属B | L6: レフリー | P6: No | Q6: Name | R6: 本人 | S6: HR | T6: 相手 | U6: 相手持点 | V6: 基本持点
A7: ="第"&【準備】登録!AE51&"節" -> 第1節 | B7: =【準備】登録!AF51 -> 1 | C7: =【準備】登録!AI51 -> HRC | D7: =【準備】登録!AK51 -> 高木 俊行 | E7: 109 | F7: 130 | G7: W | I7: =【準備】登録!AL51 -> 林 秀忠 | J7: =【準備】登録!AN51 -> SBC | L7: =C13 -> NRC | M7: =D13 -> 岩本 剛 | P7: =B7 -> 1 | Q7: =D7&【準備】登録!AE51&J7 -> 高木 俊行1SBC | R7: =IF(F7="","",F7) -> 130 | S7: =IF(E7="","",E7) -> 109 | T7: =IF(G7="","",G7) -> W | U7: =【準備】登録!AM51 -> 180 | V7: =【準備】登録!AJ51 -> 180
A8: ="第"&【準備】登録!AE52&"節" -> 第1節 | B8: =【準備】登録!AF52 -> 2 | C8: =【準備】登録!AI52 -> HRC | D8: =【準備】登録!AK52 -> 金井 健太郎 | F8: W | G8: 60 | I8: =【準備】登録!AL52 -> 秋田 倫央 | J8: =【準備】登録!AN52 -> SBC | L8: =C14 -> NRC | M8: =D14 -> 吉向 翔平 | P8: =B8 -> 2 | Q8: =D8&【準備】登録!AE52&J8 -> 金井 健太郎1SBC | R8: =IF(F8="","",F8) -> W | S8: =IF(E8="","",E8) ->  | T8: =IF(G8="","",G8) -> 60 | U8: =【準備】登録!AM52 -> 180 | V8: =【準備】登録!AJ52 -> 180
A9: ="第"&【準備】登録!AE53&"節" -> 第1節 | B9: =【準備】登録!AF53 -> 3 | C9: =【準備】登録!AI53 -> HRC | D9: =【準備】登録!AK53 -> 平井 洸志 | F9: 161 | G9: W | I9: =【準備】登録!AL53 -> 大橋 正寛 | J9: =【準備】登録!AN53 -> SBC | L9: NRC | M9: 金澤 茂昌 | P9: 3 | Q9: =D9&【準備】登録!AE53&J9 -> 平井 洸志1SBC | R9: 161 | T9: W | U9: =【準備】登録!AM53 -> 180 | V9: =【準備】登録!AJ53 -> 180
A10: ="第"&【準備】登録!AE54&"節" -> 第1節 | B10: =【準備】登録!AF54 -> 4 | C10: =【準備】登録!AI54 -> HRC | D10: =【準備】登録!AK54 -> 中尾 亮太 | E10: 127 | F10: 167 | G10: W | I10: =【準備】登録!AL54 -> 大橋 義治 | J10: =【準備】登録!AN54 -> SBC | L10: NRC | M10: 植田 慎也 | P10: 4 | Q10: =D10&【準備】登録!AE54&J10 -> 中尾 亮太1SBC | R10: 167 | S10: 127 | T10: W | U10: =【準備】登録!AM54 -> 180 | V10: =【準備】登録!AJ54 -> 180
A11: ="第"&【準備】登録!AE55&"節" -> 第1節 | B11: =【準備】登録!AF55 -> 5 | C11: =【準備】登録!AI55 -> HRC | D11: =【準備】登録!AK55 -> 宮本 一 | F11: W | G11: 92 | I11: =【準備】登録!AL55 -> 山中 康寛 | J11: =【準備】登録!AN55 -> SBC | L11: NRC | M11: 長谷川 進 | P11: 5 | Q11: =D11&【準備】登録!AE55&J11 -> 宮本 一1SBC | R11: W | T11: 92 | U11: =【準備】登録!AM55 -> 180 | V11: =【準備】登録!AJ55 -> 180
A12: ="第"&【準備】登録!AE56&"節" -> 第1節 | B12: =【準備】登録!AF56 -> 6 | C12: =【準備】登録!AI56 -> HRC | D12: =【準備】登録!AK56 -> 河地 恵里 | F12: 113 | G12: W | I12: =【準備】登録!AL56 -> 大橋 洋子 | J12: =【準備】登録!AN56 -> SBC | L12: NRC | M12: 宮野 早織 | P12: 6 | Q12: =D12&【準備】登録!AE56&J12 -> 河地 恵里1SBC | R12: 113 | T12: W | U12: =【準備】登録!AM56 -> 140 | V12: =【準備】登録!AJ56 -> 140
A13: ="第"&【準備】登録!AE57&"節" -> 第1節 | B13: =【準備】登録!AF57 -> 7 | C13: =【準備】登録!AI57 -> NRC | D13: =【準備】登録!AK57 -> 岩本 剛 | F13: 43 | G13: W | I13: =【準備】登録!AL57 -> 林 秀忠 | J13: =【準備】登録!AN57 -> SBC | L13: =C7 -> HRC | M13: =D7 -> 高木 俊行 | P13: 7 | Q13: =D13&【準備】登録!AE57&J13 -> 岩本 剛1SBC | R13: 43 | T13: W | U13: =【準備】登録!AM57 -> 180 | V13: =【準備】登録!AJ57 -> 180
A14: ="第"&【準備】登録!AE58&"節" -> 第1節 | B14: =【準備】登録!AF58 -> 8 | C14: =【準備】登録!AI58 -> NRC | D14: =【準備】登録!AK58 -> 吉向 翔平 | F14: W | G14: 46 | I14: =【準備】登録!AL58 -> 秋田 倫央 | J14: =【準備】登録!AN58 -> SBC | L14: =C8 -> HRC | M14: =D8 -> 金井 健太郎 | P14: 8 | Q14: =D14&【準備】登録!AE58&J14 -> 吉向 翔平1SBC | R14: W | T14: 46 | U14: =【準備】登録!AM58 -> 180 | V14: =【準備】登録!AJ58 -> 180
A15: ="第"&【準備】登録!AE59&"節" -> 第1節 | B15: =【準備】登録!AF59 -> 9 | C15: =【準備】登録!AI59 -> NRC | D15: =【準備】登録!AK59 -> 金澤 茂昌 | F15: W | G15: 127 | I15: =【準備】登録!AL59 -> 大橋 正寛 | J15: =【準備】登録!AN59 -> SBC | L15: HRC | M15: 平井 洸志 | P15: 9 | Q15: =D15&【準備】登録!AE59&J15 -> 金澤 茂昌1SBC | R15: W | T15: 127 | U15: =【準備】登録!AM59 -> 180 | V15: =【準備】登録!AJ59 -> 180
A16: ="第"&【準備】登録!AE60&"節" -> 第1節 | B16: =【準備】登録!AF60 -> 10 | C16: =【準備】登録!AI60 -> NRC | D16: =【準備】登録!AK60 -> 植田 慎也 | F16: 39 | G16: W | I16: =【準備】登録!AL60 -> 大橋 義治 | J16: =【準備】登録!AN60 -> SBC | L16: HRC | M16: 中尾 亮太 | P16: 10 | Q16: =D16&【準備】登録!AE60&J16 -> 植田 慎也1SBC | R16: 39 | T16: W | U16: =【準備】登録!AM60 -> 180 | V16: =【準備】登録!AJ60 -> 180
A17: ="第"&【準備】登録!AE61&"節" -> 第1節 | B17: =【準備】登録!AF61 -> 11 | C17: =【準備】登録!AI61 -> NRC | D17: =【準備】登録!AK61 -> 長谷川 進 | F17: 153 | G17: W | I17: =【準備】登録!AL61 -> 山中 康寛 | J17: =【準備】登録!AN61 -> SBC | L17: HRC | M17: 宮本 一 | P17: 11 | Q17: =D17&【準備】登録!AE61&J17 -> 長谷川 進1SBC | R17: 153 | T17: W | U17: =【準備】登録!AM61 -> 180 | V17: =【準備】登録!AJ61 -> 180
A18: ="第"&【準備】登録!AE62&"節" -> 第1節 | B18: =【準備】登録!AF62 -> 12 | C18: =【準備】登録!AI62 -> NRC | D18: =【準備】登録!AK62 -> 宮野 早織 | F18: W | G18: 116 | I18: =【準備】登録!AL62 -> 大橋 洋子 | J18: =【準備】登録!AN62 -> SBC | L18: HRC | M18: 河地 恵里 | P18: 12 | Q18: =D18&【準備】登録!AE62&J18 -> 宮野 早織1SBC | R18: W | T18: 116 | U18: =【準備】登録!AM62 -> 140 | V18: =【準備】登録!AJ62 -> 140
A19: ="第"&【準備】登録!AE63&"節" -> 第1節 | B19: =【準備】登録!AF63 -> 13 | C19: =【準備】登録!AI63 -> NRC | D19: =【準備】登録!AK63 -> 岩本 剛 | E19: 100 | F19: 152 | G19: W | I19: =【準備】登録!AL63 -> 高木 俊行 | J19: =【準備】登録!AN63 -> HRC | L19: =J7 -> SBC | M19: =I7 -> 林 秀忠 | P19: 13 | Q19: =D19&【準備】登録!AE63&J19 -> 岩本 剛1HRC | R19: 152 | S19: 100 | T19: W | U19: =【準備】登録!AM63 -> 180 | V19: =【準備】登録!AJ63 -> 180
A20: ="第"&【準備】登録!AE64&"節" -> 第1節 | B20: =【準備】登録!AF64 -> 14 | C20: =【準備】登録!AI64 -> NRC | D20: =【準備】登録!AK64 -> 吉向 翔平 | F20: 96 | G20: W | I20: =【準備】登録!AL64 -> 金井 健太郎 | J20: =【準備】登録!AN64 -> HRC | L20: =J8 -> SBC | M20: =I8 -> 秋田 倫央 | P20: 14 | Q20: =D20&【準備】登録!AE64&J20 -> 吉向 翔平1HRC | R20: 96 | T20: W | U20: =【準備】登録!AM64 -> 180 | V20: =【準備】登録!AJ64 -> 180
A21: ="第"&【準備】登録!AE65&"節" -> 第1節 | B21: =【準備】登録!AF65 -> 15 | C21: =【準備】登録!AI65 -> NRC | D21: =【準備】登録!AK65 -> 金澤 茂昌 | F21: W | G21: 93 | I21: =【準備】登録!AL65 -> 平井 洸志 | J21: =【準備】登録!AN65 -> HRC | L21: SBC | M21: 大橋 正寛 | P21: 15 | Q21: =D21&【準備】登録!AE65&J21 -> 金澤 茂昌1HRC | R21: W | T21: 93 | U21: =【準備】登録!AM65 -> 180 | V21: =【準備】登録!AJ65 -> 180
A22: ="第"&【準備】登録!AE66&"節" -> 第1節 | B22: =【準備】登録!AF66 -> 16 | C22: =【準備】登録!AI66 -> NRC | D22: =【準備】登録!AK66 -> 植田 慎也 | F22: 136 | G22: W | I22: =【準備】登録!AL66 -> 中尾 亮太 | J22: =【準備】登録!AN66 -> HRC | L22: SBC | M22: 大橋 義治 | P22: 16 | Q22: =D22&【準備】登録!AE66&J22 -> 植田 慎也1HRC | R22: 136 | T22: W | U22: =【準備】登録!AM66 -> 180 | V22: =【準備】登録!AJ66 -> 180
A23: ="第"&【準備】登録!AE67&"節" -> 第1節 | B23: =【準備】登録!AF67 -> 17 | C23: =【準備】登録!AI67 -> NRC | D23: =【準備】登録!AK67 -> 長谷川 進 | F23: 40 | G23: W | I23: =【準備】登録!AL67 -> 宮本 一 | J23: =【準備】登録!AN67 -> HRC | L23: SBC | M23: 山中 康寛 | P23: 17 | Q23: =D23&【準備】登録!AE67&J23 -> 長谷川 進1HRC | R23: 40 | T23: W | U23: =【準備】登録!AM67 -> 180 | V23: =【準備】登録!AJ67 -> 180
A24: ="第"&【準備】登録!AE68&"節" -> 第1節 | B24: =【準備】登録!AF68 -> 18 | C24: =【準備】登録!AI68 -> NRC | D24: =【準備】登録!AK68 -> 宮野 早織 | F24: 17 | G24: W | I24: =【準備】登録!AL68 -> 河地 恵里 | J24: =【準備】登録!AN68 -> HRC | L24: SBC | M24: 大橋 洋子 | P24: 18 | Q24: =D24&【準備】登録!AE68&J24 -> 宮野 早織1HRC | R24: 17 | T24: W | U24: =【準備】登録!AM68 -> 140 | V24: =【準備】登録!AJ68 -> 140
A25: ="第"&【準備】登録!AE69&"節" -> 第2節 | B25: =【準備】登録!AF69 -> 19 | C25: =【準備】登録!AI69 -> HRC | D25: =【準備】登録!AK69 -> 金井 健太郎 | F25: 167 | G25: W | I25: =【準備】登録!AL69 -> 大橋 正寛 | J25: =【準備】登録!AN69 -> SBC | P25: 19 | Q25: =D25&【準備】登録!AE69&J25 -> 金井 健太郎2SBC | R25: 167 | T25: W | U25: =【準備】登録!AM69 -> 180 | V25: =【準備】登録!AJ69 -> 180
A26: ="第"&【準備】登録!AE70&"節" -> 第2節 | B26: =【準備】登録!AF70 -> 20 | C26: =【準備】登録!AI70 -> HRC | D26: =【準備】登録!AK70 -> 平井 洸志 | F26: 160 | G26: W | I26: =【準備】登録!AL70 -> 大橋 義治 | J26: =【準備】登録!AN70 -> SBC | P26: 20 | Q26: =D26&【準備】登録!AE70&J26 -> 平井 洸志2SBC | R26: 160 | T26: W | U26: =【準備】登録!AM70 -> 180 | V26: =【準備】登録!AJ70 -> 180
A27: ="第"&【準備】登録!AE71&"節" -> 第2節 | B27: =【準備】登録!AF71 -> 21 | C27: =【準備】登録!AI71 -> HRC | D27: =【準備】登録!AK71 -> 中尾 亮太 | F27: 154 | G27: W | I27: =【準備】登録!AL71 -> 山中 康寛 | J27: =【準備】登録!AN71 -> SBC | P27: 21 | Q27: =D27&【準備】登録!AE71&J27 -> 中尾 亮太2SBC | R27: 154 | T27: W | U27: =【準備】登録!AM71 -> 180 | V27: =【準備】登録!AJ71 -> 180
A28: ="第"&【準備】登録!AE72&"節" -> 第2節 | B28: =【準備】登録!AF72 -> 22 | C28: =【準備】登録!AI72 -> HRC | D28: =【準備】登録!AK72 -> 宮本 一 | F28: W | G28: 59 | I28: =【準備】登録!AL72 -> 大橋 洋子 | J28: =【準備】登録!AN72 -> SBC | P28: 22 | Q28: =D28&【準備】登録!AE72&J28 -> 宮本 一2SBC | R28: W | T28: 59 | U28: =【準備】登録!AM72 -> 140 | V28: =【準備】登録!AJ72 -> 180
A29: ="第"&【準備】登録!AE73&"節" -> 第2節 | B29: =【準備】登録!AF73 -> 23 | C29: =【準備】登録!AI73 -> HRC | D29: =【準備】登録!AK73 -> 河地 恵里 | F29: W | G29: 154 | I29: =【準備】登録!AL73 -> 林 秀忠 | J29: =【準備】登録!AN73 -> SBC | P29: 23 | Q29: =D29&【準備】登録!AE73&J29 -> 河地 恵里2SBC | R29: W | T29: 154 | U29: =【準備】登録!AM73 -> 180 | V29: =【準備】登録!AJ73 -> 140
A30: ="第"&【準備】登録!AE74&"節" -> 第2節 | B30: =【準備】登録!AF74 -> 24 | C30: =【準備】登録!AI74 -> HRC | D30: =【準備】登録!AK74 -> 高木 俊行 | F30: 128 | G30: W | I30: =【準備】登録!AL74 -> 秋田 倫央 | J30: =【準備】登録!AN74 -> SBC | P30: 24 | Q30: =D30&【準備】登録!AE74&J30 -> 高木 俊行2SBC | R30: 128 | T30: W | U30: =【準備】登録!AM74 -> 180 | V30: =【準備】登録!AJ74 -> 180
A31: ="第"&【準備】登録!AE75&"節" -> 第2節 | B31: =【準備】登録!AF75 -> 25 | C31: =【準備】登録!AI75 -> NRC | D31: =【準備】登録!AK75 -> 岩本 剛 | F31: 45 | G31: W | I31: =【準備】登録!AL75 -> 大橋 正寛 | J31: =【準備】登録!AN75 -> SBC | P31: 25 | Q31: =D31&【準備】登録!AE75&J31 -> 岩本 剛2SBC | R31: 45 | T31: W | U31: =【準備】登録!AM75 -> 180 | V31: =【準備】登録!AJ75 -> 180
A32: ="第"&【準備】登録!AE76&"節" -> 第2節 | B32: =【準備】登録!AF76 -> 26 | C32: =【準備】登録!AI76 -> NRC | D32: =【準備】登録!AK76 -> 吉向 翔平 | F32: 130 | G32: W | I32: =【準備】登録!AL76 -> 大橋 義治 | J32: =【準備】登録!AN76 -> SBC | P32: 26 | Q32: =D32&【準備】登録!AE76&J32 -> 吉向 翔平2SBC | R32: 130 | T32: W | U32: =【準備】登録!AM76 -> 180 | V32: =【準備】登録!AJ76 -> 180
A33: ="第"&【準備】登録!AE77&"節" -> 第2節 | B33: =【準備】登録!AF77 -> 27 | C33: =【準備】登録!AI77 -> NRC | D33: =【準備】登録!AK77 -> 金澤 茂昌 | F33: W | G33: 164 | I33: =【準備】登録!AL77 -> 山中 康寛 | J33: =【準備】登録!AN77 -> SBC | P33: 27 | Q33: =D33&【準備】登録!AE77&J33 -> 金澤 茂昌2SBC | R33: W | T33: 164 | U33: =【準備】登録!AM77 -> 180 | V33: =【準備】登録!AJ77 -> 180
A34: ="第"&【準備】登録!AE78&"節" -> 第2節 | B34: =【準備】登録!AF78 -> 28 | C34: =【準備】登録!AI78 -> NRC | D34: =【準備】登録!AK78 -> 植田 慎也 | F34: W | G34: 35 | I34: =【準備】登録!AL78 -> 大橋 洋子 | J34: =【準備】登録!AN78 -> SBC | P34: 28 | Q34: =D34&【準備】登録!AE78&J34 -> 植田 慎也2SBC | R34: W | T34: 35 | U34: =【準備】登録!AM78 -> 140 | V34: =【準備】登録!AJ78 -> 180
A35: ="第"&【準備】登録!AE79&"節" -> 第2節 | B35: =【準備】登録!AF79 -> 29 | C35: =【準備】登録!AI79 -> NRC | D35: =【準備】登録!AK79 -> 長谷川 進 | F35: 45 | G35: W | I35: =【準備】登録!AL79 -> 林 秀忠 | J35: =【準備】登録!AN79 -> SBC | P35: 29 | Q35: =D35&【準備】登録!AE79&J35 -> 長谷川 進2SBC | R35: 45 | T35: W | U35: =【準備】登録!AM79 -> 180 | V35: =【準備】登録!AJ79 -> 180
A36: ="第"&【準備】登録!AE80&"節" -> 第2節 | B36: =【準備】登録!AF80 -> 30 | C36: =【準備】登録!AI80 -> NRC | D36: =【準備】登録!AK80 -> 宮野 早織 | F36: 102 | G36: W | I36: =【準備】登録!AL80 -> 秋田 倫央 | J36: =【準備】登録!AN80 -> SBC | P36: 30 | Q36: =D36&【準備】登録!AE80&J36 -> 宮野 早織2SBC | R36: 102 | T36: W | U36: =【準備】登録!AM80 -> 180 | V36: =【準備】登録!AJ80 -> 140
A37: ="第"&【準備】登録!AE81&"節" -> 第2節 | B37: =【準備】登録!AF81 -> 31 | C37: =【準備】登録!AI81 -> NRC | D37: =【準備】登録!AK81 -> 岩本 剛 | F37: 16 | G37: W | I37: =【準備】登録!AL81 -> 金井 健太郎 | J37: =【準備】登録!AN81 -> HRC | P37: 31 | Q37: =D37&【準備】登録!AE81&J37 -> 岩本 剛2HRC | R37: 16 | T37: W | U37: =【準備】登録!AM81 -> 180 | V37: =【準備】登録!AJ81 -> 180
A38: ="第"&【準備】登録!AE82&"節" -> 第2節 | B38: =【準備】登録!AF82 -> 32 | C38: =【準備】登録!AI82 -> NRC | D38: =【準備】登録!AK82 -> 吉向 翔平 | F38: W | G38: 76 | I38: =【準備】登録!AL82 -> 平井 洸志 | J38: =【準備】登録!AN82 -> HRC | P38: 32 | Q38: =D38&【準備】登録!AE82&J38 -> 吉向 翔平2HRC | R38: W | T38: 76 | U38: =【準備】登録!AM82 -> 180 | V38: =【準備】登録!AJ82 -> 180
A39: ="第"&【準備】登録!AE83&"節" -> 第2節 | B39: =【準備】登録!AF83 -> 33 | C39: =【準備】登録!AI83 -> NRC | D39: =【準備】登録!AK83 -> 金澤 茂昌 | F39: 102 | G39: W | I39: =【準備】登録!AL83 -> 中尾 亮太 | J39: =【準備】登録!AN83 -> HRC | P39: 33 | Q39: =D39&【準備】登録!AE83&J39 -> 金澤 茂昌2HRC | R39: 102 | T39: W | U39: =【準備】登録!AM83 -> 180 | V39: =【準備】登録!AJ83 -> 180
A40: ="第"&【準備】登録!AE84&"節" -> 第2節 | B40: =【準備】登録!AF84 -> 34 | C40: =【準備】登録!AI84 -> NRC | D40: =【準備】登録!AK84 -> 植田 慎也 | F40: 56 | G40: W | I40: =【準備】登録!AL84 -> 宮本 一 | J40: =【準備】登録!AN84 -> HRC | P40: 34 | Q40: =D40&【準備】登録!AE84&J40 -> 植田 慎也2HRC | R40: 56 | T40: W | U40: =【準備】登録!AM84 -> 180 | V40: =【準備】登録!AJ84 -> 180
A41: ="第"&【準備】登録!AE85&"節" -> 第2節 | B41: =【準備】登録!AF85 -> 35 | C41: =【準備】登録!AI85 -> NRC | D41: =【準備】登録!AK85 -> 長谷川 進 | F41: 110 | G41: W | I41: =【準備】登録!AL85 -> 河地 恵里 | J41: =【準備】登録!AN85 -> HRC | P41: 35 | Q41: =D41&【準備】登録!AE85&J41 -> 長谷川 進2HRC | R41: 110 | T41: W | U41: =【準備】登録!AM85 -> 140 | V41: =【準備】登録!AJ85 -> 180
A42: ="第"&【準備】登録!AE86&"節" -> 第2節 | B42: =【準備】登録!AF86 -> 36 | C42: =【準備】登録!AI86 -> NRC | D42: =【準備】登録!AK86 -> 宮野 早織 | F42: 56 | G42: W | I42: =【準備】登録!AL86 -> 高木 俊行 | J42: =【準備】登録!AN86 -> HRC | P42: 36 | Q42: =D42&【準備】登録!AE86&J42 -> 宮野 早織2HRC | R42: 56 | T42: W | U42: =【準備】登録!AM86 -> 180 | V42: =【準備】登録!AJ86 -> 140
A43: ="第"&【準備】登録!AE87&"節" -> 第3節 | B43: =【準備】登録!AF87 -> 37 | C43: =【準備】登録!AI87 -> HRC | D43: =【準備】登録!AK87 -> 平井 洸志 | F43: W | G43: 37 | I43: =【準備】登録!AL87 -> 山中 康寛 | J43: =【準備】登録!AN87 -> SBC | P43: 37 | Q43: =D43&【準備】登録!AE87&J43 -> 平井 洸志3SBC | R43: W | T43: 37 | U43: =【準備】登録!AM87 -> 180 | V43: =【準備】登録!AJ87 -> 180
A44: ="第"&【準備】登録!AE88&"節" -> 第3節 | B44: =【準備】登録!AF88 -> 38 | C44: =【準備】登録!AI88 -> HRC | D44: =【準備】登録!AK88 -> 中尾 亮太 | F44: 88 | G44: W | I44: =【準備】登録!AL88 -> 大橋 洋子 | J44: =【準備】登録!AN88 -> SBC | P44: 38 | Q44: =D44&【準備】登録!AE88&J44 -> 中尾 亮太3SBC | R44: 88 | T44: W | U44: =【準備】登録!AM88 -> 140 | V44: =【準備】登録!AJ88 -> 180
A45: ="第"&【準備】登録!AE89&"節" -> 第3節 | B45: =【準備】登録!AF89 -> 39 | C45: =【準備】登録!AI89 -> HRC | D45: =【準備】登録!AK89 -> 宮本 一 | F45: 130 | G45: W | H45: 105 | I45: =【準備】登録!AL89 -> 林 秀忠 | J45: =【準備】登録!AN89 -> SBC | P45: 39 | Q45: =D45&【準備】登録!AE89&J45 -> 宮本 一3SBC | R45: 130 | T45: W | U45: =【準備】登録!AM89 -> 180 | V45: =【準備】登録!AJ89 -> 180
A46: ="第"&【準備】登録!AE90&"節" -> 第3節 | B46: =【準備】登録!AF90 -> 40 | C46: =【準備】登録!AI90 -> HRC | D46: =【準備】登録!AK90 -> 河地 恵里 | F46: 79 | G46: W | I46: =【準備】登録!AL90 -> 秋田 倫央 | J46: =【準備】登録!AN90 -> SBC | P46: 40 | Q46: =D46&【準備】登録!AE90&J46 -> 河地 恵里3SBC | R46: 79 | T46: W | U46: =【準備】登録!AM90 -> 180 | V46: =【準備】登録!AJ90 -> 140
A47: ="第"&【準備】登録!AE91&"節" -> 第3節 | B47: =【準備】登録!AF91 -> 41 | C47: =【準備】登録!AI91 -> HRC | D47: =【準備】登録!AK91 -> 高木 俊行 | F47: 47 | G47: W | I47: =【準備】登録!AL91 -> 大橋 正寛 | J47: =【準備】登録!AN91 -> SBC | P47: 41 | Q47: =D47&【準備】登録!AE91&J47 -> 高木 俊行3SBC | R47: 47 | T47: W | U47: =【準備】登録!AM91 -> 180 | V47: =【準備】登録!AJ91 -> 180
A48: ="第"&【準備】登録!AE92&"節" -> 第3節 | B48: =【準備】登録!AF92 -> 42 | C48: =【準備】登録!AI92 -> HRC | D48: =【準備】登録!AK92 -> 金井 健太郎 | F48: W | G48: 91 | I48: =【準備】登録!AL92 -> 大橋 義治 | J48: =【準備】登録!AN92 -> SBC | P48: 42 | Q48: =D48&【準備】登録!AE92&J48 -> 金井 健太郎3SBC | R48: W | T48: 91 | U48: =【準備】登録!AM92 -> 180 | V48: =【準備】登録!AJ92 -> 180
A49: ="第"&【準備】登録!AE93&"節" -> 第3節 | B49: =【準備】登録!AF93 -> 43 | C49: =【準備】登録!AI93 -> NRC | D49: =【準備】登録!AK93 -> 岩本 剛 | F49: W | G49: 83 | I49: =【準備】登録!AL93 -> 山中 康寛 | J49: =【準備】登録!AN93 -> SBC | P49: 43 | Q49: =D49&【準備】登録!AE93&J49 -> 岩本 剛3SBC | R49: W | T49: 83 | U49: =【準備】登録!AM93 -> 180 | V49: =【準備】登録!AJ93 -> 180
A50: ="第"&【準備】登録!AE94&"節" -> 第3節 | B50: =【準備】登録!AF94 -> 44 | C50: =【準備】登録!AI94 -> NRC | D50: =【準備】登録!AK94 -> 吉向 翔平 | F50: W | G50: 111 | I50: =【準備】登録!AL94 -> 大橋 洋子 | J50: =【準備】登録!AN94 -> SBC | P50: 44 | Q50: =D50&【準備】登録!AE94&J50 -> 吉向 翔平3SBC | R50: W | T50: 111 | U50: =【準備】登録!AM94 -> 140 | V50: =【準備】登録!AJ94 -> 180
A51: ="第"&【準備】登録!AE95&"節" -> 第3節 | B51: =【準備】登録!AF95 -> 45 | C51: =【準備】登録!AI95 -> NRC | D51: =【準備】登録!AK95 -> 金澤 茂昌 | F51: 70 | G51: W | I51: =【準備】登録!AL95 -> 林 秀忠 | J51: =【準備】登録!AN95 -> SBC | P51: 45 | Q51: =D51&【準備】登録!AE95&J51 -> 金澤 茂昌3SBC | R51: 70 | T51: W | U51: =【準備】登録!AM95 -> 180 | V51: =【準備】登録!AJ95 -> 180
A52: ="第"&【準備】登録!AE96&"節" -> 第3節 | B52: =【準備】登録!AF96 -> 46 | C52: =【準備】登録!AI96 -> NRC | D52: =【準備】登録!AK96 -> 植田 慎也 | E52: 102 | F52: W | G52: 168 | I52: =【準備】登録!AL96 -> 秋田 倫央 | J52: =【準備】登録!AN96 -> SBC | P52: 46 | Q52: =D52&【準備】登録!AE96&J52 -> 植田 慎也3SBC | R52: W | S52: 102 | T52: 168 | U52: =【準備】登録!AM96 -> 180 | V52: =【準備】登録!AJ96 -> 180
A53: ="第"&【準備】登録!AE97&"節" -> 第3節 | B53: =【準備】登録!AF97 -> 47 | C53: =【準備】登録!AI97 -> NRC | D53: =【準備】登録!AK97 -> 長谷川 進 | F53: 113 | G53: W | I53: =【準備】登録!AL97 -> 大橋 正寛 | J53: =【準備】登録!AN97 -> SBC | P53: 47 | Q53: =D53&【準備】登録!AE97&J53 -> 長谷川 進3SBC | R53: 113 | T53: W | U53: =【準備】登録!AM97 -> 180 | V53: =【準備】登録!AJ97 -> 180
A54: ="第"&【準備】登録!AE98&"節" -> 第3節 | B54: =【準備】登録!AF98 -> 48 | C54: =【準備】登録!AI98 -> NRC | D54: =【準備】登録!AK98 -> 宮野 早織 | F54: 98 | G54: W | I54: =【準備】登録!AL98 -> 大橋 義治 | J54: =【準備】登録!AN98 -> SBC | P54: 48 | Q54: =D54&【準備】登録!AE98&J54 -> 宮野 早織3SBC | R54: 98 | T54: W | U54: =【準備】登録!AM98 -> 180 | V54: =【準備】登録!AJ98 -> 140
A55: ="第"&【準備】登録!AE99&"節" -> 第3節 | B55: =【準備】登録!AF99 -> 49 | C55: =【準備】登録!AI99 -> NRC | D55: =【準備】登録!AK99 -> 岩本 剛 | F55: W | G55: 49 | I55: =【準備】登録!AL99 -> 平井 洸志 | J55: =【準備】登録!AN99 -> HRC | P55: 49 | Q55: =D55&【準備】登録!AE99&J55 -> 岩本 剛3HRC | R55: W | T55: 49 | U55: =【準備】登録!AM99 -> 180 | V55: =【準備】登録!AJ99 -> 180
A56: ="第"&【準備】登録!AE100&"節" -> 第3節 | B56: =【準備】登録!AF100 -> 50 | C56: =【準備】登録!AI100 -> NRC | D56: =【準備】登録!AK100 -> 吉向 翔平 | F56: 88 | G56: W | I56: =【準備】登録!AL100 -> 中尾 亮太 | J56: =【準備】登録!AN100 -> HRC | P56: 50 | Q56: =D56&【準備】登録!AE100&J56 -> 吉向 翔平3HRC | R56: 88 | T56: W | U56: =【準備】登録!AM100 -> 180 | V56: =【準備】登録!AJ100 -> 180
A57: ="第"&【準備】登録!AE101&"節" -> 第3節 | B57: =【準備】登録!AF101 -> 51 | C57: =【準備】登録!AI101 -> NRC | D57: =【準備】登録!AK101 -> 金澤 茂昌 | F57: 147 | G57: W | I57: =【準備】登録!AL101 -> 宮本 一 | J57: =【準備】登録!AN101 -> HRC | P57: 51 | Q57: =D57&【準備】登録!AE101&J57 -> 金澤 茂昌3HRC | R57: 147 | T57: W | U57: =【準備】登録!AM101 -> 180 | V57: =【準備】登録!AJ101 -> 180
A58: ="第"&【準備】登録!AE102&"節" -> 第3節 | B58: =【準備】登録!AF102 -> 52 | C58: =【準備】登録!AI102 -> NRC | D58: =【準備】登録!AK102 -> 植田 慎也 | F58: 83 | G58: W | I58: =【準備】登録!AL102 -> 河地 恵里 | J58: =【準備】登録!AN102 -> HRC | P58: 52 | Q58: =D58&【準備】登録!AE102&J58 -> 植田 慎也3HRC | R58: 83 | T58: W | U58: =【準備】登録!AM102 -> 140 | V58: =【準備】登録!AJ102 -> 180
A59: ="第"&【準備】登録!AE103&"節" -> 第3節 | B59: =【準備】登録!AF103 -> 53 | C59: =【準備】登録!AI103 -> NRC | D59: =【準備】登録!AK103 -> 長谷川 進 | F59: 118 | G59: W | I59: =【準備】登録!AL103 -> 高木 俊行 | J59: =【準備】登録!AN103 -> HRC | P59: 53 | Q59: =D59&【準備】登録!AE103&J59 -> 長谷川 進3HRC | R59: 118 | T59: W | U59: =【準備】登録!AM103 -> 180 | V59: =【準備】登録!AJ103 -> 180
A60: ="第"&【準備】登録!AE104&"節" -> 第3節 | B60: =【準備】登録!AF104 -> 54 | C60: =【準備】登録!AI104 -> NRC | D60: =【準備】登録!AK104 -> 宮野 早織 | F60: 55 | G60: W | H60: 115 | I60: =【準備】登録!AL104 -> 金井 健太郎 | J60: =【準備】登録!AN104 -> HRC | P60: 54 | Q60: =D60&【準備】登録!AE104&J60 -> 宮野 早織3HRC | R60: 55 | T60: W | U60: =【準備】登録!AM104 -> 180 | V60: =【準備】登録!AJ104 -> 140
A61: ="第"&【準備】登録!AE105&"節" ->  | B61: =【準備】登録!AF105 -> 55 | C61: =【準備】登録!AI105 ->  | D61: =【準備】登録!AK105 ->  | I61: =【準備】登録!AL105 ->  | J61: =【準備】登録!AN105 ->  | P61: 55 | Q61: =D61&【準備】登録!AE105&J61 ->  | U61: =【準備】登録!AM105 ->  | V61: =【準備】登録!AJ105 -> 
A62: ="第"&【準備】登録!AE106&"節" ->  | B62: =【準備】登録!AF106 -> 56 | C62: =【準備】登録!AI106 ->  | D62: =【準備】登録!AK106 ->  | I62: =【準備】登録!AL106 ->  | J62: =【準備】登録!AN106 ->  | P62: 56 | Q62: =D62&【準備】登録!AE106&J62 ->  | U62: =【準備】登録!AM106 ->  | V62: =【準備】登録!AJ106 -> 
A63: ="第"&【準備】登録!AE107&"節" ->  | B63: =【準備】登録!AF107 -> 57 | C63: =【準備】登録!AI107 ->  | D63: =【準備】登録!AK107 ->  | I63: =【準備】登録!AL107 ->  | J63: =【準備】登録!AN107 ->  | P63: 57 | Q63: =D63&【準備】登録!AE107&J63 ->  | U63: =【準備】登録!AM107 ->  | V63: =【準備】登録!AJ107 -> 
A64: ="第"&【準備】登録!AE108&"節" ->  | B64: =【準備】登録!AF108 -> 58 | C64: =【準備】登録!AI108 ->  | D64: =【準備】登録!AK108 ->  | I64: =【準備】登録!AL108 ->  | J64: =【準備】登録!AN108 ->  | P64: 58 | Q64: =D64&【準備】登録!AE108&J64 ->  | U64: =【準備】登録!AM108 ->  | V64: =【準備】登録!AJ108 -> 
A65: ="第"&【準備】登録!AE109&"節" ->  | B65: =【準備】登録!AF109 -> 59 | C65: =【準備】登録!AI109 ->  | D65: =【準備】登録!AK109 ->  | I65: =【準備】登録!AL109 ->  | J65: =【準備】登録!AN109 ->  | P65: 59 | Q65: =D65&【準備】登録!AE109&J65 ->  | U65: =【準備】登録!AM109 ->  | V65: =【準備】登録!AJ109 -> 
A66: ="第"&【準備】登録!AE110&"節" ->  | B66: =【準備】登録!AF110 -> 60 | C66: =【準備】登録!AI110 ->  | D66: =【準備】登録!AK110 ->  | I66: =【準備】登録!AL110 ->  | J66: =【準備】登録!AN110 ->  | P66: 60 | Q66: =D66&【準備】登録!AE110&J66 ->  | U66: =【準備】登録!AM110 ->  | V66: =【準備】登録!AJ110 -> 
A67: ="第"&【準備】登録!AE111&"節" ->  | B67: =【準備】登録!AF111 -> 61 | C67: =【準備】登録!AI111 ->  | D67: =【準備】登録!AK111 ->  | I67: =【準備】登録!AL111 ->  | J67: =【準備】登録!AN111 ->  | P67: 61 | Q67: =D67&【準備】登録!AE111&J67 ->  | U67: =【準備】登録!AM111 ->  | V67: =【準備】登録!AJ111 -> 
A68: ="第"&【準備】登録!AE112&"節" ->  | B68: =【準備】登録!AF112 -> 62 | C68: =【準備】登録!AI112 ->  | D68: =【準備】登録!AK112 ->  | I68: =【準備】登録!AL112 ->  | J68: =【準備】登録!AN112 ->  | P68: 62 | Q68: =D68&【準備】登録!AE112&J68 ->  | U68: =【準備】登録!AM112 ->  | V68: =【準備】登録!AJ112 -> 
A69: ="第"&【準備】登録!AE113&"節" ->  | B69: =【準備】登録!AF113 -> 63 | C69: =【準備】登録!AI113 ->  | D69: =【準備】登録!AK113 ->  | I69: =【準備】登録!AL113 ->  | J69: =【準備】登録!AN113 ->  | L69: =J61 ->  | M69: =I61 ->  | P69: 63 | Q69: =D69&【準備】登録!AE113&J69 ->  | U69: =【準備】登録!AM113 ->  | V69: =【準備】登録!AJ113 -> 
A70: ="第"&【準備】登録!AE114&"節" ->  | B70: =【準備】登録!AF114 -> 64 | C70: =【準備】登録!AI114 ->  | D70: =【準備】登録!AK114 ->  | I70: =【準備】登録!AL114 ->  | J70: =【準備】登録!AN114 ->  | P70: 64 | Q70: =D70&【準備】登録!AE114&J70 ->  | U70: =【準備】登録!AM114 ->  | V70: =【準備】登録!AJ114 -> 
A71: ="第"&【準備】登録!AE115&"節" ->  | B71: =【準備】登録!AF115 -> 65 | C71: =【準備】登録!AI115 ->  | D71: =【準備】登録!AK115 ->  | I71: =【準備】登録!AL115 ->  | J71: =【準備】登録!AN115 ->  | L71: =C63 ->  | P71: 65 | Q71: =D71&【準備】登録!AE115&J71 ->  | U71: =【準備】登録!AM115 ->  | V71: =【準備】登録!AJ115 -> 
A72: ="第"&【準備】登録!AE116&"節" ->  | B72: =【準備】登録!AF116 -> 66 | C72: =【準備】登録!AI116 ->  | D72: =【準備】登録!AK116 ->  | I72: =【準備】登録!AL116 ->  | J72: =【準備】登録!AN116 ->  | P72: =B72 -> 66 | Q72: =D72&【準備】登録!AE116&J72 ->  | R72: =IF(F72="","",F72) ->  | S72: =IF(E72="","",E72) ->  | T72: =IF(G72="","",G72) ->  | U72: =【準備】登録!AM116 ->  | V72: =【準備】登録!AJ116 -> 
A73: ="第"&【準備】登録!AE117&"節" ->  | B73: =【準備】登録!AF117 -> 67 | C73: =【準備】登録!AI117 ->  | D73: =【準備】登録!AK117 ->  | I73: =【準備】登録!AL117 ->  | J73: =【準備】登録!AN117 ->  | P73: 67 | Q73: =D73&【準備】登録!AE117&J73 ->  | U73: =【準備】登録!AM117 ->  | V73: =【準備】登録!AJ117 -> 
A74: ="第"&【準備】登録!AE118&"節" ->  | B74: =【準備】登録!AF118 -> 68 | C74: =【準備】登録!AI118 ->  | D74: =【準備】登録!AK118 ->  | I74: =【準備】登録!AL118 ->  | J74: =【準備】登録!AN118 ->  | P74: 68 | Q74: =D74&【準備】登録!AE118&J74 ->  | U74: =【準備】登録!AM118 ->  | V74: =【準備】登録!AJ118 -> 
A75: ="第"&【準備】登録!AE119&"節" ->  | B75: =【準備】登録!AF119 -> 69 | C75: =【準備】登録!AI119 ->  | D75: =【準備】登録!AK119 ->  | I75: =【準備】登録!AL119 ->  | J75: =【準備】登録!AN119 ->  | P75: 69 | Q75: =D75&【準備】登録!AE119&J75 ->  | U75: =【準備】登録!AM119 ->  | V75: =【準備】登録!AJ119 -> 
A76: ="第"&【準備】登録!AE120&"節" ->  | B76: =【準備】登録!AF120 -> 70 | C76: =【準備】登録!AI120 ->  | D76: =【準備】登録!AK120 ->  | I76: =【準備】登録!AL120 ->  | J76: =【準備】登録!AN120 ->  | P76: 70 | Q76: =D76&【準備】登録!AE120&J76 ->  | U76: =【準備】登録!AM120 ->  | V76: =【準備】登録!AJ120 -> 
A77: ="第"&【準備】登録!AE121&"節" ->  | B77: =【準備】登録!AF121 -> 71 | C77: =【準備】登録!AI121 ->  | D77: =【準備】登録!AK121 ->  | I77: =【準備】登録!AL121 ->  | J77: =【準備】登録!AN121 ->  | P77: 71 | Q77: =D77&【準備】登録!AE121&J77 ->  | U77: =【準備】登録!AM121 ->  | V77: =【準備】登録!AJ121 -> 
A78: ="第"&【準備】登録!AE122&"節" ->  | B78: =【準備】登録!AF122 -> 72 | C78: =【準備】登録!AI122 ->  | D78: =【準備】登録!AK122 ->  | I78: =【準備】登録!AL122 ->  | J78: =【準備】登録!AN122 ->  | P78: 72 | Q78: =D78&【準備】登録!AE122&J78 ->  | U78: =【準備】登録!AM122 ->  | V78: =【準備】登録!AJ122 -> 
P79: =P7 -> 1 | Q79: =I7&【準備】登録!AE51&C7 -> 林 秀忠1HRC | R79: =IF(G7="","",G7) -> W | S79: =IF(H7="","",H7) ->  | T79: =IF(F7="","",F7) -> 130 | U79: =【準備】登録!AJ51 -> 180 | V79: =【準備】登録!AM51 -> 180
P80: =P8 -> 2 | Q80: =I8&【準備】登録!AE52&C8 -> 秋田 倫央1HRC | R80: =IF(G8="","",G8) -> 60 | S80: =IF(H8="","",H8) ->  | T80: =IF(F8="","",F8) -> W | U80: =【準備】登録!AJ52 -> 180 | V80: =【準備】登録!AM52 -> 180
P81: 3 | Q81: =I9&【準備】登録!AE53&C9 -> 大橋 正寛1HRC | R81: W | T81: 161 | U81: =【準備】登録!AJ53 -> 180 | V81: =【準備】登録!AM53 -> 180
P82: 4 | Q82: =I10&【準備】登録!AE54&C10 -> 大橋 義治1HRC | R82: W | T82: 167 | U82: =【準備】登録!AJ54 -> 180 | V82: =【準備】登録!AM54 -> 180
P83: 5 | Q83: =I11&【準備】登録!AE55&C11 -> 山中 康寛1HRC | R83: 92 | T83: W | U83: =【準備】登録!AJ55 -> 180 | V83: =【準備】登録!AM55 -> 180
P84: 6 | Q84: =I12&【準備】登録!AE56&C12 -> 大橋 洋子1HRC | R84: W | T84: 113 | U84: =【準備】登録!AJ56 -> 140 | V84: =【準備】登録!AM56 -> 140
P85: 7 | Q85: =I13&【準備】登録!AE57&C13 -> 林 秀忠1NRC | R85: W | T85: 43 | U85: =【準備】登録!AJ57 -> 180 | V85: =【準備】登録!AM57 -> 180
P86: 8 | Q86: =I14&【準備】登録!AE58&C14 -> 秋田 倫央1NRC | R86: 46 | T86: W | U86: =【準備】登録!AJ58 -> 180 | V86: =【準備】登録!AM58 -> 180
P87: 9 | Q87: =I15&【準備】登録!AE59&C15 -> 大橋 正寛1NRC | R87: 127 | T87: W | U87: =【準備】登録!AJ59 -> 180 | V87: =【準備】登録!AM59 -> 180
P88: 10 | Q88: =I16&【準備】登録!AE60&C16 -> 大橋 義治1NRC | R88: W | T88: 39 | U88: =【準備】登録!AJ60 -> 180 | V88: =【準備】登録!AM60 -> 180
P89: 11 | Q89: =I17&【準備】登録!AE61&C17 -> 山中 康寛1NRC | R89: W | T89: 153 | U89: =【準備】登録!AJ61 -> 180 | V89: =【準備】登録!AM61 -> 180
P90: 12 | Q90: =I18&【準備】登録!AE62&C18 -> 大橋 洋子1NRC | R90: 116 | T90: W | U90: =【準備】登録!AJ62 -> 140 | V90: =【準備】登録!AM62 -> 140
P91: 13 | Q91: =I19&【準備】登録!AE63&C19 -> 高木 俊行1NRC | R91: W | T91: 152 | U91: =【準備】登録!AJ63 -> 180 | V91: =【準備】登録!AM63 -> 180
P92: 14 | Q92: =I20&【準備】登録!AE64&C20 -> 金井 健太郎1NRC | R92: W | T92: 96 | U92: =【準備】登録!AJ64 -> 180 | V92: =【準備】登録!AM64 -> 180
P93: 15 | Q93: =I21&【準備】登録!AE65&C21 -> 平井 洸志1NRC | R93: 93 | T93: W | U93: =【準備】登録!AJ65 -> 180 | V93: =【準備】登録!AM65 -> 180
P94: 16 | Q94: =I22&【準備】登録!AE66&C22 -> 中尾 亮太1NRC | R94: W | T94: 136 | U94: =【準備】登録!AJ66 -> 180 | V94: =【準備】登録!AM66 -> 180
P95: 17 | Q95: =I23&【準備】登録!AE67&C23 -> 宮本 一1NRC | R95: W | T95: 40 | U95: =【準備】登録!AJ67 -> 180 | V95: =【準備】登録!AM67 -> 180
P96: 18 | Q96: =I24&【準備】登録!AE68&C24 -> 河地 恵里1NRC | R96: W | T96: 17 | U96: =【準備】登録!AJ68 -> 140 | V96: =【準備】登録!AM68 -> 140
P97: 19 | Q97: =I25&【準備】登録!AE69&C25 -> 大橋 正寛2HRC | R97: W | T97: 167 | U97: =【準備】登録!AJ69 -> 180 | V97: =【準備】登録!AM69 -> 180
P98: 20 | Q98: =I26&【準備】登録!AE70&C26 -> 大橋 義治2HRC | R98: W | T98: 160 | U98: =【準備】登録!AJ70 -> 180 | V98: =【準備】登録!AM70 -> 180
P99: 21 | Q99: =I27&【準備】登録!AE71&C27 -> 山中 康寛2HRC | R99: W | T99: 154 | U99: =【準備】登録!AJ71 -> 180 | V99: =【準備】登録!AM71 -> 180
P100: 22 | Q100: =I28&【準備】登録!AE72&C28 -> 大橋 洋子2HRC | R100: 59 | T100: W | U100: =【準備】登録!AJ72 -> 180 | V100: =【準備】登録!AM72 -> 140
P101: 23 | Q101: =I29&【準備】登録!AE73&C29 -> 林 秀忠2HRC | R101: 154 | T101: W | U101: =【準備】登録!AJ73 -> 140 | V101: =【準備】登録!AM73 -> 180
P102: 24 | Q102: =I30&【準備】登録!AE74&C30 -> 秋田 倫央2HRC | R102: W | T102: 128 | U102: =【準備】登録!AJ74 -> 180 | V102: =【準備】登録!AM74 -> 180
P103: 25 | Q103: =I31&【準備】登録!AE75&C31 -> 大橋 正寛2NRC | R103: W | T103: 45 | U103: =【準備】登録!AJ75 -> 180 | V103: =【準備】登録!AM75 -> 180
P104: 26 | Q104: =I32&【準備】登録!AE76&C32 -> 大橋 義治2NRC | R104: W | T104: 130 | U104: =【準備】登録!AJ76 -> 180 | V104: =【準備】登録!AM76 -> 180
P105: 27 | Q105: =I33&【準備】登録!AE77&C33 -> 山中 康寛2NRC | R105: 164 | T105: W | U105: =【準備】登録!AJ77 -> 180 | V105: =【準備】登録!AM77 -> 180
P106: 28 | Q106: =I34&【準備】登録!AE78&C34 -> 大橋 洋子2NRC | R106: 35 | T106: W | U106: =【準備】登録!AJ78 -> 180 | V106: =【準備】登録!AM78 -> 140
P107: 29 | Q107: =I35&【準備】登録!AE79&C35 -> 林 秀忠2NRC | R107: W | T107: 45 | U107: =【準備】登録!AJ79 -> 180 | V107: =【準備】登録!AM79 -> 180
P108: 30 | Q108: =I36&【準備】登録!AE80&C36 -> 秋田 倫央2NRC | R108: W | T108: 102 | U108: =【準備】登録!AJ80 -> 140 | V108: =【準備】登録!AM80 -> 180
P109: 31 | Q109: =I37&【準備】登録!AE81&C37 -> 金井 健太郎2NRC | R109: W | T109: 16 | U109: =【準備】登録!AJ81 -> 180 | V109: =【準備】登録!AM81 -> 180
P110: 32 | Q110: =I38&【準備】登録!AE82&C38 -> 平井 洸志2NRC | R110: 76 | T110: W | U110: =【準備】登録!AJ82 -> 180 | V110: =【準備】登録!AM82 -> 180
P111: 33 | Q111: =I39&【準備】登録!AE83&C39 -> 中尾 亮太2NRC | R111: W | T111: 102 | U111: =【準備】登録!AJ83 -> 180 | V111: =【準備】登録!AM83 -> 180
P112: 34 | Q112: =I40&【準備】登録!AE84&C40 -> 宮本 一2NRC | R112: W | T112: 56 | U112: =【準備】登録!AJ84 -> 180 | V112: =【準備】登録!AM84 -> 180
P113: 35 | Q113: =I41&【準備】登録!AE85&C41 -> 河地 恵里2NRC | R113: W | T113: 110 | U113: =【準備】登録!AJ85 -> 180 | V113: =【準備】登録!AM85 -> 140
P114: 36 | Q114: =I42&【準備】登録!AE86&C42 -> 高木 俊行2NRC | R114: W | T114: 56 | U114: =【準備】登録!AJ86 -> 140 | V114: =【準備】登録!AM86 -> 180
P115: 37 | Q115: =I43&【準備】登録!AE87&C43 -> 山中 康寛3HRC | R115: 37 | T115: W | U115: =【準備】登録!AJ87 -> 180 | V115: =【準備】登録!AM87 -> 180
P116: 38 | Q116: =I44&【準備】登録!AE88&C44 -> 大橋 洋子3HRC | R116: W | T116: 88 | U116: =【準備】登録!AJ88 -> 180 | V116: =【準備】登録!AM88 -> 140
P117: 39 | Q117: =I45&【準備】登録!AE89&C45 -> 林 秀忠3HRC | R117: W | S117: 105 | T117: 130 | U117: =【準備】登録!AJ89 -> 180 | V117: =【準備】登録!AM89 -> 180
P118: 40 | Q118: =I46&【準備】登録!AE90&C46 -> 秋田 倫央3HRC | R118: W | T118: 79 | U118: =【準備】登録!AJ90 -> 140 | V118: =【準備】登録!AM90 -> 180
P119: 41 | Q119: =I47&【準備】登録!AE91&C47 -> 大橋 正寛3HRC | R119: W | T119: 47 | U119: =【準備】登録!AJ91 -> 180 | V119: =【準備】登録!AM91 -> 180
P120: 42 | Q120: =I48&【準備】登録!AE92&C48 -> 大橋 義治3HRC | R120: 91 | T120: W | U120: =【準備】登録!AJ92 -> 180 | V120: =【準備】登録!AM92 -> 180
P121: 43 | Q121: =I49&【準備】登録!AE93&C49 -> 山中 康寛3NRC | R121: 83 | T121: W | U121: =【準備】登録!AJ93 -> 180 | V121: =【準備】登録!AM93 -> 180
P122: 44 | Q122: =I50&【準備】登録!AE94&C50 -> 大橋 洋子3NRC | R122: 111 | T122: W | U122: =【準備】登録!AJ94 -> 180 | V122: =【準備】登録!AM94 -> 140
P123: 45 | Q123: =I51&【準備】登録!AE95&C51 -> 林 秀忠3NRC | R123: W | T123: 70 | U123: =【準備】登録!AJ95 -> 180 | V123: =【準備】登録!AM95 -> 180
P124: 46 | Q124: =I52&【準備】登録!AE96&C52 -> 秋田 倫央3NRC | R124: 168 | T124: W | U124: =【準備】登録!AJ96 -> 180 | V124: =【準備】登録!AM96 -> 180
P125: 47 | Q125: =I53&【準備】登録!AE97&C53 -> 大橋 正寛3NRC | R125: W | T125: 113 | U125: =【準備】登録!AJ97 -> 180 | V125: =【準備】登録!AM97 -> 180
P126: 48 | Q126: =I54&【準備】登録!AE98&C54 -> 大橋 義治3NRC | R126: W | T126: 98 | U126: =【準備】登録!AJ98 -> 140 | V126: =【準備】登録!AM98 -> 180
P127: 49 | Q127: =I55&【準備】登録!AE99&C55 -> 平井 洸志3NRC | R127: 49 | T127: W | U127: =【準備】登録!AJ99 -> 180 | V127: =【準備】登録!AM99 -> 180
P128: 50 | Q128: =I56&【準備】登録!AE100&C56 -> 中尾 亮太3NRC | R128: W | T128: 88 | U128: =【準備】登録!AJ100 -> 180 | V128: =【準備】登録!AM100 -> 180
P129: 51 | Q129: =I57&【準備】登録!AE101&C57 -> 宮本 一3NRC | R129: W | T129: 147 | U129: =【準備】登録!AJ101 -> 180 | V129: =【準備】登録!AM101 -> 180
P130: 52 | Q130: =I58&【準備】登録!AE102&C58 -> 河地 恵里3NRC | R130: W | T130: 83 | U130: =【準備】登録!AJ102 -> 180 | V130: =【準備】登録!AM102 -> 140
P131: 53 | Q131: =I59&【準備】登録!AE103&C59 -> 高木 俊行3NRC | R131: W | T131: 118 | U131: =【準備】登録!AJ103 -> 180 | V131: =【準備】登録!AM103 -> 180
P132: 54 | Q132: =I60&【準備】登録!AE104&C60 -> 金井 健太郎3NRC | R132: W | S132: 115 | T132: 55 | U132: =【準備】登録!AJ104 -> 140 | V132: =【準備】登録!AM104 -> 180
P133: 55 | Q133: =I61&【準備】登録!AE105&C61 ->  | U133: =【準備】登録!AJ105 ->  | V133: =【準備】登録!AM105 -> 
P134: 56 | Q134: =I62&【準備】登録!AE106&C62 ->  | U134: =【準備】登録!AJ106 ->  | V134: =【準備】登録!AM106 -> 
P135: 57 | Q135: =I63&【準備】登録!AE107&C63 ->  | U135: =【準備】登録!AJ107 ->  | V135: =【準備】登録!AM107 -> 
P136: 58 | Q136: =I64&【準備】登録!AE108&C64 ->  | U136: =【準備】登録!AJ108 ->  | V136: =【準備】登録!AM108 -> 
P137: 59 | Q137: =I65&【準備】登録!AE109&C65 ->  | U137: =【準備】登録!AJ109 ->  | V137: =【準備】登録!AM109 -> 
P138: 60 | Q138: =I66&【準備】登録!AE110&C66 ->  | U138: =【準備】登録!AJ110 ->  | V138: =【準備】登録!AM110 -> 
P139: 61 | Q139: =I67&【準備】登録!AE111&C67 ->  | U139: =【準備】登録!AJ111 ->  | V139: =【準備】登録!AM111 -> 
P140: 62 | Q140: =I68&【準備】登録!AE112&C68 ->  | U140: =【準備】登録!AJ112 ->  | V140: =【準備】登録!AM112 -> 
P141: 63 | Q141: =I69&【準備】登録!AE113&C69 ->  | U141: =【準備】登録!AJ113 ->  | V141: =【準備】登録!AM113 -> 
P142: 64 | Q142: =I70&【準備】登録!AE114&C70 ->  | U142: =【準備】登録!AJ114 ->  | V142: =【準備】登録!AM114 -> 
P143: 65 | Q143: =I71&【準備】登録!AE115&C71 ->  | U143: =【準備】登録!AJ115 ->  | V143: =【準備】登録!AM115 -> 
P144: =P72 -> 66 | Q144: =I72&【準備】登録!AE116&C72 ->  | R144: =IF(G72="","",G72) ->  | S144: =IF(H72="","",H72) ->  | T144: =IF(F72="","",F72) ->  | U144: =【準備】登録!AJ116 ->  | V144: =【準備】登録!AM116 -> 
P145: 67 | Q145: =I73&【準備】登録!AE117&C73 ->  | U145: =【準備】登録!AJ117 ->  | V145: =【準備】登録!AM117 -> 
P146: 68 | Q146: =I74&【準備】登録!AE118&C74 ->  | U146: =【準備】登録!AJ118 ->  | V146: =【準備】登録!AM118 -> 
P147: 69 | Q147: =I75&【準備】登録!AE119&C75 ->  | U147: =【準備】登録!AJ119 ->  | V147: =【準備】登録!AM119 -> 
P148: 70 | Q148: =I76&【準備】登録!AE120&C76 ->  | U148: =【準備】登録!AJ120 ->  | V148: =【準備】登録!AM120 -> 
P149: 71 | Q149: =I77&【準備】登録!AE121&C77 ->  | U149: =【準備】登録!AJ121 ->  | V149: =【準備】登録!AM121 -> 
P150: 72 | Q150: =I78&【準備】登録!AE122&C78 ->  | U150: =【準備】登録!AJ122 ->  | V150: =【準備】登録!AM122 -> 

Sheet 【結果】リーグ成績表
D1: =【結果】個人成績表!A1 -> 第9回 神奈滋対抗戦 (奈良；キングスポット)
BG2: =【準備】登録!D4 -> 2021-03-21
D3: 1 | E3: st Section | Z3: 2 | AA3: nd Section | AV3: 3 | AW3: rd Section
D4: =【準備】登録!D9 -> 1 | F4: Name | H4: 持点 | I4: =$D$5 -> SBC | K4: =$D$6 -> HRC | M4: =$D$7 -> NRC | O4: W | P4: L | Q4: TP | S4: TP | T4: LP | U4: R_P | V4: R | Z4: 1 | AB4: Name | AD4: =$H$4 -> 持点 | AE4: =$D$5 -> SBC | AG4: =$D$6 -> HRC | AI4: =$D$7 -> NRC | AK4: W | AL4: L | AM4: TP | AO4: TP | AP4: LP | AQ4: R_P | AR4: R | AV4: 1 | AX4: Name | AZ4: =$H$4 -> 持点 | BA4: =$D$5 -> SBC | BC4: =$D$6 -> HRC | BE4: =$D$7 -> NRC | BG4: W | BH4: L | BI4: TP | BK4: TP | BL4: LP | BM4: R_P | BN4: R
A5: 3 | B5: 1 | D5: =IF(【準備】登録!$B$11="","",【準備】登録!$B$11) -> SBC | F5: =VLOOKUP(VALUE(A5&B5),【準備】登録!$AI$5:$AL$28,3,FALSE) -> 林 秀忠 | H5: =VLOOKUP(F5,【準備】登録!$AK$4:$AL$27,2,FALSE) -> 180 | K5: =IF(ISERROR(VLOOKUP($F5&$D$3&K$4,【進行】結果入力表!$Q$7:$V$150,2,FALSE)),"",VLOOKUP($F5&$D$3&K$4,【進行】結果入力表!$Q$7:$V$150,2,FALSE)) -> W | M5: =IF(ISERROR(VLOOKUP($F5&$D$3&M$4,【進行】結果入力表!$Q$7:$V$150,2,FALSE)),"",VLOOKUP($F5&$D$3&M$4,【進行】結果入力表!$Q$7:$V$150,2,FALSE)) -> W | O5: =IF(M5="","",COUNTIF(I5:N5,"w")) -> 2 | P5: =IF(M5="","",COUNT(K5,M5)) -> 0 | Q5: =SUM(I5:N5)+O5*H5 -> 360 | S5: =IF(M5="","",Q5/H5*180) -> 360 | T5: =IF(I6="w",180,I6/H5*180)+IF(I7="w",180,I7/H5*180) -> 173 | U5: =O5*10000000+S5*O10004*10000000+S5*1000-T5 -> 20359827 | V5: =IF(M5="","",RANK(U5:U7,U5:U7,0)) -> 1 | X5: 3 | Y5: 3 | Z5: =IF(【準備】登録!$B$11="","",【準備】登録!$B$11) -> SBC | AB5: =VLOOKUP(VALUE(X5&Y5),【準備】登録!$AI$5:$AL$28,3,FALSE) -> 大橋 正寛 | AD5: =VLOOKUP(AB5,【準備】登録!$AK$4:$AL$27,2,FALSE) -> 180 | AG5: =IF(ISERROR(VLOOKUP($AB5&$Z$3&AG$4,【進行】結果入力表!$Q$7:$V$150,2,FALSE)),"",VLOOKUP($AB5&$Z$3&AG$4,【進行】結果入力表!$Q$7:$V$150,2,FALSE)) -> W | AI5: =IF(ISERROR(VLOOKUP($AB5&$Z$3&AI$4,【進行】結果入力表!$Q$7:$V$150,2,FALSE)),"",VLOOKUP($AB5&$Z$3&AI$4,【進行】結果入力表!$Q$7:$V$150,2,FALSE)) -> W | AK5: =IF(AI5="","",COUNTIF(AE5:AJ5,"w")) -> 2 | AL5: =IF(AI5="","",COUNT(AG5,AI5)) -> 0 | AM5: =SUM(AE5:AJ5)+AK5*AD5 -> 360 | AO5: =IF(AI5="","",AM5/AD5*180) -> 360 | AP5: =IF(AE6="w",180,AE6/AD5*180)+IF(AE7="w",180,AE7/AD5*180) -> 212 | AQ5: =AK5*10000000+AO5*AK10004*10000000+AO5*1000-AP5 -> 20359788 | AR5: =IF(AI5="","",RANK(AQ5:AQ7,AQ5:AQ7,0)) -> 1 | AT5: 3 | AU5: 5 | AV5: =IF(【準備】登録!$B$11="","",【準備】登録!$B$11) -> SBC | AX5: =VLOOKUP(VALUE(AT5&AU5),【準備】登録!$AI$5:$AL$28,3,FALSE) -> 山中 康寛 | AZ5: =VLOOKUP(AX5,【準備】登録!$AK$4:$AL$27,2,FALSE) -> 180 | BC5: =IF(ISERROR(VLOOKUP($AX5&$AV$3&BC$4,【進行】結果入力表!$Q$7:$V$150,2,FALSE)),"",VLOOKUP($AX5&$AV$3&BC$4,【進行】結果入力表!$Q$7:$V$150,2,FALSE)) -> 37 | BE5: =IF(ISERROR(VLOOKUP($AX5&$AV$3&BE$4,【進行】結果入力表!$Q$7:$V$150,2,FALSE)),"",VLOOKUP($AX5&$AV$3&BE$4,【進行】結果入力表!$Q$7:$V$150,2,FALSE)) -> 83 | BG5: =IF(BE5="","",COUNTIF(BA5:BF5,"w")) -> 0 | BH5: =IF(BE5="","",COUNT(BC5,BE5)) -> 2 | BI5: =SUM(BA5:BF5)+BG5*AZ5 -> 120 | BK5: =IF(BE5="","",BI5/AZ5*180) -> 120 | BL5: =IF(BA6="w",180,BA6/AZ5*180)+IF(BA7="w",180,BA7/AZ5*180) -> 360 | BM5: =BG5*10000000+BK5*BG10004*10000000+BK5*1000-BL5 -> 119640 | BN5: =IF(BE5="","",RANK(BM5:BM7,BM5:BM7,0)) -> 3
A6: 2 | B6: 1 | D6: =IF(【準備】登録!$B$12="","",【準備】登録!$B$12) -> HRC | F6: =VLOOKUP(VALUE(A6&B6),【準備】登録!$AI$5:$AL$28,3,FALSE) -> 高木 俊行 | H6: =VLOOKUP(F6,【準備】登録!$AK$4:$AL$27,2,FALSE) -> 180 | I6: =IF(ISERROR(VLOOKUP($F6&$D$3&I$4,【進行】結果入力表!$Q$7:$V$150,2,FALSE)),"",VLOOKUP($F6&$D$3&I$4,【進行】結果入力表!$Q$7:$V$150,2,FALSE)) -> 130 | M6: =IF(ISERROR(VLOOKUP($F6&$D$3&M$4,【進行】結果入力表!$Q$7:$V$150,2,FALSE)),"",VLOOKUP($F6&$D$3&M$4,【進行】結果入力表!$Q$7:$V$150,2,FALSE)) -> W | O6: =IF(M5="","",COUNTIF(I6:N6,"w")) -> 1 | P6: =IF(M5="","",COUNT(I6,M6)) -> 1 | Q6: =SUM(I6:N6)+O6*H6 -> 310 | S6: =IF(M5="","",Q6/H6*180) -> 310 | T6: =IF(K5="w",180,K5/H6*180)+IF(K7="w",180,K7/H6*180) -> 332 | U6: =O6*10000000+S6*O10005*10000000+S6*1000-T6 -> 10309668 | V6: =IF(M5="","",RANK(U5:U7,U5:U7,0)) -> 2 | X6: 2 | Y6: 2 | Z6: =IF(【準備】登録!$B$12="","",【準備】登録!$B$12) -> HRC | AB6: =VLOOKUP(VALUE(X6&Y6),【準備】登録!$AI$5:$AL$28,3,FALSE) -> 金井 健太郎 | AD6: =VLOOKUP(AB6,【準備】登録!$AK$4:$AL$27,2,FALSE) -> 180 | AE6: =IF(ISERROR(VLOOKUP($AB6&$Z$3&AE$4,【進行】結果入力表!$Q$7:$V$150,2,FALSE)),"",VLOOKUP($AB6&$Z$3&AE$4,【進行】結果入力表!$Q$7:$V$150,2,FALSE)) -> 167 | AI6: =IF(ISERROR(VLOOKUP($AB6&$Z$3&AI$4,【進行】結果入力表!$Q$7:$V$150,2,FALSE)),"",VLOOKUP($AB6&$Z$3&AI$4,【進行】結果入力表!$Q$7:$V$150,2,FALSE)) -> W | AK6: =IF(AI5="","",COUNTIF(AE6:AJ6,"w")) -> 1 | AL6: =IF(AI5="","",COUNT(AE6,AI6)) -> 1 | AM6: =SUM(AE6:AJ6)+AK6*AD6 -> 347 | AO6: =IF(AI5="","",AM6/AD6*180) -> 347 | AP6: =IF(AG5="w",180,AG5/AD6*180)+IF(AG7="w",180,AG7/AD6*180) -> 196 | AQ6: =AK6*10000000+AO6*AK10005*10000000+AO6*1000-AP6 -> 10346804 | AR6: =IF(AI5="","",RANK(AQ5:AQ7,AQ5:AQ7,0)) -> 2 | AT6: 2 | AU6: 3 | AV6: =IF(【準備】登録!$B$12="","",【準備】登録!$B$12) -> HRC | AX6: =VLOOKUP(VALUE(AT6&AU6),【準備】登録!$AI$5:$AL$28,3,FALSE) -> 平井 洸志 | AZ6: =VLOOKUP(AX6,【準備】登録!$AK$4:$AL$27,2,FALSE) -> 180 | BA6: =IF(ISERROR(VLOOKUP($AX6&$AV$3&BA$4,【進行】結果入力表!$Q$7:$V$150,2,FALSE)),"",VLOOKUP($AX6&$AV$3&BA$4,【進行】結果入力表!$Q$7:$V$150,2,FALSE)) -> W | BE6: =IF(ISERROR(VLOOKUP($AX6&$AV$3&BE$4,【進行】結果入力表!$Q$7:$V$150,2,FALSE)),"",VLOOKUP($AX6&$AV$3&BE$4,【進行】結果入力表!$Q$7:$V$150,2,FALSE)) -> 49 | BG6: =IF(BE5="","",COUNTIF(BA6:BF6,"w")) -> 1 | BH6: =IF(BE5="","",COUNT(BA6,BE6)) -> 1 | BI6: =SUM(BA6:BF6)+BG6*AZ6 -> 229 | BK6: =IF(BE5="","",BI6/AZ6*180) -> 229 | BL6: =IF(BC5="w",180,BC5/AZ6*180)+IF(BC7="w",180,BC7/AZ6*180) -> 217 | BM6: =BG6*10000000+BK6*BG10005*10000000+BK6*1000-BL6 -> 10228783 | BN6: =IF(BE5="","",RANK(BM5:BM7,BM5:BM7,0)) -> 2
A7: 1 | B7: 1 | D7: =IF(【準備】登録!$B$13="","",【準備】登録!$B$13) -> NRC | F7: =VLOOKUP(VALUE(A7&B7),【準備】登録!$AI$5:$AL$28,3,FALSE) -> 岩本 剛 | H7: =VLOOKUP(F7,【準備】登録!$AK$4:$AL$27,2,FALSE) -> 180 | I7: =IF(ISERROR(VLOOKUP($F7&$D$3&I$4,【進行】結果入力表!$Q$7:$V$150,2,FALSE)),"",VLOOKUP($F7&$D$3&I$4,【進行】結果入力表!$Q$7:$V$150,2,FALSE)) -> 43 | K7: =IF(ISERROR(VLOOKUP($F7&$D$3&K$4,【進行】結果入力表!$Q$7:$V$150,2,FALSE)),"",VLOOKUP($F7&$D$3&K$4,【進行】結果入力表!$Q$7:$V$150,2,FALSE)) -> 152 | O7: =IF(M5="","",COUNTIF(I7:N7,"w")) -> 0 | P7: =IF(M5="","",COUNT(I7,K7)) -> 2 | Q7: =SUM(I7:N7)+O7*H7 -> 195 | S7: =IF(M5="","",Q7/H7*180) -> 195 | T7: =IF(M5="w",180,M5/H7*180)+IF(M6="w",180,M6/H7*180) -> 360 | U7: =O7*10000000+S7*O10006*10000000+S7*1000-T7 -> 194640 | V7: =IF(M5="","",RANK(U5:U7,U5:U7,0)) -> 3 | X7: 1 | Y7: 1 | Z7: =IF(【準備】登録!$B$13="","",【準備】登録!$B$13) -> NRC | AB7: =VLOOKUP(VALUE(X7&Y7),【準備】登録!$AI$5:$AL$28,3,FALSE) -> 岩本 剛 | AD7: =VLOOKUP(AB7,【準備】登録!$AK$4:$AL$27,2,FALSE) -> 180 | AE7: =IF(ISERROR(VLOOKUP($AB7&$Z$3&AE$4,【進行】結果入力表!$Q$7:$V$150,2,FALSE)),"",VLOOKUP($AB7&$Z$3&AE$4,【進行】結果入力表!$Q$7:$V$150,2,FALSE)) -> 45 | AG7: =IF(ISERROR(VLOOKUP($AB7&$Z$3&AG$4,【進行】結果入力表!$Q$7:$V$150,2,FALSE)),"",VLOOKUP($AB7&$Z$3&AG$4,【進行】結果入力表!$Q$7:$V$150,2,FALSE)) -> 16 | AK7: =IF(AI5="","",COUNTIF(AE7:AJ7,"w")) -> 0 | AL7: =IF(AI5="","",COUNT(AE7,AG7)) -> 2 | AM7: =SUM(AE7:AJ7)+AK7*AD7 -> 61 | AO7: =IF(AI5="","",AM7/AD7*180) -> 61 | AP7: =IF(AI5="w",180,AI5/AD7*180)+IF(AI6="w",180,AI6/AD7*180) -> 360 | AQ7: =AK7*10000000+AO7*AK10006*10000000+AO7*1000-AP7 -> 60640 | AR7: =IF(AI5="","",RANK(AQ5:AQ7,AQ5:AQ7,0)) -> 3 | AT7: 1 | AU7: 1 | AV7: =IF(【準備】登録!$B$13="","",【準備】登録!$B$13) -> NRC | AX7: =VLOOKUP(VALUE(AT7&AU7),【準備】登録!$AI$5:$AL$28,3,FALSE) -> 岩本 剛 | AZ7: =VLOOKUP(AX7,【準備】登録!$AK$4:$AL$27,2,FALSE) -> 180 | BA7: =IF(ISERROR(VLOOKUP($AX7&$AV$3&BA$4,【進行】結果入力表!$Q$7:$V$150,2,FALSE)),"",VLOOKUP($AX7&$AV$3&BA$4,【進行】結果入力表!$Q$7:$V$150,2,FALSE)) -> W | BC7: =IF(ISERROR(VLOOKUP($AX7&$AV$3&BC$4,【進行】結果入力表!$Q$7:$V$150,2,FALSE)),"",VLOOKUP($AX7&$AV$3&BC$4,【進行】結果入力表!$Q$7:$V$150,2,FALSE)) -> W | BG7: =IF(BE5="","",COUNTIF(BA7:BF7,"w")) -> 2 | BH7: =IF(BE5="","",COUNT(BA7,BC7)) -> 0 | BI7: =SUM(BA7:BF7)+BG7*AZ7 -> 360 | BK7: =IF(BE5="","",BI7/AZ7*180) -> 360 | BL7: =IF(BE5="w",180,BE5/AZ7*180)+IF(BE6="w",180,BE6/AZ7*180) -> 132 | BM7: =BG7*10000000+BK7*BG10006*10000000+BK7*1000-BL7 -> 20359868 | BN7: =IF(BE5="","",RANK(BM5:BM7,BM5:BM7,0)) -> 1
D9: 2 | F9: Name | H9: =$H$4 -> 持点 | I9: =$D$5 -> SBC | K9: =$D$6 -> HRC | M9: =$D$7 -> NRC | O9: W | P9: L | Q9: TP | S9: TP | T9: LP | U9: R_P | V9: R | Z9: 2 | AB9: Name | AD9: =$H$4 -> 持点 | AE9: =$D$5 -> SBC | AG9: =$D$6 -> HRC | AI9: =$D$7 -> NRC | AK9: W | AL9: L | AM9: TP | AO9: TP | AP9: LP | AQ9: R_P | AR9: R | AV9: 2 | AX9: Name | AZ9: =$H$4 -> 持点 | BA9: =$D$5 -> SBC | BC9: =$D$6 -> HRC | BE9: =$D$7 -> NRC | BG9: W | BH9: L | BI9: TP | BK9: TP | BL9: LP | BM9: R_P | BN9: R
A10: 3 | B10: 2 | D10: =$D$5 -> SBC | F10: =VLOOKUP(VALUE($A10&$D9),【準備】登録!$AI$5:$AL$28,3,FALSE) -> 秋田 倫央 | H10: =VLOOKUP(F10,【準備】登録!$AK$4:$AL$27,2,FALSE) -> 180 | K10: =IF(ISERROR(VLOOKUP($F10&$D$3&K$4,【進行】結果入力表!$Q$7:$V$150,2,FALSE)),"",VLOOKUP($F10&$D$3&K$4,【進行】結果入力表!$Q$7:$V$150,2,FALSE)) -> 60 | M10: =IF(ISERROR(VLOOKUP($F10&$D$3&M$4,【進行】結果入力表!$Q$7:$V$150,2,FALSE)),"",VLOOKUP($F10&$D$3&M$4,【進行】結果入力表!$Q$7:$V$150,2,FALSE)) -> 46 | O10: =IF(M10="","",COUNTIF(I10:N10,"w")) -> 0 | P10: =IF(M10="","",COUNT(K10,M10)) -> 2 | Q10: =SUM(I10:N10)+O10*H10 -> 106 | S10: =IF(M10="","",Q10/H10*180) -> 106 | T10: =IF(I11="w",180,I11/H10*180)+IF(I12="w",180,I12/H10*180) -> 360 | U10: =O10*10000000+S10*O10009*10000000+S10*1000-T10 -> 105640 | V10: =IF(M10="","",RANK(U10:U12,U10:U12,0)) -> 3 | X10: 3 | Y10: 4 | Z10: =$D$5 -> SBC | AB10: =VLOOKUP(VALUE(X10&Y10),【準備】登録!$AI$5:$AL$28,3,FALSE) -> 大橋 義治 | AD10: =VLOOKUP(AB10,【準備】登録!$AK$4:$AL$27,2,FALSE) -> 180 | AG10: =IF(ISERROR(VLOOKUP($AB10&$Z$3&AG$4,【進行】結果入力表!$Q$7:$V$150,2,FALSE)),"",VLOOKUP($AB10&$Z$3&AG$4,【進行】結果入力表!$Q$7:$V$150,2,FALSE)) -> W | AI10: =IF(ISERROR(VLOOKUP($AB10&$Z$3&AI$4,【進行】結果入力表!$Q$7:$V$150,2,FALSE)),"",VLOOKUP($AB10&$Z$3&AI$4,【進行】結果入力表!$Q$7:$V$150,2,FALSE)) -> W | AK10: =IF(AI10="","",COUNTIF(AE10:AJ10,"w")) -> 2 | AL10: =IF(AI10="","",COUNT(AG10,AI10)) -> 0 | AM10: =SUM(AE10:AJ10)+AK10*AD10 -> 360 | AO10: =IF(AI10="","",AM10/AD10*180) -> 360 | AP10: =IF(AE11="w",180,AE11/AD10*180)+IF(AE12="w",180,AE12/AD10*180) -> 290 | AQ10: =AK10*10000000+AO10*AK10009*10000000+AO10*1000-AP10 -> 20359710 | AR10: =IF(AI10="","",RANK(AQ10:AQ12,AQ10:AQ12,0)) -> 1 | AT10: 3 | AU10: =IF(【準備】登録!U6=5,1,6) -> 6 | AV10: =$D$5 -> SBC | AX10: =VLOOKUP(VALUE(AT10&AU10),【準備】登録!$AI$5:$AL$28,3,FALSE) -> 大橋 洋子 | AZ10: =VLOOKUP(AX10,【準備】登録!$AK$4:$AL$27,2,FALSE) -> 140 | BC10: =IF(ISERROR(VLOOKUP($AX10&$AV$3&BC$4,【進行】結果入力表!$Q$7:$V$150,2,FALSE)),"",VLOOKUP($AX10&$AV$3&BC$4,【進行】結果入力表!$Q$7:$V$150,2,FALSE)) -> W | BE10: =IF(ISERROR(VLOOKUP($AX10&$AV$3&BE$4,【進行】結果入力表!$Q$7:$V$150,2,FALSE)),"",VLOOKUP($AX10&$AV$3&BE$4,【進行】結果入力表!$Q$7:$V$150,2,FALSE)) -> 111 | BG10: =IF(BE10="","",COUNTIF(BA10:BF10,"w")) -> 1 | BH10: =IF(BE10="","",COUNT(BC10,BE10)) -> 1 | BI10: =SUM(BA10:BF10)+BG10*AZ10 -> 251 | BK10: =IF(BE10="","",BI10/AZ10*180) -> 322.7142857 | BL10: =IF(BA11="w",180,BA11/AZ10*180)+IF(BA12="w",180,BA12/AZ10*180) -> 293.1428571 | BM10: =BG10*10000000+BK10*BG10009*10000000+BK10*1000-BL10 -> 10322421.14 | BN10: =IF(BE10="","",RANK(BM10:BM12,BM10:BM12,0)) -> 1
A11: 2 | B11: 2 | D11: =$D$6 -> HRC | F11: =VLOOKUP(VALUE($A11&$D9),【準備】登録!$AI$5:$AL$28,3,FALSE) -> 金井 健太郎 | H11: =VLOOKUP(F11,【準備】登録!$AK$4:$AL$27,2,FALSE) -> 180 | I11: =IF(ISERROR(VLOOKUP($F11&$D$3&I$4,【進行】結果入力表!$Q$7:$V$150,2,FALSE)),"",VLOOKUP($F11&$D$3&I$4,【進行】結果入力表!$Q$7:$V$150,2,FALSE)) -> W | M11: =IF(ISERROR(VLOOKUP($F11&$D$3&M$4,【進行】結果入力表!$Q$7:$V$150,2,FALSE)),"",VLOOKUP($F11&$D$3&M$4,【進行】結果入力表!$Q$7:$V$150,2,FALSE)) -> W | O11: =IF(M10="","",COUNTIF(I11:N11,"w")) -> 2 | P11: =IF(M10="","",COUNT(I11,M11)) -> 0 | Q11: =SUM(I11:N11)+O11*H11 -> 360 | S11: =IF(M10="","",Q11/H11*180) -> 360 | T11: =IF(K10="w",180,K10/H11*180)+IF(K12="w",180,K12/H11*180) -> 156 | U11: =O11*10000000+S11*O10010*10000000+S11*1000-T11 -> 20359844 | V11: =IF(M10="","",RANK(U10:U12,U10:U12,0)) -> 1 | X11: 2 | Y11: 3 | Z11: =$D$6 -> HRC | AB11: =VLOOKUP(VALUE(X11&Y11),【準備】登録!$AI$5:$AL$28,3,FALSE) -> 平井 洸志 | AD11: =VLOOKUP(AB11,【準備】登録!$AK$4:$AL$27,2,FALSE) -> 180 | AE11: =IF(ISERROR(VLOOKUP($AB11&$Z$3&AE$4,【進行】結果入力表!$Q$7:$V$150,2,FALSE)),"",VLOOKUP($AB11&$Z$3&AE$4,【進行】結果入力表!$Q$7:$V$150,2,FALSE)) -> 160 | AI11: =IF(ISERROR(VLOOKUP($AB11&$Z$3&AI$4,【進行】結果入力表!$Q$7:$V$150,2,FALSE)),"",VLOOKUP($AB11&$Z$3&AI$4,【進行】結果入力表!$Q$7:$V$150,2,FALSE)) -> 76 | AK11: =IF(AI10="","",COUNTIF(AE11:AJ11,"w")) -> 0 | AL11: =IF(AI10="","",COUNT(AE11,AI11)) -> 2 | AM11: =SUM(AE11:AJ11)+AK11*AD11 -> 236 | AO11: =IF(AI10="","",AM11/AD11*180) -> 236 | AP11: =IF(AG10="w",180,AG10/AD11*180)+IF(AG12="w",180,AG12/AD11*180) -> 360 | AQ11: =AK11*10000000+AO11*AK10010*10000000+AO11*1000-AP11 -> 235640 | AR11: =IF(AI10="","",RANK(AQ10:AQ12,AQ10:AQ12,0)) -> 3 | AT11: 2 | AU11: 4 | AV11: =$D$6 -> HRC | AX11: =VLOOKUP(VALUE(AT11&AU11),【準備】登録!$AI$5:$AL$28,3,FALSE) -> 中尾 亮太 | AZ11: =VLOOKUP(AX11,【準備】登録!$AK$4:$AL$27,2,FALSE) -> 180 | BA11: =IF(ISERROR(VLOOKUP($AX11&$AV$3&BA$4,【進行】結果入力表!$Q$7:$V$150,2,FALSE)),"",VLOOKUP($AX11&$AV$3&BA$4,【進行】結果入力表!$Q$7:$V$150,2,FALSE)) -> 88 | BE11: =IF(ISERROR(VLOOKUP($AX11&$AV$3&BE$4,【進行】結果入力表!$Q$7:$V$150,2,FALSE)),"",VLOOKUP($AX11&$AV$3&BE$4,【進行】結果入力表!$Q$7:$V$150,2,FALSE)) -> W | BG11: =IF(BE10="","",COUNTIF(BA11:BF11,"w")) -> 1 | BH11: =IF(BE10="","",COUNT(BA11,BE11)) -> 1 | BI11: =SUM(BA11:BF11)+BG11*AZ11 -> 268 | BK11: =IF(BE10="","",BI11/AZ11*180) -> 268 | BL11: =IF(BC10="w",180,BC10/AZ11*180)+IF(BC12="w",180,BC12/AZ11*180) -> 268 | BM11: =BG11*10000000+BK11*BG10010*10000000+BK11*1000-BL11 -> 10267732 | BN11: =IF(BE10="","",RANK(BM10:BM12,BM10:BM12,0)) -> 2
A12: 1 | B12: 2 | D12: =$D$7 -> NRC | F12: =VLOOKUP(VALUE($A12&$D9),【準備】登録!$AI$5:$AL$28,3,FALSE) -> 吉向 翔平 | H12: =VLOOKUP(F12,【準備】登録!$AK$4:$AL$27,2,FALSE) -> 180 | I12: =IF(ISERROR(VLOOKUP($F12&$D$3&I$4,【進行】結果入力表!$Q$7:$V$150,2,FALSE)),"",VLOOKUP($F12&$D$3&I$4,【進行】結果入力表!$Q$7:$V$150,2,FALSE)) -> W | K12: =IF(ISERROR(VLOOKUP($F12&$D$3&K$4,【進行】結果入力表!$Q$7:$V$150,2,FALSE)),"",VLOOKUP($F12&$D$3&K$4,【進行】結果入力表!$Q$7:$V$150,2,FALSE)) -> 96 | O12: =IF(M10="","",COUNTIF(I12:N12,"w")) -> 1 | P12: =IF(M10="","",COUNT(I12,K12)) -> 1 | Q12: =SUM(I12:N12)+O12*H12 -> 276 | S12: =IF(M10="","",Q12/H12*180) -> 276 | T12: =IF(M10="w",180,M10/H12*180)+IF(M11="w",180,M11/H12*180) -> 226 | U12: =O12*10000000+S12*O10011*10000000+S12*1000-T12 -> 10275774 | V12: =IF(M10="","",RANK(U10:U12,U10:U12,0)) -> 2 | X12: 1 | Y12: 2 | Z12: =$D$7 -> NRC | AB12: =VLOOKUP(VALUE(X12&Y12),【準備】登録!$AI$5:$AL$28,3,FALSE) -> 吉向 翔平 | AD12: =VLOOKUP(AB12,【準備】登録!$AK$4:$AL$27,2,FALSE) -> 180 | AE12: =IF(ISERROR(VLOOKUP($AB12&$Z$3&AE$4,【進行】結果入力表!$Q$7:$V$150,2,FALSE)),"",VLOOKUP($AB12&$Z$3&AE$4,【進行】結果入力表!$Q$7:$V$150,2,FALSE)) -> 130 | AG12: =IF(ISERROR(VLOOKUP($AB12&$Z$3&AG$4,【進行】結果入力表!$Q$7:$V$150,2,FALSE)),"",VLOOKUP($AB12&$Z$3&AG$4,【進行】結果入力表!$Q$7:$V$150,2,FALSE)) -> W | AK12: =IF(AI10="","",COUNTIF(AE12:AJ12,"w")) -> 1 | AL12: =IF(AI10="","",COUNT(AE12,AG12)) -> 1 | AM12: =SUM(AE12:AJ12)+AK12*AD12 -> 310 | AO12: =IF(AI10="","",AM12/AD12*180) -> 310 | AP12: =IF(AI10="w",180,AI10/AD12*180)+IF(AI11="w",180,AI11/AD12*180) -> 256 | AQ12: =AK12*10000000+AO12*AK10011*10000000+AO12*1000-AP12 -> 10309744 | AR12: =IF(AI10="","",RANK(AQ10:AQ12,AQ10:AQ12,0)) -> 2 | AT12: 1 | AU12: 2 | AV12: =$D$7 -> NRC | AX12: =VLOOKUP(VALUE(AT12&AU12),【準備】登録!$AI$5:$AL$28,3,FALSE) -> 吉向 翔平 | AZ12: =VLOOKUP(AX12,【準備】登録!$AK$4:$AL$27,2,FALSE) -> 180 | BA12: =IF(ISERROR(VLOOKUP($AX12&$AV$3&BA$4,【進行】結果入力表!$Q$7:$V$150,2,FALSE)),"",VLOOKUP($AX12&$AV$3&BA$4,【進行】結果入力表!$Q$7:$V$150,2,FALSE)) -> W | BC12: =IF(ISERROR(VLOOKUP($AX12&$AV$3&BC$4,【進行】結果入力表!$Q$7:$V$150,2,FALSE)),"",VLOOKUP($AX12&$AV$3&BC$4,【進行】結果入力表!$Q$7:$V$150,2,FALSE)) -> 88 | BG12: =IF(BE10="","",COUNTIF(BA12:BF12,"w")) -> 1 | BH12: =IF(BE10="","",COUNT(BA12,BC12)) -> 1 | BI12: =SUM(BA12:BF12)+BG12*AZ12 -> 268 | BK12: =IF(BE10="","",BI12/AZ12*180) -> 268 | BL12: =IF(BE10="w",180,BE10/AZ12*180)+IF(BE11="w",180,BE11/AZ12*180) -> 291 | BM12: =BG12*10000000+BK12*BG10011*10000000+BK12*1000-BL12 -> 10267709 | BN12: =IF(BE10="","",RANK(BM10:BM12,BM10:BM12,0)) -> 3
D14: 3 | F14: Name | H14: =H$4 -> 持点 | I14: =$D$5 -> SBC | K14: =$D$6 -> HRC | M14: =$D$7 -> NRC | O14: W | P14: L | Q14: TP | S14: TP | T14: LP | U14: R_P | V14: R | Z14: 3 | AB14: Name | AD14: =$H$4 -> 持点 | AE14: =$D$5 -> SBC | AG14: =$D$6 -> HRC | AI14: =$D$7 -> NRC | AK14: W | AL14: L | AM14: TP | AO14: TP | AP14: LP | AQ14: R_P | AR14: R | AV14: 3 | AX14: Name | AZ14: =$H$4 -> 持点 | BA14: =$D$5 -> SBC | BC14: =$D$6 -> HRC | BE14: =$D$7 -> NRC | BG14: W | BH14: L | BI14: TP | BK14: TP | BL14: LP | BM14: R_P | BN14: R
A15: 3 | B15: 3 | D15: =$D$5 -> SBC | F15: =VLOOKUP(VALUE($A15&$D14),【準備】登録!$AI$5:$AL$28,3,FALSE) -> 大橋 正寛 | H15: =VLOOKUP(F15,【準備】登録!$AK$4:$AL$27,2,FALSE) -> 180 | K15: =IF(ISERROR(VLOOKUP($F15&$D$3&K$4,【進行】結果入力表!$Q$7:$V$150,2,FALSE)),"",VLOOKUP($F15&$D$3&K$4,【進行】結果入力表!$Q$7:$V$150,2,FALSE)) -> W | M15: =IF(ISERROR(VLOOKUP($F15&$D$3&M$4,【進行】結果入力表!$Q$7:$V$150,2,FALSE)),"",VLOOKUP($F15&$D$3&M$4,【進行】結果入力表!$Q$7:$V$150,2,FALSE)) -> 127 | O15: =IF(M15="","",COUNTIF(I15:N15,"w")) -> 1 | P15: =IF(M15="","",COUNT(K15,M15)) -> 1 | Q15: =SUM(I15:N15)+O15*H15 -> 307 | S15: =IF(M15="","",Q15/H15*180) -> 307 | T15: =IF(I16="w",180,I16/H15*180)+IF(I17="w",180,I17/H15*180) -> 341 | U15: =O15*10000000+S15*O10014*10000000+S15*1000-T15 -> 10306659 | V15: =IF(M15="","",RANK(U15:U17,U15:U17,0)) -> 2 | X15: 3 | Y15: 5 | Z15: =$D$5 -> SBC | AB15: =VLOOKUP(VALUE(X15&Y15),【準備】登録!$AI$5:$AL$28,3,FALSE) -> 山中 康寛 | AD15: =VLOOKUP(AB15,【準備】登録!$AK$4:$AL$27,2,FALSE) -> 180 | AG15: =IF(ISERROR(VLOOKUP($AB15&$Z$3&AG$4,【進行】結果入力表!$Q$7:$V$150,2,FALSE)),"",VLOOKUP($AB15&$Z$3&AG$4,【進行】結果入力表!$Q$7:$V$150,2,FALSE)) -> W | AI15: =IF(ISERROR(VLOOKUP($AB15&$Z$3&AI$4,【進行】結果入力表!$Q$7:$V$150,2,FALSE)),"",VLOOKUP($AB15&$Z$3&AI$4,【進行】結果入力表!$Q$7:$V$150,2,FALSE)) -> 164 | AK15: =IF(AI15="","",COUNTIF(AE15:AJ15,"w")) -> 1 | AL15: =IF(AI15="","",COUNT(AG15,AI15)) -> 1 | AM15: =SUM(AE15:AJ15)+AK15*AD15 -> 344 | AO15: =IF(AI15="","",AM15/AD15*180) -> 344 | AP15: =IF(AE16="w",180,AE16/AD15*180)+IF(AE17="w",180,AE17/AD15*180) -> 334 | AQ15: =AK15*10000000+AO15*AK10014*10000000+AO15*1000-AP15 -> 10343666 | AR15: =IF(AI15="","",RANK(AQ15:AQ17,AQ15:AQ17,0)) -> 1 | AT15: 3 | AU15: =IF(【準備】登録!U6=5,2,IF(【準備】登録!U6=6,1,7)) -> 1 | AV15: =$D$5 -> SBC | AX15: =VLOOKUP(VALUE(AT15&AU15),【準備】登録!$AI$5:$AL$28,3,FALSE) -> 林 秀忠 | AZ15: =VLOOKUP(AX15,【準備】登録!$AK$4:$AL$27,2,FALSE) -> 180 | BC15: =IF(ISERROR(VLOOKUP($AX15&$AV$3&BC$4,【進行】結果入力表!$Q$7:$V$150,2,FALSE)),"",VLOOKUP($AX15&$AV$3&BC$4,【進行】結果入力表!$Q$7:$V$150,2,FALSE)) -> W | BE15: =IF(ISERROR(VLOOKUP($AX15&$AV$3&BE$4,【進行】結果入力表!$Q$7:$V$150,2,FALSE)),"",VLOOKUP($AX15&$AV$3&BE$4,【進行】結果入力表!$Q$7:$V$150,2,FALSE)) -> W | BG15: =IF(BE15="","",COUNTIF(BA15:BF15,"w")) -> 2 | BH15: =IF(BE15="","",COUNT(BC15,BE15)) -> 0 | BI15: =SUM(BA15:BF15)+BG15*AZ15 -> 360 | BK15: =IF(BE15="","",BI15/AZ15*180) -> 360 | BL15: =IF(BA16="w",180,BA16/AZ15*180)+IF(BA17="w",180,BA17/AZ15*180) -> 200 | BM15: =BG15*10000000+BK15*BG10014*10000000+BK15*1000-BL15 -> 20359800 | BN15: =IF(BE15="","",RANK(BM15:BM17,BM15:BM17,0)) -> 1
A16: 2 | B16: 3 | D16: =$D$6 -> HRC | F16: =VLOOKUP(VALUE($A16&$D14),【準備】登録!$AI$5:$AL$28,3,FALSE) -> 平井 洸志 | H16: =VLOOKUP(F16,【準備】登録!$AK$4:$AL$27,2,FALSE) -> 180 | I16: =IF(ISERROR(VLOOKUP($F16&$D$3&I$4,【進行】結果入力表!$Q$7:$V$150,2,FALSE)),"",VLOOKUP($F16&$D$3&I$4,【進行】結果入力表!$Q$7:$V$150,2,FALSE)) -> 161 | M16: =IF(ISERROR(VLOOKUP($F16&$D$3&M$4,【進行】結果入力表!$Q$7:$V$150,2,FALSE)),"",VLOOKUP($F16&$D$3&M$4,【進行】結果入力表!$Q$7:$V$150,2,FALSE)) -> 93 | O16: =IF(M15="","",COUNTIF(I16:N16,"w")) -> 0 | P16: =IF(M15="","",COUNT(I16,M16)) -> 2 | Q16: =SUM(I16:N16)+O16*H16 -> 254 | S16: =IF(M15="","",Q16/H16*180) -> 254 | T16: =IF(K15="w",180,K15/H16*180)+IF(K17="w",180,K17/H16*180) -> 360 | U16: =O16*10000000+S16*O10015*10000000+S16*1000-T16 -> 253640 | V16: =IF(M15="","",RANK(U15:U17,U15:U17,0)) -> 3 | X16: 2 | Y16: 4 | Z16: =$D$6 -> HRC | AB16: =VLOOKUP(VALUE(X16&Y16),【準備】登録!$AI$5:$AL$28,3,FALSE) -> 中尾 亮太 | AD16: =VLOOKUP(AB16,【準備】登録!$AK$4:$AL$27,2,FALSE) -> 180 | AE16: =IF(ISERROR(VLOOKUP($AB16&$Z$3&AE$4,【進行】結果入力表!$Q$7:$V$150,2,FALSE)),"",VLOOKUP($AB16&$Z$3&AE$4,【進行】結果入力表!$Q$7:$V$150,2,FALSE)) -> 154 | AI16: =IF(ISERROR(VLOOKUP($AB16&$Z$3&AI$4,【進行】結果入力表!$Q$7:$V$150,2,FALSE)),"",VLOOKUP($AB16&$Z$3&AI$4,【進行】結果入力表!$Q$7:$V$150,2,FALSE)) -> W | AK16: =IF(AI15="","",COUNTIF(AE16:AJ16,"w")) -> 1 | AL16: =IF(AI15="","",COUNT(AE16,AI16)) -> 1 | AM16: =SUM(AE16:AJ16)+AK16*AD16 -> 334 | AO16: =IF(AI15="","",AM16/AD16*180) -> 334 | AP16: =IF(AG15="w",180,AG15/AD16*180)+IF(AG17="w",180,AG17/AD16*180) -> 282 | AQ16: =AK16*10000000+AO16*AK10015*10000000+AO16*1000-AP16 -> 10333718 | AR16: =IF(AI15="","",RANK(AQ15:AQ17,AQ15:AQ17,0)) -> 2 | AT16: 2 | AU16: 5 | AV16: =$D$6 -> HRC | AX16: =VLOOKUP(VALUE(AT16&AU16),【準備】登録!$AI$5:$AL$28,3,FALSE) -> 宮本 一 | AZ16: =VLOOKUP(AX16,【準備】登録!$AK$4:$AL$27,2,FALSE) -> 180 | BA16: =IF(ISERROR(VLOOKUP($AX16&$AV$3&BA$4,【進行】結果入力表!$Q$7:$V$150,2,FALSE)),"",VLOOKUP($AX16&$AV$3&BA$4,【進行】結果入力表!$Q$7:$V$150,2,FALSE)) -> 130 | BE16: =IF(ISERROR(VLOOKUP($AX16&$AV$3&BE$4,【進行】結果入力表!$Q$7:$V$150,2,FALSE)),"",VLOOKUP($AX16&$AV$3&BE$4,【進行】結果入力表!$Q$7:$V$150,2,FALSE)) -> W | BG16: =IF(BE15="","",COUNTIF(BA16:BF16,"w")) -> 1 | BH16: =IF(BE15="","",COUNT(BA16,BE16)) -> 1 | BI16: =SUM(BA16:BF16)+BG16*AZ16 -> 310 | BK16: =IF(BE15="","",BI16/AZ16*180) -> 310 | BL16: =IF(BC15="w",180,BC15/AZ16*180)+IF(BC17="w",180,BC17/AZ16*180) -> 327 | BM16: =BG16*10000000+BK16*BG10015*10000000+BK16*1000-BL16 -> 10309673 | BN16: =IF(BE15="","",RANK(BM15:BM17,BM15:BM17,0)) -> 2
A17: 1 | B17: 3 | D17: =$D$7 -> NRC | F17: =VLOOKUP(VALUE($A17&$D14),【準備】登録!$AI$5:$AL$28,3,FALSE) -> 金澤 茂昌 | H17: =VLOOKUP(F17,【準備】登録!$AK$4:$AL$27,2,FALSE) -> 180 | I17: =IF(ISERROR(VLOOKUP($F17&$D$3&I$4,【進行】結果入力表!$Q$7:$V$150,2,FALSE)),"",VLOOKUP($F17&$D$3&I$4,【進行】結果入力表!$Q$7:$V$150,2,FALSE)) -> W | K17: =IF(ISERROR(VLOOKUP($F17&$D$3&K$4,【進行】結果入力表!$Q$7:$V$150,2,FALSE)),"",VLOOKUP($F17&$D$3&K$4,【進行】結果入力表!$Q$7:$V$150,2,FALSE)) -> W | O17: =IF(M15="","",COUNTIF(I17:N17,"w")) -> 2 | P17: =IF(M15="","",COUNT(I17,K17)) -> 0 | Q17: =SUM(I17:N17)+O17*H17 -> 360 | S17: =IF(M15="","",Q17/H17*180) -> 360 | T17: =IF(M15="w",180,M15/H17*180)+IF(M16="w",180,M16/H17*180) -> 220 | U17: =O17*10000000+S17*O10016*10000000+S17*1000-T17 -> 20359780 | V17: =IF(M15="","",RANK(U15:U17,U15:U17,0)) -> 1 | X17: 1 | Y17: 3 | Z17: =$D$7 -> NRC | AB17: =VLOOKUP(VALUE(X17&Y17),【準備】登録!$AI$5:$AL$28,3,FALSE) -> 金澤 茂昌 | AD17: =VLOOKUP(AB17,【準備】登録!$AK$4:$AL$27,2,FALSE) -> 180 | AE17: =IF(ISERROR(VLOOKUP($AB17&$Z$3&AE$4,【進行】結果入力表!$Q$7:$V$150,2,FALSE)),"",VLOOKUP($AB17&$Z$3&AE$4,【進行】結果入力表!$Q$7:$V$150,2,FALSE)) -> W | AG17: =IF(ISERROR(VLOOKUP($AB17&$Z$3&AG$4,【進行】結果入力表!$Q$7:$V$150,2,FALSE)),"",VLOOKUP($AB17&$Z$3&AG$4,【進行】結果入力表!$Q$7:$V$150,2,FALSE)) -> 102 | AK17: =IF(AI15="","",COUNTIF(AE17:AJ17,"w")) -> 1 | AL17: =IF(AI15="","",COUNT(AE17,AG17)) -> 1 | AM17: =SUM(AE17:AJ17)+AK17*AD17 -> 282 | AO17: =IF(AI15="","",AM17/AD17*180) -> 282 | AP17: =IF(AI15="w",180,AI15/AD17*180)+IF(AI16="w",180,AI16/AD17*180) -> 344 | AQ17: =AK17*10000000+AO17*AK10016*10000000+AO17*1000-AP17 -> 10281656 | AR17: =IF(AI15="","",RANK(AQ15:AQ17,AQ15:AQ17,0)) -> 3 | AT17: 1 | AU17: 3 | AV17: =$D$7 -> NRC | AX17: =VLOOKUP(VALUE(AT17&AU17),【準備】登録!$AI$5:$AL$28,3,FALSE) -> 金澤 茂昌 | AZ17: =VLOOKUP(AX17,【準備】登録!$AK$4:$AL$27,2,FALSE) -> 180 | BA17: =IF(ISERROR(VLOOKUP($AX17&$AV$3&BA$4,【進行】結果入力表!$Q$7:$V$150,2,FALSE)),"",VLOOKUP($AX17&$AV$3&BA$4,【進行】結果入力表!$Q$7:$V$150,2,FALSE)) -> 70 | BC17: =IF(ISERROR(VLOOKUP($AX17&$AV$3&BC$4,【進行】結果入力表!$Q$7:$V$150,2,FALSE)),"",VLOOKUP($AX17&$AV$3&BC$4,【進行】結果入力表!$Q$7:$V$150,2,FALSE)) -> 147 | BG17: =IF(BE15="","",COUNTIF(BA17:BF17,"w")) -> 0 | BH17: =IF(BE15="","",COUNT(BA17,BC17)) -> 2 | BI17: =SUM(BA17:BF17)+BG17*AZ17 -> 217 | BK17: =IF(BE15="","",BI17/AZ17*180) -> 217 | BL17: =IF(BE15="w",180,BE15/AZ17*180)+IF(BE16="w",180,BE16/AZ17*180) -> 360 | BM17: =BG17*10000000+BK17*BG10016*10000000+BK17*1000-BL17 -> 216640 | BN17: =IF(BE15="","",RANK(BM15:BM17,BM15:BM17,0)) -> 3
D19: 4 | F19: Name | H19: =H$4 -> 持点 | I19: =$D$5 -> SBC | K19: =$D$6 -> HRC | M19: =$D$7 -> NRC | O19: W | P19: L | Q19: TP | S19: TP | T19: LP | U19: R_P | V19: R | Z19: 4 | AB19: Name | AD19: =$H$4 -> 持点 | AE19: =M30 -> 116 | AG19: =$D$6 -> HRC | AI19: =$D$7 -> NRC | AK19: W | AL19: L | AM19: TP | AO19: TP | AP19: LP | AQ19: R_P | AR19: R | AV19: 4 | AX19: Name | AZ19: =$H$4 -> 持点 | BA19: =$D$5 -> SBC | BC19: =$D$6 -> HRC | BE19: =$D$7 -> NRC | BG19: W | BH19: L | BI19: TP | BK19: TP | BL19: LP | BM19: R_P | BN19: R
A20: 3 | B20: 4 | D20: =$D$5 -> SBC | F20: =VLOOKUP(VALUE($A20&$D19),【準備】登録!$AI$5:$AL$28,3,FALSE) -> 大橋 義治 | H20: =VLOOKUP(F20,【準備】登録!$AK$4:$AL$27,2,FALSE) -> 180 | K20: =IF(ISERROR(VLOOKUP($F20&$D$3&K$4,【進行】結果入力表!$Q$7:$V$150,2,FALSE)),"",VLOOKUP($F20&$D$3&K$4,【進行】結果入力表!$Q$7:$V$150,2,FALSE)) -> W | M20: =IF(ISERROR(VLOOKUP($F20&$D$3&M$4,【進行】結果入力表!$Q$7:$V$150,2,FALSE)),"",VLOOKUP($F20&$D$3&M$4,【進行】結果入力表!$Q$7:$V$150,2,FALSE)) -> W | O20: =IF(M20="","",COUNTIF(I20:N20,"w")) -> 2 | P20: =IF(M20="","",COUNT(K20,M20)) -> 0 | Q20: =SUM(I20:N20)+O20*H20 -> 360 | S20: =IF(M20="","",Q20/H20*180) -> 360 | T20: =IF(I21="w",180,I21/H20*180)+IF(I22="w",180,I22/H20*180) -> 206 | U20: =O20*10000000+S20*O10019*10000000+S20*1000-T20 -> 20359794 | V20: =IF(M20="","",RANK(U20:U22,U20:U22,0)) -> 1 | X20: 3 | Y20: =IF(【準備】登録!U6=5,1,6) -> 6 | Z20: =$D$5 -> SBC | AB20: =VLOOKUP(VALUE(X20&Y20),【準備】登録!$AI$5:$AL$28,3,FALSE) -> 大橋 洋子 | AD20: =VLOOKUP(AB20,【準備】登録!$AK$4:$AL$27,2,FALSE) -> 140 | AG20: =IF(ISERROR(VLOOKUP($AB20&$Z$3&AG$4,【進行】結果入力表!$Q$7:$V$150,2,FALSE)),"",VLOOKUP($AB20&$Z$3&AG$4,【進行】結果入力表!$Q$7:$V$150,2,FALSE)) -> 59 | AI20: =IF(ISERROR(VLOOKUP($AB20&$Z$3&AI$4,【進行】結果入力表!$Q$7:$V$150,2,FALSE)),"",VLOOKUP($AB20&$Z$3&AI$4,【進行】結果入力表!$Q$7:$V$150,2,FALSE)) -> 35 | AK20: =IF(AI20="","",COUNTIF(AE20:AJ20,"w")) -> 0 | AL20: =IF(AI20="","",COUNT(AG20,AI20)) -> 2 | AM20: =SUM(AE20:AJ20)+AK20*AD20 -> 94 | AO20: =IF(AI20="","",AM20/AD20*180) -> 120.8571429 | AP20: =IF(AE21="w",180,AE21/AD20*180)+IF(AE22="w",180,AE22/AD20*180) -> 360 | AQ20: =AK20*10000000+AO20*AK10019*10000000+AO20*1000-AP20 -> 120497.1429 | AR20: =IF(AI20="","",RANK(AQ20:AQ22,AQ20:AQ22,0)) -> 3 | AT20: 3 | AU20: 2 | AV20: =$D$5 -> SBC | AX20: =VLOOKUP(VALUE(AT20&AU20),【準備】登録!$AI$5:$AL$28,3,FALSE) -> 秋田 倫央 | AZ20: =VLOOKUP(AX20,【準備】登録!$AK$4:$AL$27,2,FALSE) -> 180 | BC20: =IF(ISERROR(VLOOKUP($AX20&$AV$3&BC$4,【進行】結果入力表!$Q$7:$V$150,2,FALSE)),"",VLOOKUP($AX20&$AV$3&BC$4,【進行】結果入力表!$Q$7:$V$150,2,FALSE)) -> W | BE20: =IF(ISERROR(VLOOKUP($AX20&$AV$3&BE$4,【進行】結果入力表!$Q$7:$V$150,2,FALSE)),"",VLOOKUP($AX20&$AV$3&BE$4,【進行】結果入力表!$Q$7:$V$150,2,FALSE)) -> 168 | BG20: =IF(BE20="","",COUNTIF(BA20:BF20,"w")) -> 1 | BH20: =IF(BE20="","",COUNT(BC20,BE20)) -> 1 | BI20: =SUM(BA20:BF20)+BG20*AZ20 -> 348 | BK20: =IF(BE20="","",BI20/AZ20*180) -> 348 | BL20: =IF(BA21="w",180,BA21/AZ20*180)+IF(BA22="w",180,BA22/AZ20*180) -> 259 | BM20: =BG20*10000000+BK20*BG10019*10000000+BK20*1000-BL20 -> 10347741 | BN20: =IF(BE20="","",RANK(BM20:BM22,BM20:BM22,0)) -> 1
A21: 2 | B21: 4 | D21: =$D$6 -> HRC | F21: =VLOOKUP(VALUE($A21&$D19),【準備】登録!$AI$5:$AL$28,3,FALSE) -> 中尾 亮太 | H21: =VLOOKUP(F21,【準備】登録!$AK$4:$AL$27,2,FALSE) -> 180 | I21: =IF(ISERROR(VLOOKUP($F21&$D$3&I$4,【進行】結果入力表!$Q$7:$V$150,2,FALSE)),"",VLOOKUP($F21&$D$3&I$4,【進行】結果入力表!$Q$7:$V$150,2,FALSE)) -> 167 | M21: =IF(ISERROR(VLOOKUP($F21&$D$3&M$4,【進行】結果入力表!$Q$7:$V$150,2,FALSE)),"",VLOOKUP($F21&$D$3&M$4,【進行】結果入力表!$Q$7:$V$150,2,FALSE)) -> W | O21: =IF(M20="","",COUNTIF(I21:N21,"w")) -> 1 | P21: =IF(M20="","",COUNT(I21,M21)) -> 1 | Q21: =SUM(I21:N21)+O21*H21 -> 347 | S21: =IF(M20="","",Q21/H21*180) -> 347 | T21: =IF(K20="w",180,K20/H21*180)+IF(K22="w",180,K22/H21*180) -> 316 | U21: =O21*10000000+S21*O10020*10000000+S21*1000-T21 -> 10346684 | V21: =IF(M20="","",RANK(U20:U22,U20:U22,0)) -> 2 | X21: 2 | Y21: 5 | Z21: =$D$6 -> HRC | AB21: =VLOOKUP(VALUE(X21&Y21),【準備】登録!$AI$5:$AL$28,3,FALSE) -> 宮本 一 | AD21: =VLOOKUP(AB21,【準備】登録!$AK$4:$AL$27,2,FALSE) -> 180 | AE21: =IF(ISERROR(VLOOKUP($AB21&$Z$3&AE$4,【進行】結果入力表!$Q$7:$V$150,2,FALSE)),"",VLOOKUP($AB21&$Z$3&AE$4,【進行】結果入力表!$Q$7:$V$150,2,FALSE)) -> W | AI21: =IF(ISERROR(VLOOKUP($AB21&$Z$3&AI$4,【進行】結果入力表!$Q$7:$V$150,2,FALSE)),"",VLOOKUP($AB21&$Z$3&AI$4,【進行】結果入力表!$Q$7:$V$150,2,FALSE)) -> W | AK21: =IF(AI20="","",COUNTIF(AE21:AJ21,"w")) -> 2 | AL21: =IF(AI20="","",COUNT(AE21,AI21)) -> 0 | AM21: =SUM(AE21:AJ21)+AK21*AD21 -> 360 | AO21: =IF(AI20="","",AM21/AD21*180) -> 360 | AP21: =IF(AG20="w",180,AG20/AD21*180)+IF(AG22="w",180,AG22/AD21*180) -> 115 | AQ21: =AK21*10000000+AO21*AK10020*10000000+AO21*1000-AP21 -> 20359885 | AR21: =IF(AI20="","",RANK(AQ20:AQ22,AQ20:AQ22,0)) -> 1 | AT21: 2 | AU21: 6 | AV21: =$D$6 -> HRC | AX21: =VLOOKUP(VALUE(AT21&AU21),【準備】登録!$AI$5:$AL$28,3,FALSE) -> 河地 恵里 | AZ21: =VLOOKUP(AX21,【準備】登録!$AK$4:$AL$27,2,FALSE) -> 140 | BA21: =IF(ISERROR(VLOOKUP($AX21&$AV$3&BA$4,【進行】結果入力表!$Q$7:$V$150,2,FALSE)),"",VLOOKUP($AX21&$AV$3&BA$4,【進行】結果入力表!$Q$7:$V$150,2,FALSE)) -> 79 | BE21: =IF(ISERROR(VLOOKUP($AX21&$AV$3&BE$4,【進行】結果入力表!$Q$7:$V$150,2,FALSE)),"",VLOOKUP($AX21&$AV$3&BE$4,【進行】結果入力表!$Q$7:$V$150,2,FALSE)) -> W | BG21: =IF(BE20="","",COUNTIF(BA21:BF21,"w")) -> 1 | BH21: =IF(BE20="","",COUNT(BA21,BE21)) -> 1 | BI21: =SUM(BA21:BF21)+BG21*AZ21 -> 219 | BK21: =IF(BE20="","",BI21/AZ21*180) -> 281.5714286 | BL21: =IF(BC20="w",180,BC20/AZ21*180)+IF(BC22="w",180,BC22/AZ21*180) -> 286.7142857 | BM21: =BG21*10000000+BK21*BG10020*10000000+BK21*1000-BL21 -> 10281284.71 | BN21: =IF(BE20="","",RANK(BM20:BM22,BM20:BM22,0)) -> 2
A22: 1 | B22: 4 | D22: =$D$7 -> NRC | F22: =VLOOKUP(VALUE($A22&$D19),【準備】登録!$AI$5:$AL$28,3,FALSE) -> 植田 慎也 | H22: =VLOOKUP(F22,【準備】登録!$AK$4:$AL$27,2,FALSE) -> 180 | I22: =IF(ISERROR(VLOOKUP($F22&$D$3&I$4,【進行】結果入力表!$Q$7:$V$150,2,FALSE)),"",VLOOKUP($F22&$D$3&I$4,【進行】結果入力表!$Q$7:$V$150,2,FALSE)) -> 39 | K22: =IF(ISERROR(VLOOKUP($F22&$D$3&K$4,【進行】結果入力表!$Q$7:$V$150,2,FALSE)),"",VLOOKUP($F22&$D$3&K$4,【進行】結果入力表!$Q$7:$V$150,2,FALSE)) -> 136 | O22: =IF(M20="","",COUNTIF(I22:N22,"w")) -> 0 | P22: =IF(M20="","",COUNT(I22,K22)) -> 2 | Q22: =SUM(I22:N22)+O22*H22 -> 175 | S22: =IF(M20="","",Q22/H22*180) -> 175 | T22: =IF(M20="w",180,M20/H22*180)+IF(M21="w",180,M21/H22*180) -> 360 | U22: =O22*10000000+S22*O10021*10000000+S22*1000-T22 -> 174640 | V22: =IF(M20="","",RANK(U20:U22,U20:U22,0)) -> 3 | X22: 1 | Y22: 4 | Z22: =$D$7 -> NRC | AB22: =VLOOKUP(VALUE(X22&Y22),【準備】登録!$AI$5:$AL$28,3,FALSE) -> 植田 慎也 | AD22: =VLOOKUP(AB22,【準備】登録!$AK$4:$AL$27,2,FALSE) -> 180 | AE22: =IF(ISERROR(VLOOKUP($AB22&$Z$3&AE$4,【進行】結果入力表!$Q$7:$V$150,2,FALSE)),"",VLOOKUP($AB22&$Z$3&AE$4,【進行】結果入力表!$Q$7:$V$150,2,FALSE)) -> W | AG22: =IF(ISERROR(VLOOKUP($AB22&$Z$3&AG$4,【進行】結果入力表!$Q$7:$V$150,2,FALSE)),"",VLOOKUP($AB22&$Z$3&AG$4,【進行】結果入力表!$Q$7:$V$150,2,FALSE)) -> 56 | AK22: =IF(AI20="","",COUNTIF(AE22:AJ22,"w")) -> 1 | AL22: =IF(AI20="","",COUNT(AE22,AG22)) -> 1 | AM22: =SUM(AE22:AJ22)+AK22*AD22 -> 236 | AO22: =IF(AI20="","",AM22/AD22*180) -> 236 | AP22: =IF(AI20="w",180,AI20/AD22*180)+IF(AI21="w",180,AI21/AD22*180) -> 215 | AQ22: =AK22*10000000+AO22*AK10021*10000000+AO22*1000-AP22 -> 10235785 | AR22: =IF(AI20="","",RANK(AQ20:AQ22,AQ20:AQ22,0)) -> 2 | AT22: 1 | AU22: 4 | AV22: =$D$7 -> NRC | AX22: =VLOOKUP(VALUE(AT22&AU22),【準備】登録!$AI$5:$AL$28,3,FALSE) -> 植田 慎也 | AZ22: =VLOOKUP(AX22,【準備】登録!$AK$4:$AL$27,2,FALSE) -> 180 | BA22: =IF(ISERROR(VLOOKUP($AX22&$AV$3&BA$4,【進行】結果入力表!$Q$7:$V$150,2,FALSE)),"",VLOOKUP($AX22&$AV$3&BA$4,【進行】結果入力表!$Q$7:$V$150,2,FALSE)) -> W | BC22: =IF(ISERROR(VLOOKUP($AX22&$AV$3&BC$4,【進行】結果入力表!$Q$7:$V$150,2,FALSE)),"",VLOOKUP($AX22&$AV$3&BC$4,【進行】結果入力表!$Q$7:$V$150,2,FALSE)) -> 83 | BG22: =IF(BE20="","",COUNTIF(BA22:BF22,"w")) -> 1 | BH22: =IF(BE20="","",COUNT(BA22,BC22)) -> 1 | BI22: =SUM(BA22:BF22)+BG22*AZ22 -> 263 | BK22: =IF(BE20="","",BI22/AZ22*180) -> 263 | BL22: =IF(BE20="w",180,BE20/AZ22*180)+IF(BE21="w",180,BE21/AZ22*180) -> 348 | BM22: =BG22*10000000+BK22*BG10021*10000000+BK22*1000-BL22 -> 10262652 | BN22: =IF(BE20="","",RANK(BM20:BM22,BM20:BM22,0)) -> 3
D24: 5 | F24: Name | H24: =H$4 -> 持点 | I24: =$D$5 -> SBC | K24: =$D$6 -> HRC | M24: =$D$7 -> NRC | O24: W | P24: L | Q24: TP | S24: TP | T24: LP | U24: R_P | V24: R | Z24: 5 | AB24: Name | AD24: =$H$4 -> 持点 | AE24: =$D$5 -> SBC | AG24: =$D$6 -> HRC | AI24: =$D$7 -> NRC | AK24: W | AL24: L | AM24: TP | AO24: TP | AP24: LP | AQ24: R_P | AR24: R | AV24: 5 | AX24: Name | AZ24: =$H$4 -> 持点 | BA24: =$D$5 -> SBC | BC24: =$D$6 -> HRC | BE24: =$D$7 -> NRC | BG24: W | BH24: L | BI24: TP | BK24: TP | BL24: LP | BM24: R_P | BN24: R
A25: 3 | B25: 5 | D25: =$D$5 -> SBC | F25: =VLOOKUP(VALUE($A25&$D24),【準備】登録!$AI$5:$AL$28,3,FALSE) -> 山中 康寛 | H25: =VLOOKUP(F25,【準備】登録!$AK$4:$AL$27,2,FALSE) -> 180 | K25: =IF(ISERROR(VLOOKUP($F25&$D$3&K$4,【進行】結果入力表!$Q$7:$V$150,2,FALSE)),"",VLOOKUP($F25&$D$3&K$4,【進行】結果入力表!$Q$7:$V$150,2,FALSE)) -> 92 | M25: =IF(ISERROR(VLOOKUP($F25&$D$3&M$4,【進行】結果入力表!$Q$7:$V$150,2,FALSE)),"",VLOOKUP($F25&$D$3&M$4,【進行】結果入力表!$Q$7:$V$150,2,FALSE)) -> W | O25: =IF(M25="","",COUNTIF(I25:N25,"w")) -> 1 | P25: =IF(M25="","",COUNT(K25,M25)) -> 1 | Q25: =SUM(I25:N25)+O25*H25 -> 272 | S25: =IF(M25="","",Q25/H25*180) -> 272 | T25: =IF(I26="w",180,I26/H25*180)+IF(I27="w",180,I27/H25*180) -> 333 | U25: =O25*10000000+S25*O10024*10000000+S25*1000-T25 -> 10271667 | V25: =IF(M25="","",RANK(U25:U27,U25:U27,0)) -> 2 | X25: 3 | Y25: =IF(【準備】登録!U6=5,2,IF(【準備】登録!U6=6,1,7)) -> 1 | Z25: =$D$5 -> SBC | AB25: =VLOOKUP(VALUE(X25&Y25),【準備】登録!$AI$5:$AL$28,3,FALSE) -> 林 秀忠 | AD25: =VLOOKUP(AB25,【準備】登録!$AK$4:$AL$27,2,FALSE) -> 180 | AG25: =IF(ISERROR(VLOOKUP($AB25&$Z$3&AG$4,【進行】結果入力表!$Q$7:$V$150,2,FALSE)),"",VLOOKUP($AB25&$Z$3&AG$4,【進行】結果入力表!$Q$7:$V$150,2,FALSE)) -> 154 | AI25: =IF(ISERROR(VLOOKUP($AB25&$Z$3&AI$4,【進行】結果入力表!$Q$7:$V$150,2,FALSE)),"",VLOOKUP($AB25&$Z$3&AI$4,【進行】結果入力表!$Q$7:$V$150,2,FALSE)) -> W | AK25: =IF(AI25="","",COUNTIF(AE25:AJ25,"w")) -> 1 | AL25: =IF(AI25="","",COUNT(AG25,AI25)) -> 1 | AM25: =SUM(AE25:AJ25)+AK25*AD25 -> 334 | AO25: =IF(AI25="","",AM25/AD25*180) -> 334 | AP25: =IF(AE26="w",180,AE26/AD25*180)+IF(AE27="w",180,AE27/AD25*180) -> 225 | AQ25: =AK25*10000000+AO25*AK10024*10000000+AO25*1000-AP25 -> 10333775 | AR25: =IF(AI25="","",RANK(AQ25:AQ27,AQ25:AQ27,0)) -> 2 | AT25: 3 | AU25: 3 | AV25: =$D$5 -> SBC | AX25: =VLOOKUP(VALUE(AT25&AU25),【準備】登録!$AI$5:$AL$28,3,FALSE) -> 大橋 正寛 | AZ25: =VLOOKUP(AX25,【準備】登録!$AK$4:$AL$27,2,FALSE) -> 180 | BC25: =IF(ISERROR(VLOOKUP($AX25&$AV$3&BC$4,【進行】結果入力表!$Q$7:$V$150,2,FALSE)),"",VLOOKUP($AX25&$AV$3&BC$4,【進行】結果入力表!$Q$7:$V$150,2,FALSE)) -> W | BE25: =IF(ISERROR(VLOOKUP($AX25&$AV$3&BE$4,【進行】結果入力表!$Q$7:$V$150,2,FALSE)),"",VLOOKUP($AX25&$AV$3&BE$4,【進行】結果入力表!$Q$7:$V$150,2,FALSE)) -> W | BG25: =IF(BE25="","",COUNTIF(BA25:BF25,"w")) -> 2 | BH25: =IF(BE25="","",COUNT(BC25,BE25)) -> 0 | BI25: =SUM(BA25:BF25)+BG25*AZ25 -> 360 | BK25: =IF(BE25="","",BI25/AZ25*180) -> 360 | BL25: =IF(BA26="w",180,BA26/AZ25*180)+IF(BA27="w",180,BA27/AZ25*180) -> 160 | BM25: =BG25*10000000+BK25*BG10024*10000000+BK25*1000-BL25 -> 20359840 | BN25: =IF(BE25="","",RANK(BM25:BM27,BM25:BM27,0)) -> 1
A26: 2 | B26: 5 | D26: =$D$6 -> HRC | F26: =VLOOKUP(VALUE($A26&$D24),【準備】登録!$AI$5:$AL$28,3,FALSE) -> 宮本 一 | H26: =VLOOKUP(F26,【準備】登録!$AK$4:$AL$27,2,FALSE) -> 180 | I26: =IF(ISERROR(VLOOKUP($F26&$D$3&I$4,【進行】結果入力表!$Q$7:$V$150,2,FALSE)),"",VLOOKUP($F26&$D$3&I$4,【進行】結果入力表!$Q$7:$V$150,2,FALSE)) -> W | M26: =IF(ISERROR(VLOOKUP($F26&$D$3&M$4,【進行】結果入力表!$Q$7:$V$150,2,FALSE)),"",VLOOKUP($F26&$D$3&M$4,【進行】結果入力表!$Q$7:$V$150,2,FALSE)) -> W | O26: =IF(M25="","",COUNTIF(I26:N26,"w")) -> 2 | P26: =IF(M25="","",COUNT(I26,M26)) -> 0 | Q26: =SUM(I26:N26)+O26*H26 -> 360 | S26: =IF(M25="","",Q26/H26*180) -> 360 | T26: =IF(K25="w",180,K25/H26*180)+IF(K27="w",180,K27/H26*180) -> 132 | U26: =O26*10000000+S26*O10025*10000000+S26*1000-T26 -> 20359868 | V26: =IF(M25="","",RANK(U25:U27,U25:U27,0)) -> 1 | X26: 2 | Y26: =IF(【準備】登録!U6=5,1,6) -> 6 | Z26: =$D$6 -> HRC | AB26: =VLOOKUP(VALUE(X26&Y26),【準備】登録!$AI$5:$AL$28,3,FALSE) -> 河地 恵里 | AD26: =VLOOKUP(AB26,【準備】登録!$AK$4:$AL$27,2,FALSE) -> 140 | AE26: =IF(ISERROR(VLOOKUP($AB26&$Z$3&AE$4,【進行】結果入力表!$Q$7:$V$150,2,FALSE)),"",VLOOKUP($AB26&$Z$3&AE$4,【進行】結果入力表!$Q$7:$V$150,2,FALSE)) -> W | AI26: =IF(ISERROR(VLOOKUP($AB26&$Z$3&AI$4,【進行】結果入力表!$Q$7:$V$150,2,FALSE)),"",VLOOKUP($AB26&$Z$3&AI$4,【進行】結果入力表!$Q$7:$V$150,2,FALSE)) -> W | AK26: =IF(AI25="","",COUNTIF(AE26:AJ26,"w")) -> 2 | AL26: =IF(AI25="","",COUNT(AE26,AI26)) -> 0 | AM26: =SUM(AE26:AJ26)+AK26*AD26 -> 280 | AO26: =IF(AI25="","",AM26/AD26*180) -> 360 | AP26: =IF(AG25="w",180,AG25/AD26*180)+IF(AG27="w",180,AG27/AD26*180) -> 339.4285714 | AQ26: =AK26*10000000+AO26*AK10025*10000000+AO26*1000-AP26 -> 20359660.57 | AR26: =IF(AI25="","",RANK(AQ25:AQ27,AQ25:AQ27,0)) -> 1 | AT26: 2 | AU26: 1 | AV26: =$D$6 -> HRC | AX26: =VLOOKUP(VALUE(AT26&AU26),【準備】登録!$AI$5:$AL$28,3,FALSE) -> 高木 俊行 | AZ26: =VLOOKUP(AX26,【準備】登録!$AK$4:$AL$27,2,FALSE) -> 180 | BA26: =IF(ISERROR(VLOOKUP($AX26&$AV$3&BA$4,【進行】結果入力表!$Q$7:$V$150,2,FALSE)),"",VLOOKUP($AX26&$AV$3&BA$4,【進行】結果入力表!$Q$7:$V$150,2,FALSE)) -> 47 | BE26: =IF(ISERROR(VLOOKUP($AX26&$AV$3&BE$4,【進行】結果入力表!$Q$7:$V$150,2,FALSE)),"",VLOOKUP($AX26&$AV$3&BE$4,【進行】結果入力表!$Q$7:$V$150,2,FALSE)) -> W | BG26: =IF(BE25="","",COUNTIF(BA26:BF26,"w")) -> 1 | BH26: =IF(BE25="","",COUNT(BA26,BE26)) -> 1 | BI26: =SUM(BA26:BF26)+BG26*AZ26 -> 227 | BK26: =IF(BE25="","",BI26/AZ26*180) -> 227 | BL26: =IF(BC25="w",180,BC25/AZ26*180)+IF(BC27="w",180,BC27/AZ26*180) -> 298 | BM26: =BG26*10000000+BK26*BG10025*10000000+BK26*1000-BL26 -> 10226702 | BN26: =IF(BE25="","",RANK(BM25:BM27,BM25:BM27,0)) -> 2
A27: 1 | B27: 5 | D27: =$D$7 -> NRC | F27: =VLOOKUP(VALUE($A27&$D24),【準備】登録!$AI$5:$AL$28,3,FALSE) -> 長谷川 進 | H27: =VLOOKUP(F27,【準備】登録!$AK$4:$AL$27,2,FALSE) -> 180 | I27: =IF(ISERROR(VLOOKUP($F27&$D$3&I$4,【進行】結果入力表!$Q$7:$V$150,2,FALSE)),"",VLOOKUP($F27&$D$3&I$4,【進行】結果入力表!$Q$7:$V$150,2,FALSE)) -> 153 | K27: =IF(ISERROR(VLOOKUP($F27&$D$3&K$4,【進行】結果入力表!$Q$7:$V$150,2,FALSE)),"",VLOOKUP($F27&$D$3&K$4,【進行】結果入力表!$Q$7:$V$150,2,FALSE)) -> 40 | O27: =IF(M25="","",COUNTIF(I27:N27,"w")) -> 0 | P27: =IF(M25="","",COUNT(I27,K27)) -> 2 | Q27: =SUM(I27:N27)+O27*H27 -> 193 | S27: =IF(M25="","",Q27/H27*180) -> 193 | T27: =IF(M25="w",180,M25/H27*180)+IF(M26="w",180,M26/H27*180) -> 360 | U27: =O27*10000000+S27*O10026*10000000+S27*1000-T27 -> 192640 | V27: =IF(M25="","",RANK(U25:U27,U25:U27,0)) -> 3 | X27: 1 | Y27: 5 | Z27: =$D$7 -> NRC | AB27: =VLOOKUP(VALUE(X27&Y27),【準備】登録!$AI$5:$AL$28,3,FALSE) -> 長谷川 進 | AD27: =VLOOKUP(AB27,【準備】登録!$AK$4:$AL$27,2,FALSE) -> 180 | AE27: =IF(ISERROR(VLOOKUP($AB27&$Z$3&AE$4,【進行】結果入力表!$Q$7:$V$150,2,FALSE)),"",VLOOKUP($AB27&$Z$3&AE$4,【進行】結果入力表!$Q$7:$V$150,2,FALSE)) -> 45 | AG27: =IF(ISERROR(VLOOKUP($AB27&$Z$3&AG$4,【進行】結果入力表!$Q$7:$V$150,2,FALSE)),"",VLOOKUP($AB27&$Z$3&AG$4,【進行】結果入力表!$Q$7:$V$150,2,FALSE)) -> 110 | AK27: =IF(AI25="","",COUNTIF(AE27:AJ27,"w")) -> 0 | AL27: =IF(AI25="","",COUNT(AE27,AG27)) -> 2 | AM27: =SUM(AE27:AJ27)+AK27*AD27 -> 155 | AO27: =IF(AI25="","",AM27/AD27*180) -> 155 | AP27: =IF(AI25="w",180,AI25/AD27*180)+IF(AI26="w",180,AI26/AD27*180) -> 360 | AQ27: =AK27*10000000+AO27*AK10026*10000000+AO27*1000-AP27 -> 154640 | AR27: =IF(AI25="","",RANK(AQ25:AQ27,AQ25:AQ27,0)) -> 3 | AT27: 1 | AU27: 5 | AV27: =$D$7 -> NRC | AX27: =VLOOKUP(VALUE(AT27&AU27),【準備】登録!$AI$5:$AL$28,3,FALSE) -> 長谷川 進 | AZ27: =VLOOKUP(AX27,【準備】登録!$AK$4:$AL$27,2,FALSE) -> 180 | BA27: =IF(ISERROR(VLOOKUP($AX27&$AV$3&BA$4,【進行】結果入力表!$Q$7:$V$150,2,FALSE)),"",VLOOKUP($AX27&$AV$3&BA$4,【進行】結果入力表!$Q$7:$V$150,2,FALSE)) -> 113 | BC27: =IF(ISERROR(VLOOKUP($AX27&$AV$3&BC$4,【進行】結果入力表!$Q$7:$V$150,2,FALSE)),"",VLOOKUP($AX27&$AV$3&BC$4,【進行】結果入力表!$Q$7:$V$150,2,FALSE)) -> 118 | BG27: =IF(BE25="","",COUNTIF(BA27:BF27,"w")) -> 0 | BH27: =IF(BE25="","",COUNT(BA27,BC27)) -> 2 | BI27: =SUM(BA27:BF27)+BG27*AZ27 -> 231 | BK27: =IF(BE25="","",BI27/AZ27*180) -> 231 | BL27: =IF(BE25="w",180,BE25/AZ27*180)+IF(BE26="w",180,BE26/AZ27*180) -> 360 | BM27: =BG27*10000000+BK27*BG10026*10000000+BK27*1000-BL27 -> 230640 | BN27: =IF(BE25="","",RANK(BM25:BM27,BM25:BM27,0)) -> 3
D29: 6 | F29: Name | H29: =H$4 -> 持点 | I29: =$D$5 -> SBC | K29: =$D$6 -> HRC | M29: =$D$7 -> NRC | O29: W | P29: L | Q29: TP | S29: TP | T29: LP | U29: R_P | V29: R | Z29: 6 | AB29: Name | AD29: =$H$4 -> 持点 | AE29: =$D$5 -> SBC | AG29: =$D$6 -> HRC | AI29: =$D$7 -> NRC | AK29: W | AL29: L | AM29: TP | AO29: TP | AP29: LP | AQ29: R_P | AR29: R | AV29: 6 | AX29: Name | AZ29: =$H$4 -> 持点 | BA29: =$D$5 -> SBC | BC29: =$D$6 -> HRC | BE29: =$D$7 -> NRC | BG29: W | BH29: L | BI29: TP | BK29: TP | BL29: LP | BM29: R_P | BN29: R
A30: 3 | B30: 6 | D30: =IF(【準備】登録!$U$6<D29,"",D25) -> SBC | F30: =IF(VLOOKUP(VALUE($A30&$D29),【準備】登録!$AI$5:$AL$28,3,FALSE)=0,"",VLOOKUP(VALUE($A30&$D29),【準備】登録!$AI$5:$AL$28,3,FALSE)) -> 大橋 洋子 | H30: =VLOOKUP(F30,【準備】登録!$AK$4:$AL$27,2,FALSE) -> 140 | K30: =IF(ISERROR(VLOOKUP($F30&$D$3&K$4,【進行】結果入力表!$Q$7:$V$150,2,FALSE)),"",VLOOKUP($F30&$D$3&K$4,【進行】結果入力表!$Q$7:$V$150,2,FALSE)) -> W | M30: =IF(ISERROR(VLOOKUP($F30&$D$3&M$4,【進行】結果入力表!$Q$7:$V$150,2,FALSE)),"",VLOOKUP($F30&$D$3&M$4,【進行】結果入力表!$Q$7:$V$150,2,FALSE)) -> 116 | O30: =IF(M30="","",COUNTIF(I30:N30,"w")) -> 1 | P30: =IF(M30="","",COUNT(K30,M30)) -> 1 | Q30: =SUM(I30:N30)+O30*H30 -> 256 | S30: =IF(M30="","",Q30/H30*180) -> 329.1428571 | T30: =IF(I31="w",180,I31/H30*180)+IF(I32="w",180,I32/H30*180) -> 325.2857143 | U30: =O30*10000000+S30*O10029*10000000+S30*1000-T30 -> 10328817.57 | V30: =IF(M30="","",RANK(U30:U32,U30:U32,0)) -> 1 | X30: 3 | Y30: =IF(【準備】登録!U6=5,"",IF(【準備】登録!U6=6,2,IF(【準備】登録!U6=7,1,IF(【準備】登録!U6=8,8)))) -> 2 | Z30: =IF(【準備】登録!$U$6<Z29,"",Z25) -> SBC | AB30: =VLOOKUP(VALUE(X30&Y30),【準備】登録!$AI$5:$AL$28,3,FALSE) -> 秋田 倫央 | AD30: =VLOOKUP(AB30,【準備】登録!$AK$4:$AL$27,2,FALSE) -> 180 | AG30: =IF(ISERROR(VLOOKUP($AB30&$Z$3&AG$4,【進行】結果入力表!$Q$7:$V$150,2,FALSE)),"",VLOOKUP($AB30&$Z$3&AG$4,【進行】結果入力表!$Q$7:$V$150,2,FALSE)) -> W | AI30: =IF(ISERROR(VLOOKUP($AB30&$Z$3&AI$4,【進行】結果入力表!$Q$7:$V$150,2,FALSE)),"",VLOOKUP($AB30&$Z$3&AI$4,【進行】結果入力表!$Q$7:$V$150,2,FALSE)) -> W | AK30: =IF(AI30="","",COUNTIF(AE30:AJ30,"w")) -> 2 | AL30: =IF(AI30="","",COUNT(AG30,AI30)) -> 0 | AM30: =SUM(AE30:AJ30)+AK30*AD30 -> 360 | AO30: =IF(AI30="","",AM30/AD30*180) -> 360 | AP30: =IF(AE31="w",180,AE31/AD30*180)+IF(AE32="w",180,AE32/AD30*180) -> 230 | AQ30: =AK30*10000000+AO30*AK10029*10000000+AO30*1000-AP30 -> 20359770 | AR30: =IF(AI30="","",RANK(AQ30:AQ32,AQ30:AQ32,0)) -> 1 | AT30: 3 | AU30: 4 | AV30: =IF(【準備】登録!$U$6<AV29,"",AV25) -> SBC | AX30: =VLOOKUP(VALUE(AT30&AU30),【準備】登録!$AI$5:$AL$28,3,FALSE) -> 大橋 義治 | AZ30: =VLOOKUP(AX30,【準備】登録!$AK$4:$AL$27,2,FALSE) -> 180 | BC30: =IF(ISERROR(VLOOKUP($AX30&$AV$3&BC$4,【進行】結果入力表!$Q$7:$V$150,2,FALSE)),"",VLOOKUP($AX30&$AV$3&BC$4,【進行】結果入力表!$Q$7:$V$150,2,FALSE)) -> 91 | BE30: =IF(ISERROR(VLOOKUP($AX30&$AV$3&BE$4,【進行】結果入力表!$Q$7:$V$150,2,FALSE)),"",VLOOKUP($AX30&$AV$3&BE$4,【進行】結果入力表!$Q$7:$V$150,2,FALSE)) -> W | BG30: =IF(BE30="","",COUNTIF(BA30:BF30,"w")) -> 1 | BH30: =IF(BE30="","",COUNT(BC30,BE30)) -> 1 | BI30: =SUM(BA30:BF30)+BG30*AZ30 -> 271 | BK30: =IF(BE30="","",BI30/AZ30*180) -> 271 | BL30: =IF(BA31="w",180,BA31/AZ30*180)+IF(BA32="w",180,BA32/AZ30*180) -> 278 | BM30: =BG30*10000000+BK30*BG10029*10000000+BK30*1000-BL30 -> 10270722 | BN30: =IF(BE30="","",RANK(BM30:BM32,BM30:BM32,0)) -> 2
A31: 2 | B31: 6 | D31: =IF(【準備】登録!$U$6<D29,"",D26) -> HRC | F31: =IF(VLOOKUP(VALUE($A31&$D29),【準備】登録!$AI$5:$AL$28,3,FALSE)=0,"",VLOOKUP(VALUE($A31&$D29),【準備】登録!$AI$5:$AL$28,3,FALSE)) -> 河地 恵里 | H31: =VLOOKUP(F31,【準備】登録!$AK$4:$AL$27,2,FALSE) -> 140 | I31: =IF(ISERROR(VLOOKUP($F31&$D$3&I$4,【進行】結果入力表!$Q$7:$V$150,2,FALSE)),"",VLOOKUP($F31&$D$3&I$4,【進行】結果入力表!$Q$7:$V$150,2,FALSE)) -> 113 | M31: =IF(ISERROR(VLOOKUP($F31&$D$3&M$4,【進行】結果入力表!$Q$7:$V$150,2,FALSE)),"",VLOOKUP($F31&$D$3&M$4,【進行】結果入力表!$Q$7:$V$150,2,FALSE)) -> W | O31: =IF(M30="","",COUNTIF(I31:N31,"w")) -> 1 | P31: =IF(M30="","",COUNT(I31,M31)) -> 1 | Q31: =SUM(I31:N31)+O31*H31 -> 253 | S31: =IF(M30="","",Q31/H31*180) -> 325.2857143 | T31: =IF(K30="w",180,K30/H31*180)+IF(K32="w",180,K32/H31*180) -> 201.8571429 | U31: =O31*10000000+S31*O10030*10000000+S31*1000-T31 -> 10325083.86 | V31: =IF(M30="","",RANK(U30:U32,U30:U32,0)) -> 2 | X31: 2 | Y31: =IF(【準備】登録!U6=5,"",IF(【準備】登録!U6=6,1,7)) -> 1 | Z31: =IF(【準備】登録!$U$6<Z29,"",Z26) -> HRC | AB31: =VLOOKUP(VALUE(X31&Y31),【準備】登録!$AI$5:$AL$28,3,FALSE) -> 高木 俊行 | AD31: =VLOOKUP(AB31,【準備】登録!$AK$4:$AL$27,2,FALSE) -> 180 | AE31: =IF(ISERROR(VLOOKUP($AB31&$Z$3&AE$4,【進行】結果入力表!$Q$7:$V$150,2,FALSE)),"",VLOOKUP($AB31&$Z$3&AE$4,【進行】結果入力表!$Q$7:$V$150,2,FALSE)) -> 128 | AI31: =IF(ISERROR(VLOOKUP($AB31&$Z$3&AI$4,【進行】結果入力表!$Q$7:$V$150,2,FALSE)),"",VLOOKUP($AB31&$Z$3&AI$4,【進行】結果入力表!$Q$7:$V$150,2,FALSE)) -> W | AK31: =IF(AI30="","",COUNTIF(AE31:AJ31,"w")) -> 1 | AL31: =IF(AI30="","",COUNT(AE31,AI31)) -> 1 | AM31: =SUM(AE31:AJ31)+AK31*AD31 -> 308 | AO31: =IF(AI30="","",AM31/AD31*180) -> 308 | AP31: =IF(AG30="w",180,AG30/AD31*180)+IF(AG32="w",180,AG32/AD31*180) -> 236 | AQ31: =AK31*10000000+AO31*AK10030*10000000+AO31*1000-AP31 -> 10307764 | AR31: =IF(AI30="","",RANK(AQ30:AQ32,AQ30:AQ32,0)) -> 2 | AT31: 2 | AU31: 2 | AV31: =IF(【準備】登録!$U$6<AV29,"",AV26) -> HRC | AX31: =VLOOKUP(VALUE(AT31&AU31),【準備】登録!$AI$5:$AL$28,3,FALSE) -> 金井 健太郎 | AZ31: =VLOOKUP(AX31,【準備】登録!$AK$4:$AL$27,2,FALSE) -> 180 | BA31: =IF(ISERROR(VLOOKUP($AX31&$AV$3&BA$4,【進行】結果入力表!$Q$7:$V$150,2,FALSE)),"",VLOOKUP($AX31&$AV$3&BA$4,【進行】結果入力表!$Q$7:$V$150,2,FALSE)) -> W | BE31: =IF(ISERROR(VLOOKUP($AX31&$AV$3&BE$4,【進行】結果入力表!$Q$7:$V$150,2,FALSE)),"",VLOOKUP($AX31&$AV$3&BE$4,【進行】結果入力表!$Q$7:$V$150,2,FALSE)) -> W | BG31: =IF(BE30="","",COUNTIF(BA31:BF31,"w")) -> 2 | BH31: =IF(BE30="","",COUNT(BA31,BE31)) -> 0 | BI31: =SUM(BA31:BF31)+BG31*AZ31 -> 360 | BK31: =IF(BE30="","",BI31/AZ31*180) -> 360 | BL31: =IF(BC30="w",180,BC30/AZ31*180)+IF(BC32="w",180,BC32/AZ31*180) -> 146 | BM31: =BG31*10000000+BK31*BG10030*10000000+BK31*1000-BL31 -> 20359854 | BN31: =IF(BE30="","",RANK(BM30:BM32,BM30:BM32,0)) -> 1
A32: 1 | B32: 6 | D32: =IF(【準備】登録!$U$6<D29,"",D27) -> NRC | F32: =IF(VLOOKUP(VALUE($A32&$D29),【準備】登録!$AI$5:$AL$28,3,FALSE)=0,"",VLOOKUP(VALUE($A32&$D29),【準備】登録!$AI$5:$AL$28,3,FALSE)) -> 宮野 早織 | H32: =VLOOKUP(F32,【準備】登録!$AK$4:$AL$27,2,FALSE) -> 140 | I32: =IF(ISERROR(VLOOKUP($F32&$D$3&I$4,【進行】結果入力表!$Q$7:$V$150,2,FALSE)),"",VLOOKUP($F32&$D$3&I$4,【進行】結果入力表!$Q$7:$V$150,2,FALSE)) -> W | K32: =IF(ISERROR(VLOOKUP($F32&$D$3&K$4,【進行】結果入力表!$Q$7:$V$150,2,FALSE)),"",VLOOKUP($F32&$D$3&K$4,【進行】結果入力表!$Q$7:$V$150,2,FALSE)) -> 17 | O32: =IF(M30="","",COUNTIF(I32:N32,"w")) -> 1 | P32: =IF(M30="","",COUNT(I32,K32)) -> 1 | Q32: =SUM(I32:N32)+O32*H32 -> 157 | S32: =IF(M30="","",Q32/H32*180) -> 201.8571429 | T32: =IF(M30="w",180,M30/H32*180)+IF(M31="w",180,M31/H32*180) -> 329.1428571 | U32: =O32*10000000+S32*O10031*10000000+S32*1000-T32 -> 10201528 | V32: =IF(M30="","",RANK(U30:U32,U30:U32,0)) -> 3 | X32: 1 | Y32: 6 | Z32: =IF(【準備】登録!$U$6<Z29,"",Z27) -> NRC | AB32: =VLOOKUP(VALUE(X32&Y32),【準備】登録!$AI$5:$AL$28,3,FALSE) -> 宮野 早織 | AD32: =VLOOKUP(AB32,【準備】登録!$AK$4:$AL$27,2,FALSE) -> 140 | AE32: =IF(ISERROR(VLOOKUP($AB32&$Z$3&AE$4,【進行】結果入力表!$Q$7:$V$150,2,FALSE)),"",VLOOKUP($AB32&$Z$3&AE$4,【進行】結果入力表!$Q$7:$V$150,2,FALSE)) -> 102 | AG32: =IF(ISERROR(VLOOKUP($AB32&$Z$3&AG$4,【進行】結果入力表!$Q$7:$V$150,2,FALSE)),"",VLOOKUP($AB32&$Z$3&AG$4,【進行】結果入力表!$Q$7:$V$150,2,FALSE)) -> 56 | AK32: =IF(AI30="","",COUNTIF(AE32:AJ32,"w")) -> 0 | AL32: =IF(AI30="","",COUNT(AE32,AG32)) -> 2 | AM32: =SUM(AE32:AJ32)+AK32*AD32 -> 158 | AO32: =IF(AI30="","",AM32/AD32*180) -> 203.1428571 | AP32: =IF(AI30="w",180,AI30/AD32*180)+IF(AI31="w",180,AI31/AD32*180) -> 360 | AQ32: =AK32*10000000+AO32*AK10031*10000000+AO32*1000-AP32 -> 202782.8571 | AR32: =IF(AI30="","",RANK(AQ30:AQ32,AQ30:AQ32,0)) -> 3 | AT32: 1 | AU32: 6 | AV32: =IF(【準備】登録!$U$6<AV29,"",AV27) -> NRC | AX32: =VLOOKUP(VALUE(AT32&AU32),【準備】登録!$AI$5:$AL$28,3,FALSE) -> 宮野 早織 | AZ32: =VLOOKUP(AX32,【準備】登録!$AK$4:$AL$27,2,FALSE) -> 140 | BA32: =IF(ISERROR(VLOOKUP($AX32&$AV$3&BA$4,【進行】結果入力表!$Q$7:$V$150,2,FALSE)),"",VLOOKUP($AX32&$AV$3&BA$4,【進行】結果入力表!$Q$7:$V$150,2,FALSE)) -> 98 | BC32: =IF(ISERROR(VLOOKUP($AX32&$AV$3&BC$4,【進行】結果入力表!$Q$7:$V$150,2,FALSE)),"",VLOOKUP($AX32&$AV$3&BC$4,【進行】結果入力表!$Q$7:$V$150,2,FALSE)) -> 55 | BG32: =IF(BE30="","",COUNTIF(BA32:BF32,"w")) -> 0 | BH32: =IF(BE30="","",COUNT(BA32,BC32)) -> 2 | BI32: =SUM(BA32:BF32)+BG32*AZ32 -> 153 | BK32: =IF(BE30="","",BI32/AZ32*180) -> 196.7142857 | BL32: =IF(BE30="w",180,BE30/AZ32*180)+IF(BE31="w",180,BE31/AZ32*180) -> 360 | BM32: =BG32*10000000+BK32*BG10031*10000000+BK32*1000-BL32 -> 196354.2857 | BN32: =IF(BE30="","",RANK(BM30:BM32,BM30:BM32,0)) -> 3
D34: 7 | F34: Name | H34: =H$4 -> 持点 | I34: =$D$5 -> SBC | K34: =$D$6 -> HRC | M34: =$D$7 -> NRC | O34: W | P34: L | Q34: TP | S34: TP | T34: LP | U34: R_P | V34: R | Z34: 7 | AB34: Name | AD34: =$H$4 -> 持点 | AE34: =$D$5 -> SBC | AG34: =$D$6 -> HRC | AI34: =$D$7 -> NRC | AK34: W | AL34: L | AM34: TP | AO34: TP | AP34: LP | AQ34: R_P | AR34: R | AV34: 7 | AX34: Name | AZ34: =$H$4 -> 持点 | BA34: =$D$5 -> SBC | BC34: =$D$6 -> HRC | BE34: =$D$7 -> NRC | BG34: W | BH34: L | BI34: TP | BK34: TP | BL34: LP | BM34: R_P | BN34: R
A35: 3 | B35: 7 | D35: =IF(【準備】登録!$U$6<D34,"",D30) ->  | F35: =IF(VLOOKUP(VALUE($A35&$D34),【準備】登録!$AI$5:$AL$28,3,FALSE)=0,"",VLOOKUP(VALUE($A35&$D34),【準備】登録!$AI$5:$AL$28,3,FALSE)) ->  | H35: =VLOOKUP(F35,【準備】登録!$AK$4:$AL$27,2,FALSE) ->  | K35: =IF(ISERROR(VLOOKUP($F35&$D$3&K$4,【進行】結果入力表!$Q$7:$V$150,2,FALSE)),"",VLOOKUP($F35&$D$3&K$4,【進行】結果入力表!$Q$7:$V$150,2,FALSE)) ->  | M35: =IF(ISERROR(VLOOKUP($F35&$D$3&M$4,【進行】結果入力表!$Q$7:$V$150,2,FALSE)),"",VLOOKUP($F35&$D$3&M$4,【進行】結果入力表!$Q$7:$V$150,2,FALSE)) ->  | O35: =IF(M35="","",COUNTIF(I35:N35,"w")) ->  | P35: =IF(M35="","",COUNT(K35,M35)) ->  | Q35: =SUM(I35:N35)+O35*H35 ->  | S35: =IF(M35="","",Q35/H35*180) ->  | T35: =IF(I36="w",180,I36/H35*180)+IF(I37="w",180,I37/H35*180) ->  | U35: =O35*10000000+S35*O10034*10000000+S35*1000-T35 ->  | V35: =IF(M35="","",RANK(U35:U37,U35:U37,0)) ->  | X35: 3 | Y35: =IF(【準備】登録!U6<7,"",IF(【準備】登録!U6=7,1,IF(【準備】登録!U6=8,8))) ->  | Z35: =IF(【準備】登録!$U$6<Z34,"",Z30) ->  | AB35: =IF(VLOOKUP(VALUE($A35&$D34),【準備】登録!$AI$5:$AL$28,3,FALSE)=0,"",VLOOKUP(VALUE($A35&$D34),【準備】登録!$AI$5:$AL$28,3,FALSE)) ->  | AD35: =VLOOKUP(AB35,【準備】登録!$AK$4:$AL$27,2,FALSE) ->  | AG35: =IF(ISERROR(VLOOKUP($AB35&$Z$3&AG$4,【進行】結果入力表!$Q$7:$V$150,2,FALSE)),"",VLOOKUP($AB35&$Z$3&AG$4,【進行】結果入力表!$Q$7:$V$150,2,FALSE)) ->  | AI35: =IF(ISERROR(VLOOKUP($AB35&$Z$3&AI$4,【進行】結果入力表!$Q$7:$V$150,2,FALSE)),"",VLOOKUP($AB35&$Z$3&AI$4,【進行】結果入力表!$Q$7:$V$150,2,FALSE)) ->  | AK35: =IF(AI35="","",COUNTIF(AE35:AJ35,"w")) ->  | AL35: =IF(AI35="","",COUNT(AG35,AI35)) ->  | AM35: =SUM(AE35:AJ35)+AK35*AD35 ->  | AO35: =IF(AI35="","",AM35/AD35*180) ->  | AP35: =IF(AE36="w",180,AE36/AD35*180)+IF(AE37="w",180,AE37/AD35*180) ->  | AQ35: =AK35*10000000+AO35*AK10034*10000000+AO35*1000-AP35 ->  | AR35: =IF(AI35="","",RANK(AQ35:AQ37,AQ35:AQ37,0)) ->  | AT35: 3 | AV35: =IF(【準備】登録!$U$6<AV34,"",AV30) ->  | AX35: =IF(VLOOKUP(VALUE($A35&$D34),【準備】登録!$AI$5:$AL$28,3,FALSE)=0,"",VLOOKUP(VALUE($A35&$D34),【準備】登録!$AI$5:$AL$28,3,FALSE)) ->  | AZ35: =VLOOKUP(AX35,【準備】登録!$AK$4:$AL$27,2,FALSE) ->  | BC35: =IF(ISERROR(VLOOKUP($AX35&$AV$3&BC$4,【進行】結果入力表!$Q$7:$V$150,2,FALSE)),"",VLOOKUP($AX35&$AV$3&BC$4,【進行】結果入力表!$Q$7:$V$150,2,FALSE)) ->  | BE35: =IF(ISERROR(VLOOKUP($AX35&$AV$3&BE$4,【進行】結果入力表!$Q$7:$V$150,2,FALSE)),"",VLOOKUP($AX35&$AV$3&BE$4,【進行】結果入力表!$Q$7:$V$150,2,FALSE)) ->  | BG35: =IF(BE35="","",COUNTIF(BA35:BF35,"w")) ->  | BH35: =IF(BE35="","",COUNT(BC35,BE35)) ->  | BI35: =SUM(BA35:BF35)+BG35*AZ35 ->  | BK35: =IF(BE35="","",BI35/AZ35*180) ->  | BL35: =IF(BA36="w",180,BA36/AZ35*180)+IF(BA37="w",180,BA37/AZ35*180) ->  | BM35: =BG35*10000000+BK35*BG10034*10000000+BK35*1000-BL35 ->  | BN35: =IF(BE35="","",RANK(BM35:BM37,BM35:BM37,0)) -> 
A36: 2 | B36: 7 | D36: =IF(【準備】登録!$U$6<D34,"",D31) ->  | F36: =IF(VLOOKUP(VALUE($A36&$D34),【準備】登録!$AI$5:$AL$28,3,FALSE)=0,"",VLOOKUP(VALUE($A36&$D34),【準備】登録!$AI$5:$AL$28,3,FALSE)) ->  | H36: =VLOOKUP(F36,【準備】登録!$AK$4:$AL$27,2,FALSE) ->  | I36: =IF(ISERROR(VLOOKUP($F36&$D$3&I$4,【進行】結果入力表!$Q$7:$V$150,2,FALSE)),"",VLOOKUP($F36&$D$3&I$4,【進行】結果入力表!$Q$7:$V$150,2,FALSE)) ->  | M36: =IF(ISERROR(VLOOKUP($F36&$D$3&M$4,【進行】結果入力表!$Q$7:$V$150,2,FALSE)),"",VLOOKUP($F36&$D$3&M$4,【進行】結果入力表!$Q$7:$V$150,2,FALSE)) ->  | O36: =IF(M35="","",COUNTIF(I36:N36,"w")) ->  | P36: =IF(M35="","",COUNT(I36,M36)) ->  | Q36: =SUM(I36:N36)+O36*H36 ->  | S36: =IF(M35="","",Q36/H36*180) ->  | T36: =IF(K35="w",180,K35/H36*180)+IF(K37="w",180,K37/H36*180) ->  | U36: =O36*10000000+S36*O10035*10000000+S36*1000-T36 ->  | V36: =IF(M35="","",RANK(U35:U37,U35:U37,0)) ->  | X36: 2 | Y36: =IF(【準備】登録!U6<7,"",IF(【準備】登録!U6=7,1,8)) ->  | Z36: =IF(【準備】登録!$U$6<Z34,"",Z31) ->  | AB36: =IF(VLOOKUP(VALUE($A36&$D34),【準備】登録!$AI$5:$AL$28,3,FALSE)=0,"",VLOOKUP(VALUE($A36&$D34),【準備】登録!$AI$5:$AL$28,3,FALSE)) ->  | AD36: =VLOOKUP(AB36,【準備】登録!$AK$4:$AL$27,2,FALSE) ->  | AE36: =IF(ISERROR(VLOOKUP($AB36&$Z$3&AE$4,【進行】結果入力表!$Q$7:$V$150,2,FALSE)),"",VLOOKUP($AB36&$Z$3&AE$4,【進行】結果入力表!$Q$7:$V$150,2,FALSE)) ->  | AI36: =IF(ISERROR(VLOOKUP($AB36&$Z$3&AI$4,【進行】結果入力表!$Q$7:$V$150,2,FALSE)),"",VLOOKUP($AB36&$Z$3&AI$4,【進行】結果入力表!$Q$7:$V$150,2,FALSE)) ->  | AK36: =IF(AI35="","",COUNTIF(AE36:AJ36,"w")) ->  | AL36: =IF(AI35="","",COUNT(AE36,AI36)) ->  | AM36: =SUM(AE36:AJ36)+AK36*AD36 ->  | AO36: =IF(AI35="","",AM36/AD36*180) ->  | AP36: =IF(AG35="w",180,AG35/AD36*180)+IF(AG37="w",180,AG37/AD36*180) ->  | AQ36: =AK36*10000000+AO36*AK10035*10000000+AO36*1000-AP36 ->  | AR36: =IF(AI35="","",RANK(AQ35:AQ37,AQ35:AQ37,0)) ->  | AT36: 2 | AV36: =IF(【準備】登録!$U$6<AV34,"",AV31) ->  | AX36: =IF(VLOOKUP(VALUE($A36&$D34),【準備】登録!$AI$5:$AL$28,3,FALSE)=0,"",VLOOKUP(VALUE($A36&$D34),【準備】登録!$AI$5:$AL$28,3,FALSE)) ->  | AZ36: =VLOOKUP(AX36,【準備】登録!$AK$4:$AL$27,2,FALSE) ->  | BA36: =IF(ISERROR(VLOOKUP($AX36&$AV$3&BA$4,【進行】結果入力表!$Q$7:$V$150,2,FALSE)),"",VLOOKUP($AX36&$AV$3&BA$4,【進行】結果入力表!$Q$7:$V$150,2,FALSE)) ->  | BE36: =IF(ISERROR(VLOOKUP($AX36&$AV$3&BE$4,【進行】結果入力表!$Q$7:$V$150,2,FALSE)),"",VLOOKUP($AX36&$AV$3&BE$4,【進行】結果入力表!$Q$7:$V$150,2,FALSE)) ->  | BG36: =IF(BE35="","",COUNTIF(BA36:BF36,"w")) ->  | BH36: =IF(BE35="","",COUNT(BA36,BE36)) ->  | BI36: =SUM(BA36:BF36)+BG36*AZ36 ->  | BK36: =IF(BE35="","",BI36/AZ36*180) ->  | BL36: =IF(BC35="w",180,BC35/AZ36*180)+IF(BC37="w",180,BC37/AZ36*180) ->  | BM36: =BG36*10000000+BK36*BG10035*10000000+BK36*1000-BL36 ->  | BN36: =IF(BE35="","",RANK(BM35:BM37,BM35:BM37,0)) -> 
A37: 1 | B37: 7 | D37: =IF(【準備】登録!$U$6<D34,"",D32) ->  | F37: =IF(VLOOKUP(VALUE($A37&$D34),【準備】登録!$AI$5:$AL$28,3,FALSE)=0,"",VLOOKUP(VALUE($A37&$D34),【準備】登録!$AI$5:$AL$28,3,FALSE)) ->  | H37: =VLOOKUP(F37,【準備】登録!$AK$4:$AL$27,2,FALSE) ->  | I37: =IF(ISERROR(VLOOKUP($F37&$D$3&I$4,【進行】結果入力表!$Q$7:$V$150,2,FALSE)),"",VLOOKUP($F37&$D$3&I$4,【進行】結果入力表!$Q$7:$V$150,2,FALSE)) ->  | K37: =IF(ISERROR(VLOOKUP($F37&$D$3&K$4,【進行】結果入力表!$Q$7:$V$150,2,FALSE)),"",VLOOKUP($F37&$D$3&K$4,【進行】結果入力表!$Q$7:$V$150,2,FALSE)) ->  | O37: =IF(M35="","",COUNTIF(I37:N37,"w")) ->  | P37: =IF(M35="","",COUNT(I37,K37)) ->  | Q37: =SUM(I37:N37)+O37*H37 ->  | S37: =IF(M35="","",Q37/H37*180) ->  | T37: =IF(M35="w",180,M35/H37*180)+IF(M36="w",180,M36/H37*180) ->  | U37: =O37*10000000+S37*O10036*10000000+S37*1000-T37 ->  | V37: =IF(M35="","",RANK(U35:U37,U35:U37,0)) ->  | X37: 1 | Y37: 7 | Z37: =IF(【準備】登録!$U$6<Z34,"",Z32) ->  | AB37: =IF(VLOOKUP(VALUE($A37&$D34),【準備】登録!$AI$5:$AL$28,3,FALSE)=0,"",VLOOKUP(VALUE($A37&$D34),【準備】登録!$AI$5:$AL$28,3,FALSE)) ->  | AD37: =VLOOKUP(AB37,【準備】登録!$AK$4:$AL$27,2,FALSE) ->  | AE37: =IF(ISERROR(VLOOKUP($AB37&$Z$3&AE$4,【進行】結果入力表!$Q$7:$V$150,2,FALSE)),"",VLOOKUP($AB37&$Z$3&AE$4,【進行】結果入力表!$Q$7:$V$150,2,FALSE)) ->  | AG37: =IF(ISERROR(VLOOKUP($AB37&$Z$3&AG$4,【進行】結果入力表!$Q$7:$V$150,2,FALSE)),"",VLOOKUP($AB37&$Z$3&AG$4,【進行】結果入力表!$Q$7:$V$150,2,FALSE)) ->  | AK37: =IF(AI35="","",COUNTIF(AE37:AJ37,"w")) ->  | AL37: =IF(AI35="","",COUNT(AE37,AG37)) ->  | AM37: =SUM(AE37:AJ37)+AK37*AD37 ->  | AO37: =IF(AI35="","",AM37/AD37*180) ->  | AP37: =IF(AI35="w",180,AI35/AD37*180)+IF(AI36="w",180,AI36/AD37*180) ->  | AQ37: =AK37*10000000+AO37*AK10036*10000000+AO37*1000-AP37 ->  | AR37: =IF(AI35="","",RANK(AQ35:AQ37,AQ35:AQ37,0)) ->  | AT37: 1 | AU37: 7 | AV37: =IF(【準備】登録!$U$6<AV34,"",AV32) ->  | AX37: =IF(VLOOKUP(VALUE($A37&$D34),【準備】登録!$AI$5:$AL$28,3,FALSE)=0,"",VLOOKUP(VALUE($A37&$D34),【準備】登録!$AI$5:$AL$28,3,FALSE)) ->  | AZ37: =VLOOKUP(AX37,【準備】登録!$AK$4:$AL$27,2,FALSE) ->  | BA37: =IF(ISERROR(VLOOKUP($AX37&$AV$3&BA$4,【進行】結果入力表!$Q$7:$V$150,2,FALSE)),"",VLOOKUP($AX37&$AV$3&BA$4,【進行】結果入力表!$Q$7:$V$150,2,FALSE)) ->  | BC37: =IF(ISERROR(VLOOKUP($AX37&$AV$3&BC$4,【進行】結果入力表!$Q$7:$V$150,2,FALSE)),"",VLOOKUP($AX37&$AV$3&BC$4,【進行】結果入力表!$Q$7:$V$150,2,FALSE)) ->  | BG37: =IF(BE35="","",COUNTIF(BA37:BF37,"w")) ->  | BH37: =IF(BE35="","",COUNT(BA37,BC37)) ->  | BI37: =SUM(BA37:BF37)+BG37*AZ37 ->  | BK37: =IF(BE35="","",BI37/AZ37*180) ->  | BL37: =IF(BE35="w",180,BE35/AZ37*180)+IF(BE36="w",180,BE36/AZ37*180) ->  | BM37: =BG37*10000000+BK37*BG10036*10000000+BK37*1000-BL37 ->  | BN37: =IF(BE35="","",RANK(BM35:BM37,BM35:BM37,0)) -> 
D39: 8 | F39: Name | H39: =H$4 -> 持点 | I39: =$D$40 ->  | K39: =$D$41 ->  | M39: =$D$42 ->  | O39: W | P39: L | Q39: TP | S39: TP | T39: LP | U39: R_P | V39: R | Z39: 8 | AB39: Name | AD39: =$H$4 -> 持点 | AE39: =$D$40 ->  | AG39: =$D$41 ->  | AI39: =$D$42 ->  | AK39: W | AL39: L | AM39: TP | AO39: TP | AP39: LP | AQ39: R_P | AR39: R | AV39: 8 | AX39: Name | AZ39: =$H$4 -> 持点 | BA39: =$D$40 ->  | BC39: =$D$41 ->  | BE39: =$D$42 ->  | BG39: W | BH39: L | BI39: TP | BK39: TP | BL39: LP | BM39: R_P | BN39: R
A40: 3 | B40: 8 | D40: =IF(【準備】登録!$U$6<D39,"",D35) ->  | F40: =IF(VLOOKUP(VALUE($A40&$D39),【準備】登録!$AI$5:$AL$28,3,FALSE)=0,"",VLOOKUP(VALUE($A40&$D39),【準備】登録!$AI$5:$AL$28,3,FALSE)) ->  | H40: =VLOOKUP(F40,【準備】登録!$AK$4:$AL$27,2,FALSE) ->  | K40: =IF(ISERROR(VLOOKUP($F40&$D$3&K$4,【進行】結果入力表!$Q$7:$V$150,2,FALSE)),"",VLOOKUP($F40&$D$3&K$4,【進行】結果入力表!$Q$7:$V$150,2,FALSE)) ->  | M40: =IF(ISERROR(VLOOKUP($F40&$D$3&M$4,【進行】結果入力表!$Q$7:$V$150,2,FALSE)),"",VLOOKUP($F40&$D$3&M$4,【進行】結果入力表!$Q$7:$V$150,2,FALSE)) ->  | O40: =IF(M40="","",COUNTIF(I40:N40,"w")) ->  | P40: =IF(M40="","",COUNT(K40,M40)) ->  | Q40: =SUM(I40:N40)+O40*H40 ->  | S40: =IF(M40="","",Q40/H40*180) ->  | T40: =IF(I41="w",180,I41/H40*180)+IF(I42="w",180,I42/H40*180) ->  | U40: =O40*10000000+S40*O10039*10000000+S40*1000-T40 ->  | V40: =IF(M40="","",RANK(U40:U42,U40:U42,0)) ->  | X40: 3 | Y40: 2 | Z40: =IF(【準備】登録!$U$6<Z39,"",Z35) ->  | AB40: =IF(VLOOKUP(VALUE($A40&$D39),【準備】登録!$AI$5:$AL$28,3,FALSE)=0,"",VLOOKUP(VALUE($A40&$D39),【準備】登録!$AI$5:$AL$28,3,FALSE)) ->  | AD40: =VLOOKUP(AB40,【準備】登録!$AK$4:$AL$27,2,FALSE) ->  | AG40: =IF(ISERROR(VLOOKUP($AB40&$Z$3&AG$4,【進行】結果入力表!$Q$7:$V$150,2,FALSE)),"",VLOOKUP($AB40&$Z$3&AG$4,【進行】結果入力表!$Q$7:$V$150,2,FALSE)) ->  | AI40: =IF(ISERROR(VLOOKUP($AB40&$Z$3&AI$4,【進行】結果入力表!$Q$7:$V$150,2,FALSE)),"",VLOOKUP($AB40&$Z$3&AI$4,【進行】結果入力表!$Q$7:$V$150,2,FALSE)) ->  | AK40: =IF(AI40="","",COUNTIF(AE40:AJ40,"w")) ->  | AL40: =IF(AI40="","",COUNT(AG40,AI40)) ->  | AM40: =SUM(AE40:AJ40)+AK40*AD40 ->  | AO40: =IF(AI40="","",AM40/AD40*180) ->  | AP40: =IF(AE41="w",180,AE41/AD40*180)+IF(AE42="w",180,AE42/AD40*180) ->  | AQ40: =AK40*10000000+AO40*AK10039*10000000+AO40*1000-AP40 ->  | AR40: =IF(AI40="","",RANK(AQ40:AQ42,AQ40:AQ42,0)) ->  | AT40: 3 | AU40: 4 | AV40: =IF(【準備】登録!$U$6<AV39,"",AV35) ->  | AX40: =IF(VLOOKUP(VALUE($A40&$D39),【準備】登録!$AI$5:$AL$28,3,FALSE)=0,"",VLOOKUP(VALUE($A40&$D39),【準備】登録!$AI$5:$AL$28,3,FALSE)) ->  | AZ40: =VLOOKUP(AX40,【準備】登録!$AK$4:$AL$27,2,FALSE) ->  | BC40: =IF(ISERROR(VLOOKUP($AX40&$AV$3&BC$4,【進行】結果入力表!$Q$7:$V$150,2,FALSE)),"",VLOOKUP($AX40&$AV$3&BC$4,【進行】結果入力表!$Q$7:$V$150,2,FALSE)) ->  | BE40: =IF(ISERROR(VLOOKUP($AX40&$AV$3&BE$4,【進行】結果入力表!$Q$7:$V$150,2,FALSE)),"",VLOOKUP($AX40&$AV$3&BE$4,【進行】結果入力表!$Q$7:$V$150,2,FALSE)) ->  | BG40: =IF(BE40="","",COUNTIF(BA40:BF40,"w")) ->  | BH40: =IF(BE40="","",COUNT(BC40,BE40)) ->  | BI40: =SUM(BA40:BF40)+BG40*AZ40 ->  | BK40: =IF(BE40="","",BI40/AZ40*180) ->  | BL40: =IF(BA41="w",180,BA41/AZ40*180)+IF(BA42="w",180,BA42/AZ40*180) ->  | BM40: =BG40*10000000+BK40*BG10039*10000000+BK40*1000-BL40 ->  | BN40: =IF(BE40="","",RANK(BM40:BM42,BM40:BM42,0)) -> 
A41: 2 | B41: 8 | D41: =IF(【準備】登録!$U$6<D39,"",D36) ->  | F41: =IF(VLOOKUP(VALUE($A41&$D39),【準備】登録!$AI$5:$AL$28,3,FALSE)=0,"",VLOOKUP(VALUE($A41&$D39),【準備】登録!$AI$5:$AL$28,3,FALSE)) ->  | H41: =VLOOKUP(F41,【準備】登録!$AK$4:$AL$27,2,FALSE) ->  | I41: =IF(ISERROR(VLOOKUP($F41&$D$3&I$4,【進行】結果入力表!$Q$7:$V$150,2,FALSE)),"",VLOOKUP($F41&$D$3&I$4,【進行】結果入力表!$Q$7:$V$150,2,FALSE)) ->  | M41: =IF(ISERROR(VLOOKUP($F41&$D$3&M$4,【進行】結果入力表!$Q$7:$V$150,2,FALSE)),"",VLOOKUP($F41&$D$3&M$4,【進行】結果入力表!$Q$7:$V$150,2,FALSE)) ->  | O41: =IF(M40="","",COUNTIF(I41:N41,"w")) ->  | P41: =IF(M40="","",COUNT(I41,M41)) ->  | Q41: =SUM(I41:N41)+O41*H41 ->  | S41: =IF(M40="","",Q41/H41*180) ->  | T41: =IF(K40="w",180,K40/H41*180)+IF(K42="w",180,K42/H41*180) ->  | U41: =O41*10000000+S41*O10040*10000000+S41*1000-T41 ->  | V41: =IF(M40="","",RANK(U40:U42,U40:U42,0)) ->  | X41: 2 | Y41: 1 | Z41: =IF(【準備】登録!$U$6<Z39,"",Z36) ->  | AB41: =IF(VLOOKUP(VALUE($A41&$D39),【準備】登録!$AI$5:$AL$28,3,FALSE)=0,"",VLOOKUP(VALUE($A41&$D39),【準備】登録!$AI$5:$AL$28,3,FALSE)) ->  | AD41: =VLOOKUP(AB41,【準備】登録!$AK$4:$AL$27,2,FALSE) ->  | AE41: =IF(ISERROR(VLOOKUP($AB41&$Z$3&AE$4,【進行】結果入力表!$Q$7:$V$150,2,FALSE)),"",VLOOKUP($AB41&$Z$3&AE$4,【進行】結果入力表!$Q$7:$V$150,2,FALSE)) ->  | AI41: =IF(ISERROR(VLOOKUP($AB41&$Z$3&AI$4,【進行】結果入力表!$Q$7:$V$150,2,FALSE)),"",VLOOKUP($AB41&$Z$3&AI$4,【進行】結果入力表!$Q$7:$V$150,2,FALSE)) ->  | AK41: =IF(AI40="","",COUNTIF(AE41:AJ41,"w")) ->  | AL41: =IF(AI40="","",COUNT(AE41,AI41)) ->  | AM41: =SUM(AE41:AJ41)+AK41*AD41 ->  | AO41: =IF(AI40="","",AM41/AD41*180) ->  | AP41: =IF(AG40="w",180,AG40/AD41*180)+IF(AG42="w",180,AG42/AD41*180) ->  | AQ41: =AK41*10000000+AO41*AK10040*10000000+AO41*1000-AP41 ->  | AR41: =IF(AI40="","",RANK(AQ40:AQ42,AQ40:AQ42,0)) ->  | AT41: 2 | AU41: 2 | AV41: =IF(【準備】登録!$U$6<AV39,"",AV36) ->  | AX41: =IF(VLOOKUP(VALUE($A41&$D39),【準備】登録!$AI$5:$AL$28,3,FALSE)=0,"",VLOOKUP(VALUE($A41&$D39),【準備】登録!$AI$5:$AL$28,3,FALSE)) ->  | AZ41: =VLOOKUP(AX41,【準備】登録!$AK$4:$AL$27,2,FALSE) ->  | BA41: =IF(ISERROR(VLOOKUP($AX41&$AV$3&BA$4,【進行】結果入力表!$Q$7:$V$150,2,FALSE)),"",VLOOKUP($AX41&$AV$3&BA$4,【進行】結果入力表!$Q$7:$V$150,2,FALSE)) ->  | BE41: =IF(ISERROR(VLOOKUP($AX41&$AV$3&BE$4,【進行】結果入力表!$Q$7:$V$150,2,FALSE)),"",VLOOKUP($AX41&$AV$3&BE$4,【進行】結果入力表!$Q$7:$V$150,2,FALSE)) ->  | BG41: =IF(BE40="","",COUNTIF(BA41:BF41,"w")) ->  | BH41: =IF(BE40="","",COUNT(BA41,BE41)) ->  | BI41: =SUM(BA41:BF41)+BG41*AZ41 ->  | BK41: =IF(BE40="","",BI41/AZ41*180) ->  | BL41: =IF(BC40="w",180,BC40/AZ41*180)+IF(BC42="w",180,BC42/AZ41*180) ->  | BM41: =BG41*10000000+BK41*BG10040*10000000+BK41*1000-BL41 ->  | BN41: =IF(BE40="","",RANK(BM40:BM42,BM40:BM42,0)) -> 
A42: 1 | B42: 8 | D42: =IF(【準備】登録!$U$6<D39,"",D37) ->  | F42: =IF(VLOOKUP(VALUE($A42&$D39),【準備】登録!$AI$5:$AL$28,3,FALSE)=0,"",VLOOKUP(VALUE($A42&$D39),【準備】登録!$AI$5:$AL$28,3,FALSE)) ->  | H42: =VLOOKUP(F42,【準備】登録!$AK$4:$AL$27,2,FALSE) ->  | I42: =IF(ISERROR(VLOOKUP($F42&$D$3&I$4,【進行】結果入力表!$Q$7:$V$150,2,FALSE)),"",VLOOKUP($F42&$D$3&I$4,【進行】結果入力表!$Q$7:$V$150,2,FALSE)) ->  | K42: =IF(ISERROR(VLOOKUP($F42&$D$3&K$4,【進行】結果入力表!$Q$7:$V$150,2,FALSE)),"",VLOOKUP($F42&$D$3&K$4,【進行】結果入力表!$Q$7:$V$150,2,FALSE)) ->  | O42: =IF(M40="","",COUNTIF(I42:N42,"w")) ->  | P42: =IF(M40="","",COUNT(I42,K42)) ->  | Q42: =SUM(I42:N42)+O42*H42 ->  | S42: =IF(M40="","",Q42/H42*180) ->  | T42: =IF(M40="w",180,M40/H42*180)+IF(M41="w",180,M41/H42*180) ->  | U42: =O42*10000000+S42*O10041*10000000+S42*1000-T42 ->  | V42: =IF(M40="","",RANK(U40:U42,U40:U42,0)) ->  | X42: 1 | Y42: 8 | Z42: =IF(【準備】登録!$U$6<Z39,"",Z37) ->  | AB42: =IF(VLOOKUP(VALUE($A42&$D39),【準備】登録!$AI$5:$AL$28,3,FALSE)=0,"",VLOOKUP(VALUE($A42&$D39),【準備】登録!$AI$5:$AL$28,3,FALSE)) ->  | AD42: =VLOOKUP(AB42,【準備】登録!$AK$4:$AL$27,2,FALSE) ->  | AE42: =IF(ISERROR(VLOOKUP($AB42&$Z$3&AE$4,【進行】結果入力表!$Q$7:$V$150,2,FALSE)),"",VLOOKUP($AB42&$Z$3&AE$4,【進行】結果入力表!$Q$7:$V$150,2,FALSE)) ->  | AG42: =IF(ISERROR(VLOOKUP($AB42&$Z$3&AG$4,【進行】結果入力表!$Q$7:$V$150,2,FALSE)),"",VLOOKUP($AB42&$Z$3&AG$4,【進行】結果入力表!$Q$7:$V$150,2,FALSE)) ->  | AK42: =IF(AI40="","",COUNTIF(AE42:AJ42,"w")) ->  | AL42: =IF(AI40="","",COUNT(AE42,AG42)) ->  | AM42: =SUM(AE42:AJ42)+AK42*AD42 ->  | AO42: =IF(AI40="","",AM42/AD42*180) ->  | AP42: =IF(AI40="w",180,AI40/AD42*180)+IF(AI41="w",180,AI41/AD42*180) ->  | AQ42: =AK42*10000000+AO42*AK10041*10000000+AO42*1000-AP42 ->  | AR42: =IF(AI40="","",RANK(AQ40:AQ42,AQ40:AQ42,0)) ->  | AT42: 1 | AU42: 8 | AV42: =IF(【準備】登録!$U$6<AV39,"",AV37) ->  | AX42: =IF(VLOOKUP(VALUE($A42&$D39),【準備】登録!$AI$5:$AL$28,3,FALSE)=0,"",VLOOKUP(VALUE($A42&$D39),【準備】登録!$AI$5:$AL$28,3,FALSE)) ->  | AZ42: =VLOOKUP(AX42,【準備】登録!$AK$4:$AL$27,2,FALSE) ->  | BA42: =IF(ISERROR(VLOOKUP($AX42&$AV$3&BA$4,【進行】結果入力表!$Q$7:$V$150,2,FALSE)),"",VLOOKUP($AX42&$AV$3&BA$4,【進行】結果入力表!$Q$7:$V$150,2,FALSE)) ->  | BC42: =IF(ISERROR(VLOOKUP($AX42&$AV$3&BC$4,【進行】結果入力表!$Q$7:$V$150,2,FALSE)),"",VLOOKUP($AX42&$AV$3&BC$4,【進行】結果入力表!$Q$7:$V$150,2,FALSE)) ->  | BG42: =IF(BE40="","",COUNTIF(BA42:BF42,"w")) ->  | BH42: =IF(BE40="","",COUNT(BA42,BC42)) ->  | BI42: =SUM(BA42:BF42)+BG42*AZ42 ->  | BK42: =IF(BE40="","",BI42/AZ42*180) ->  | BL42: =IF(BE40="w",180,BE40/AZ42*180)+IF(BE41="w",180,BE41/AZ42*180) ->  | BM42: =BG42*10000000+BK42*BG10041*10000000+BK42*1000-BL42 ->  | BN42: =IF(BE40="","",RANK(BM40:BM42,BM40:BM42,0)) -> 
E43: ※ | F43: TPの数字は、ハンデによる換算後の得点を示す。

Sheet 【結果】総合結果表
B1: =【結果】個人成績表!A1 -> 第9回 神奈滋対抗戦 (奈良；キングスポット)
AK4: =【準備】登録!D4 -> 2021-03-21
B6: MVP | F6: HRC(5-1) | N6: 金井 健太郎 | Y6: VP | AC6: SBC(5-1) | AG6: 林 秀忠
B8: HR | F8: HRC(127) | N8: 中尾 亮太 | Y8: VP | AC8: NRC(3-3) | AG8: 金澤 茂昌
E12: =B16 -> SBC | K12: =B22 -> HRC | Q12: =B28 -> NRC | W12: W | AA12: L | AE12: TP | AK12: RK
AI13: (TP) | AJ13: TP
E14: W | H14: L | K14: W | N14: L | Q14: W | T14: L
B16: =IF(【準備】登録!B11="","",【準備】登録!B11) -> SBC | K16: =【結果】個人成績表!H14 -> 4 | N16: =【結果】個人成績表!I14 -> 2 | Q16: =【結果】個人成績表!R14-【結果】個人成績表!H14 -> 3 | T16: =【結果】個人成績表!S14-【結果】個人成績表!I14 -> 3 | W16: =IF(Q16="","",SUM(Q16:S21,K16:M21)) -> 22 | AA16: =IF(T16="","",SUM(T16:V21,N16:P21)) -> 14 | AE16: =IF(【結果】個人成績表!BH14="","","("&【結果】個人成績表!BH14&")") -> (5223) | AI16: =【結果】個人成績表!BH14 -> 5223 | AJ16: =【結果】個人成績表!CE14 -> 5394.714286 | AK16: 1
K18: =IF(【結果】個人成績表!AL14="","",【結果】個人成績表!AL14-【結果】個人成績表!AB14) -> 4 | N18: =IF(【結果】個人成績表!AM14="","",【結果】個人成績表!AM14-【結果】個人成績表!AC14) -> 2 | Q18: =IF(【結果】個人成績表!AB14="","",【結果】個人成績表!AB14-【結果】個人成績表!R14) -> 4 | T18: =IF(【結果】個人成績表!AC14="","",【結果】個人成績表!AC14-【結果】個人成績表!S14) -> 2 | AE18: =IF(【結果】個人成績表!CE14=0,"",【結果】個人成績表!CE14) -> 5394.714286
K20: =IF(【結果】個人成績表!BF14="","",【結果】個人成績表!BF14-【結果】個人成績表!AV14) -> 3 | N20: =IF(【結果】個人成績表!BG14="","",【結果】個人成績表!BG14-【結果】個人成績表!AW14) -> 3 | Q20: =IF(【結果】個人成績表!AV14="","",【結果】個人成績表!AV14-【結果】個人成績表!AL14) -> 4 | T20: =IF(【結果】個人成績表!AW14="","",【結果】個人成績表!AW14-【結果】個人成績表!AM14) -> 2
B22: =IF(【準備】登録!B12="","",【準備】登録!B12) -> HRC | E22: =N16 -> 2 | H22: =K16 -> 4 | Q22: =【結果】個人成績表!R24-【結果】個人成績表!H24 -> 5 | T22: =【結果】個人成績表!S24-【結果】個人成績表!I24 -> 1 | W22: 21 | AA22: 15 | AE22: =IF(【結果】個人成績表!BH24="","","("&【結果】個人成績表!BH24&")") -> (5362) | AI22: =【結果】個人成績表!BH24 -> 5362 | AJ22: =【結果】個人成績表!CE24 -> 5576.857143 | AK22: 2
E24: =N18 -> 2 | H24: =K18 -> 4 | Q24: =IF(【結果】個人成績表!AL24="","",【結果】個人成績表!AL24-【結果】個人成績表!AB24) -> 5 | T24: =IF(【結果】個人成績表!AM24="","",【結果】個人成績表!AM24-【結果】個人成績表!AC24) -> 1 | AE24: =IF(【結果】個人成績表!CE24=0,"",【結果】個人成績表!CE24) -> 5576.857143
E26: =N20 -> 3 | H26: =K20 -> 3 | Q26: =IF(【結果】個人成績表!BF24="","",【結果】個人成績表!BF24-【結果】個人成績表!AV24) -> 5 | T26: =IF(【結果】個人成績表!BG24="","",【結果】個人成績表!BG24-【結果】個人成績表!AW24) -> 1
B28: =IF(【準備】登録!B13="","",【準備】登録!B13) -> NRC | E28: =T16 -> 3 | H28: =Q16 -> 3 | K28: =T22 -> 1 | N28: =Q22 -> 5 | W28: 11 | AA28: 25 | AE28: =IF(【結果】個人成績表!BH34="","","("&【結果】個人成績表!BH34&")") -> (4050) | AI28: =【結果】個人成績表!BH34 -> 4050 | AJ28: =【結果】個人成績表!CE34 -> 4183.714286 | AK28: =IF(AE30="","",RANK(W$16:W$33,W$16:W$33,0)) -> 3
E30: =T18 -> 2 | H30: =Q18 -> 4 | K30: =T24 -> 1 | N30: =Q24 -> 5 | AE30: =IF(【結果】個人成績表!CE34=0,"",【結果】個人成績表!CE34) -> 4183.714286
E32: =T20 -> 2 | H32: =Q20 -> 4 | K32: =T26 -> 1 | N32: =Q26 -> 5
D34: ※ | E34: TPの上段（ ）内の数字は、ハンデによる換算をしていない得点を示す。
